Workbook

Sheet Deckblatt

Sheet Impressum
A4: Impressum
A7: Produktlinie/Reihe: | C7: Tabellen
A9: Titel: | C9: Beschäftigte nach dem Wohnort (Zeitreihe Quartalszahlen)
A11: Region: | C11: Deutschland, Länder und Jobcenter (Wohnort, Gebietsstand März 2022)
A13: Berichtsmonat: | C13: Zeitreihe
A15: Erstellungsdatum: | C15: 2022-10-17
A17: Nächster Veröffentlichungstermin: | C17: 2023-01-16
A19: Herausgeberin: | C19: Bundesagentur für Arbeit
C20: Statistik
A22: Rückfragen an: | C22: Zentraler Statistik-Service
C23: Regensburger Straße 104
C24: 90478 Nürnberg
A25: E-Mail: | C25: Zentraler-Statistik-Service@arbeitsagentur.de
A26: Hotline: | C26: 0911/179-3632
A27: Fax: | C27: 0911/179-1131
A31: Weiterführende statistische Informationen
A33: Internet: | C33: https://statistik.arbeitsagentur.de
A37: Zitierhinweis: | C37: Statistik der Bundesagentur für Arbeit
C38: Tabellen, Beschäftigte nach dem Wohnort (Zeitreihe Quartalszahlen), Nürnberg, Datenstand September 2022
A40: Nutzungsbedingungen:
C42: © Statistik der Bundesagentur für Arbeit
C43: Sie können Informationen speichern, (auch auszugsweise) mit Quellen-
C44: angabe weitergeben, vervielfältigen und verbreiten. Die Inhalte dürfen
C45: nicht verändert oder verfälscht werden. Eigene Berechnungen sind
C46: erlaubt, jedoch als solche kenntlich zu machen.
C47: Im Falle einer Zugänglichmachung im Internet soll dies in Form einer
C48: Verlinkung auf die Homepage der Statistik der Bundesagentur für Arbeit
C49: erfolgen.
C50: Die Nutzung der Inhalte für gewerbliche Zwecke, ausgenommen Presse,
C51: Rundfunk und Fernsehen und wissenschaftliche Publikationen, bedarf
C52: der Genehmigung durch die Statistik der Bundesagentur für Arbeit.

Sheet Inhaltsverzeichnis
F1: Beschäftigungsstatistik
A3: Inhaltsverzeichnis
A6: Beschäftigte nach dem Wohnort (Zeitreihe Quartalszahlen)
A7: Deutschland, Länder und Jobcenter
A10: Tabelle
B12: 1. Veränderung der Eckwerte
A13: 1 | B13: Veränderung des Bestandes an sozialversicherungspflichtig und geringfügig Beschäftigten gegenüber dem Vorjahr in Prozent
B14: 2. Zeitreihe der Eckwerte
A15: 2 | B15: Bestand an sozialversicherungspflichtig und geringfügig Beschäftigte
B16: 3. Definition der Vergleichtypen
A17: 3 | B17: Definition der Vergleichstypen SGB II 2014 (Stand 30.01.2014)
B18: 4. Methodische Hinweise
A19: 4 | B19: Methodische Hinweise - Sozialversicherungspflichtig und geringfügig Beschäftigte
B20: 5. Statistik-Infoseite
A21: 5

Sheet 1 Eckwerte WO
J1: Beschäftigungsstatistik
A4: =Tab1_Rohdaten!I21 -> 1. Veränderung des Bestandes an sozialversicherungspflichtg Beschäftigten gegenüber dem Vorjahr in Prozent
A5: =CONCATENATE(C41,", ",C42,", ",C43,", ",C44)&" (Wohnort, Gebietsstand "&TEXT(EOMONTH(E38,0),"MMMM JJJJ")&")" -> JC Ahrweiler, SGBII Typ IIc ø, Rheinland-Pfalz, Deutschland (Wohnort, Gebietsstand März 2022)
A6: Zeitreihe
A29: 2) Stichtag 30. Juni 2007 bis zum aktuellen Rand (Quartalsdaten)
A32: Tabelle 1: Beschäftigte nach Art der Beschäftigung und Veränderung gegenüber den Vorjahresstichtagen in Prozent
A33: =CONCATENATE(C41,", ",C42,", ",C43,", ",C44)&" (Wohnort, Gebietsstand "&TEXT(EOMONTH(E38,0),"MMMM JJJJ")&")" -> JC Ahrweiler, SGBII Typ IIc ø, Rheinland-Pfalz, Deutschland (Wohnort, Gebietsstand März 2022)
A34: =CONCATENATE("Stichtag ",TEXT(E38,"TT. MMMM JJJJ")) -> Stichtag 31. März 2022
A36: Bitte beachten Sie: Die Typisierung der SGB II-Trägergebiete wurde rückwirkend auf die SGB II-Vergleichstypen 2014 umgestellt.
A38: Personengruppe | C38: Regionen | E38: =Tab1_Rohdaten!I32 -> 2022-03-31 | F38: =Tab1_Rohdaten!J32 -> 2021-12-31 | G38: =Tab1_Rohdaten!K32 -> 2021-09-30 | H38: Veränderung Spalte 1 gegenüber den Vorjahresstichtagen in %
H39: =Tab1_Rohdaten!O32 -> 2021-03-31 | I39: =Tab1_Rohdaten!P32 -> 2020-03-31 | J39: =Tab1_Rohdaten!Q32 -> 2019-03-31
E40: 1 | F40: 2 | G40: 3 | H40: 4 | I40: 5 | J40: 6
A41: sozialversicherungs-pflichtig Beschäftigte | C41: =Tab1_Rohdaten!$B$3 -> JC Ahrweiler | E41: =Tab1_Rohdaten!I33 -> 49224 | F41: =Tab1_Rohdaten!J33 -> 49310 | G41: =Tab1_Rohdaten!K33 -> 49923 | H41: =Tab1_Rohdaten!L33 -> 0.0203194213 | I41: =Tab1_Rohdaten!M33 -> 0.06708544246 | J41: =Tab1_Rohdaten!N33 -> 1.294371849
C42: =Tab1_Rohdaten!$E$3&Tab1_Rohdaten!H34&Tab1_Rohdaten!$F$3 -> SGBII Typ IIc ø | E42: =Tab1_Rohdaten!I34 -> 66935.3 | F42: =Tab1_Rohdaten!J34 -> 66840.7 | G42: =Tab1_Rohdaten!K34 -> 67250.625 | H42: =Tab1_Rohdaten!L34 -> 2.047613113 | I42: =Tab1_Rohdaten!M34 -> 2.329012251 | J42: =Tab1_Rohdaten!N34 -> 3.745661138
C43: =CHOOSE(Tab1_Rohdaten!$C$3,Tab1_Rohdaten!$M$4,Tab1_Rohdaten!$M$5,Tab1_Rohdaten!$M$6,Tab1_Rohdaten!$M$7,Tab1_Rohdaten!$M$8,Tab1_Rohdaten!$M$9,Tab1_Rohdaten!$M$10,Tab1_Rohdaten!$M$11,Tab1_Rohdaten!$M$12,Tab1_Rohdaten!$M$13,Tab1_Rohdaten!$M$14,Tab1_Rohdaten!$M$15,Tab1_Rohdaten!$M$16,Tab1_Rohdaten!$M$17,Tab1_Rohdaten!$M$18,Tab1_Rohdaten!$M$19) -> Rheinland-Pfalz | E43: =Tab1_Rohdaten!I35 -> 1618380 | F43: =Tab1_Rohdaten!J35 -> 1615979 | G43: =Tab1_Rohdaten!K35 -> 1621649 | H43: =Tab1_Rohdaten!L35 -> 1.983677621 | I43: =Tab1_Rohdaten!M35 -> 2.007011493 | J43: =Tab1_Rohdaten!N35 -> 2.839953028
C44: Deutschland | E44: =Tab1_Rohdaten!I36 -> 34068977 | F44: =Tab1_Rohdaten!J36 -> 34027202 | G44: =Tab1_Rohdaten!K36 -> 34053679 | H44: =Tab1_Rohdaten!L36 -> 2.063934325 | I44: =Tab1_Rohdaten!M36 -> 1.96161238 | J44: =Tab1_Rohdaten!N36 -> 3.0937465
A45: geringfügig Beschäftigte | C45: =Tab1_Rohdaten!$B$3 -> JC Ahrweiler | E45: =Tab1_Rohdaten!I37 -> 12865 | F45: =Tab1_Rohdaten!J37 -> 12877 | G45: =Tab1_Rohdaten!K37 -> 13247 | H45: =Tab1_Rohdaten!L37 -> -1.733883288 | I45: =Tab1_Rohdaten!M37 -> -5.473916238 | J45: =Tab1_Rohdaten!N37 -> -10.04125586
C46: =C42 -> SGBII Typ IIc ø | E46: =Tab1_Rohdaten!I38 -> 15527.125 | F46: =Tab1_Rohdaten!J38 -> 15620.325 | G46: =Tab1_Rohdaten!K38 -> 15972.55 | H46: =Tab1_Rohdaten!L38 -> 3.31940958 | I46: =Tab1_Rohdaten!M38 -> -1.253950891 | J46: =Tab1_Rohdaten!N38 -> -3.942608537
C47: =CHOOSE(Tab1_Rohdaten!$C$3,Tab1_Rohdaten!$M$4,Tab1_Rohdaten!$M$5,Tab1_Rohdaten!$M$6,Tab1_Rohdaten!$M$7,Tab1_Rohdaten!$M$8,Tab1_Rohdaten!$M$9,Tab1_Rohdaten!$M$10,Tab1_Rohdaten!$M$11,Tab1_Rohdaten!$M$12,Tab1_Rohdaten!$M$13,Tab1_Rohdaten!$M$14,Tab1_Rohdaten!$M$15,Tab1_Rohdaten!$M$16,Tab1_Rohdaten!$M$17,Tab1_Rohdaten!$M$18,Tab1_Rohdaten!$M$19) -> Rheinland-Pfalz | E47: =Tab1_Rohdaten!I39 -> 398799 | F47: =Tab1_Rohdaten!J39 -> 397042 | G47: =Tab1_Rohdaten!K39 -> 408654 | H47: =Tab1_Rohdaten!L39 -> 3.755554631 | I47: =Tab1_Rohdaten!M39 -> -1.975488895 | J47: =Tab1_Rohdaten!N39 -> -5.2526918
C48: Deutschland | E48: =Tab1_Rohdaten!I40 -> 7313199 | F48: =Tab1_Rohdaten!J40 -> 7345109 | G48: =Tab1_Rohdaten!K40 -> 7437654 | H48: =Tab1_Rohdaten!L40 -> 4.204931454 | I48: =Tab1_Rohdaten!M40 -> -1.023304297 | J48: =Tab1_Rohdaten!N40 -> -3.897353655
A49: dav. | B49: ausschließlich geringfügig Beschäftigte | C49: =Tab1_Rohdaten!$B$3 -> JC Ahrweiler | E49: =Tab1_Rohdaten!I41 -> 7394 | F49: =Tab1_Rohdaten!J41 -> 7376 | G49: =Tab1_Rohdaten!K41 -> 7737 | H49: =Tab1_Rohdaten!L41 -> -5.362856777 | I49: =Tab1_Rohdaten!M41 -> -11.16184068 | J49: =Tab1_Rohdaten!N41 -> -16.81853977
C50: =C42 -> SGBII Typ IIc ø | E50: =Tab1_Rohdaten!I42 -> 9162.425 | F50: =Tab1_Rohdaten!J42 -> 9219.325 | G50: =Tab1_Rohdaten!K42 -> 9457.825 | H50: =Tab1_Rohdaten!L42 -> 0.624619051 | I50: =Tab1_Rohdaten!M42 -> -6.171483578 | J50: =Tab1_Rohdaten!N42 -> -10.59064329
C51: =CHOOSE(Tab1_Rohdaten!$C$3,Tab1_Rohdaten!$M$4,Tab1_Rohdaten!$M$5,Tab1_Rohdaten!$M$6,Tab1_Rohdaten!$M$7,Tab1_Rohdaten!$M$8,Tab1_Rohdaten!$M$9,Tab1_Rohdaten!$M$10,Tab1_Rohdaten!$M$11,Tab1_Rohdaten!$M$12,Tab1_Rohdaten!$M$13,Tab1_Rohdaten!$M$14,Tab1_Rohdaten!$M$15,Tab1_Rohdaten!$M$16,Tab1_Rohdaten!$M$17,Tab1_Rohdaten!$M$18,Tab1_Rohdaten!$M$19) -> Rheinland-Pfalz | E51: =Tab1_Rohdaten!I43 -> 233716 | F51: =Tab1_Rohdaten!J43 -> 231983 | G51: =Tab1_Rohdaten!K43 -> 241033 | H51: =Tab1_Rohdaten!L43 -> 0.9711925623 | I51: =Tab1_Rohdaten!M43 -> -7.332410818 | J51: =Tab1_Rohdaten!N43 -> -12.20945083
C52: Deutschland | E52: =Tab1_Rohdaten!I44 -> 4167679 | F52: =Tab1_Rohdaten!J44 -> 4203826 | G52: =Tab1_Rohdaten!K44 -> 4276622 | H52: =Tab1_Rohdaten!L44 -> 0.9763087167 | I52: =Tab1_Rohdaten!M44 -> -6.755782012 | J52: =Tab1_Rohdaten!N44 -> -11.30846686
B53: im Nebenjob geringfügig Beschäftigte | C53: =Tab1_Rohdaten!$B$3 -> JC Ahrweiler | E53: =Tab1_Rohdaten!I45 -> 5471 | F53: =Tab1_Rohdaten!J45 -> 5501 | G53: =Tab1_Rohdaten!K45 -> 5510 | H53: =Tab1_Rohdaten!L45 -> 3.637052472 | I53: =Tab1_Rohdaten!M45 -> 3.480234538 | J53: =Tab1_Rohdaten!N45 -> 1.090169993
C54: =C42 -> SGBII Typ IIc ø | E54: =Tab1_Rohdaten!I46 -> 6364.7 | F54: =Tab1_Rohdaten!J46 -> 6401 | G54: =Tab1_Rohdaten!K46 -> 6514.725 | H54: =Tab1_Rohdaten!L46 -> 7.462358965 | I54: =Tab1_Rohdaten!M46 -> 6.804156581 | J54: =Tab1_Rohdaten!N46 -> 7.571788328
C55: =CHOOSE(Tab1_Rohdaten!$C$3,Tab1_Rohdaten!$M$4,Tab1_Rohdaten!$M$5,Tab1_Rohdaten!$M$6,Tab1_Rohdaten!$M$7,Tab1_Rohdaten!$M$8,Tab1_Rohdaten!$M$9,Tab1_Rohdaten!$M$10,Tab1_Rohdaten!$M$11,Tab1_Rohdaten!$M$12,Tab1_Rohdaten!$M$13,Tab1_Rohdaten!$M$14,Tab1_Rohdaten!$M$15,Tab1_Rohdaten!$M$16,Tab1_Rohdaten!$M$17,Tab1_Rohdaten!$M$18,Tab1_Rohdaten!$M$19) -> Rheinland-Pfalz | E55: =Tab1_Rohdaten!I47 -> 165083 | F55: =Tab1_Rohdaten!J47 -> 165059 | G55: =Tab1_Rohdaten!K47 -> 167621 | H55: =Tab1_Rohdaten!L47 -> 7.970777522 | I55: =Tab1_Rohdaten!M47 -> 6.762079068 | J55: =Tab1_Rohdaten!N47 -> 6.719978279
C56: Deutschland | E56: =Tab1_Rohdaten!I48 -> 3145520 | F56: =Tab1_Rohdaten!J48 -> 3141283 | G56: =Tab1_Rohdaten!K48 -> 3161032 | H56: =Tab1_Rohdaten!L48 -> 8.814789446 | I56: =Tab1_Rohdaten!M48 -> 7.75387944 | J56: =Tab1_Rohdaten!N48 -> 8.067215285
J57: © Statistik der Bundesagentur für Arbeit

Sheet 2 Zeitreihen WO
BO1: Beschäftigungsstatistik
A4: =Tab2_Rohdaten!C11 -> 2. Sozialversicherungspflichtig Beschäftigte
A5: ="Deutschland, Länder und SGB-II Trägergebiete "&" (Wohnort, Gebietsstand "&TEXT(EOMONTH(Tab1_Rohdaten!I32,0),"MMMM JJJJ")&")" -> Deutschland, Länder und SGB-II Trägergebiete (Wohnort, Gebietsstand März 2022)
A6: Zeitreihen
A8: Regionen | C8: =IF(Tab2_Rohdaten!K26="","",Tab2_Rohdaten!K26) -> 2006-03-31 | D8: =IF(Tab2_Rohdaten!L26="","",Tab2_Rohdaten!L26) -> 2006-06-30 | E8: =IF(Tab2_Rohdaten!M26="","",Tab2_Rohdaten!M26) -> 2006-09-30 | F8: =IF(Tab2_Rohdaten!N26="","",Tab2_Rohdaten!N26) -> 2006-12-31 | G8: =IF(Tab2_Rohdaten!O26="","",Tab2_Rohdaten!O26) -> 2007-03-31 | H8: =IF(Tab2_Rohdaten!P26="","",Tab2_Rohdaten!P26) -> 2007-06-30 | I8: =IF(Tab2_Rohdaten!Q26="","",Tab2_Rohdaten!Q26) -> 2007-09-30 | J8: =IF(Tab2_Rohdaten!R26="","",Tab2_Rohdaten!R26) -> 2007-12-31 | K8: =IF(Tab2_Rohdaten!S26="","",Tab2_Rohdaten!S26) -> 2008-03-31 | L8: =IF(Tab2_Rohdaten!T26="","",Tab2_Rohdaten!T26) -> 2008-06-30 | M8: =IF(Tab2_Rohdaten!U26="","",Tab2_Rohdaten!U26) -> 2008-09-30 | N8: =IF(Tab2_Rohdaten!V26="","",Tab2_Rohdaten!V26) -> 2008-12-31 | O8: =IF(Tab2_Rohdaten!W26="","",Tab2_Rohdaten!W26) -> 2009-03-31 | P8: =IF(Tab2_Rohdaten!X26="","",Tab2_Rohdaten!X26) -> 2009-06-30 | Q8: =IF(Tab2_Rohdaten!Y26="","",Tab2_Rohdaten!Y26) -> 2009-09-30 | R8: =IF(Tab2_Rohdaten!Z26="","",Tab2_Rohdaten!Z26) -> 2009-12-31 | S8: =IF(Tab2_Rohdaten!AA26="","",Tab2_Rohdaten!AA26) -> 2010-03-31 | T8: =IF(Tab2_Rohdaten!AB26="","",Tab2_Rohdaten!AB26) -> 2010-06-30 | U8: =IF(Tab2_Rohdaten!AC26="","",Tab2_Rohdaten!AC26) -> 2010-09-30 | V8: =IF(Tab2_Rohdaten!AD26="","",Tab2_Rohdaten!AD26) -> 2010-12-31 | W8: =IF(Tab2_Rohdaten!AE26="","",Tab2_Rohdaten!AE26) -> 2011-03-31 | X8: =IF(Tab2_Rohdaten!AF26="","",Tab2_Rohdaten!AF26) -> 2011-06-30 | Y8: =IF(Tab2_Rohdaten!AG26="","",Tab2_Rohdaten!AG26) -> 2011-09-30 | Z8: =IF(Tab2_Rohdaten!AH26="","",Tab2_Rohdaten!AH26) -> 2011-12-31 | AA8: =IF(Tab2_Rohdaten!AI26="","",Tab2_Rohdaten!AI26) -> 2012-03-31 | AB8: =IF(Tab2_Rohdaten!AJ26="","",Tab2_Rohdaten!AJ26) -> 2012-06-30 | AC8: =IF(Tab2_Rohdaten!AK26="","",Tab2_Rohdaten!AK26) -> 2012-09-30 | AD8: =IF(Tab2_Rohdaten!AL26="","",Tab2_Rohdaten!AL26) -> 2012-12-31 | AE8: =IF(Tab2_Rohdaten!AM26="","",Tab2_Rohdaten!AM26) -> 2013-03-31 | AF8: =IF(Tab2_Rohdaten!AN26="","",Tab2_Rohdaten!AN26) -> 2013-06-30 | AG8: =IF(Tab2_Rohdaten!AO26="","",Tab2_Rohdaten!AO26) -> 2013-09-30 | AH8: =IF(Tab2_Rohdaten!AP26="","",Tab2_Rohdaten!AP26) -> 2013-12-31 | AI8: =IF(Tab2_Rohdaten!AQ26="","",Tab2_Rohdaten!AQ26) -> 2014-03-31 | AJ8: =IF(Tab2_Rohdaten!AR26="","",Tab2_Rohdaten!AR26) -> 2014-06-30 | AK8: =IF(Tab2_Rohdaten!AS26="","",Tab2_Rohdaten!AS26) -> 2014-09-30 | AL8: =IF(Tab2_Rohdaten!AT26="","",Tab2_Rohdaten!AT26) -> 2014-12-31 | AM8: =IF(Tab2_Rohdaten!AU26="","",Tab2_Rohdaten!AU26) -> 2015-03-31 | AN8: =IF(Tab2_Rohdaten!AV26="","",Tab2_Rohdaten!AV26) -> 2015-06-30 | AO8: =IF(Tab2_Rohdaten!AW26="","",Tab2_Rohdaten!AW26) -> 2015-09-30 | AP8: =IF(Tab2_Rohdaten!AX26="","",Tab2_Rohdaten!AX26) -> 2015-12-31 | AQ8: =IF(Tab2_Rohdaten!AY26="","",Tab2_Rohdaten!AY26) -> 2016-03-31 | AR8: =IF(Tab2_Rohdaten!AZ26="","",Tab2_Rohdaten!AZ26) -> 2016-06-30 | AS8: =IF(Tab2_Rohdaten!BA26="","",Tab2_Rohdaten!BA26) -> 2016-09-30 | AT8: =IF(Tab2_Rohdaten!BB26="","",Tab2_Rohdaten!BB26) -> 2016-12-31 | AU8: =IF(Tab2_Rohdaten!BC26="","",Tab2_Rohdaten!BC26) -> 2017-03-31 | AV8: =IF(Tab2_Rohdaten!BD26="","",Tab2_Rohdaten!BD26) -> 2017-06-30 | AW8: =IF(Tab2_Rohdaten!BE26="","",Tab2_Rohdaten!BE26) -> 2017-09-30 | AX8: =IF(Tab2_Rohdaten!BF26="","",Tab2_Rohdaten!BF26) -> 2017-12-31 | AY8: =IF(Tab2_Rohdaten!BG26="","",Tab2_Rohdaten!BG26) -> 2018-03-31 | AZ8: =IF(Tab2_Rohdaten!BH26="","",Tab2_Rohdaten!BH26) -> 2018-06-30 | BA8: =IF(Tab2_Rohdaten!BI26="","",Tab2_Rohdaten!BI26) -> 2018-09-30 | BB8: =IF(Tab2_Rohdaten!BJ26="","",Tab2_Rohdaten!BJ26) -> 2018-12-31 | BC8: =IF(Tab2_Rohdaten!BK26="","",Tab2_Rohdaten!BK26) -> 2019-03-31 | BD8: =IF(Tab2_Rohdaten!BL26="","",Tab2_Rohdaten!BL26) -> 2019-06-30 | BE8: =IF(Tab2_Rohdaten!BM26="","",Tab2_Rohdaten!BM26) -> 2019-09-30 | BF8: =IF(Tab2_Rohdaten!BN26="","",Tab2_Rohdaten!BN26) -> 2019-12-31 | BG8: =IF(Tab2_Rohdaten!BO26="","",Tab2_Rohdaten!BO26) -> 2020-03-31 | BH8: =IF(Tab2_Rohdaten!BP26="","",Tab2_Rohdaten!BP26) -> 2020-06-30 | BI8: =IF(Tab2_Rohdaten!BQ26="","",Tab2_Rohdaten!BQ26) -> 2020-09-30 | BJ8: =IF(Tab2_Rohdaten!BR26="","",Tab2_Rohdaten!BR26) -> 2020-12-31 | BK8: =IF(Tab2_Rohdaten!BS26="","",Tab2_Rohdaten!BS26) -> 2021-03-31 | BL8: =IF(Tab2_Rohdaten!BT26="","",Tab2_Rohdaten!BT26) -> 2021-06-30 | BM8: =IF(Tab2_Rohdaten!BU26="","",Tab2_Rohdaten!BU26) -> 2021-09-30 | BN8: =IF(Tab2_Rohdaten!BV26="","",Tab2_Rohdaten!BV26) -> 2021-12-31 | BO8: =IF(Tab2_Rohdaten!BW26="","",Tab2_Rohdaten!BW26) -> 2022-03-31
C9: 1 | D9: =IF(D8="","",C9+1) -> 2 | E9: =IF(E8="","",D9+1) -> 3 | F9: 4 | G9: 5 | H9: 6 | I9: 7 | J9: 8 | K9: 9 | L9: 10 | M9: 11 | N9: 12 | O9: 13 | P9: 14 | Q9: 15 | R9: 16 | S9: 17 | T9: 18 | U9: 19 | V9: 20 | W9: 21 | X9: 22 | Y9: 23 | Z9: 24 | AA9: 25 | AB9: 26 | AC9: 27 | AD9: 28 | AE9: 29 | AF9: 30 | AG9: 31 | AH9: 32 | AI9: 33 | AJ9: 34 | AK9: 35 | AL9: 36 | AM9: 37 | AN9: 38 | AO9: 39 | AP9: 40 | AQ9: 41 | AR9: 42 | AS9: 43 | AT9: 44 | AU9: 45 | AV9: 46 | AW9: 47 | AX9: 48 | AY9: 49 | AZ9: 50 | BA9: 51 | BB9: 52 | BC9: 53 | BD9: 54 | BE9: =IF(BE8="","",BD9+1) -> 55 | BF9: =IF(BF8="","",BE9+1) -> 56 | BG9: =IF(BG8="","",BF9+1) -> 57 | BH9: =IF(BH8="","",BG9+1) -> 58 | BI9: =IF(BI8="","",BH9+1) -> 59 | BJ9: =IF(BJ8="","",BI9+1) -> 60 | BK9: =IF(BK8="","",BJ9+1) -> 61 | BL9: =IF(BL8="","",BK9+1) -> 62 | BM9: =IF(BM8="","",BL9+1) -> 63 | BN9: =IF(BN8="","",BM9+1) -> 64 | BO9: =IF(BO8="","",BN9+1) -> 65
A10: =VLOOKUP(Tab2_Rohdaten!$B28,Tab2_Rohdaten!$A$28:$GG$1800,9,FALSE) -> Deutschland | B10: =VLOOKUP(Tab2_Rohdaten!$B28,Tab2_Rohdaten!$A$28:$GG$1800,10,FALSE) -> D | C10: =VLOOKUP(Tab2_Rohdaten!$B28,Tab2_Rohdaten!$A$28:$GG$1800,10+C$9,FALSE) -> 25989292 | D10: =VLOOKUP(Tab2_Rohdaten!$B28,Tab2_Rohdaten!$A$28:$GG$1800,10+D$9,FALSE) -> 26384204 | E10: =VLOOKUP(Tab2_Rohdaten!$B28,Tab2_Rohdaten!$A$28:$GG$1800,10+E$9,FALSE) -> 26794602 | F10: =VLOOKUP(Tab2_Rohdaten!$B28,Tab2_Rohdaten!$A$28:$GG$1800,10+F$9,FALSE) -> 26664337 | G10: =VLOOKUP(Tab2_Rohdaten!$B28,Tab2_Rohdaten!$A$28:$GG$1800,10+G$9,FALSE) -> 26629695 | H10: =VLOOKUP(Tab2_Rohdaten!$B28,Tab2_Rohdaten!$A$28:$GG$1800,10+H$9,FALSE) -> 26904469 | I10: =VLOOKUP(Tab2_Rohdaten!$B28,Tab2_Rohdaten!$A$28:$GG$1800,10+I$9,FALSE) -> 27437665 | J10: =VLOOKUP(Tab2_Rohdaten!$B28,Tab2_Rohdaten!$A$28:$GG$1800,10+J$9,FALSE) -> 27321156 | K10: =VLOOKUP(Tab2_Rohdaten!$B28,Tab2_Rohdaten!$A$28:$GG$1800,10+K$9,FALSE) -> 27320635 | L10: =VLOOKUP(Tab2_Rohdaten!$B28,Tab2_Rohdaten!$A$28:$GG$1800,10+L$9,FALSE) -> 27551223 | M10: =VLOOKUP(Tab2_Rohdaten!$B28,Tab2_Rohdaten!$A$28:$GG$1800,10+M$9,FALSE) -> 28051819 | N10: =VLOOKUP(Tab2_Rohdaten!$B28,Tab2_Rohdaten!$A$28:$GG$1800,10+N$9,FALSE) -> 27760837 | O10: =VLOOKUP(Tab2_Rohdaten!$B28,Tab2_Rohdaten!$A$28:$GG$1800,10+O$9,FALSE) -> 27441840 | P10: =VLOOKUP(Tab2_Rohdaten!$B28,Tab2_Rohdaten!$A$28:$GG$1800,10+P$9,FALSE) -> 27464982 | Q10: =VLOOKUP(Tab2_Rohdaten!$B28,Tab2_Rohdaten!$A$28:$GG$1800,10+Q$9,FALSE) -> 27861584 | R10: =VLOOKUP(Tab2_Rohdaten!$B28,Tab2_Rohdaten!$A$28:$GG$1800,10+R$9,FALSE) -> 27636759 | S10: =VLOOKUP(Tab2_Rohdaten!$B28,Tab2_Rohdaten!$A$28:$GG$1800,10+S$9,FALSE) -> 27524650 | T10: =VLOOKUP(Tab2_Rohdaten!$B28,Tab2_Rohdaten!$A$28:$GG$1800,10+T$9,FALSE) -> 27829945 | U10: =VLOOKUP(Tab2_Rohdaten!$B28,Tab2_Rohdaten!$A$28:$GG$1800,10+U$9,FALSE) -> 28345286 | V10: =VLOOKUP(Tab2_Rohdaten!$B28,Tab2_Rohdaten!$A$28:$GG$1800,10+V$9,FALSE) -> 28155087 | W10: =VLOOKUP(Tab2_Rohdaten!$B28,Tab2_Rohdaten!$A$28:$GG$1800,10+W$9,FALSE) -> 28188311 | X10: =VLOOKUP(Tab2_Rohdaten!$B28,Tab2_Rohdaten!$A$28:$GG$1800,10+X$9,FALSE) -> 28486542 | Y10: =VLOOKUP(Tab2_Rohdaten!$B28,Tab2_Rohdaten!$A$28:$GG$1800,10+Y$9,FALSE) -> 29032433 | Z10: =VLOOKUP(Tab2_Rohdaten!$B28,Tab2_Rohdaten!$A$28:$GG$1800,10+Z$9,FALSE) -> 28891965 | AA10: =VLOOKUP(Tab2_Rohdaten!$B28,Tab2_Rohdaten!$A$28:$GG$1800,10+AA$9,FALSE) -> 28919548 | AB10: =VLOOKUP(Tab2_Rohdaten!$B28,Tab2_Rohdaten!$A$28:$GG$1800,10+AB$9,FALSE) -> 29108769 | AC10: =VLOOKUP(Tab2_Rohdaten!$B28,Tab2_Rohdaten!$A$28:$GG$1800,10+AC$9,FALSE) -> 29555028 | AD10: =VLOOKUP(Tab2_Rohdaten!$B28,Tab2_Rohdaten!$A$28:$GG$1800,10+AD$9,FALSE) -> 29359054 | AE10: =VLOOKUP(Tab2_Rohdaten!$B28,Tab2_Rohdaten!$A$28:$GG$1800,10+AE$9,FALSE) -> 29249783 | AF10: =VLOOKUP(Tab2_Rohdaten!$B28,Tab2_Rohdaten!$A$28:$GG$1800,10+AF$9,FALSE) -> 29434127 | AG10: =VLOOKUP(Tab2_Rohdaten!$B28,Tab2_Rohdaten!$A$28:$GG$1800,10+AG$9,FALSE) -> 29951301 | AH10: =VLOOKUP(Tab2_Rohdaten!$B28,Tab2_Rohdaten!$A$28:$GG$1800,10+AH$9,FALSE) -> 29707464 | AI10: =VLOOKUP(Tab2_Rohdaten!$B28,Tab2_Rohdaten!$A$28:$GG$1800,10+AI$9,FALSE) -> 29739919 | AJ10: =VLOOKUP(Tab2_Rohdaten!$B28,Tab2_Rohdaten!$A$28:$GG$1800,10+AJ$9,FALSE) -> 29970425 | AK10: =VLOOKUP(Tab2_Rohdaten!$B28,Tab2_Rohdaten!$A$28:$GG$1800,10+AK$9,FALSE) -> 30432338 | AL10: =VLOOKUP(Tab2_Rohdaten!$B28,Tab2_Rohdaten!$A$28:$GG$1800,10+AL$9,FALSE) -> 30205188 | AM10: =VLOOKUP(Tab2_Rohdaten!$B28,Tab2_Rohdaten!$A$28:$GG$1800,10+AM$9,FALSE) -> 30365739 | AN10: =VLOOKUP(Tab2_Rohdaten!$B28,Tab2_Rohdaten!$A$28:$GG$1800,10+AN$9,FALSE) -> 30604587 | AO10: =VLOOKUP(Tab2_Rohdaten!$B28,Tab2_Rohdaten!$A$28:$GG$1800,10+AO$9,FALSE) -> 31155792 | AP10: =VLOOKUP(Tab2_Rohdaten!$B28,Tab2_Rohdaten!$A$28:$GG$1800,10+AP$9,FALSE) -> 30981211 | AQ10: =VLOOKUP(Tab2_Rohdaten!$B28,Tab2_Rohdaten!$A$28:$GG$1800,10+AQ$9,FALSE) -> 31032487 | AR10: =VLOOKUP(Tab2_Rohdaten!$B28,Tab2_Rohdaten!$A$28:$GG$1800,10+AR$9,FALSE) -> 31255514 | AS10: =VLOOKUP(Tab2_Rohdaten!$B28,Tab2_Rohdaten!$A$28:$GG$1800,10+AS$9,FALSE) -> 31808188 | AT10: =VLOOKUP(Tab2_Rohdaten!$B28,Tab2_Rohdaten!$A$28:$GG$1800,10+AT$9,FALSE) -> 31657328 | AU10: =VLOOKUP(Tab2_Rohdaten!$B28,Tab2_Rohdaten!$A$28:$GG$1800,10+AU$9,FALSE) -> 31731271 | AV10: =VLOOKUP(Tab2_Rohdaten!$B28,Tab2_Rohdaten!$A$28:$GG$1800,10+AV$9,FALSE) -> 31953094 | AW10: =VLOOKUP(Tab2_Rohdaten!$B28,Tab2_Rohdaten!$A$28:$GG$1800,10+AW$9,FALSE) -> 32505274 | AX10: =VLOOKUP(Tab2_Rohdaten!$B28,Tab2_Rohdaten!$A$28:$GG$1800,10+AX$9,FALSE) -> 32391066 | AY10: =VLOOKUP(Tab2_Rohdaten!$B28,Tab2_Rohdaten!$A$28:$GG$1800,10+AY$9,FALSE) -> 32433773 | AZ10: =VLOOKUP(Tab2_Rohdaten!$B28,Tab2_Rohdaten!$A$28:$GG$1800,10+AZ$9,FALSE) -> 32632568 | BA10: =VLOOKUP(Tab2_Rohdaten!$B28,Tab2_Rohdaten!$A$28:$GG$1800,10+BA$9,FALSE) -> 33173247 | BB10: =VLOOKUP(Tab2_Rohdaten!$B28,Tab2_Rohdaten!$A$28:$GG$1800,10+BB$9,FALSE) -> 33052677 | BC10: =VLOOKUP(Tab2_Rohdaten!$B28,Tab2_Rohdaten!$A$28:$GG$1800,10+BC$9,FALSE) -> 33046599 | BD10: =VLOOKUP(Tab2_Rohdaten!$B28,Tab2_Rohdaten!$A$28:$GG$1800,10+BD$9,FALSE) -> 33159794 | BE10: =VLOOKUP(Tab2_Rohdaten!$B28,Tab2_Rohdaten!$A$28:$GG$1800,10+BE$9,FALSE) -> 33688750 | BF10: =VLOOKUP(Tab2_Rohdaten!$B28,Tab2_Rohdaten!$A$28:$GG$1800,10+BF$9,FALSE) -> 33505686 | BG10: =VLOOKUP(Tab2_Rohdaten!$B28,Tab2_Rohdaten!$A$28:$GG$1800,10+BG$9,FALSE) -> 33413533 | BH10: =VLOOKUP(Tab2_Rohdaten!$B28,Tab2_Rohdaten!$A$28:$GG$1800,10+BH$9,FALSE) -> 33089915 | BI10: =VLOOKUP(Tab2_Rohdaten!$B28,Tab2_Rohdaten!$A$28:$GG$1800,10+BI$9,FALSE) -> 33550323 | BJ10: =VLOOKUP(Tab2_Rohdaten!$B28,Tab2_Rohdaten!$A$28:$GG$1800,10+BJ$9,FALSE) -> 33463783 | BK10: =VLOOKUP(Tab2_Rohdaten!$B28,Tab2_Rohdaten!$A$28:$GG$1800,10+BK$9,FALSE) -> 33380035 | BL10: =VLOOKUP(Tab2_Rohdaten!$B28,Tab2_Rohdaten!$A$28:$GG$1800,10+BL$9,FALSE) -> 33538976 | BM10: =VLOOKUP(Tab2_Rohdaten!$B28,Tab2_Rohdaten!$A$28:$GG$1800,10+BM$9,FALSE) -> 34053679 | BN10: =VLOOKUP(Tab2_Rohdaten!$B28,Tab2_Rohdaten!$A$28:$GG$1800,10+BN$9,FALSE) -> 34027202 | BO10: =VLOOKUP(Tab2_Rohdaten!$B28,Tab2_Rohdaten!$A$28:$GG$1800,10+BO$9,FALSE) -> 34068977
A11: =VLOOKUP(Tab2_Rohdaten!$B29,Tab2_Rohdaten!$A$28:$GG$1800,9,FALSE) -> JC Vorpommern-Greifswald Nord | B11: =VLOOKUP(Tab2_Rohdaten!$B29,Tab2_Rohdaten!$A$28:$GG$1800,10,FALSE) -> 03002 | C11: =VLOOKUP(Tab2_Rohdaten!$B29,Tab2_Rohdaten!$A$28:$GG$1800,10+C$9,FALSE) -> 53431 | D11: =VLOOKUP(Tab2_Rohdaten!$B29,Tab2_Rohdaten!$A$28:$GG$1800,10+D$9,FALSE) -> 56709 | E11: =VLOOKUP(Tab2_Rohdaten!$B29,Tab2_Rohdaten!$A$28:$GG$1800,10+E$9,FALSE) -> 57700 | F11: =VLOOKUP(Tab2_Rohdaten!$B29,Tab2_Rohdaten!$A$28:$GG$1800,10+F$9,FALSE) -> 55561 | G11: =VLOOKUP(Tab2_Rohdaten!$B29,Tab2_Rohdaten!$A$28:$GG$1800,10+G$9,FALSE) -> 55233 | H11: =VLOOKUP(Tab2_Rohdaten!$B29,Tab2_Rohdaten!$A$28:$GG$1800,10+H$9,FALSE) -> 57708 | I11: =VLOOKUP(Tab2_Rohdaten!$B29,Tab2_Rohdaten!$A$28:$GG$1800,10+I$9,FALSE) -> 58883 | J11: =VLOOKUP(Tab2_Rohdaten!$B29,Tab2_Rohdaten!$A$28:$GG$1800,10+J$9,FALSE) -> 56757 | K11: =VLOOKUP(Tab2_Rohdaten!$B29,Tab2_Rohdaten!$A$28:$GG$1800,10+K$9,FALSE) -> 56828 | L11: =VLOOKUP(Tab2_Rohdaten!$B29,Tab2_Rohdaten!$A$28:$GG$1800,10+L$9,FALSE) -> 59004 | M11: =VLOOKUP(Tab2_Rohdaten!$B29,Tab2_Rohdaten!$A$28:$GG$1800,10+M$9,FALSE) -> 59945 | N11: =VLOOKUP(Tab2_Rohdaten!$B29,Tab2_Rohdaten!$A$28:$GG$1800,10+N$9,FALSE) -> 57442 | O11: =VLOOKUP(Tab2_Rohdaten!$B29,Tab2_Rohdaten!$A$28:$GG$1800,10+O$9,FALSE) -> 56897 | P11: =VLOOKUP(Tab2_Rohdaten!$B29,Tab2_Rohdaten!$A$28:$GG$1800,10+P$9,FALSE) -> 59201 | Q11: =VLOOKUP(Tab2_Rohdaten!$B29,Tab2_Rohdaten!$A$28:$GG$1800,10+Q$9,FALSE) -> 60268 | R11: =VLOOKUP(Tab2_Rohdaten!$B29,Tab2_Rohdaten!$A$28:$GG$1800,10+R$9,FALSE) -> 57679 | S11: =VLOOKUP(Tab2_Rohdaten!$B29,Tab2_Rohdaten!$A$28:$GG$1800,10+S$9,FALSE) -> 57184 | T11: =VLOOKUP(Tab2_Rohdaten!$B29,Tab2_Rohdaten!$A$28:$GG$1800,10+T$9,FALSE) -> 60246 | U11: =VLOOKUP(Tab2_Rohdaten!$B29,Tab2_Rohdaten!$A$28:$GG$1800,10+U$9,FALSE) -> 61002 | V11: =VLOOKUP(Tab2_Rohdaten!$B29,Tab2_Rohdaten!$A$28:$GG$1800,10+V$9,FALSE) -> 58170 | W11: =VLOOKUP(Tab2_Rohdaten!$B29,Tab2_Rohdaten!$A$28:$GG$1800,10+W$9,FALSE) -> 57974 | X11: =VLOOKUP(Tab2_Rohdaten!$B29,Tab2_Rohdaten!$A$28:$GG$1800,10+X$9,FALSE) -> 60656 | Y11: =VLOOKUP(Tab2_Rohdaten!$B29,Tab2_Rohdaten!$A$28:$GG$1800,10+Y$9,FALSE) -> 61397 | Z11: =VLOOKUP(Tab2_Rohdaten!$B29,Tab2_Rohdaten!$A$28:$GG$1800,10+Z$9,FALSE) -> 58734 | AA11: =VLOOKUP(Tab2_Rohdaten!$B29,Tab2_Rohdaten!$A$28:$GG$1800,10+AA$9,FALSE) -> 58444 | AB11: =VLOOKUP(Tab2_Rohdaten!$B29,Tab2_Rohdaten!$A$28:$GG$1800,10+AB$9,FALSE) -> 61034 | AC11: =VLOOKUP(Tab2_Rohdaten!$B29,Tab2_Rohdaten!$A$28:$GG$1800,10+AC$9,FALSE) -> 61526 | AD11: =VLOOKUP(Tab2_Rohdaten!$B29,Tab2_Rohdaten!$A$28:$GG$1800,10+AD$9,FALSE) -> 58659 | AE11: =VLOOKUP(Tab2_Rohdaten!$B29,Tab2_Rohdaten!$A$28:$GG$1800,10+AE$9,FALSE) -> 58253 | AF11: =VLOOKUP(Tab2_Rohdaten!$B29,Tab2_Rohdaten!$A$28:$GG$1800,10+AF$9,FALSE) -> 60555 | AG11: =VLOOKUP(Tab2_Rohdaten!$B29,Tab2_Rohdaten!$A$28:$GG$1800,10+AG$9,FALSE) -> 61502 | AH11: =VLOOKUP(Tab2_Rohdaten!$B29,Tab2_Rohdaten!$A$28:$GG$1800,10+AH$9,FALSE) -> 58745 | AI11: =VLOOKUP(Tab2_Rohdaten!$B29,Tab2_Rohdaten!$A$28:$GG$1800,10+AI$9,FALSE) -> 58844 | AJ11: =VLOOKUP(Tab2_Rohdaten!$B29,Tab2_Rohdaten!$A$28:$GG$1800,10+AJ$9,FALSE) -> 61036 | AK11: =VLOOKUP(Tab2_Rohdaten!$B29,Tab2_Rohdaten!$A$28:$GG$1800,10+AK$9,FALSE) -> 61691 | AL11: =VLOOKUP(Tab2_Rohdaten!$B29,Tab2_Rohdaten!$A$28:$GG$1800,10+AL$9,FALSE) -> 59050 | AM11: =VLOOKUP(Tab2_Rohdaten!$B29,Tab2_Rohdaten!$A$28:$GG$1800,10+AM$9,FALSE) -> 59254 | AN11: =VLOOKUP(Tab2_Rohdaten!$B29,Tab2_Rohdaten!$A$28:$GG$1800,10+AN$9,FALSE) -> 61273 | AO11: =VLOOKUP(Tab2_Rohdaten!$B29,Tab2_Rohdaten!$A$28:$GG$1800,10+AO$9,FALSE) -> 62052 | AP11: =VLOOKUP(Tab2_Rohdaten!$B29,Tab2_Rohdaten!$A$28:$GG$1800,10+AP$9,FALSE) -> 59789 | AQ11: =VLOOKUP(Tab2_Rohdaten!$B29,Tab2_Rohdaten!$A$28:$GG$1800,10+AQ$9,FALSE) -> 59962 | AR11: =VLOOKUP(Tab2_Rohdaten!$B29,Tab2_Rohdaten!$A$28:$GG$1800,10+AR$9,FALSE) -> 61755 | AS11: =VLOOKUP(Tab2_Rohdaten!$B29,Tab2_Rohdaten!$A$28:$GG$1800,10+AS$9,FALSE) -> 62628 | AT11: =VLOOKUP(Tab2_Rohdaten!$B29,Tab2_Rohdaten!$A$28:$GG$1800,10+AT$9,FALSE) -> 60673 | AU11: =VLOOKUP(Tab2_Rohdaten!$B29,Tab2_Rohdaten!$A$28:$GG$1800,10+AU$9,FALSE) -> 60690 | AV11: =VLOOKUP(Tab2_Rohdaten!$B29,Tab2_Rohdaten!$A$28:$GG$1800,10+AV$9,FALSE) -> 62385 | AW11: =VLOOKUP(Tab2_Rohdaten!$B29,Tab2_Rohdaten!$A$28:$GG$1800,10+AW$9,FALSE) -> 63279 | AX11: =VLOOKUP(Tab2_Rohdaten!$B29,Tab2_Rohdaten!$A$28:$GG$1800,10+AX$9,FALSE) -> 61676 | AY11: =VLOOKUP(Tab2_Rohdaten!$B29,Tab2_Rohdaten!$A$28:$GG$1800,10+AY$9,FALSE) -> 61722 | AZ11: =VLOOKUP(Tab2_Rohdaten!$B29,Tab2_Rohdaten!$A$28:$GG$1800,10+AZ$9,FALSE) -> 63045 | BA11: =VLOOKUP(Tab2_Rohdaten!$B29,Tab2_Rohdaten!$A$28:$GG$1800,10+BA$9,FALSE) -> 63832 | BB11: =VLOOKUP(Tab2_Rohdaten!$B29,Tab2_Rohdaten!$A$28:$GG$1800,10+BB$9,FALSE) -> 63637 | BC11: =VLOOKUP(Tab2_Rohdaten!$B29,Tab2_Rohdaten!$A$28:$GG$1800,10+BC$9,FALSE) -> 63215 | BD11: =VLOOKUP(Tab2_Rohdaten!$B29,Tab2_Rohdaten!$A$28:$GG$1800,10+BD$9,FALSE) -> 64065 | BE11: =VLOOKUP(Tab2_Rohdaten!$B29,Tab2_Rohdaten!$A$28:$GG$1800,10+BE$9,FALSE) -> 65050 | BF11: =VLOOKUP(Tab2_Rohdaten!$B29,Tab2_Rohdaten!$A$28:$GG$1800,10+BF$9,FALSE) -> 63573 | BG11: =VLOOKUP(Tab2_Rohdaten!$B29,Tab2_Rohdaten!$A$28:$GG$1800,10+BG$9,FALSE) -> 63323 | BH11: =VLOOKUP(Tab2_Rohdaten!$B29,Tab2_Rohdaten!$A$28:$GG$1800,10+BH$9,FALSE) -> 63192 | BI11: =VLOOKUP(Tab2_Rohdaten!$B29,Tab2_Rohdaten!$A$28:$GG$1800,10+BI$9,FALSE) -> 64201 | BJ11: =VLOOKUP(Tab2_Rohdaten!$B29,Tab2_Rohdaten!$A$28:$GG$1800,10+BJ$9,FALSE) -> 63154 | BK11: =VLOOKUP(Tab2_Rohdaten!$B29,Tab2_Rohdaten!$A$28:$GG$1800,10+BK$9,FALSE) -> 62645 | BL11: =VLOOKUP(Tab2_Rohdaten!$B29,Tab2_Rohdaten!$A$28:$GG$1800,10+BL$9,FALSE) -> 63518 | BM11: =VLOOKUP(Tab2_Rohdaten!$B29,Tab2_Rohdaten!$A$28:$GG$1800,10+BM$9,FALSE) -> 64656 | BN11: =VLOOKUP(Tab2_Rohdaten!$B29,Tab2_Rohdaten!$A$28:$GG$1800,10+BN$9,FALSE) -> 63854 | BO11: =VLOOKUP(Tab2_Rohdaten!$B29,Tab2_Rohdaten!$A$28:$GG$1800,10+BO$9,FALSE) -> 63576
A12: =VLOOKUP(Tab2_Rohdaten!$B30,Tab2_Rohdaten!$A$28:$GG$1800,9,FALSE) -> JC Vorpommern-Greifswald Süd | B12: =VLOOKUP(Tab2_Rohdaten!$B30,Tab2_Rohdaten!$A$28:$GG$1800,10,FALSE) -> 03006 | C12: =VLOOKUP(Tab2_Rohdaten!$B30,Tab2_Rohdaten!$A$28:$GG$1800,10+C$9,FALSE) -> 20605 | D12: =VLOOKUP(Tab2_Rohdaten!$B30,Tab2_Rohdaten!$A$28:$GG$1800,10+D$9,FALSE) -> 21541 | E12: =VLOOKUP(Tab2_Rohdaten!$B30,Tab2_Rohdaten!$A$28:$GG$1800,10+E$9,FALSE) -> 21601 | F12: =VLOOKUP(Tab2_Rohdaten!$B30,Tab2_Rohdaten!$A$28:$GG$1800,10+F$9,FALSE) -> 21290 | G12: =VLOOKUP(Tab2_Rohdaten!$B30,Tab2_Rohdaten!$A$28:$GG$1800,10+G$9,FALSE) -> 20918 | H12: =VLOOKUP(Tab2_Rohdaten!$B30,Tab2_Rohdaten!$A$28:$GG$1800,10+H$9,FALSE) -> 21535 | I12: =VLOOKUP(Tab2_Rohdaten!$B30,Tab2_Rohdaten!$A$28:$GG$1800,10+I$9,FALSE) -> 22052 | J12: =VLOOKUP(Tab2_Rohdaten!$B30,Tab2_Rohdaten!$A$28:$GG$1800,10+J$9,FALSE) -> 21741 | K12: =VLOOKUP(Tab2_Rohdaten!$B30,Tab2_Rohdaten!$A$28:$GG$1800,10+K$9,FALSE) -> 21608 | L12: =VLOOKUP(Tab2_Rohdaten!$B30,Tab2_Rohdaten!$A$28:$GG$1800,10+L$9,FALSE) -> 22116 | M12: =VLOOKUP(Tab2_Rohdaten!$B30,Tab2_Rohdaten!$A$28:$GG$1800,10+M$9,FALSE) -> 22541 | N12: =VLOOKUP(Tab2_Rohdaten!$B30,Tab2_Rohdaten!$A$28:$GG$1800,10+N$9,FALSE) -> 22133 | O12: =VLOOKUP(Tab2_Rohdaten!$B30,Tab2_Rohdaten!$A$28:$GG$1800,10+O$9,FALSE) -> 21594 | P12: =VLOOKUP(Tab2_Rohdaten!$B30,Tab2_Rohdaten!$A$28:$GG$1800,10+P$9,FALSE) -> 22207 | Q12: =VLOOKUP(Tab2_Rohdaten!$B30,Tab2_Rohdaten!$A$28:$GG$1800,10+Q$9,FALSE) -> 22633 | R12: =VLOOKUP(Tab2_Rohdaten!$B30,Tab2_Rohdaten!$A$28:$GG$1800,10+R$9,FALSE) -> 21947 | S12: =VLOOKUP(Tab2_Rohdaten!$B30,Tab2_Rohdaten!$A$28:$GG$1800,10+S$9,FALSE) -> 21577 | T12: =VLOOKUP(Tab2_Rohdaten!$B30,Tab2_Rohdaten!$A$28:$GG$1800,10+T$9,FALSE) -> 22380 | U12: =VLOOKUP(Tab2_Rohdaten!$B30,Tab2_Rohdaten!$A$28:$GG$1800,10+U$9,FALSE) -> 22646 | V12: =VLOOKUP(Tab2_Rohdaten!$B30,Tab2_Rohdaten!$A$28:$GG$1800,10+V$9,FALSE) -> 21920 | W12: =VLOOKUP(Tab2_Rohdaten!$B30,Tab2_Rohdaten!$A$28:$GG$1800,10+W$9,FALSE) -> 21756 | X12: =VLOOKUP(Tab2_Rohdaten!$B30,Tab2_Rohdaten!$A$28:$GG$1800,10+X$9,FALSE) -> 22340 | Y12: =VLOOKUP(Tab2_Rohdaten!$B30,Tab2_Rohdaten!$A$28:$GG$1800,10+Y$9,FALSE) -> 22689 | Z12: =VLOOKUP(Tab2_Rohdaten!$B30,Tab2_Rohdaten!$A$28:$GG$1800,10+Z$9,FALSE) -> 22161 | AA12: =VLOOKUP(Tab2_Rohdaten!$B30,Tab2_Rohdaten!$A$28:$GG$1800,10+AA$9,FALSE) -> 21918 | AB12: =VLOOKUP(Tab2_Rohdaten!$B30,Tab2_Rohdaten!$A$28:$GG$1800,10+AB$9,FALSE) -> 22323 | AC12: =VLOOKUP(Tab2_Rohdaten!$B30,Tab2_Rohdaten!$A$28:$GG$1800,10+AC$9,FALSE) -> 22417 | AD12: =VLOOKUP(Tab2_Rohdaten!$B30,Tab2_Rohdaten!$A$28:$GG$1800,10+AD$9,FALSE) -> 21659 | AE12: =VLOOKUP(Tab2_Rohdaten!$B30,Tab2_Rohdaten!$A$28:$GG$1800,10+AE$9,FALSE) -> 21332 | AF12: =VLOOKUP(Tab2_Rohdaten!$B30,Tab2_Rohdaten!$A$28:$GG$1800,10+AF$9,FALSE) -> 21933 | AG12: =VLOOKUP(Tab2_Rohdaten!$B30,Tab2_Rohdaten!$A$28:$GG$1800,10+AG$9,FALSE) -> 22313 | AH12: =VLOOKUP(Tab2_Rohdaten!$B30,Tab2_Rohdaten!$A$28:$GG$1800,10+AH$9,FALSE) -> 21690 | AI12: =VLOOKUP(Tab2_Rohdaten!$B30,Tab2_Rohdaten!$A$28:$GG$1800,10+AI$9,FALSE) -> 21651 | AJ12: =VLOOKUP(Tab2_Rohdaten!$B30,Tab2_Rohdaten!$A$28:$GG$1800,10+AJ$9,FALSE) -> 21990 | AK12: =VLOOKUP(Tab2_Rohdaten!$B30,Tab2_Rohdaten!$A$28:$GG$1800,10+AK$9,FALSE) -> 22193 | AL12: =VLOOKUP(Tab2_Rohdaten!$B30,Tab2_Rohdaten!$A$28:$GG$1800,10+AL$9,FALSE) -> 21587 | AM12: =VLOOKUP(Tab2_Rohdaten!$B30,Tab2_Rohdaten!$A$28:$GG$1800,10+AM$9,FALSE) -> 21456 | AN12: =VLOOKUP(Tab2_Rohdaten!$B30,Tab2_Rohdaten!$A$28:$GG$1800,10+AN$9,FALSE) -> 22005 | AO12: =VLOOKUP(Tab2_Rohdaten!$B30,Tab2_Rohdaten!$A$28:$GG$1800,10+AO$9,FALSE) -> 22349 | AP12: =VLOOKUP(Tab2_Rohdaten!$B30,Tab2_Rohdaten!$A$28:$GG$1800,10+AP$9,FALSE) -> 21893 | AQ12: =VLOOKUP(Tab2_Rohdaten!$B30,Tab2_Rohdaten!$A$28:$GG$1800,10+AQ$9,FALSE) -> 21985 | AR12: =VLOOKUP(Tab2_Rohdaten!$B30,Tab2_Rohdaten!$A$28:$GG$1800,10+AR$9,FALSE) -> 22733 | AS12: =VLOOKUP(Tab2_Rohdaten!$B30,Tab2_Rohdaten!$A$28:$GG$1800,10+AS$9,FALSE) -> 22972 | AT12: =VLOOKUP(Tab2_Rohdaten!$B30,Tab2_Rohdaten!$A$28:$GG$1800,10+AT$9,FALSE) -> 22317 | AU12: =VLOOKUP(Tab2_Rohdaten!$B30,Tab2_Rohdaten!$A$28:$GG$1800,10+AU$9,FALSE) -> 22312 | AV12: =VLOOKUP(Tab2_Rohdaten!$B30,Tab2_Rohdaten!$A$28:$GG$1800,10+AV$9,FALSE) -> 22854 | AW12: =VLOOKUP(Tab2_Rohdaten!$B30,Tab2_Rohdaten!$A$28:$GG$1800,10+AW$9,FALSE) -> 23186 | AX12: =VLOOKUP(Tab2_Rohdaten!$B30,Tab2_Rohdaten!$A$28:$GG$1800,10+AX$9,FALSE) -> 22799 | AY12: =VLOOKUP(Tab2_Rohdaten!$B30,Tab2_Rohdaten!$A$28:$GG$1800,10+AY$9,FALSE) -> 22870 | AZ12: =VLOOKUP(Tab2_Rohdaten!$B30,Tab2_Rohdaten!$A$28:$GG$1800,10+AZ$9,FALSE) -> 23296 | BA12: =VLOOKUP(Tab2_Rohdaten!$B30,Tab2_Rohdaten!$A$28:$GG$1800,10+BA$9,FALSE) -> 23600 | BB12: =VLOOKUP(Tab2_Rohdaten!$B30,Tab2_Rohdaten!$A$28:$GG$1800,10+BB$9,FALSE) -> 23050 | BC12: =VLOOKUP(Tab2_Rohdaten!$B30,Tab2_Rohdaten!$A$28:$GG$1800,10+BC$9,FALSE) -> 22794 | BD12: =VLOOKUP(Tab2_Rohdaten!$B30,Tab2_Rohdaten!$A$28:$GG$1800,10+BD$9,FALSE) -> 22934 | BE12: =VLOOKUP(Tab2_Rohdaten!$B30,Tab2_Rohdaten!$A$28:$GG$1800,10+BE$9,FALSE) -> 23059 | BF12: =VLOOKUP(Tab2_Rohdaten!$B30,Tab2_Rohdaten!$A$28:$GG$1800,10+BF$9,FALSE) -> 22450 | BG12: =VLOOKUP(Tab2_Rohdaten!$B30,Tab2_Rohdaten!$A$28:$GG$1800,10+BG$9,FALSE) -> 22157 | BH12: =VLOOKUP(Tab2_Rohdaten!$B30,Tab2_Rohdaten!$A$28:$GG$1800,10+BH$9,FALSE) -> 22036 | BI12: =VLOOKUP(Tab2_Rohdaten!$B30,Tab2_Rohdaten!$A$28:$GG$1800,10+BI$9,FALSE) -> 22324 | BJ12: =VLOOKUP(Tab2_Rohdaten!$B30,Tab2_Rohdaten!$A$28:$GG$1800,10+BJ$9,FALSE) -> 21955 | BK12: =VLOOKUP(Tab2_Rohdaten!$B30,Tab2_Rohdaten!$A$28:$GG$1800,10+BK$9,FALSE) -> 21788 | BL12: =VLOOKUP(Tab2_Rohdaten!$B30,Tab2_Rohdaten!$A$28:$GG$1800,10+BL$9,FALSE) -> 21959 | BM12: =VLOOKUP(Tab2_Rohdaten!$B30,Tab2_Rohdaten!$A$28:$GG$1800,10+BM$9,FALSE) -> 22412 | BN12: =VLOOKUP(Tab2_Rohdaten!$B30,Tab2_Rohdaten!$A$28:$GG$1800,10+BN$9,FALSE) -> 22059 | BO12: =VLOOKUP(Tab2_Rohdaten!$B30,Tab2_Rohdaten!$A$28:$GG$1800,10+BO$9,FALSE) -> 21929
A13: =VLOOKUP(Tab2_Rohdaten!$B31,Tab2_Rohdaten!$A$28:$GG$1800,9,FALSE) -> JC Mecklenburgische Seenplatte Süd | B13: =VLOOKUP(Tab2_Rohdaten!$B31,Tab2_Rohdaten!$A$28:$GG$1800,10,FALSE) -> 03102 | C13: =VLOOKUP(Tab2_Rohdaten!$B31,Tab2_Rohdaten!$A$28:$GG$1800,10+C$9,FALSE) -> 47254 | D13: =VLOOKUP(Tab2_Rohdaten!$B31,Tab2_Rohdaten!$A$28:$GG$1800,10+D$9,FALSE) -> 49017 | E13: =VLOOKUP(Tab2_Rohdaten!$B31,Tab2_Rohdaten!$A$28:$GG$1800,10+E$9,FALSE) -> 49508 | F13: =VLOOKUP(Tab2_Rohdaten!$B31,Tab2_Rohdaten!$A$28:$GG$1800,10+F$9,FALSE) -> 49025 | G13: =VLOOKUP(Tab2_Rohdaten!$B31,Tab2_Rohdaten!$A$28:$GG$1800,10+G$9,FALSE) -> 48314 | H13: =VLOOKUP(Tab2_Rohdaten!$B31,Tab2_Rohdaten!$A$28:$GG$1800,10+H$9,FALSE) -> 49596 | I13: =VLOOKUP(Tab2_Rohdaten!$B31,Tab2_Rohdaten!$A$28:$GG$1800,10+I$9,FALSE) -> 50725 | J13: =VLOOKUP(Tab2_Rohdaten!$B31,Tab2_Rohdaten!$A$28:$GG$1800,10+J$9,FALSE) -> 49789 | K13: =VLOOKUP(Tab2_Rohdaten!$B31,Tab2_Rohdaten!$A$28:$GG$1800,10+K$9,FALSE) -> 49291 | L13: =VLOOKUP(Tab2_Rohdaten!$B31,Tab2_Rohdaten!$A$28:$GG$1800,10+L$9,FALSE) -> 50634 | M13: =VLOOKUP(Tab2_Rohdaten!$B31,Tab2_Rohdaten!$A$28:$GG$1800,10+M$9,FALSE) -> 51143 | N13: =VLOOKUP(Tab2_Rohdaten!$B31,Tab2_Rohdaten!$A$28:$GG$1800,10+N$9,FALSE) -> 49935 | O13: =VLOOKUP(Tab2_Rohdaten!$B31,Tab2_Rohdaten!$A$28:$GG$1800,10+O$9,FALSE) -> 49204 | P13: =VLOOKUP(Tab2_Rohdaten!$B31,Tab2_Rohdaten!$A$28:$GG$1800,10+P$9,FALSE) -> 50247 | Q13: =VLOOKUP(Tab2_Rohdaten!$B31,Tab2_Rohdaten!$A$28:$GG$1800,10+Q$9,FALSE) -> 50871 | R13: =VLOOKUP(Tab2_Rohdaten!$B31,Tab2_Rohdaten!$A$28:$GG$1800,10+R$9,FALSE) -> 49837 | S13: =VLOOKUP(Tab2_Rohdaten!$B31,Tab2_Rohdaten!$A$28:$GG$1800,10+S$9,FALSE) -> 48979 | T13: =VLOOKUP(Tab2_Rohdaten!$B31,Tab2_Rohdaten!$A$28:$GG$1800,10+T$9,FALSE) -> 50299 | U13: =VLOOKUP(Tab2_Rohdaten!$B31,Tab2_Rohdaten!$A$28:$GG$1800,10+U$9,FALSE) -> 50888 | V13: =VLOOKUP(Tab2_Rohdaten!$B31,Tab2_Rohdaten!$A$28:$GG$1800,10+V$9,FALSE) -> 49507 | W13: =VLOOKUP(Tab2_Rohdaten!$B31,Tab2_Rohdaten!$A$28:$GG$1800,10+W$9,FALSE) -> 49203 | X13: =VLOOKUP(Tab2_Rohdaten!$B31,Tab2_Rohdaten!$A$28:$GG$1800,10+X$9,FALSE) -> 50557 | Y13: =VLOOKUP(Tab2_Rohdaten!$B31,Tab2_Rohdaten!$A$28:$GG$1800,10+Y$9,FALSE) -> 51412 | Z13: =VLOOKUP(Tab2_Rohdaten!$B31,Tab2_Rohdaten!$A$28:$GG$1800,10+Z$9,FALSE) -> 50361 | AA13: =VLOOKUP(Tab2_Rohdaten!$B31,Tab2_Rohdaten!$A$28:$GG$1800,10+AA$9,FALSE) -> 49937 | AB13: =VLOOKUP(Tab2_Rohdaten!$B31,Tab2_Rohdaten!$A$28:$GG$1800,10+AB$9,FALSE) -> 50738 | AC13: =VLOOKUP(Tab2_Rohdaten!$B31,Tab2_Rohdaten!$A$28:$GG$1800,10+AC$9,FALSE) -> 51424 | AD13: =VLOOKUP(Tab2_Rohdaten!$B31,Tab2_Rohdaten!$A$28:$GG$1800,10+AD$9,FALSE) -> 50038 | AE13: =VLOOKUP(Tab2_Rohdaten!$B31,Tab2_Rohdaten!$A$28:$GG$1800,10+AE$9,FALSE) -> 49534 | AF13: =VLOOKUP(Tab2_Rohdaten!$B31,Tab2_Rohdaten!$A$28:$GG$1800,10+AF$9,FALSE) -> 50651 | AG13: =VLOOKUP(Tab2_Rohdaten!$B31,Tab2_Rohdaten!$A$28:$GG$1800,10+AG$9,FALSE) -> 51497 | AH13: =VLOOKUP(Tab2_Rohdaten!$B31,Tab2_Rohdaten!$A$28:$GG$1800,10+AH$9,FALSE) -> 50229 | AI13: =VLOOKUP(Tab2_Rohdaten!$B31,Tab2_Rohdaten!$A$28:$GG$1800,10+AI$9,FALSE) -> 49954 | AJ13: =VLOOKUP(Tab2_Rohdaten!$B31,Tab2_Rohdaten!$A$28:$GG$1800,10+AJ$9,FALSE) -> 50783 | AK13: =VLOOKUP(Tab2_Rohdaten!$B31,Tab2_Rohdaten!$A$28:$GG$1800,10+AK$9,FALSE) -> 51079 | AL13: =VLOOKUP(Tab2_Rohdaten!$B31,Tab2_Rohdaten!$A$28:$GG$1800,10+AL$9,FALSE) -> 50000 | AM13: =VLOOKUP(Tab2_Rohdaten!$B31,Tab2_Rohdaten!$A$28:$GG$1800,10+AM$9,FALSE) -> 49788 | AN13: =VLOOKUP(Tab2_Rohdaten!$B31,Tab2_Rohdaten!$A$28:$GG$1800,10+AN$9,FALSE) -> 50592 | AO13: =VLOOKUP(Tab2_Rohdaten!$B31,Tab2_Rohdaten!$A$28:$GG$1800,10+AO$9,FALSE) -> 51098 | AP13: =VLOOKUP(Tab2_Rohdaten!$B31,Tab2_Rohdaten!$A$28:$GG$1800,10+AP$9,FALSE) -> 50121 | AQ13: =VLOOKUP(Tab2_Rohdaten!$B31,Tab2_Rohdaten!$A$28:$GG$1800,10+AQ$9,FALSE) -> 49895 | AR13: =VLOOKUP(Tab2_Rohdaten!$B31,Tab2_Rohdaten!$A$28:$GG$1800,10+AR$9,FALSE) -> 50596 | AS13: =VLOOKUP(Tab2_Rohdaten!$B31,Tab2_Rohdaten!$A$28:$GG$1800,10+AS$9,FALSE) -> 51235 | AT13: =VLOOKUP(Tab2_Rohdaten!$B31,Tab2_Rohdaten!$A$28:$GG$1800,10+AT$9,FALSE) -> 50138 | AU13: =VLOOKUP(Tab2_Rohdaten!$B31,Tab2_Rohdaten!$A$28:$GG$1800,10+AU$9,FALSE) -> 50005 | AV13: =VLOOKUP(Tab2_Rohdaten!$B31,Tab2_Rohdaten!$A$28:$GG$1800,10+AV$9,FALSE) -> 50824 | AW13: =VLOOKUP(Tab2_Rohdaten!$B31,Tab2_Rohdaten!$A$28:$GG$1800,10+AW$9,FALSE) -> 51664 | AX13: =VLOOKUP(Tab2_Rohdaten!$B31,Tab2_Rohdaten!$A$28:$GG$1800,10+AX$9,FALSE) -> 50989 | AY13: =VLOOKUP(Tab2_Rohdaten!$B31,Tab2_Rohdaten!$A$28:$GG$1800,10+AY$9,FALSE) -> 50758 | AZ13: =VLOOKUP(Tab2_Rohdaten!$B31,Tab2_Rohdaten!$A$28:$GG$1800,10+AZ$9,FALSE) -> 51472 | BA13: =VLOOKUP(Tab2_Rohdaten!$B31,Tab2_Rohdaten!$A$28:$GG$1800,10+BA$9,FALSE) -> 52104 | BB13: =VLOOKUP(Tab2_Rohdaten!$B31,Tab2_Rohdaten!$A$28:$GG$1800,10+BB$9,FALSE) -> 51285 | BC13: =VLOOKUP(Tab2_Rohdaten!$B31,Tab2_Rohdaten!$A$28:$GG$1800,10+BC$9,FALSE) -> 51051 | BD13: =VLOOKUP(Tab2_Rohdaten!$B31,Tab2_Rohdaten!$A$28:$GG$1800,10+BD$9,FALSE) -> 51405 | BE13: =VLOOKUP(Tab2_Rohdaten!$B31,Tab2_Rohdaten!$A$28:$GG$1800,10+BE$9,FALSE) -> 52221 | BF13: =VLOOKUP(Tab2_Rohdaten!$B31,Tab2_Rohdaten!$A$28:$GG$1800,10+BF$9,FALSE) -> 51478 | BG13: =VLOOKUP(Tab2_Rohdaten!$B31,Tab2_Rohdaten!$A$28:$GG$1800,10+BG$9,FALSE) -> 51025 | BH13: =VLOOKUP(Tab2_Rohdaten!$B31,Tab2_Rohdaten!$A$28:$GG$1800,10+BH$9,FALSE) -> 50771 | BI13: =VLOOKUP(Tab2_Rohdaten!$B31,Tab2_Rohdaten!$A$28:$GG$1800,10+BI$9,FALSE) -> 51718 | BJ13: =VLOOKUP(Tab2_Rohdaten!$B31,Tab2_Rohdaten!$A$28:$GG$1800,10+BJ$9,FALSE) -> 51229 | BK13: =VLOOKUP(Tab2_Rohdaten!$B31,Tab2_Rohdaten!$A$28:$GG$1800,10+BK$9,FALSE) -> 50860 | BL13: =VLOOKUP(Tab2_Rohdaten!$B31,Tab2_Rohdaten!$A$28:$GG$1800,10+BL$9,FALSE) -> 51164 | BM13: =VLOOKUP(Tab2_Rohdaten!$B31,Tab2_Rohdaten!$A$28:$GG$1800,10+BM$9,FALSE) -> 51986 | BN13: =VLOOKUP(Tab2_Rohdaten!$B31,Tab2_Rohdaten!$A$28:$GG$1800,10+BN$9,FALSE) -> 51623 | BO13: =VLOOKUP(Tab2_Rohdaten!$B31,Tab2_Rohdaten!$A$28:$GG$1800,10+BO$9,FALSE) -> 51162
A14: =VLOOKUP(Tab2_Rohdaten!$B32,Tab2_Rohdaten!$A$28:$GG$1800,9,FALSE) -> JC Mecklenburgische Seenplatte Nord | B14: =VLOOKUP(Tab2_Rohdaten!$B32,Tab2_Rohdaten!$A$28:$GG$1800,10,FALSE) -> 03122 | C14: =VLOOKUP(Tab2_Rohdaten!$B32,Tab2_Rohdaten!$A$28:$GG$1800,10+C$9,FALSE) -> 41724 | D14: =VLOOKUP(Tab2_Rohdaten!$B32,Tab2_Rohdaten!$A$28:$GG$1800,10+D$9,FALSE) -> 44190 | E14: =VLOOKUP(Tab2_Rohdaten!$B32,Tab2_Rohdaten!$A$28:$GG$1800,10+E$9,FALSE) -> 44923 | F14: =VLOOKUP(Tab2_Rohdaten!$B32,Tab2_Rohdaten!$A$28:$GG$1800,10+F$9,FALSE) -> 43384 | G14: =VLOOKUP(Tab2_Rohdaten!$B32,Tab2_Rohdaten!$A$28:$GG$1800,10+G$9,FALSE) -> 42903 | H14: =VLOOKUP(Tab2_Rohdaten!$B32,Tab2_Rohdaten!$A$28:$GG$1800,10+H$9,FALSE) -> 44507 | I14: =VLOOKUP(Tab2_Rohdaten!$B32,Tab2_Rohdaten!$A$28:$GG$1800,10+I$9,FALSE) -> 45926 | J14: =VLOOKUP(Tab2_Rohdaten!$B32,Tab2_Rohdaten!$A$28:$GG$1800,10+J$9,FALSE) -> 44279 | K14: =VLOOKUP(Tab2_Rohdaten!$B32,Tab2_Rohdaten!$A$28:$GG$1800,10+K$9,FALSE) -> 43847 | L14: =VLOOKUP(Tab2_Rohdaten!$B32,Tab2_Rohdaten!$A$28:$GG$1800,10+L$9,FALSE) -> 45576 | M14: =VLOOKUP(Tab2_Rohdaten!$B32,Tab2_Rohdaten!$A$28:$GG$1800,10+M$9,FALSE) -> 46481 | N14: =VLOOKUP(Tab2_Rohdaten!$B32,Tab2_Rohdaten!$A$28:$GG$1800,10+N$9,FALSE) -> 45067 | O14: =VLOOKUP(Tab2_Rohdaten!$B32,Tab2_Rohdaten!$A$28:$GG$1800,10+O$9,FALSE) -> 43928 | P14: =VLOOKUP(Tab2_Rohdaten!$B32,Tab2_Rohdaten!$A$28:$GG$1800,10+P$9,FALSE) -> 45472 | Q14: =VLOOKUP(Tab2_Rohdaten!$B32,Tab2_Rohdaten!$A$28:$GG$1800,10+Q$9,FALSE) -> 46328 | R14: =VLOOKUP(Tab2_Rohdaten!$B32,Tab2_Rohdaten!$A$28:$GG$1800,10+R$9,FALSE) -> 44537 | S14: =VLOOKUP(Tab2_Rohdaten!$B32,Tab2_Rohdaten!$A$28:$GG$1800,10+S$9,FALSE) -> 43336 | T14: =VLOOKUP(Tab2_Rohdaten!$B32,Tab2_Rohdaten!$A$28:$GG$1800,10+T$9,FALSE) -> 45371 | U14: =VLOOKUP(Tab2_Rohdaten!$B32,Tab2_Rohdaten!$A$28:$GG$1800,10+U$9,FALSE) -> 46343 | V14: =VLOOKUP(Tab2_Rohdaten!$B32,Tab2_Rohdaten!$A$28:$GG$1800,10+V$9,FALSE) -> 44214 | W14: =VLOOKUP(Tab2_Rohdaten!$B32,Tab2_Rohdaten!$A$28:$GG$1800,10+W$9,FALSE) -> 43353 | X14: =VLOOKUP(Tab2_Rohdaten!$B32,Tab2_Rohdaten!$A$28:$GG$1800,10+X$9,FALSE) -> 45342 | Y14: =VLOOKUP(Tab2_Rohdaten!$B32,Tab2_Rohdaten!$A$28:$GG$1800,10+Y$9,FALSE) -> 46102 | Z14: =VLOOKUP(Tab2_Rohdaten!$B32,Tab2_Rohdaten!$A$28:$GG$1800,10+Z$9,FALSE) -> 44445 | AA14: =VLOOKUP(Tab2_Rohdaten!$B32,Tab2_Rohdaten!$A$28:$GG$1800,10+AA$9,FALSE) -> 43575 | AB14: =VLOOKUP(Tab2_Rohdaten!$B32,Tab2_Rohdaten!$A$28:$GG$1800,10+AB$9,FALSE) -> 45274 | AC14: =VLOOKUP(Tab2_Rohdaten!$B32,Tab2_Rohdaten!$A$28:$GG$1800,10+AC$9,FALSE) -> 45906 | AD14: =VLOOKUP(Tab2_Rohdaten!$B32,Tab2_Rohdaten!$A$28:$GG$1800,10+AD$9,FALSE) -> 44292 | AE14: =VLOOKUP(Tab2_Rohdaten!$B32,Tab2_Rohdaten!$A$28:$GG$1800,10+AE$9,FALSE) -> 43522 | AF14: =VLOOKUP(Tab2_Rohdaten!$B32,Tab2_Rohdaten!$A$28:$GG$1800,10+AF$9,FALSE) -> 45330 | AG14: =VLOOKUP(Tab2_Rohdaten!$B32,Tab2_Rohdaten!$A$28:$GG$1800,10+AG$9,FALSE) -> 46072 | AH14: =VLOOKUP(Tab2_Rohdaten!$B32,Tab2_Rohdaten!$A$28:$GG$1800,10+AH$9,FALSE) -> 44290 | AI14: =VLOOKUP(Tab2_Rohdaten!$B32,Tab2_Rohdaten!$A$28:$GG$1800,10+AI$9,FALSE) -> 44006 | AJ14: =VLOOKUP(Tab2_Rohdaten!$B32,Tab2_Rohdaten!$A$28:$GG$1800,10+AJ$9,FALSE) -> 45733 | AK14: =VLOOKUP(Tab2_Rohdaten!$B32,Tab2_Rohdaten!$A$28:$GG$1800,10+AK$9,FALSE) -> 46182 | AL14: =VLOOKUP(Tab2_Rohdaten!$B32,Tab2_Rohdaten!$A$28:$GG$1800,10+AL$9,FALSE) -> 44348 | AM14: =VLOOKUP(Tab2_Rohdaten!$B32,Tab2_Rohdaten!$A$28:$GG$1800,10+AM$9,FALSE) -> 44135 | AN14: =VLOOKUP(Tab2_Rohdaten!$B32,Tab2_Rohdaten!$A$28:$GG$1800,10+AN$9,FALSE) -> 45570 | AO14: =VLOOKUP(Tab2_Rohdaten!$B32,Tab2_Rohdaten!$A$28:$GG$1800,10+AO$9,FALSE) -> 46218 | AP14: =VLOOKUP(Tab2_Rohdaten!$B32,Tab2_Rohdaten!$A$28:$GG$1800,10+AP$9,FALSE) -> 44808 | AQ14: =VLOOKUP(Tab2_Rohdaten!$B32,Tab2_Rohdaten!$A$28:$GG$1800,10+AQ$9,FALSE) -> 44692 | AR14: =VLOOKUP(Tab2_Rohdaten!$B32,Tab2_Rohdaten!$A$28:$GG$1800,10+AR$9,FALSE) -> 45998 | AS14: =VLOOKUP(Tab2_Rohdaten!$B32,Tab2_Rohdaten!$A$28:$GG$1800,10+AS$9,FALSE) -> 46591 | AT14: =VLOOKUP(Tab2_Rohdaten!$B32,Tab2_Rohdaten!$A$28:$GG$1800,10+AT$9,FALSE) -> 45116 | AU14: =VLOOKUP(Tab2_Rohdaten!$B32,Tab2_Rohdaten!$A$28:$GG$1800,10+AU$9,FALSE) -> 45078 | AV14: =VLOOKUP(Tab2_Rohdaten!$B32,Tab2_Rohdaten!$A$28:$GG$1800,10+AV$9,FALSE) -> 46336 | AW14: =VLOOKUP(Tab2_Rohdaten!$B32,Tab2_Rohdaten!$A$28:$GG$1800,10+AW$9,FALSE) -> 46881 | AX14: =VLOOKUP(Tab2_Rohdaten!$B32,Tab2_Rohdaten!$A$28:$GG$1800,10+AX$9,FALSE) -> 45623 | AY14: =VLOOKUP(Tab2_Rohdaten!$B32,Tab2_Rohdaten!$A$28:$GG$1800,10+AY$9,FALSE) -> 45460 | AZ14: =VLOOKUP(Tab2_Rohdaten!$B32,Tab2_Rohdaten!$A$28:$GG$1800,10+AZ$9,FALSE) -> 46532 | BA14: =VLOOKUP(Tab2_Rohdaten!$B32,Tab2_Rohdaten!$A$28:$GG$1800,10+BA$9,FALSE) -> 47109 | BB14: =VLOOKUP(Tab2_Rohdaten!$B32,Tab2_Rohdaten!$A$28:$GG$1800,10+BB$9,FALSE) -> 45854 | BC14: =VLOOKUP(Tab2_Rohdaten!$B32,Tab2_Rohdaten!$A$28:$GG$1800,10+BC$9,FALSE) -> 45416 | BD14: =VLOOKUP(Tab2_Rohdaten!$B32,Tab2_Rohdaten!$A$28:$GG$1800,10+BD$9,FALSE) -> 46417 | BE14: =VLOOKUP(Tab2_Rohdaten!$B32,Tab2_Rohdaten!$A$28:$GG$1800,10+BE$9,FALSE) -> 47071 | BF14: =VLOOKUP(Tab2_Rohdaten!$B32,Tab2_Rohdaten!$A$28:$GG$1800,10+BF$9,FALSE) -> 45849 | BG14: =VLOOKUP(Tab2_Rohdaten!$B32,Tab2_Rohdaten!$A$28:$GG$1800,10+BG$9,FALSE) -> 45570 | BH14: =VLOOKUP(Tab2_Rohdaten!$B32,Tab2_Rohdaten!$A$28:$GG$1800,10+BH$9,FALSE) -> 45748 | BI14: =VLOOKUP(Tab2_Rohdaten!$B32,Tab2_Rohdaten!$A$28:$GG$1800,10+BI$9,FALSE) -> 46534 | BJ14: =VLOOKUP(Tab2_Rohdaten!$B32,Tab2_Rohdaten!$A$28:$GG$1800,10+BJ$9,FALSE) -> 45602 | BK14: =VLOOKUP(Tab2_Rohdaten!$B32,Tab2_Rohdaten!$A$28:$GG$1800,10+BK$9,FALSE) -> 45134 | BL14: =VLOOKUP(Tab2_Rohdaten!$B32,Tab2_Rohdaten!$A$28:$GG$1800,10+BL$9,FALSE) -> 45885 | BM14: =VLOOKUP(Tab2_Rohdaten!$B32,Tab2_Rohdaten!$A$28:$GG$1800,10+BM$9,FALSE) -> 46672 | BN14: =VLOOKUP(Tab2_Rohdaten!$B32,Tab2_Rohdaten!$A$28:$GG$1800,10+BN$9,FALSE) -> 45824 | BO14: =VLOOKUP(Tab2_Rohdaten!$B32,Tab2_Rohdaten!$A$28:$GG$1800,10+BO$9,FALSE) -> 45674
A15: =VLOOKUP(Tab2_Rohdaten!$B33,Tab2_Rohdaten!$A$28:$GG$1800,9,FALSE) -> JC Rostock, Hansestadt | B15: =VLOOKUP(Tab2_Rohdaten!$B33,Tab2_Rohdaten!$A$28:$GG$1800,10,FALSE) -> 03202 | C15: =VLOOKUP(Tab2_Rohdaten!$B33,Tab2_Rohdaten!$A$28:$GG$1800,10+C$9,FALSE) -> 60445 | D15: =VLOOKUP(Tab2_Rohdaten!$B33,Tab2_Rohdaten!$A$28:$GG$1800,10+D$9,FALSE) -> 62107 | E15: =VLOOKUP(Tab2_Rohdaten!$B33,Tab2_Rohdaten!$A$28:$GG$1800,10+E$9,FALSE) -> 63309 | F15: =VLOOKUP(Tab2_Rohdaten!$B33,Tab2_Rohdaten!$A$28:$GG$1800,10+F$9,FALSE) -> 63219 | G15: =VLOOKUP(Tab2_Rohdaten!$B33,Tab2_Rohdaten!$A$28:$GG$1800,10+G$9,FALSE) -> 62718 | H15: =VLOOKUP(Tab2_Rohdaten!$B33,Tab2_Rohdaten!$A$28:$GG$1800,10+H$9,FALSE) -> 63797 | I15: =VLOOKUP(Tab2_Rohdaten!$B33,Tab2_Rohdaten!$A$28:$GG$1800,10+I$9,FALSE) -> 64803 | J15: =VLOOKUP(Tab2_Rohdaten!$B33,Tab2_Rohdaten!$A$28:$GG$1800,10+J$9,FALSE) -> 64912 | K15: =VLOOKUP(Tab2_Rohdaten!$B33,Tab2_Rohdaten!$A$28:$GG$1800,10+K$9,FALSE) -> 64764 | L15: =VLOOKUP(Tab2_Rohdaten!$B33,Tab2_Rohdaten!$A$28:$GG$1800,10+L$9,FALSE) -> 65896 | M15: =VLOOKUP(Tab2_Rohdaten!$B33,Tab2_Rohdaten!$A$28:$GG$1800,10+M$9,FALSE) -> 67031 | N15: =VLOOKUP(Tab2_Rohdaten!$B33,Tab2_Rohdaten!$A$28:$GG$1800,10+N$9,FALSE) -> 66355 | O15: =VLOOKUP(Tab2_Rohdaten!$B33,Tab2_Rohdaten!$A$28:$GG$1800,10+O$9,FALSE) -> 65689 | P15: =VLOOKUP(Tab2_Rohdaten!$B33,Tab2_Rohdaten!$A$28:$GG$1800,10+P$9,FALSE) -> 66453 | Q15: =VLOOKUP(Tab2_Rohdaten!$B33,Tab2_Rohdaten!$A$28:$GG$1800,10+Q$9,FALSE) -> 67260 | R15: =VLOOKUP(Tab2_Rohdaten!$B33,Tab2_Rohdaten!$A$28:$GG$1800,10+R$9,FALSE) -> 66643 | S15: =VLOOKUP(Tab2_Rohdaten!$B33,Tab2_Rohdaten!$A$28:$GG$1800,10+S$9,FALSE) -> 66253 | T15: =VLOOKUP(Tab2_Rohdaten!$B33,Tab2_Rohdaten!$A$28:$GG$1800,10+T$9,FALSE) -> 67779 | U15: =VLOOKUP(Tab2_Rohdaten!$B33,Tab2_Rohdaten!$A$28:$GG$1800,10+U$9,FALSE) -> 68347 | V15: =VLOOKUP(Tab2_Rohdaten!$B33,Tab2_Rohdaten!$A$28:$GG$1800,10+V$9,FALSE) -> 67813 | W15: =VLOOKUP(Tab2_Rohdaten!$B33,Tab2_Rohdaten!$A$28:$GG$1800,10+W$9,FALSE) -> 67790 | X15: =VLOOKUP(Tab2_Rohdaten!$B33,Tab2_Rohdaten!$A$28:$GG$1800,10+X$9,FALSE) -> 69625 | Y15: =VLOOKUP(Tab2_Rohdaten!$B33,Tab2_Rohdaten!$A$28:$GG$1800,10+Y$9,FALSE) -> 70849 | Z15: =VLOOKUP(Tab2_Rohdaten!$B33,Tab2_Rohdaten!$A$28:$GG$1800,10+Z$9,FALSE) -> 70452 | AA15: =VLOOKUP(Tab2_Rohdaten!$B33,Tab2_Rohdaten!$A$28:$GG$1800,10+AA$9,FALSE) -> 70368 | AB15: =VLOOKUP(Tab2_Rohdaten!$B33,Tab2_Rohdaten!$A$28:$GG$1800,10+AB$9,FALSE) -> 71653 | AC15: =VLOOKUP(Tab2_Rohdaten!$B33,Tab2_Rohdaten!$A$28:$GG$1800,10+AC$9,FALSE) -> 72726 | AD15: =VLOOKUP(Tab2_Rohdaten!$B33,Tab2_Rohdaten!$A$28:$GG$1800,10+AD$9,FALSE) -> 71924 | AE15: =VLOOKUP(Tab2_Rohdaten!$B33,Tab2_Rohdaten!$A$28:$GG$1800,10+AE$9,FALSE) -> 71493 | AF15: =VLOOKUP(Tab2_Rohdaten!$B33,Tab2_Rohdaten!$A$28:$GG$1800,10+AF$9,FALSE) -> 72645 | AG15: =VLOOKUP(Tab2_Rohdaten!$B33,Tab2_Rohdaten!$A$28:$GG$1800,10+AG$9,FALSE) -> 73814 | AH15: =VLOOKUP(Tab2_Rohdaten!$B33,Tab2_Rohdaten!$A$28:$GG$1800,10+AH$9,FALSE) -> 72821 | AI15: =VLOOKUP(Tab2_Rohdaten!$B33,Tab2_Rohdaten!$A$28:$GG$1800,10+AI$9,FALSE) -> 72736 | AJ15: =VLOOKUP(Tab2_Rohdaten!$B33,Tab2_Rohdaten!$A$28:$GG$1800,10+AJ$9,FALSE) -> 73837 | AK15: =VLOOKUP(Tab2_Rohdaten!$B33,Tab2_Rohdaten!$A$28:$GG$1800,10+AK$9,FALSE) -> 74711 | AL15: =VLOOKUP(Tab2_Rohdaten!$B33,Tab2_Rohdaten!$A$28:$GG$1800,10+AL$9,FALSE) -> 73918 | AM15: =VLOOKUP(Tab2_Rohdaten!$B33,Tab2_Rohdaten!$A$28:$GG$1800,10+AM$9,FALSE) -> 74321 | AN15: =VLOOKUP(Tab2_Rohdaten!$B33,Tab2_Rohdaten!$A$28:$GG$1800,10+AN$9,FALSE) -> 75226 | AO15: =VLOOKUP(Tab2_Rohdaten!$B33,Tab2_Rohdaten!$A$28:$GG$1800,10+AO$9,FALSE) -> 76252 | AP15: =VLOOKUP(Tab2_Rohdaten!$B33,Tab2_Rohdaten!$A$28:$GG$1800,10+AP$9,FALSE) -> 75433 | AQ15: =VLOOKUP(Tab2_Rohdaten!$B33,Tab2_Rohdaten!$A$28:$GG$1800,10+AQ$9,FALSE) -> 75470 | AR15: =VLOOKUP(Tab2_Rohdaten!$B33,Tab2_Rohdaten!$A$28:$GG$1800,10+AR$9,FALSE) -> 76401 | AS15: =VLOOKUP(Tab2_Rohdaten!$B33,Tab2_Rohdaten!$A$28:$GG$1800,10+AS$9,FALSE) -> 77381 | AT15: =VLOOKUP(Tab2_Rohdaten!$B33,Tab2_Rohdaten!$A$28:$GG$1800,10+AT$9,FALSE) -> 76711 | AU15: =VLOOKUP(Tab2_Rohdaten!$B33,Tab2_Rohdaten!$A$28:$GG$1800,10+AU$9,FALSE) -> 76763 | AV15: =VLOOKUP(Tab2_Rohdaten!$B33,Tab2_Rohdaten!$A$28:$GG$1800,10+AV$9,FALSE) -> 77953 | AW15: =VLOOKUP(Tab2_Rohdaten!$B33,Tab2_Rohdaten!$A$28:$GG$1800,10+AW$9,FALSE) -> 79092 | AX15: =VLOOKUP(Tab2_Rohdaten!$B33,Tab2_Rohdaten!$A$28:$GG$1800,10+AX$9,FALSE) -> 78686 | AY15: =VLOOKUP(Tab2_Rohdaten!$B33,Tab2_Rohdaten!$A$28:$GG$1800,10+AY$9,FALSE) -> 78531 | AZ15: =VLOOKUP(Tab2_Rohdaten!$B33,Tab2_Rohdaten!$A$28:$GG$1800,10+AZ$9,FALSE) -> 79692 | BA15: =VLOOKUP(Tab2_Rohdaten!$B33,Tab2_Rohdaten!$A$28:$GG$1800,10+BA$9,FALSE) -> 80985 | BB15: =VLOOKUP(Tab2_Rohdaten!$B33,Tab2_Rohdaten!$A$28:$GG$1800,10+BB$9,FALSE) -> 80424 | BC15: =VLOOKUP(Tab2_Rohdaten!$B33,Tab2_Rohdaten!$A$28:$GG$1800,10+BC$9,FALSE) -> 80298 | BD15: =VLOOKUP(Tab2_Rohdaten!$B33,Tab2_Rohdaten!$A$28:$GG$1800,10+BD$9,FALSE) -> 80987 | BE15: =VLOOKUP(Tab2_Rohdaten!$B33,Tab2_Rohdaten!$A$28:$GG$1800,10+BE$9,FALSE) -> 82521 | BF15: =VLOOKUP(Tab2_Rohdaten!$B33,Tab2_Rohdaten!$A$28:$GG$1800,10+BF$9,FALSE) -> 82126 | BG15: =VLOOKUP(Tab2_Rohdaten!$B33,Tab2_Rohdaten!$A$28:$GG$1800,10+BG$9,FALSE) -> 81721 | BH15: =VLOOKUP(Tab2_Rohdaten!$B33,Tab2_Rohdaten!$A$28:$GG$1800,10+BH$9,FALSE) -> 80937 | BI15: =VLOOKUP(Tab2_Rohdaten!$B33,Tab2_Rohdaten!$A$28:$GG$1800,10+BI$9,FALSE) -> 81986 | BJ15: =VLOOKUP(Tab2_Rohdaten!$B33,Tab2_Rohdaten!$A$28:$GG$1800,10+BJ$9,FALSE) -> 81132 | BK15: =VLOOKUP(Tab2_Rohdaten!$B33,Tab2_Rohdaten!$A$28:$GG$1800,10+BK$9,FALSE) -> 80717 | BL15: =VLOOKUP(Tab2_Rohdaten!$B33,Tab2_Rohdaten!$A$28:$GG$1800,10+BL$9,FALSE) -> 81340 | BM15: =VLOOKUP(Tab2_Rohdaten!$B33,Tab2_Rohdaten!$A$28:$GG$1800,10+BM$9,FALSE) -> 82630 | BN15: =VLOOKUP(Tab2_Rohdaten!$B33,Tab2_Rohdaten!$A$28:$GG$1800,10+BN$9,FALSE) -> 82425 | BO15: =VLOOKUP(Tab2_Rohdaten!$B33,Tab2_Rohdaten!$A$28:$GG$1800,10+BO$9,FALSE) -> 81986
A16: =VLOOKUP(Tab2_Rohdaten!$B34,Tab2_Rohdaten!$A$28:$GG$1800,9,FALSE) -> JC Landkreis Rostock | B16: =VLOOKUP(Tab2_Rohdaten!$B34,Tab2_Rohdaten!$A$28:$GG$1800,10,FALSE) -> 03208 | C16: =VLOOKUP(Tab2_Rohdaten!$B34,Tab2_Rohdaten!$A$28:$GG$1800,10+C$9,FALSE) -> 72708 | D16: =VLOOKUP(Tab2_Rohdaten!$B34,Tab2_Rohdaten!$A$28:$GG$1800,10+D$9,FALSE) -> 75845 | E16: =VLOOKUP(Tab2_Rohdaten!$B34,Tab2_Rohdaten!$A$28:$GG$1800,10+E$9,FALSE) -> 77283 | F16: =VLOOKUP(Tab2_Rohdaten!$B34,Tab2_Rohdaten!$A$28:$GG$1800,10+F$9,FALSE) -> 76381 | G16: =VLOOKUP(Tab2_Rohdaten!$B34,Tab2_Rohdaten!$A$28:$GG$1800,10+G$9,FALSE) -> 75416 | H16: =VLOOKUP(Tab2_Rohdaten!$B34,Tab2_Rohdaten!$A$28:$GG$1800,10+H$9,FALSE) -> 77311 | I16: =VLOOKUP(Tab2_Rohdaten!$B34,Tab2_Rohdaten!$A$28:$GG$1800,10+I$9,FALSE) -> 79004 | J16: =VLOOKUP(Tab2_Rohdaten!$B34,Tab2_Rohdaten!$A$28:$GG$1800,10+J$9,FALSE) -> 77662 | K16: =VLOOKUP(Tab2_Rohdaten!$B34,Tab2_Rohdaten!$A$28:$GG$1800,10+K$9,FALSE) -> 77191 | L16: =VLOOKUP(Tab2_Rohdaten!$B34,Tab2_Rohdaten!$A$28:$GG$1800,10+L$9,FALSE) -> 78799 | M16: =VLOOKUP(Tab2_Rohdaten!$B34,Tab2_Rohdaten!$A$28:$GG$1800,10+M$9,FALSE) -> 80178 | N16: =VLOOKUP(Tab2_Rohdaten!$B34,Tab2_Rohdaten!$A$28:$GG$1800,10+N$9,FALSE) -> 78161 | O16: =VLOOKUP(Tab2_Rohdaten!$B34,Tab2_Rohdaten!$A$28:$GG$1800,10+O$9,FALSE) -> 77363 | P16: =VLOOKUP(Tab2_Rohdaten!$B34,Tab2_Rohdaten!$A$28:$GG$1800,10+P$9,FALSE) -> 78917 | Q16: =VLOOKUP(Tab2_Rohdaten!$B34,Tab2_Rohdaten!$A$28:$GG$1800,10+Q$9,FALSE) -> 79797 | R16: =VLOOKUP(Tab2_Rohdaten!$B34,Tab2_Rohdaten!$A$28:$GG$1800,10+R$9,FALSE) -> 77600 | S16: =VLOOKUP(Tab2_Rohdaten!$B34,Tab2_Rohdaten!$A$28:$GG$1800,10+S$9,FALSE) -> 76765 | T16: =VLOOKUP(Tab2_Rohdaten!$B34,Tab2_Rohdaten!$A$28:$GG$1800,10+T$9,FALSE) -> 78958 | U16: =VLOOKUP(Tab2_Rohdaten!$B34,Tab2_Rohdaten!$A$28:$GG$1800,10+U$9,FALSE) -> 79923 | V16: =VLOOKUP(Tab2_Rohdaten!$B34,Tab2_Rohdaten!$A$28:$GG$1800,10+V$9,FALSE) -> 77657 | W16: =VLOOKUP(Tab2_Rohdaten!$B34,Tab2_Rohdaten!$A$28:$GG$1800,10+W$9,FALSE) -> 77449 | X16: =VLOOKUP(Tab2_Rohdaten!$B34,Tab2_Rohdaten!$A$28:$GG$1800,10+X$9,FALSE) -> 79500 | Y16: =VLOOKUP(Tab2_Rohdaten!$B34,Tab2_Rohdaten!$A$28:$GG$1800,10+Y$9,FALSE) -> 80553 | Z16: =VLOOKUP(Tab2_Rohdaten!$B34,Tab2_Rohdaten!$A$28:$GG$1800,10+Z$9,FALSE) -> 78548 | AA16: =VLOOKUP(Tab2_Rohdaten!$B34,Tab2_Rohdaten!$A$28:$GG$1800,10+AA$9,FALSE) -> 78348 | AB16: =VLOOKUP(Tab2_Rohdaten!$B34,Tab2_Rohdaten!$A$28:$GG$1800,10+AB$9,FALSE) -> 79903 | AC16: =VLOOKUP(Tab2_Rohdaten!$B34,Tab2_Rohdaten!$A$28:$GG$1800,10+AC$9,FALSE) -> 80478 | AD16: =VLOOKUP(Tab2_Rohdaten!$B34,Tab2_Rohdaten!$A$28:$GG$1800,10+AD$9,FALSE) -> 78432 | AE16: =VLOOKUP(Tab2_Rohdaten!$B34,Tab2_Rohdaten!$A$28:$GG$1800,10+AE$9,FALSE) -> 77910 | AF16: =VLOOKUP(Tab2_Rohdaten!$B34,Tab2_Rohdaten!$A$28:$GG$1800,10+AF$9,FALSE) -> 79656 | AG16: =VLOOKUP(Tab2_Rohdaten!$B34,Tab2_Rohdaten!$A$28:$GG$1800,10+AG$9,FALSE) -> 80844 | AH16: =VLOOKUP(Tab2_Rohdaten!$B34,Tab2_Rohdaten!$A$28:$GG$1800,10+AH$9,FALSE) -> 78801 | AI16: =VLOOKUP(Tab2_Rohdaten!$B34,Tab2_Rohdaten!$A$28:$GG$1800,10+AI$9,FALSE) -> 78861 | AJ16: =VLOOKUP(Tab2_Rohdaten!$B34,Tab2_Rohdaten!$A$28:$GG$1800,10+AJ$9,FALSE) -> 80512 | AK16: =VLOOKUP(Tab2_Rohdaten!$B34,Tab2_Rohdaten!$A$28:$GG$1800,10+AK$9,FALSE) -> 81334 | AL16: =VLOOKUP(Tab2_Rohdaten!$B34,Tab2_Rohdaten!$A$28:$GG$1800,10+AL$9,FALSE) -> 79530 | AM16: =VLOOKUP(Tab2_Rohdaten!$B34,Tab2_Rohdaten!$A$28:$GG$1800,10+AM$9,FALSE) -> 79703 | AN16: =VLOOKUP(Tab2_Rohdaten!$B34,Tab2_Rohdaten!$A$28:$GG$1800,10+AN$9,FALSE) -> 81129 | AO16: =VLOOKUP(Tab2_Rohdaten!$B34,Tab2_Rohdaten!$A$28:$GG$1800,10+AO$9,FALSE) -> 82073 | AP16: =VLOOKUP(Tab2_Rohdaten!$B34,Tab2_Rohdaten!$A$28:$GG$1800,10+AP$9,FALSE) -> 80309 | AQ16: =VLOOKUP(Tab2_Rohdaten!$B34,Tab2_Rohdaten!$A$28:$GG$1800,10+AQ$9,FALSE) -> 80272 | AR16: =VLOOKUP(Tab2_Rohdaten!$B34,Tab2_Rohdaten!$A$28:$GG$1800,10+AR$9,FALSE) -> 81504 | AS16: =VLOOKUP(Tab2_Rohdaten!$B34,Tab2_Rohdaten!$A$28:$GG$1800,10+AS$9,FALSE) -> 82618 | AT16: =VLOOKUP(Tab2_Rohdaten!$B34,Tab2_Rohdaten!$A$28:$GG$1800,10+AT$9,FALSE) -> 80922 | AU16: =VLOOKUP(Tab2_Rohdaten!$B34,Tab2_Rohdaten!$A$28:$GG$1800,10+AU$9,FALSE) -> 80948 | AV16: =VLOOKUP(Tab2_Rohdaten!$B34,Tab2_Rohdaten!$A$28:$GG$1800,10+AV$9,FALSE) -> 82185 | AW16: =VLOOKUP(Tab2_Rohdaten!$B34,Tab2_Rohdaten!$A$28:$GG$1800,10+AW$9,FALSE) -> 83326 | AX16: =VLOOKUP(Tab2_Rohdaten!$B34,Tab2_Rohdaten!$A$28:$GG$1800,10+AX$9,FALSE) -> 82086 | AY16: =VLOOKUP(Tab2_Rohdaten!$B34,Tab2_Rohdaten!$A$28:$GG$1800,10+AY$9,FALSE) -> 81975 | AZ16: =VLOOKUP(Tab2_Rohdaten!$B34,Tab2_Rohdaten!$A$28:$GG$1800,10+AZ$9,FALSE) -> 82923 | BA16: =VLOOKUP(Tab2_Rohdaten!$B34,Tab2_Rohdaten!$A$28:$GG$1800,10+BA$9,FALSE) -> 84192 | BB16: =VLOOKUP(Tab2_Rohdaten!$B34,Tab2_Rohdaten!$A$28:$GG$1800,10+BB$9,FALSE) -> 83001 | BC16: =VLOOKUP(Tab2_Rohdaten!$B34,Tab2_Rohdaten!$A$28:$GG$1800,10+BC$9,FALSE) -> 82917 | BD16: =VLOOKUP(Tab2_Rohdaten!$B34,Tab2_Rohdaten!$A$28:$GG$1800,10+BD$9,FALSE) -> 83784 | BE16: =VLOOKUP(Tab2_Rohdaten!$B34,Tab2_Rohdaten!$A$28:$GG$1800,10+BE$9,FALSE) -> 84958 | BF16: =VLOOKUP(Tab2_Rohdaten!$B34,Tab2_Rohdaten!$A$28:$GG$1800,10+BF$9,FALSE) -> 83748 | BG16: =VLOOKUP(Tab2_Rohdaten!$B34,Tab2_Rohdaten!$A$28:$GG$1800,10+BG$9,FALSE) -> 83362 | BH16: =VLOOKUP(Tab2_Rohdaten!$B34,Tab2_Rohdaten!$A$28:$GG$1800,10+BH$9,FALSE) -> 83246 | BI16: =VLOOKUP(Tab2_Rohdaten!$B34,Tab2_Rohdaten!$A$28:$GG$1800,10+BI$9,FALSE) -> 84547 | BJ16: =VLOOKUP(Tab2_Rohdaten!$B34,Tab2_Rohdaten!$A$28:$GG$1800,10+BJ$9,FALSE) -> 83818 | BK16: =VLOOKUP(Tab2_Rohdaten!$B34,Tab2_Rohdaten!$A$28:$GG$1800,10+BK$9,FALSE) -> 83077 | BL16: =VLOOKUP(Tab2_Rohdaten!$B34,Tab2_Rohdaten!$A$28:$GG$1800,10+BL$9,FALSE) -> 83594 | BM16: =VLOOKUP(Tab2_Rohdaten!$B34,Tab2_Rohdaten!$A$28:$GG$1800,10+BM$9,FALSE) -> 85054 | BN16: =VLOOKUP(Tab2_Rohdaten!$B34,Tab2_Rohdaten!$A$28:$GG$1800,10+BN$9,FALSE) -> 84338 | BO16: =VLOOKUP(Tab2_Rohdaten!$B34,Tab2_Rohdaten!$A$28:$GG$1800,10+BO$9,FALSE) -> 84017
A17: =VLOOKUP(Tab2_Rohdaten!$B35,Tab2_Rohdaten!$A$28:$GG$1800,9,FALSE) -> JC Schwerin, Landeshauptstadt | B17: =VLOOKUP(Tab2_Rohdaten!$B35,Tab2_Rohdaten!$A$28:$GG$1800,10,FALSE) -> 03302 | C17: =VLOOKUP(Tab2_Rohdaten!$B35,Tab2_Rohdaten!$A$28:$GG$1800,10+C$9,FALSE) -> 30371 | D17: =VLOOKUP(Tab2_Rohdaten!$B35,Tab2_Rohdaten!$A$28:$GG$1800,10+D$9,FALSE) -> 30973 | E17: =VLOOKUP(Tab2_Rohdaten!$B35,Tab2_Rohdaten!$A$28:$GG$1800,10+E$9,FALSE) -> 31070 | F17: =VLOOKUP(Tab2_Rohdaten!$B35,Tab2_Rohdaten!$A$28:$GG$1800,10+F$9,FALSE) -> 31162 | G17: =VLOOKUP(Tab2_Rohdaten!$B35,Tab2_Rohdaten!$A$28:$GG$1800,10+G$9,FALSE) -> 30731 | H17: =VLOOKUP(Tab2_Rohdaten!$B35,Tab2_Rohdaten!$A$28:$GG$1800,10+H$9,FALSE) -> 31216 | I17: =VLOOKUP(Tab2_Rohdaten!$B35,Tab2_Rohdaten!$A$28:$GG$1800,10+I$9,FALSE) -> 31571 | J17: =VLOOKUP(Tab2_Rohdaten!$B35,Tab2_Rohdaten!$A$28:$GG$1800,10+J$9,FALSE) -> 31611 | K17: =VLOOKUP(Tab2_Rohdaten!$B35,Tab2_Rohdaten!$A$28:$GG$1800,10+K$9,FALSE) -> 31462 | L17: =VLOOKUP(Tab2_Rohdaten!$B35,Tab2_Rohdaten!$A$28:$GG$1800,10+L$9,FALSE) -> 31687 | M17: =VLOOKUP(Tab2_Rohdaten!$B35,Tab2_Rohdaten!$A$28:$GG$1800,10+M$9,FALSE) -> 32037 | N17: =VLOOKUP(Tab2_Rohdaten!$B35,Tab2_Rohdaten!$A$28:$GG$1800,10+N$9,FALSE) -> 32014 | O17: =VLOOKUP(Tab2_Rohdaten!$B35,Tab2_Rohdaten!$A$28:$GG$1800,10+O$9,FALSE) -> 31624 | P17: =VLOOKUP(Tab2_Rohdaten!$B35,Tab2_Rohdaten!$A$28:$GG$1800,10+P$9,FALSE) -> 32101 | Q17: =VLOOKUP(Tab2_Rohdaten!$B35,Tab2_Rohdaten!$A$28:$GG$1800,10+Q$9,FALSE) -> 32371 | R17: =VLOOKUP(Tab2_Rohdaten!$B35,Tab2_Rohdaten!$A$28:$GG$1800,10+R$9,FALSE) -> 31914 | S17: =VLOOKUP(Tab2_Rohdaten!$B35,Tab2_Rohdaten!$A$28:$GG$1800,10+S$9,FALSE) -> 31630 | T17: =VLOOKUP(Tab2_Rohdaten!$B35,Tab2_Rohdaten!$A$28:$GG$1800,10+T$9,FALSE) -> 32179 | U17: =VLOOKUP(Tab2_Rohdaten!$B35,Tab2_Rohdaten!$A$28:$GG$1800,10+U$9,FALSE) -> 32549 | V17: =VLOOKUP(Tab2_Rohdaten!$B35,Tab2_Rohdaten!$A$28:$GG$1800,10+V$9,FALSE) -> 32397 | W17: =VLOOKUP(Tab2_Rohdaten!$B35,Tab2_Rohdaten!$A$28:$GG$1800,10+W$9,FALSE) -> 32295 | X17: =VLOOKUP(Tab2_Rohdaten!$B35,Tab2_Rohdaten!$A$28:$GG$1800,10+X$9,FALSE) -> 32821 | Y17: =VLOOKUP(Tab2_Rohdaten!$B35,Tab2_Rohdaten!$A$28:$GG$1800,10+Y$9,FALSE) -> 33305 | Z17: =VLOOKUP(Tab2_Rohdaten!$B35,Tab2_Rohdaten!$A$28:$GG$1800,10+Z$9,FALSE) -> 33165 | AA17: =VLOOKUP(Tab2_Rohdaten!$B35,Tab2_Rohdaten!$A$28:$GG$1800,10+AA$9,FALSE) -> 32921 | AB17: =VLOOKUP(Tab2_Rohdaten!$B35,Tab2_Rohdaten!$A$28:$GG$1800,10+AB$9,FALSE) -> 33276 | AC17: =VLOOKUP(Tab2_Rohdaten!$B35,Tab2_Rohdaten!$A$28:$GG$1800,10+AC$9,FALSE) -> 33749 | AD17: =VLOOKUP(Tab2_Rohdaten!$B35,Tab2_Rohdaten!$A$28:$GG$1800,10+AD$9,FALSE) -> 33392 | AE17: =VLOOKUP(Tab2_Rohdaten!$B35,Tab2_Rohdaten!$A$28:$GG$1800,10+AE$9,FALSE) -> 33215 | AF17: =VLOOKUP(Tab2_Rohdaten!$B35,Tab2_Rohdaten!$A$28:$GG$1800,10+AF$9,FALSE) -> 33551 | AG17: =VLOOKUP(Tab2_Rohdaten!$B35,Tab2_Rohdaten!$A$28:$GG$1800,10+AG$9,FALSE) -> 33955 | AH17: =VLOOKUP(Tab2_Rohdaten!$B35,Tab2_Rohdaten!$A$28:$GG$1800,10+AH$9,FALSE) -> 33713 | AI17: =VLOOKUP(Tab2_Rohdaten!$B35,Tab2_Rohdaten!$A$28:$GG$1800,10+AI$9,FALSE) -> 33585 | AJ17: =VLOOKUP(Tab2_Rohdaten!$B35,Tab2_Rohdaten!$A$28:$GG$1800,10+AJ$9,FALSE) -> 33941 | AK17: =VLOOKUP(Tab2_Rohdaten!$B35,Tab2_Rohdaten!$A$28:$GG$1800,10+AK$9,FALSE) -> 34224 | AL17: =VLOOKUP(Tab2_Rohdaten!$B35,Tab2_Rohdaten!$A$28:$GG$1800,10+AL$9,FALSE) -> 33871 | AM17: =VLOOKUP(Tab2_Rohdaten!$B35,Tab2_Rohdaten!$A$28:$GG$1800,10+AM$9,FALSE) -> 34064 | AN17: =VLOOKUP(Tab2_Rohdaten!$B35,Tab2_Rohdaten!$A$28:$GG$1800,10+AN$9,FALSE) -> 34330 | AO17: =VLOOKUP(Tab2_Rohdaten!$B35,Tab2_Rohdaten!$A$28:$GG$1800,10+AO$9,FALSE) -> 34768 | AP17: =VLOOKUP(Tab2_Rohdaten!$B35,Tab2_Rohdaten!$A$28:$GG$1800,10+AP$9,FALSE) -> 34473 | AQ17: =VLOOKUP(Tab2_Rohdaten!$B35,Tab2_Rohdaten!$A$28:$GG$1800,10+AQ$9,FALSE) -> 34297 | AR17: =VLOOKUP(Tab2_Rohdaten!$B35,Tab2_Rohdaten!$A$28:$GG$1800,10+AR$9,FALSE) -> 34617 | AS17: =VLOOKUP(Tab2_Rohdaten!$B35,Tab2_Rohdaten!$A$28:$GG$1800,10+AS$9,FALSE) -> 35135 | AT17: =VLOOKUP(Tab2_Rohdaten!$B35,Tab2_Rohdaten!$A$28:$GG$1800,10+AT$9,FALSE) -> 34868 | AU17: =VLOOKUP(Tab2_Rohdaten!$B35,Tab2_Rohdaten!$A$28:$GG$1800,10+AU$9,FALSE) -> 34756 | AV17: =VLOOKUP(Tab2_Rohdaten!$B35,Tab2_Rohdaten!$A$28:$GG$1800,10+AV$9,FALSE) -> 35002 | AW17: =VLOOKUP(Tab2_Rohdaten!$B35,Tab2_Rohdaten!$A$28:$GG$1800,10+AW$9,FALSE) -> 35461 | AX17: =VLOOKUP(Tab2_Rohdaten!$B35,Tab2_Rohdaten!$A$28:$GG$1800,10+AX$9,FALSE) -> 35264 | AY17: =VLOOKUP(Tab2_Rohdaten!$B35,Tab2_Rohdaten!$A$28:$GG$1800,10+AY$9,FALSE) -> 35190 | AZ17: =VLOOKUP(Tab2_Rohdaten!$B35,Tab2_Rohdaten!$A$28:$GG$1800,10+AZ$9,FALSE) -> 35348 | BA17: =VLOOKUP(Tab2_Rohdaten!$B35,Tab2_Rohdaten!$A$28:$GG$1800,10+BA$9,FALSE) -> 35924 | BB17: =VLOOKUP(Tab2_Rohdaten!$B35,Tab2_Rohdaten!$A$28:$GG$1800,10+BB$9,FALSE) -> 35737 | BC17: =VLOOKUP(Tab2_Rohdaten!$B35,Tab2_Rohdaten!$A$28:$GG$1800,10+BC$9,FALSE) -> 35539 | BD17: =VLOOKUP(Tab2_Rohdaten!$B35,Tab2_Rohdaten!$A$28:$GG$1800,10+BD$9,FALSE) -> 35723 | BE17: =VLOOKUP(Tab2_Rohdaten!$B35,Tab2_Rohdaten!$A$28:$GG$1800,10+BE$9,FALSE) -> 36356 | BF17: =VLOOKUP(Tab2_Rohdaten!$B35,Tab2_Rohdaten!$A$28:$GG$1800,10+BF$9,FALSE) -> 36053 | BG17: =VLOOKUP(Tab2_Rohdaten!$B35,Tab2_Rohdaten!$A$28:$GG$1800,10+BG$9,FALSE) -> 35821 | BH17: =VLOOKUP(Tab2_Rohdaten!$B35,Tab2_Rohdaten!$A$28:$GG$1800,10+BH$9,FALSE) -> 35324 | BI17: =VLOOKUP(Tab2_Rohdaten!$B35,Tab2_Rohdaten!$A$28:$GG$1800,10+BI$9,FALSE) -> 36067 | BJ17: =VLOOKUP(Tab2_Rohdaten!$B35,Tab2_Rohdaten!$A$28:$GG$1800,10+BJ$9,FALSE) -> 35937 | BK17: =VLOOKUP(Tab2_Rohdaten!$B35,Tab2_Rohdaten!$A$28:$GG$1800,10+BK$9,FALSE) -> 35665 | BL17: =VLOOKUP(Tab2_Rohdaten!$B35,Tab2_Rohdaten!$A$28:$GG$1800,10+BL$9,FALSE) -> 35831 | BM17: =VLOOKUP(Tab2_Rohdaten!$B35,Tab2_Rohdaten!$A$28:$GG$1800,10+BM$9,FALSE) -> 36379 | BN17: =VLOOKUP(Tab2_Rohdaten!$B35,Tab2_Rohdaten!$A$28:$GG$1800,10+BN$9,FALSE) -> 36287 | BO17: =VLOOKUP(Tab2_Rohdaten!$B35,Tab2_Rohdaten!$A$28:$GG$1800,10+BO$9,FALSE) -> 36279
A18: =VLOOKUP(Tab2_Rohdaten!$B36,Tab2_Rohdaten!$A$28:$GG$1800,9,FALSE) -> JC Nordwestmecklenburg | B18: =VLOOKUP(Tab2_Rohdaten!$B36,Tab2_Rohdaten!$A$28:$GG$1800,10,FALSE) -> 03304 | C18: =VLOOKUP(Tab2_Rohdaten!$B36,Tab2_Rohdaten!$A$28:$GG$1800,10+C$9,FALSE) -> 56427 | D18: =VLOOKUP(Tab2_Rohdaten!$B36,Tab2_Rohdaten!$A$28:$GG$1800,10+D$9,FALSE) -> 58614 | E18: =VLOOKUP(Tab2_Rohdaten!$B36,Tab2_Rohdaten!$A$28:$GG$1800,10+E$9,FALSE) -> 59519 | F18: =VLOOKUP(Tab2_Rohdaten!$B36,Tab2_Rohdaten!$A$28:$GG$1800,10+F$9,FALSE) -> 58685 | G18: =VLOOKUP(Tab2_Rohdaten!$B36,Tab2_Rohdaten!$A$28:$GG$1800,10+G$9,FALSE) -> 58480 | H18: =VLOOKUP(Tab2_Rohdaten!$B36,Tab2_Rohdaten!$A$28:$GG$1800,10+H$9,FALSE) -> 59805 | I18: =VLOOKUP(Tab2_Rohdaten!$B36,Tab2_Rohdaten!$A$28:$GG$1800,10+I$9,FALSE) -> 60936 | J18: =VLOOKUP(Tab2_Rohdaten!$B36,Tab2_Rohdaten!$A$28:$GG$1800,10+J$9,FALSE) -> 59811 | K18: =VLOOKUP(Tab2_Rohdaten!$B36,Tab2_Rohdaten!$A$28:$GG$1800,10+K$9,FALSE) -> 59449 | L18: =VLOOKUP(Tab2_Rohdaten!$B36,Tab2_Rohdaten!$A$28:$GG$1800,10+L$9,FALSE) -> 60550 | M18: =VLOOKUP(Tab2_Rohdaten!$B36,Tab2_Rohdaten!$A$28:$GG$1800,10+M$9,FALSE) -> 61088 | N18: =VLOOKUP(Tab2_Rohdaten!$B36,Tab2_Rohdaten!$A$28:$GG$1800,10+N$9,FALSE) -> 59513 | O18: =VLOOKUP(Tab2_Rohdaten!$B36,Tab2_Rohdaten!$A$28:$GG$1800,10+O$9,FALSE) -> 58676 | P18: =VLOOKUP(Tab2_Rohdaten!$B36,Tab2_Rohdaten!$A$28:$GG$1800,10+P$9,FALSE) -> 59932 | Q18: =VLOOKUP(Tab2_Rohdaten!$B36,Tab2_Rohdaten!$A$28:$GG$1800,10+Q$9,FALSE) -> 60758 | R18: =VLOOKUP(Tab2_Rohdaten!$B36,Tab2_Rohdaten!$A$28:$GG$1800,10+R$9,FALSE) -> 59199 | S18: =VLOOKUP(Tab2_Rohdaten!$B36,Tab2_Rohdaten!$A$28:$GG$1800,10+S$9,FALSE) -> 58706 | T18: =VLOOKUP(Tab2_Rohdaten!$B36,Tab2_Rohdaten!$A$28:$GG$1800,10+T$9,FALSE) -> 60267 | U18: =VLOOKUP(Tab2_Rohdaten!$B36,Tab2_Rohdaten!$A$28:$GG$1800,10+U$9,FALSE) -> 60676 | V18: =VLOOKUP(Tab2_Rohdaten!$B36,Tab2_Rohdaten!$A$28:$GG$1800,10+V$9,FALSE) -> 58821 | W18: =VLOOKUP(Tab2_Rohdaten!$B36,Tab2_Rohdaten!$A$28:$GG$1800,10+W$9,FALSE) -> 58540 | X18: =VLOOKUP(Tab2_Rohdaten!$B36,Tab2_Rohdaten!$A$28:$GG$1800,10+X$9,FALSE) -> 60015 | Y18: =VLOOKUP(Tab2_Rohdaten!$B36,Tab2_Rohdaten!$A$28:$GG$1800,10+Y$9,FALSE) -> 60538 | Z18: =VLOOKUP(Tab2_Rohdaten!$B36,Tab2_Rohdaten!$A$28:$GG$1800,10+Z$9,FALSE) -> 58984 | AA18: =VLOOKUP(Tab2_Rohdaten!$B36,Tab2_Rohdaten!$A$28:$GG$1800,10+AA$9,FALSE) -> 58816 | AB18: =VLOOKUP(Tab2_Rohdaten!$B36,Tab2_Rohdaten!$A$28:$GG$1800,10+AB$9,FALSE) -> 60203 | AC18: =VLOOKUP(Tab2_Rohdaten!$B36,Tab2_Rohdaten!$A$28:$GG$1800,10+AC$9,FALSE) -> 60874 | AD18: =VLOOKUP(Tab2_Rohdaten!$B36,Tab2_Rohdaten!$A$28:$GG$1800,10+AD$9,FALSE) -> 59551 | AE18: =VLOOKUP(Tab2_Rohdaten!$B36,Tab2_Rohdaten!$A$28:$GG$1800,10+AE$9,FALSE) -> 59115 | AF18: =VLOOKUP(Tab2_Rohdaten!$B36,Tab2_Rohdaten!$A$28:$GG$1800,10+AF$9,FALSE) -> 60378 | AG18: =VLOOKUP(Tab2_Rohdaten!$B36,Tab2_Rohdaten!$A$28:$GG$1800,10+AG$9,FALSE) -> 61146 | AH18: =VLOOKUP(Tab2_Rohdaten!$B36,Tab2_Rohdaten!$A$28:$GG$1800,10+AH$9,FALSE) -> 59667 | AI18: =VLOOKUP(Tab2_Rohdaten!$B36,Tab2_Rohdaten!$A$28:$GG$1800,10+AI$9,FALSE) -> 59615 | AJ18: =VLOOKUP(Tab2_Rohdaten!$B36,Tab2_Rohdaten!$A$28:$GG$1800,10+AJ$9,FALSE) -> 60818 | AK18: =VLOOKUP(Tab2_Rohdaten!$B36,Tab2_Rohdaten!$A$28:$GG$1800,10+AK$9,FALSE) -> 61424 | AL18: =VLOOKUP(Tab2_Rohdaten!$B36,Tab2_Rohdaten!$A$28:$GG$1800,10+AL$9,FALSE) -> 60233 | AM18: =VLOOKUP(Tab2_Rohdaten!$B36,Tab2_Rohdaten!$A$28:$GG$1800,10+AM$9,FALSE) -> 60525 | AN18: =VLOOKUP(Tab2_Rohdaten!$B36,Tab2_Rohdaten!$A$28:$GG$1800,10+AN$9,FALSE) -> 61435 | AO18: =VLOOKUP(Tab2_Rohdaten!$B36,Tab2_Rohdaten!$A$28:$GG$1800,10+AO$9,FALSE) -> 62146 | AP18: =VLOOKUP(Tab2_Rohdaten!$B36,Tab2_Rohdaten!$A$28:$GG$1800,10+AP$9,FALSE) -> 60828 | AQ18: =VLOOKUP(Tab2_Rohdaten!$B36,Tab2_Rohdaten!$A$28:$GG$1800,10+AQ$9,FALSE) -> 60657 | AR18: =VLOOKUP(Tab2_Rohdaten!$B36,Tab2_Rohdaten!$A$28:$GG$1800,10+AR$9,FALSE) -> 61624 | AS18: =VLOOKUP(Tab2_Rohdaten!$B36,Tab2_Rohdaten!$A$28:$GG$1800,10+AS$9,FALSE) -> 62527 | AT18: =VLOOKUP(Tab2_Rohdaten!$B36,Tab2_Rohdaten!$A$28:$GG$1800,10+AT$9,FALSE) -> 61524 | AU18: =VLOOKUP(Tab2_Rohdaten!$B36,Tab2_Rohdaten!$A$28:$GG$1800,10+AU$9,FALSE) -> 61379 | AV18: =VLOOKUP(Tab2_Rohdaten!$B36,Tab2_Rohdaten!$A$28:$GG$1800,10+AV$9,FALSE) -> 62416 | AW18: =VLOOKUP(Tab2_Rohdaten!$B36,Tab2_Rohdaten!$A$28:$GG$1800,10+AW$9,FALSE) -> 63239 | AX18: =VLOOKUP(Tab2_Rohdaten!$B36,Tab2_Rohdaten!$A$28:$GG$1800,10+AX$9,FALSE) -> 62428 | AY18: =VLOOKUP(Tab2_Rohdaten!$B36,Tab2_Rohdaten!$A$28:$GG$1800,10+AY$9,FALSE) -> 62195 | AZ18: =VLOOKUP(Tab2_Rohdaten!$B36,Tab2_Rohdaten!$A$28:$GG$1800,10+AZ$9,FALSE) -> 62940 | BA18: =VLOOKUP(Tab2_Rohdaten!$B36,Tab2_Rohdaten!$A$28:$GG$1800,10+BA$9,FALSE) -> 63714 | BB18: =VLOOKUP(Tab2_Rohdaten!$B36,Tab2_Rohdaten!$A$28:$GG$1800,10+BB$9,FALSE) -> 62920 | BC18: =VLOOKUP(Tab2_Rohdaten!$B36,Tab2_Rohdaten!$A$28:$GG$1800,10+BC$9,FALSE) -> 62832 | BD18: =VLOOKUP(Tab2_Rohdaten!$B36,Tab2_Rohdaten!$A$28:$GG$1800,10+BD$9,FALSE) -> 63363 | BE18: =VLOOKUP(Tab2_Rohdaten!$B36,Tab2_Rohdaten!$A$28:$GG$1800,10+BE$9,FALSE) -> 64247 | BF18: =VLOOKUP(Tab2_Rohdaten!$B36,Tab2_Rohdaten!$A$28:$GG$1800,10+BF$9,FALSE) -> 63461 | BG18: =VLOOKUP(Tab2_Rohdaten!$B36,Tab2_Rohdaten!$A$28:$GG$1800,10+BG$9,FALSE) -> 63295 | BH18: =VLOOKUP(Tab2_Rohdaten!$B36,Tab2_Rohdaten!$A$28:$GG$1800,10+BH$9,FALSE) -> 63070 | BI18: =VLOOKUP(Tab2_Rohdaten!$B36,Tab2_Rohdaten!$A$28:$GG$1800,10+BI$9,FALSE) -> 63909 | BJ18: =VLOOKUP(Tab2_Rohdaten!$B36,Tab2_Rohdaten!$A$28:$GG$1800,10+BJ$9,FALSE) -> 63217 | BK18: =VLOOKUP(Tab2_Rohdaten!$B36,Tab2_Rohdaten!$A$28:$GG$1800,10+BK$9,FALSE) -> 62813 | BL18: =VLOOKUP(Tab2_Rohdaten!$B36,Tab2_Rohdaten!$A$28:$GG$1800,10+BL$9,FALSE) -> 63191 | BM18: =VLOOKUP(Tab2_Rohdaten!$B36,Tab2_Rohdaten!$A$28:$GG$1800,10+BM$9,FALSE) -> 64252 | BN18: =VLOOKUP(Tab2_Rohdaten!$B36,Tab2_Rohdaten!$A$28:$GG$1800,10+BN$9,FALSE) -> 63692 | BO18: =VLOOKUP(Tab2_Rohdaten!$B36,Tab2_Rohdaten!$A$28:$GG$1800,10+BO$9,FALSE) -> 63532
A19: =VLOOKUP(Tab2_Rohdaten!$B37,Tab2_Rohdaten!$A$28:$GG$1800,9,FALSE) -> JC Ludwigslust-Parchim | B19: =VLOOKUP(Tab2_Rohdaten!$B37,Tab2_Rohdaten!$A$28:$GG$1800,10,FALSE) -> 03324 | C19: =VLOOKUP(Tab2_Rohdaten!$B37,Tab2_Rohdaten!$A$28:$GG$1800,10+C$9,FALSE) -> 81797 | D19: =VLOOKUP(Tab2_Rohdaten!$B37,Tab2_Rohdaten!$A$28:$GG$1800,10+D$9,FALSE) -> 84436 | E19: =VLOOKUP(Tab2_Rohdaten!$B37,Tab2_Rohdaten!$A$28:$GG$1800,10+E$9,FALSE) -> 85911 | F19: =VLOOKUP(Tab2_Rohdaten!$B37,Tab2_Rohdaten!$A$28:$GG$1800,10+F$9,FALSE) -> 85557 | G19: =VLOOKUP(Tab2_Rohdaten!$B37,Tab2_Rohdaten!$A$28:$GG$1800,10+G$9,FALSE) -> 84437 | H19: =VLOOKUP(Tab2_Rohdaten!$B37,Tab2_Rohdaten!$A$28:$GG$1800,10+H$9,FALSE) -> 85799 | I19: =VLOOKUP(Tab2_Rohdaten!$B37,Tab2_Rohdaten!$A$28:$GG$1800,10+I$9,FALSE) -> 87461 | J19: =VLOOKUP(Tab2_Rohdaten!$B37,Tab2_Rohdaten!$A$28:$GG$1800,10+J$9,FALSE) -> 86614 | K19: =VLOOKUP(Tab2_Rohdaten!$B37,Tab2_Rohdaten!$A$28:$GG$1800,10+K$9,FALSE) -> 86114 | L19: =VLOOKUP(Tab2_Rohdaten!$B37,Tab2_Rohdaten!$A$28:$GG$1800,10+L$9,FALSE) -> 87005 | M19: =VLOOKUP(Tab2_Rohdaten!$B37,Tab2_Rohdaten!$A$28:$GG$1800,10+M$9,FALSE) -> 88377 | N19: =VLOOKUP(Tab2_Rohdaten!$B37,Tab2_Rohdaten!$A$28:$GG$1800,10+N$9,FALSE) -> 86901 | O19: =VLOOKUP(Tab2_Rohdaten!$B37,Tab2_Rohdaten!$A$28:$GG$1800,10+O$9,FALSE) -> 85696 | P19: =VLOOKUP(Tab2_Rohdaten!$B37,Tab2_Rohdaten!$A$28:$GG$1800,10+P$9,FALSE) -> 86339 | Q19: =VLOOKUP(Tab2_Rohdaten!$B37,Tab2_Rohdaten!$A$28:$GG$1800,10+Q$9,FALSE) -> 86930 | R19: =VLOOKUP(Tab2_Rohdaten!$B37,Tab2_Rohdaten!$A$28:$GG$1800,10+R$9,FALSE) -> 85588 | S19: =VLOOKUP(Tab2_Rohdaten!$B37,Tab2_Rohdaten!$A$28:$GG$1800,10+S$9,FALSE) -> 84523 | T19: =VLOOKUP(Tab2_Rohdaten!$B37,Tab2_Rohdaten!$A$28:$GG$1800,10+T$9,FALSE) -> 86088 | U19: =VLOOKUP(Tab2_Rohdaten!$B37,Tab2_Rohdaten!$A$28:$GG$1800,10+U$9,FALSE) -> 87119 | V19: =VLOOKUP(Tab2_Rohdaten!$B37,Tab2_Rohdaten!$A$28:$GG$1800,10+V$9,FALSE) -> 85378 | W19: =VLOOKUP(Tab2_Rohdaten!$B37,Tab2_Rohdaten!$A$28:$GG$1800,10+W$9,FALSE) -> 85134 | X19: =VLOOKUP(Tab2_Rohdaten!$B37,Tab2_Rohdaten!$A$28:$GG$1800,10+X$9,FALSE) -> 86212 | Y19: =VLOOKUP(Tab2_Rohdaten!$B37,Tab2_Rohdaten!$A$28:$GG$1800,10+Y$9,FALSE) -> 87036 | Z19: =VLOOKUP(Tab2_Rohdaten!$B37,Tab2_Rohdaten!$A$28:$GG$1800,10+Z$9,FALSE) -> 85727 | AA19: =VLOOKUP(Tab2_Rohdaten!$B37,Tab2_Rohdaten!$A$28:$GG$1800,10+AA$9,FALSE) -> 84843 | AB19: =VLOOKUP(Tab2_Rohdaten!$B37,Tab2_Rohdaten!$A$28:$GG$1800,10+AB$9,FALSE) -> 85687 | AC19: =VLOOKUP(Tab2_Rohdaten!$B37,Tab2_Rohdaten!$A$28:$GG$1800,10+AC$9,FALSE) -> 86382 | AD19: =VLOOKUP(Tab2_Rohdaten!$B37,Tab2_Rohdaten!$A$28:$GG$1800,10+AD$9,FALSE) -> 85132 | AE19: =VLOOKUP(Tab2_Rohdaten!$B37,Tab2_Rohdaten!$A$28:$GG$1800,10+AE$9,FALSE) -> 84536 | AF19: =VLOOKUP(Tab2_Rohdaten!$B37,Tab2_Rohdaten!$A$28:$GG$1800,10+AF$9,FALSE) -> 85426 | AG19: =VLOOKUP(Tab2_Rohdaten!$B37,Tab2_Rohdaten!$A$28:$GG$1800,10+AG$9,FALSE) -> 86419 | AH19: =VLOOKUP(Tab2_Rohdaten!$B37,Tab2_Rohdaten!$A$28:$GG$1800,10+AH$9,FALSE) -> 84963 | AI19: =VLOOKUP(Tab2_Rohdaten!$B37,Tab2_Rohdaten!$A$28:$GG$1800,10+AI$9,FALSE) -> 84714 | AJ19: =VLOOKUP(Tab2_Rohdaten!$B37,Tab2_Rohdaten!$A$28:$GG$1800,10+AJ$9,FALSE) -> 85885 | AK19: =VLOOKUP(Tab2_Rohdaten!$B37,Tab2_Rohdaten!$A$28:$GG$1800,10+AK$9,FALSE) -> 86838 | AL19: =VLOOKUP(Tab2_Rohdaten!$B37,Tab2_Rohdaten!$A$28:$GG$1800,10+AL$9,FALSE) -> 85480 | AM19: =VLOOKUP(Tab2_Rohdaten!$B37,Tab2_Rohdaten!$A$28:$GG$1800,10+AM$9,FALSE) -> 85985 | AN19: =VLOOKUP(Tab2_Rohdaten!$B37,Tab2_Rohdaten!$A$28:$GG$1800,10+AN$9,FALSE) -> 86845 | AO19: =VLOOKUP(Tab2_Rohdaten!$B37,Tab2_Rohdaten!$A$28:$GG$1800,10+AO$9,FALSE) -> 87854 | AP19: =VLOOKUP(Tab2_Rohdaten!$B37,Tab2_Rohdaten!$A$28:$GG$1800,10+AP$9,FALSE) -> 86667 | AQ19: =VLOOKUP(Tab2_Rohdaten!$B37,Tab2_Rohdaten!$A$28:$GG$1800,10+AQ$9,FALSE) -> 86733 | AR19: =VLOOKUP(Tab2_Rohdaten!$B37,Tab2_Rohdaten!$A$28:$GG$1800,10+AR$9,FALSE) -> 87296 | AS19: =VLOOKUP(Tab2_Rohdaten!$B37,Tab2_Rohdaten!$A$28:$GG$1800,10+AS$9,FALSE) -> 88394 | AT19: =VLOOKUP(Tab2_Rohdaten!$B37,Tab2_Rohdaten!$A$28:$GG$1800,10+AT$9,FALSE) -> 87339 | AU19: =VLOOKUP(Tab2_Rohdaten!$B37,Tab2_Rohdaten!$A$28:$GG$1800,10+AU$9,FALSE) -> 87170 | AV19: =VLOOKUP(Tab2_Rohdaten!$B37,Tab2_Rohdaten!$A$28:$GG$1800,10+AV$9,FALSE) -> 87911 | AW19: =VLOOKUP(Tab2_Rohdaten!$B37,Tab2_Rohdaten!$A$28:$GG$1800,10+AW$9,FALSE) -> 89225 | AX19: =VLOOKUP(Tab2_Rohdaten!$B37,Tab2_Rohdaten!$A$28:$GG$1800,10+AX$9,FALSE) -> 88115 | AY19: =VLOOKUP(Tab2_Rohdaten!$B37,Tab2_Rohdaten!$A$28:$GG$1800,10+AY$9,FALSE) -> 87930 | AZ19: =VLOOKUP(Tab2_Rohdaten!$B37,Tab2_Rohdaten!$A$28:$GG$1800,10+AZ$9,FALSE) -> 88478 | BA19: =VLOOKUP(Tab2_Rohdaten!$B37,Tab2_Rohdaten!$A$28:$GG$1800,10+BA$9,FALSE) -> 89504 | BB19: =VLOOKUP(Tab2_Rohdaten!$B37,Tab2_Rohdaten!$A$28:$GG$1800,10+BB$9,FALSE) -> 88486 | BC19: =VLOOKUP(Tab2_Rohdaten!$B37,Tab2_Rohdaten!$A$28:$GG$1800,10+BC$9,FALSE) -> 88106 | BD19: =VLOOKUP(Tab2_Rohdaten!$B37,Tab2_Rohdaten!$A$28:$GG$1800,10+BD$9,FALSE) -> 88315 | BE19: =VLOOKUP(Tab2_Rohdaten!$B37,Tab2_Rohdaten!$A$28:$GG$1800,10+BE$9,FALSE) -> 89482 | BF19: =VLOOKUP(Tab2_Rohdaten!$B37,Tab2_Rohdaten!$A$28:$GG$1800,10+BF$9,FALSE) -> 88373 | BG19: =VLOOKUP(Tab2_Rohdaten!$B37,Tab2_Rohdaten!$A$28:$GG$1800,10+BG$9,FALSE) -> 88009 | BH19: =VLOOKUP(Tab2_Rohdaten!$B37,Tab2_Rohdaten!$A$28:$GG$1800,10+BH$9,FALSE) -> 87373 | BI19: =VLOOKUP(Tab2_Rohdaten!$B37,Tab2_Rohdaten!$A$28:$GG$1800,10+BI$9,FALSE) -> 88426 | BJ19: =VLOOKUP(Tab2_Rohdaten!$B37,Tab2_Rohdaten!$A$28:$GG$1800,10+BJ$9,FALSE) -> 87748 | BK19: =VLOOKUP(Tab2_Rohdaten!$B37,Tab2_Rohdaten!$A$28:$GG$1800,10+BK$9,FALSE) -> 87044 | BL19: =VLOOKUP(Tab2_Rohdaten!$B37,Tab2_Rohdaten!$A$28:$GG$1800,10+BL$9,FALSE) -> 87332 | BM19: =VLOOKUP(Tab2_Rohdaten!$B37,Tab2_Rohdaten!$A$28:$GG$1800,10+BM$9,FALSE) -> 88761 | BN19: =VLOOKUP(Tab2_Rohdaten!$B37,Tab2_Rohdaten!$A$28:$GG$1800,10+BN$9,FALSE) -> 87969 | BO19: =VLOOKUP(Tab2_Rohdaten!$B37,Tab2_Rohdaten!$A$28:$GG$1800,10+BO$9,FALSE) -> 87707
A20: =VLOOKUP(Tab2_Rohdaten!$B38,Tab2_Rohdaten!$A$28:$GG$1800,9,FALSE) -> JC Vorpommern-Rügen | B20: =VLOOKUP(Tab2_Rohdaten!$B38,Tab2_Rohdaten!$A$28:$GG$1800,10,FALSE) -> 03444 | C20: =VLOOKUP(Tab2_Rohdaten!$B38,Tab2_Rohdaten!$A$28:$GG$1800,10+C$9,FALSE) -> 70858 | D20: =VLOOKUP(Tab2_Rohdaten!$B38,Tab2_Rohdaten!$A$28:$GG$1800,10+D$9,FALSE) -> 76431 | E20: =VLOOKUP(Tab2_Rohdaten!$B38,Tab2_Rohdaten!$A$28:$GG$1800,10+E$9,FALSE) -> 77400 | F20: =VLOOKUP(Tab2_Rohdaten!$B38,Tab2_Rohdaten!$A$28:$GG$1800,10+F$9,FALSE) -> 73776 | G20: =VLOOKUP(Tab2_Rohdaten!$B38,Tab2_Rohdaten!$A$28:$GG$1800,10+G$9,FALSE) -> 73509 | H20: =VLOOKUP(Tab2_Rohdaten!$B38,Tab2_Rohdaten!$A$28:$GG$1800,10+H$9,FALSE) -> 78227 | I20: =VLOOKUP(Tab2_Rohdaten!$B38,Tab2_Rohdaten!$A$28:$GG$1800,10+I$9,FALSE) -> 79659 | J20: =VLOOKUP(Tab2_Rohdaten!$B38,Tab2_Rohdaten!$A$28:$GG$1800,10+J$9,FALSE) -> 75246 | K20: =VLOOKUP(Tab2_Rohdaten!$B38,Tab2_Rohdaten!$A$28:$GG$1800,10+K$9,FALSE) -> 75512 | L20: =VLOOKUP(Tab2_Rohdaten!$B38,Tab2_Rohdaten!$A$28:$GG$1800,10+L$9,FALSE) -> 80290 | M20: =VLOOKUP(Tab2_Rohdaten!$B38,Tab2_Rohdaten!$A$28:$GG$1800,10+M$9,FALSE) -> 81475 | N20: =VLOOKUP(Tab2_Rohdaten!$B38,Tab2_Rohdaten!$A$28:$GG$1800,10+N$9,FALSE) -> 76860 | O20: =VLOOKUP(Tab2_Rohdaten!$B38,Tab2_Rohdaten!$A$28:$GG$1800,10+O$9,FALSE) -> 76029 | P20: =VLOOKUP(Tab2_Rohdaten!$B38,Tab2_Rohdaten!$A$28:$GG$1800,10+P$9,FALSE) -> 80749 | Q20: =VLOOKUP(Tab2_Rohdaten!$B38,Tab2_Rohdaten!$A$28:$GG$1800,10+Q$9,FALSE) -> 81738 | R20: =VLOOKUP(Tab2_Rohdaten!$B38,Tab2_Rohdaten!$A$28:$GG$1800,10+R$9,FALSE) -> 76798 | S20: =VLOOKUP(Tab2_Rohdaten!$B38,Tab2_Rohdaten!$A$28:$GG$1800,10+S$9,FALSE) -> 75716 | T20: =VLOOKUP(Tab2_Rohdaten!$B38,Tab2_Rohdaten!$A$28:$GG$1800,10+T$9,FALSE) -> 81222 | U20: =VLOOKUP(Tab2_Rohdaten!$B38,Tab2_Rohdaten!$A$28:$GG$1800,10+U$9,FALSE) -> 81705 | V20: =VLOOKUP(Tab2_Rohdaten!$B38,Tab2_Rohdaten!$A$28:$GG$1800,10+V$9,FALSE) -> 76516 | W20: =VLOOKUP(Tab2_Rohdaten!$B38,Tab2_Rohdaten!$A$28:$GG$1800,10+W$9,FALSE) -> 76041 | X20: =VLOOKUP(Tab2_Rohdaten!$B38,Tab2_Rohdaten!$A$28:$GG$1800,10+X$9,FALSE) -> 81522 | Y20: =VLOOKUP(Tab2_Rohdaten!$B38,Tab2_Rohdaten!$A$28:$GG$1800,10+Y$9,FALSE) -> 82114 | Z20: =VLOOKUP(Tab2_Rohdaten!$B38,Tab2_Rohdaten!$A$28:$GG$1800,10+Z$9,FALSE) -> 77093 | AA20: =VLOOKUP(Tab2_Rohdaten!$B38,Tab2_Rohdaten!$A$28:$GG$1800,10+AA$9,FALSE) -> 76954 | AB20: =VLOOKUP(Tab2_Rohdaten!$B38,Tab2_Rohdaten!$A$28:$GG$1800,10+AB$9,FALSE) -> 81700 | AC20: =VLOOKUP(Tab2_Rohdaten!$B38,Tab2_Rohdaten!$A$28:$GG$1800,10+AC$9,FALSE) -> 82217 | AD20: =VLOOKUP(Tab2_Rohdaten!$B38,Tab2_Rohdaten!$A$28:$GG$1800,10+AD$9,FALSE) -> 76586 | AE20: =VLOOKUP(Tab2_Rohdaten!$B38,Tab2_Rohdaten!$A$28:$GG$1800,10+AE$9,FALSE) -> 76253 | AF20: =VLOOKUP(Tab2_Rohdaten!$B38,Tab2_Rohdaten!$A$28:$GG$1800,10+AF$9,FALSE) -> 80811 | AG20: =VLOOKUP(Tab2_Rohdaten!$B38,Tab2_Rohdaten!$A$28:$GG$1800,10+AG$9,FALSE) -> 82022 | AH20: =VLOOKUP(Tab2_Rohdaten!$B38,Tab2_Rohdaten!$A$28:$GG$1800,10+AH$9,FALSE) -> 76527 | AI20: =VLOOKUP(Tab2_Rohdaten!$B38,Tab2_Rohdaten!$A$28:$GG$1800,10+AI$9,FALSE) -> 76295 | AJ20: =VLOOKUP(Tab2_Rohdaten!$B38,Tab2_Rohdaten!$A$28:$GG$1800,10+AJ$9,FALSE) -> 80828 | AK20: =VLOOKUP(Tab2_Rohdaten!$B38,Tab2_Rohdaten!$A$28:$GG$1800,10+AK$9,FALSE) -> 81583 | AL20: =VLOOKUP(Tab2_Rohdaten!$B38,Tab2_Rohdaten!$A$28:$GG$1800,10+AL$9,FALSE) -> 76674 | AM20: =VLOOKUP(Tab2_Rohdaten!$B38,Tab2_Rohdaten!$A$28:$GG$1800,10+AM$9,FALSE) -> 77493 | AN20: =VLOOKUP(Tab2_Rohdaten!$B38,Tab2_Rohdaten!$A$28:$GG$1800,10+AN$9,FALSE) -> 81567 | AO20: =VLOOKUP(Tab2_Rohdaten!$B38,Tab2_Rohdaten!$A$28:$GG$1800,10+AO$9,FALSE) -> 82626 | AP20: =VLOOKUP(Tab2_Rohdaten!$B38,Tab2_Rohdaten!$A$28:$GG$1800,10+AP$9,FALSE) -> 78234 | AQ20: =VLOOKUP(Tab2_Rohdaten!$B38,Tab2_Rohdaten!$A$28:$GG$1800,10+AQ$9,FALSE) -> 78961 | AR20: =VLOOKUP(Tab2_Rohdaten!$B38,Tab2_Rohdaten!$A$28:$GG$1800,10+AR$9,FALSE) -> 82423 | AS20: =VLOOKUP(Tab2_Rohdaten!$B38,Tab2_Rohdaten!$A$28:$GG$1800,10+AS$9,FALSE) -> 83428 | AT20: =VLOOKUP(Tab2_Rohdaten!$B38,Tab2_Rohdaten!$A$28:$GG$1800,10+AT$9,FALSE) -> 79190 | AU20: =VLOOKUP(Tab2_Rohdaten!$B38,Tab2_Rohdaten!$A$28:$GG$1800,10+AU$9,FALSE) -> 79362 | AV20: =VLOOKUP(Tab2_Rohdaten!$B38,Tab2_Rohdaten!$A$28:$GG$1800,10+AV$9,FALSE) -> 83189 | AW20: =VLOOKUP(Tab2_Rohdaten!$B38,Tab2_Rohdaten!$A$28:$GG$1800,10+AW$9,FALSE) -> 84446 | AX20: =VLOOKUP(Tab2_Rohdaten!$B38,Tab2_Rohdaten!$A$28:$GG$1800,10+AX$9,FALSE) -> 80563 | AY20: =VLOOKUP(Tab2_Rohdaten!$B38,Tab2_Rohdaten!$A$28:$GG$1800,10+AY$9,FALSE) -> 81177 | AZ20: =VLOOKUP(Tab2_Rohdaten!$B38,Tab2_Rohdaten!$A$28:$GG$1800,10+AZ$9,FALSE) -> 84060 | BA20: =VLOOKUP(Tab2_Rohdaten!$B38,Tab2_Rohdaten!$A$28:$GG$1800,10+BA$9,FALSE) -> 85191 | BB20: =VLOOKUP(Tab2_Rohdaten!$B38,Tab2_Rohdaten!$A$28:$GG$1800,10+BB$9,FALSE) -> 81607 | BC20: =VLOOKUP(Tab2_Rohdaten!$B38,Tab2_Rohdaten!$A$28:$GG$1800,10+BC$9,FALSE) -> 81578 | BD20: =VLOOKUP(Tab2_Rohdaten!$B38,Tab2_Rohdaten!$A$28:$GG$1800,10+BD$9,FALSE) -> 84562 | BE20: =VLOOKUP(Tab2_Rohdaten!$B38,Tab2_Rohdaten!$A$28:$GG$1800,10+BE$9,FALSE) -> 85712 | BF20: =VLOOKUP(Tab2_Rohdaten!$B38,Tab2_Rohdaten!$A$28:$GG$1800,10+BF$9,FALSE) -> 82382 | BG20: =VLOOKUP(Tab2_Rohdaten!$B38,Tab2_Rohdaten!$A$28:$GG$1800,10+BG$9,FALSE) -> 82175 | BH20: =VLOOKUP(Tab2_Rohdaten!$B38,Tab2_Rohdaten!$A$28:$GG$1800,10+BH$9,FALSE) -> 83427 | BI20: =VLOOKUP(Tab2_Rohdaten!$B38,Tab2_Rohdaten!$A$28:$GG$1800,10+BI$9,FALSE) -> 85041 | BJ20: =VLOOKUP(Tab2_Rohdaten!$B38,Tab2_Rohdaten!$A$28:$GG$1800,10+BJ$9,FALSE) -> 82379 | BK20: =VLOOKUP(Tab2_Rohdaten!$B38,Tab2_Rohdaten!$A$28:$GG$1800,10+BK$9,FALSE) -> 81516 | BL20: =VLOOKUP(Tab2_Rohdaten!$B38,Tab2_Rohdaten!$A$28:$GG$1800,10+BL$9,FALSE) -> 84220 | BM20: =VLOOKUP(Tab2_Rohdaten!$B38,Tab2_Rohdaten!$A$28:$GG$1800,10+BM$9,FALSE) -> 85936 | BN20: =VLOOKUP(Tab2_Rohdaten!$B38,Tab2_Rohdaten!$A$28:$GG$1800,10+BN$9,FALSE) -> 83603 | BO20: =VLOOKUP(Tab2_Rohdaten!$B38,Tab2_Rohdaten!$A$28:$GG$1800,10+BO$9,FALSE) -> 83272
A21: =VLOOKUP(Tab2_Rohdaten!$B39,Tab2_Rohdaten!$A$28:$GG$1800,9,FALSE) -> JC Cottbus, Stadt | B21: =VLOOKUP(Tab2_Rohdaten!$B39,Tab2_Rohdaten!$A$28:$GG$1800,10,FALSE) -> 03502 | C21: =VLOOKUP(Tab2_Rohdaten!$B39,Tab2_Rohdaten!$A$28:$GG$1800,10+C$9,FALSE) -> 33538 | D21: =VLOOKUP(Tab2_Rohdaten!$B39,Tab2_Rohdaten!$A$28:$GG$1800,10+D$9,FALSE) -> 33596 | E21: =VLOOKUP(Tab2_Rohdaten!$B39,Tab2_Rohdaten!$A$28:$GG$1800,10+E$9,FALSE) -> 33971 | F21: =VLOOKUP(Tab2_Rohdaten!$B39,Tab2_Rohdaten!$A$28:$GG$1800,10+F$9,FALSE) -> 33872 | G21: =VLOOKUP(Tab2_Rohdaten!$B39,Tab2_Rohdaten!$A$28:$GG$1800,10+G$9,FALSE) -> 33276 | H21: =VLOOKUP(Tab2_Rohdaten!$B39,Tab2_Rohdaten!$A$28:$GG$1800,10+H$9,FALSE) -> 33684 | I21: =VLOOKUP(Tab2_Rohdaten!$B39,Tab2_Rohdaten!$A$28:$GG$1800,10+I$9,FALSE) -> 34344 | J21: =VLOOKUP(Tab2_Rohdaten!$B39,Tab2_Rohdaten!$A$28:$GG$1800,10+J$9,FALSE) -> 34477 | K21: =VLOOKUP(Tab2_Rohdaten!$B39,Tab2_Rohdaten!$A$28:$GG$1800,10+K$9,FALSE) -> 34096 | L21: =VLOOKUP(Tab2_Rohdaten!$B39,Tab2_Rohdaten!$A$28:$GG$1800,10+L$9,FALSE) -> 34319 | M21: =VLOOKUP(Tab2_Rohdaten!$B39,Tab2_Rohdaten!$A$28:$GG$1800,10+M$9,FALSE) -> 34753 | N21: =VLOOKUP(Tab2_Rohdaten!$B39,Tab2_Rohdaten!$A$28:$GG$1800,10+N$9,FALSE) -> 34528 | O21: =VLOOKUP(Tab2_Rohdaten!$B39,Tab2_Rohdaten!$A$28:$GG$1800,10+O$9,FALSE) -> 34049 | P21: =VLOOKUP(Tab2_Rohdaten!$B39,Tab2_Rohdaten!$A$28:$GG$1800,10+P$9,FALSE) -> 34271 | Q21: =VLOOKUP(Tab2_Rohdaten!$B39,Tab2_Rohdaten!$A$28:$GG$1800,10+Q$9,FALSE) -> 34779 | R21: =VLOOKUP(Tab2_Rohdaten!$B39,Tab2_Rohdaten!$A$28:$GG$1800,10+R$9,FALSE) -> 34769 | S21: =VLOOKUP(Tab2_Rohdaten!$B39,Tab2_Rohdaten!$A$28:$GG$1800,10+S$9,FALSE) -> 34364 | T21: =VLOOKUP(Tab2_Rohdaten!$B39,Tab2_Rohdaten!$A$28:$GG$1800,10+T$9,FALSE) -> 34908 | U21: =VLOOKUP(Tab2_Rohdaten!$B39,Tab2_Rohdaten!$A$28:$GG$1800,10+U$9,FALSE) -> 35406 | V21: =VLOOKUP(Tab2_Rohdaten!$B39,Tab2_Rohdaten!$A$28:$GG$1800,10+V$9,FALSE) -> 35180 | W21: =VLOOKUP(Tab2_Rohdaten!$B39,Tab2_Rohdaten!$A$28:$GG$1800,10+W$9,FALSE) -> 34691 | X21: =VLOOKUP(Tab2_Rohdaten!$B39,Tab2_Rohdaten!$A$28:$GG$1800,10+X$9,FALSE) -> 35077 | Y21: =VLOOKUP(Tab2_Rohdaten!$B39,Tab2_Rohdaten!$A$28:$GG$1800,10+Y$9,FALSE) -> 35661 | Z21: =VLOOKUP(Tab2_Rohdaten!$B39,Tab2_Rohdaten!$A$28:$GG$1800,10+Z$9,FALSE) -> 35456 | AA21: =VLOOKUP(Tab2_Rohdaten!$B39,Tab2_Rohdaten!$A$28:$GG$1800,10+AA$9,FALSE) -> 35175 | AB21: =VLOOKUP(Tab2_Rohdaten!$B39,Tab2_Rohdaten!$A$28:$GG$1800,10+AB$9,FALSE) -> 35133 | AC21: =VLOOKUP(Tab2_Rohdaten!$B39,Tab2_Rohdaten!$A$28:$GG$1800,10+AC$9,FALSE) -> 35596 | AD21: =VLOOKUP(Tab2_Rohdaten!$B39,Tab2_Rohdaten!$A$28:$GG$1800,10+AD$9,FALSE) -> 35261 | AE21: =VLOOKUP(Tab2_Rohdaten!$B39,Tab2_Rohdaten!$A$28:$GG$1800,10+AE$9,FALSE) -> 34887 | AF21: =VLOOKUP(Tab2_Rohdaten!$B39,Tab2_Rohdaten!$A$28:$GG$1800,10+AF$9,FALSE) -> 35244 | AG21: =VLOOKUP(Tab2_Rohdaten!$B39,Tab2_Rohdaten!$A$28:$GG$1800,10+AG$9,FALSE) -> 35773 | AH21: =VLOOKUP(Tab2_Rohdaten!$B39,Tab2_Rohdaten!$A$28:$GG$1800,10+AH$9,FALSE) -> 35435 | AI21: =VLOOKUP(Tab2_Rohdaten!$B39,Tab2_Rohdaten!$A$28:$GG$1800,10+AI$9,FALSE) -> 35258 | AJ21: =VLOOKUP(Tab2_Rohdaten!$B39,Tab2_Rohdaten!$A$28:$GG$1800,10+AJ$9,FALSE) -> 35666 | AK21: =VLOOKUP(Tab2_Rohdaten!$B39,Tab2_Rohdaten!$A$28:$GG$1800,10+AK$9,FALSE) -> 35981 | AL21: =VLOOKUP(Tab2_Rohdaten!$B39,Tab2_Rohdaten!$A$28:$GG$1800,10+AL$9,FALSE) -> 35757 | AM21: =VLOOKUP(Tab2_Rohdaten!$B39,Tab2_Rohdaten!$A$28:$GG$1800,10+AM$9,FALSE) -> 35638 | AN21: =VLOOKUP(Tab2_Rohdaten!$B39,Tab2_Rohdaten!$A$28:$GG$1800,10+AN$9,FALSE) -> 35918 | AO21: =VLOOKUP(Tab2_Rohdaten!$B39,Tab2_Rohdaten!$A$28:$GG$1800,10+AO$9,FALSE) -> 36340 | AP21: =VLOOKUP(Tab2_Rohdaten!$B39,Tab2_Rohdaten!$A$28:$GG$1800,10+AP$9,FALSE) -> 36244 | AQ21: =VLOOKUP(Tab2_Rohdaten!$B39,Tab2_Rohdaten!$A$28:$GG$1800,10+AQ$9,FALSE) -> 36046 | AR21: =VLOOKUP(Tab2_Rohdaten!$B39,Tab2_Rohdaten!$A$28:$GG$1800,10+AR$9,FALSE) -> 36355 | AS21: =VLOOKUP(Tab2_Rohdaten!$B39,Tab2_Rohdaten!$A$28:$GG$1800,10+AS$9,FALSE) -> 36890 | AT21: =VLOOKUP(Tab2_Rohdaten!$B39,Tab2_Rohdaten!$A$28:$GG$1800,10+AT$9,FALSE) -> 36681 | AU21: =VLOOKUP(Tab2_Rohdaten!$B39,Tab2_Rohdaten!$A$28:$GG$1800,10+AU$9,FALSE) -> 36418 | AV21: =VLOOKUP(Tab2_Rohdaten!$B39,Tab2_Rohdaten!$A$28:$GG$1800,10+AV$9,FALSE) -> 36777 | AW21: =VLOOKUP(Tab2_Rohdaten!$B39,Tab2_Rohdaten!$A$28:$GG$1800,10+AW$9,FALSE) -> 37173 | AX21: =VLOOKUP(Tab2_Rohdaten!$B39,Tab2_Rohdaten!$A$28:$GG$1800,10+AX$9,FALSE) -> 37018 | AY21: =VLOOKUP(Tab2_Rohdaten!$B39,Tab2_Rohdaten!$A$28:$GG$1800,10+AY$9,FALSE) -> 36808 | AZ21: =VLOOKUP(Tab2_Rohdaten!$B39,Tab2_Rohdaten!$A$28:$GG$1800,10+AZ$9,FALSE) -> 37049 | BA21: =VLOOKUP(Tab2_Rohdaten!$B39,Tab2_Rohdaten!$A$28:$GG$1800,10+BA$9,FALSE) -> 37469 | BB21: =VLOOKUP(Tab2_Rohdaten!$B39,Tab2_Rohdaten!$A$28:$GG$1800,10+BB$9,FALSE) -> 37263 | BC21: =VLOOKUP(Tab2_Rohdaten!$B39,Tab2_Rohdaten!$A$28:$GG$1800,10+BC$9,FALSE) -> 37078 | BD21: =VLOOKUP(Tab2_Rohdaten!$B39,Tab2_Rohdaten!$A$28:$GG$1800,10+BD$9,FALSE) -> 37295 | BE21: =VLOOKUP(Tab2_Rohdaten!$B39,Tab2_Rohdaten!$A$28:$GG$1800,10+BE$9,FALSE) -> 37717 | BF21: =VLOOKUP(Tab2_Rohdaten!$B39,Tab2_Rohdaten!$A$28:$GG$1800,10+BF$9,FALSE) -> 37567 | BG21: =VLOOKUP(Tab2_Rohdaten!$B39,Tab2_Rohdaten!$A$28:$GG$1800,10+BG$9,FALSE) -> 37289 | BH21: =VLOOKUP(Tab2_Rohdaten!$B39,Tab2_Rohdaten!$A$28:$GG$1800,10+BH$9,FALSE) -> 36721 | BI21: =VLOOKUP(Tab2_Rohdaten!$B39,Tab2_Rohdaten!$A$28:$GG$1800,10+BI$9,FALSE) -> 37280 | BJ21: =VLOOKUP(Tab2_Rohdaten!$B39,Tab2_Rohdaten!$A$28:$GG$1800,10+BJ$9,FALSE) -> 37418 | BK21: =VLOOKUP(Tab2_Rohdaten!$B39,Tab2_Rohdaten!$A$28:$GG$1800,10+BK$9,FALSE) -> 37095 | BL21: =VLOOKUP(Tab2_Rohdaten!$B39,Tab2_Rohdaten!$A$28:$GG$1800,10+BL$9,FALSE) -> 37204 | BM21: =VLOOKUP(Tab2_Rohdaten!$B39,Tab2_Rohdaten!$A$28:$GG$1800,10+BM$9,FALSE) -> 37709 | BN21: =VLOOKUP(Tab2_Rohdaten!$B39,Tab2_Rohdaten!$A$28:$GG$1800,10+BN$9,FALSE) -> 37831 | BO21: =VLOOKUP(Tab2_Rohdaten!$B39,Tab2_Rohdaten!$A$28:$GG$1800,10+BO$9,FALSE) -> 37617
A22: =VLOOKUP(Tab2_Rohdaten!$B40,Tab2_Rohdaten!$A$28:$GG$1800,9,FALSE) -> JC Elbe-Elster | B22: =VLOOKUP(Tab2_Rohdaten!$B40,Tab2_Rohdaten!$A$28:$GG$1800,10,FALSE) -> 03504 | C22: =VLOOKUP(Tab2_Rohdaten!$B40,Tab2_Rohdaten!$A$28:$GG$1800,10+C$9,FALSE) -> 36088 | D22: =VLOOKUP(Tab2_Rohdaten!$B40,Tab2_Rohdaten!$A$28:$GG$1800,10+D$9,FALSE) -> 37863 | E22: =VLOOKUP(Tab2_Rohdaten!$B40,Tab2_Rohdaten!$A$28:$GG$1800,10+E$9,FALSE) -> 38712 | F22: =VLOOKUP(Tab2_Rohdaten!$B40,Tab2_Rohdaten!$A$28:$GG$1800,10+F$9,FALSE) -> 38216 | G22: =VLOOKUP(Tab2_Rohdaten!$B40,Tab2_Rohdaten!$A$28:$GG$1800,10+G$9,FALSE) -> 37647 | H22: =VLOOKUP(Tab2_Rohdaten!$B40,Tab2_Rohdaten!$A$28:$GG$1800,10+H$9,FALSE) -> 38698 | I22: =VLOOKUP(Tab2_Rohdaten!$B40,Tab2_Rohdaten!$A$28:$GG$1800,10+I$9,FALSE) -> 39469 | J22: =VLOOKUP(Tab2_Rohdaten!$B40,Tab2_Rohdaten!$A$28:$GG$1800,10+J$9,FALSE) -> 38440 | K22: =VLOOKUP(Tab2_Rohdaten!$B40,Tab2_Rohdaten!$A$28:$GG$1800,10+K$9,FALSE) -> 38112 | L22: =VLOOKUP(Tab2_Rohdaten!$B40,Tab2_Rohdaten!$A$28:$GG$1800,10+L$9,FALSE) -> 39145 | M22: =VLOOKUP(Tab2_Rohdaten!$B40,Tab2_Rohdaten!$A$28:$GG$1800,10+M$9,FALSE) -> 39991 | N22: =VLOOKUP(Tab2_Rohdaten!$B40,Tab2_Rohdaten!$A$28:$GG$1800,10+N$9,FALSE) -> 38852 | O22: =VLOOKUP(Tab2_Rohdaten!$B40,Tab2_Rohdaten!$A$28:$GG$1800,10+O$9,FALSE) -> 38056 | P22: =VLOOKUP(Tab2_Rohdaten!$B40,Tab2_Rohdaten!$A$28:$GG$1800,10+P$9,FALSE) -> 38772 | Q22: =VLOOKUP(Tab2_Rohdaten!$B40,Tab2_Rohdaten!$A$28:$GG$1800,10+Q$9,FALSE) -> 39607 | R22: =VLOOKUP(Tab2_Rohdaten!$B40,Tab2_Rohdaten!$A$28:$GG$1800,10+R$9,FALSE) -> 38801 | S22: =VLOOKUP(Tab2_Rohdaten!$B40,Tab2_Rohdaten!$A$28:$GG$1800,10+S$9,FALSE) -> 37883 | T22: =VLOOKUP(Tab2_Rohdaten!$B40,Tab2_Rohdaten!$A$28:$GG$1800,10+T$9,FALSE) -> 38932 | U22: =VLOOKUP(Tab2_Rohdaten!$B40,Tab2_Rohdaten!$A$28:$GG$1800,10+U$9,FALSE) -> 39738 | V22: =VLOOKUP(Tab2_Rohdaten!$B40,Tab2_Rohdaten!$A$28:$GG$1800,10+V$9,FALSE) -> 38838 | W22: =VLOOKUP(Tab2_Rohdaten!$B40,Tab2_Rohdaten!$A$28:$GG$1800,10+W$9,FALSE) -> 38454 | X22: =VLOOKUP(Tab2_Rohdaten!$B40,Tab2_Rohdaten!$A$28:$GG$1800,10+X$9,FALSE) -> 39194 | Y22: =VLOOKUP(Tab2_Rohdaten!$B40,Tab2_Rohdaten!$A$28:$GG$1800,10+Y$9,FALSE) -> 39813 | Z22: =VLOOKUP(Tab2_Rohdaten!$B40,Tab2_Rohdaten!$A$28:$GG$1800,10+Z$9,FALSE) -> 38997 | AA22: =VLOOKUP(Tab2_Rohdaten!$B40,Tab2_Rohdaten!$A$28:$GG$1800,10+AA$9,FALSE) -> 38747 | AB22: =VLOOKUP(Tab2_Rohdaten!$B40,Tab2_Rohdaten!$A$28:$GG$1800,10+AB$9,FALSE) -> 39281 | AC22: =VLOOKUP(Tab2_Rohdaten!$B40,Tab2_Rohdaten!$A$28:$GG$1800,10+AC$9,FALSE) -> 39650 | AD22: =VLOOKUP(Tab2_Rohdaten!$B40,Tab2_Rohdaten!$A$28:$GG$1800,10+AD$9,FALSE) -> 38653 | AE22: =VLOOKUP(Tab2_Rohdaten!$B40,Tab2_Rohdaten!$A$28:$GG$1800,10+AE$9,FALSE) -> 38131 | AF22: =VLOOKUP(Tab2_Rohdaten!$B40,Tab2_Rohdaten!$A$28:$GG$1800,10+AF$9,FALSE) -> 38928 | AG22: =VLOOKUP(Tab2_Rohdaten!$B40,Tab2_Rohdaten!$A$28:$GG$1800,10+AG$9,FALSE) -> 39467 | AH22: =VLOOKUP(Tab2_Rohdaten!$B40,Tab2_Rohdaten!$A$28:$GG$1800,10+AH$9,FALSE) -> 38523 | AI22: =VLOOKUP(Tab2_Rohdaten!$B40,Tab2_Rohdaten!$A$28:$GG$1800,10+AI$9,FALSE) -> 38562 | AJ22: =VLOOKUP(Tab2_Rohdaten!$B40,Tab2_Rohdaten!$A$28:$GG$1800,10+AJ$9,FALSE) -> 39200 | AK22: =VLOOKUP(Tab2_Rohdaten!$B40,Tab2_Rohdaten!$A$28:$GG$1800,10+AK$9,FALSE) -> 39565 | AL22: =VLOOKUP(Tab2_Rohdaten!$B40,Tab2_Rohdaten!$A$28:$GG$1800,10+AL$9,FALSE) -> 38479 | AM22: =VLOOKUP(Tab2_Rohdaten!$B40,Tab2_Rohdaten!$A$28:$GG$1800,10+AM$9,FALSE) -> 38455 | AN22: =VLOOKUP(Tab2_Rohdaten!$B40,Tab2_Rohdaten!$A$28:$GG$1800,10+AN$9,FALSE) -> 39022 | AO22: =VLOOKUP(Tab2_Rohdaten!$B40,Tab2_Rohdaten!$A$28:$GG$1800,10+AO$9,FALSE) -> 39443 | AP22: =VLOOKUP(Tab2_Rohdaten!$B40,Tab2_Rohdaten!$A$28:$GG$1800,10+AP$9,FALSE) -> 38799 | AQ22: =VLOOKUP(Tab2_Rohdaten!$B40,Tab2_Rohdaten!$A$28:$GG$1800,10+AQ$9,FALSE) -> 38689 | AR22: =VLOOKUP(Tab2_Rohdaten!$B40,Tab2_Rohdaten!$A$28:$GG$1800,10+AR$9,FALSE) -> 39130 | AS22: =VLOOKUP(Tab2_Rohdaten!$B40,Tab2_Rohdaten!$A$28:$GG$1800,10+AS$9,FALSE) -> 39805 | AT22: =VLOOKUP(Tab2_Rohdaten!$B40,Tab2_Rohdaten!$A$28:$GG$1800,10+AT$9,FALSE) -> 39186 | AU22: =VLOOKUP(Tab2_Rohdaten!$B40,Tab2_Rohdaten!$A$28:$GG$1800,10+AU$9,FALSE) -> 39089 | AV22: =VLOOKUP(Tab2_Rohdaten!$B40,Tab2_Rohdaten!$A$28:$GG$1800,10+AV$9,FALSE) -> 39526 | AW22: =VLOOKUP(Tab2_Rohdaten!$B40,Tab2_Rohdaten!$A$28:$GG$1800,10+AW$9,FALSE) -> 40033 | AX22: =VLOOKUP(Tab2_Rohdaten!$B40,Tab2_Rohdaten!$A$28:$GG$1800,10+AX$9,FALSE) -> 39530 | AY22: =VLOOKUP(Tab2_Rohdaten!$B40,Tab2_Rohdaten!$A$28:$GG$1800,10+AY$9,FALSE) -> 39339 | AZ22: =VLOOKUP(Tab2_Rohdaten!$B40,Tab2_Rohdaten!$A$28:$GG$1800,10+AZ$9,FALSE) -> 39782 | BA22: =VLOOKUP(Tab2_Rohdaten!$B40,Tab2_Rohdaten!$A$28:$GG$1800,10+BA$9,FALSE) -> 40353 | BB22: =VLOOKUP(Tab2_Rohdaten!$B40,Tab2_Rohdaten!$A$28:$GG$1800,10+BB$9,FALSE) -> 39871 | BC22: =VLOOKUP(Tab2_Rohdaten!$B40,Tab2_Rohdaten!$A$28:$GG$1800,10+BC$9,FALSE) -> 39718 | BD22: =VLOOKUP(Tab2_Rohdaten!$B40,Tab2_Rohdaten!$A$28:$GG$1800,10+BD$9,FALSE) -> 39873 | BE22: =VLOOKUP(Tab2_Rohdaten!$B40,Tab2_Rohdaten!$A$28:$GG$1800,10+BE$9,FALSE) -> 40370 | BF22: =VLOOKUP(Tab2_Rohdaten!$B40,Tab2_Rohdaten!$A$28:$GG$1800,10+BF$9,FALSE) -> 39874 | BG22: =VLOOKUP(Tab2_Rohdaten!$B40,Tab2_Rohdaten!$A$28:$GG$1800,10+BG$9,FALSE) -> 39561 | BH22: =VLOOKUP(Tab2_Rohdaten!$B40,Tab2_Rohdaten!$A$28:$GG$1800,10+BH$9,FALSE) -> 39329 | BI22: =VLOOKUP(Tab2_Rohdaten!$B40,Tab2_Rohdaten!$A$28:$GG$1800,10+BI$9,FALSE) -> 39756 | BJ22: =VLOOKUP(Tab2_Rohdaten!$B40,Tab2_Rohdaten!$A$28:$GG$1800,10+BJ$9,FALSE) -> 39544 | BK22: =VLOOKUP(Tab2_Rohdaten!$B40,Tab2_Rohdaten!$A$28:$GG$1800,10+BK$9,FALSE) -> 39246 | BL22: =VLOOKUP(Tab2_Rohdaten!$B40,Tab2_Rohdaten!$A$28:$GG$1800,10+BL$9,FALSE) -> 39259 | BM22: =VLOOKUP(Tab2_Rohdaten!$B40,Tab2_Rohdaten!$A$28:$GG$1800,10+BM$9,FALSE) -> 39715 | BN22: =VLOOKUP(Tab2_Rohdaten!$B40,Tab2_Rohdaten!$A$28:$GG$1800,10+BN$9,FALSE) -> 39479 | BO22: =VLOOKUP(Tab2_Rohdaten!$B40,Tab2_Rohdaten!$A$28:$GG$1800,10+BO$9,FALSE) -> 39234
A23: =VLOOKUP(Tab2_Rohdaten!$B41,Tab2_Rohdaten!$A$28:$GG$1800,9,FALSE) -> JC Oberspreewald-Lausitz | B23: =VLOOKUP(Tab2_Rohdaten!$B41,Tab2_Rohdaten!$A$28:$GG$1800,10,FALSE) -> 03506 | C23: =VLOOKUP(Tab2_Rohdaten!$B41,Tab2_Rohdaten!$A$28:$GG$1800,10+C$9,FALSE) -> 38676 | D23: =VLOOKUP(Tab2_Rohdaten!$B41,Tab2_Rohdaten!$A$28:$GG$1800,10+D$9,FALSE) -> 40249 | E23: =VLOOKUP(Tab2_Rohdaten!$B41,Tab2_Rohdaten!$A$28:$GG$1800,10+E$9,FALSE) -> 40944 | F23: =VLOOKUP(Tab2_Rohdaten!$B41,Tab2_Rohdaten!$A$28:$GG$1800,10+F$9,FALSE) -> 40265 | G23: =VLOOKUP(Tab2_Rohdaten!$B41,Tab2_Rohdaten!$A$28:$GG$1800,10+G$9,FALSE) -> 40138 | H23: =VLOOKUP(Tab2_Rohdaten!$B41,Tab2_Rohdaten!$A$28:$GG$1800,10+H$9,FALSE) -> 41060 | I23: =VLOOKUP(Tab2_Rohdaten!$B41,Tab2_Rohdaten!$A$28:$GG$1800,10+I$9,FALSE) -> 41973 | J23: =VLOOKUP(Tab2_Rohdaten!$B41,Tab2_Rohdaten!$A$28:$GG$1800,10+J$9,FALSE) -> 40978 | K23: =VLOOKUP(Tab2_Rohdaten!$B41,Tab2_Rohdaten!$A$28:$GG$1800,10+K$9,FALSE) -> 40662 | L23: =VLOOKUP(Tab2_Rohdaten!$B41,Tab2_Rohdaten!$A$28:$GG$1800,10+L$9,FALSE) -> 41567 | M23: =VLOOKUP(Tab2_Rohdaten!$B41,Tab2_Rohdaten!$A$28:$GG$1800,10+M$9,FALSE) -> 42280 | N23: =VLOOKUP(Tab2_Rohdaten!$B41,Tab2_Rohdaten!$A$28:$GG$1800,10+N$9,FALSE) -> 41464 | O23: =VLOOKUP(Tab2_Rohdaten!$B41,Tab2_Rohdaten!$A$28:$GG$1800,10+O$9,FALSE) -> 40484 | P23: =VLOOKUP(Tab2_Rohdaten!$B41,Tab2_Rohdaten!$A$28:$GG$1800,10+P$9,FALSE) -> 41200 | Q23: =VLOOKUP(Tab2_Rohdaten!$B41,Tab2_Rohdaten!$A$28:$GG$1800,10+Q$9,FALSE) -> 41889 | R23: =VLOOKUP(Tab2_Rohdaten!$B41,Tab2_Rohdaten!$A$28:$GG$1800,10+R$9,FALSE) -> 40965 | S23: =VLOOKUP(Tab2_Rohdaten!$B41,Tab2_Rohdaten!$A$28:$GG$1800,10+S$9,FALSE) -> 40305 | T23: =VLOOKUP(Tab2_Rohdaten!$B41,Tab2_Rohdaten!$A$28:$GG$1800,10+T$9,FALSE) -> 41555 | U23: =VLOOKUP(Tab2_Rohdaten!$B41,Tab2_Rohdaten!$A$28:$GG$1800,10+U$9,FALSE) -> 42191 | V23: =VLOOKUP(Tab2_Rohdaten!$B41,Tab2_Rohdaten!$A$28:$GG$1800,10+V$9,FALSE) -> 40913 | W23: =VLOOKUP(Tab2_Rohdaten!$B41,Tab2_Rohdaten!$A$28:$GG$1800,10+W$9,FALSE) -> 40611 | X23: =VLOOKUP(Tab2_Rohdaten!$B41,Tab2_Rohdaten!$A$28:$GG$1800,10+X$9,FALSE) -> 41654 | Y23: =VLOOKUP(Tab2_Rohdaten!$B41,Tab2_Rohdaten!$A$28:$GG$1800,10+Y$9,FALSE) -> 42159 | Z23: =VLOOKUP(Tab2_Rohdaten!$B41,Tab2_Rohdaten!$A$28:$GG$1800,10+Z$9,FALSE) -> 41036 | AA23: =VLOOKUP(Tab2_Rohdaten!$B41,Tab2_Rohdaten!$A$28:$GG$1800,10+AA$9,FALSE) -> 40806 | AB23: =VLOOKUP(Tab2_Rohdaten!$B41,Tab2_Rohdaten!$A$28:$GG$1800,10+AB$9,FALSE) -> 41590 | AC23: =VLOOKUP(Tab2_Rohdaten!$B41,Tab2_Rohdaten!$A$28:$GG$1800,10+AC$9,FALSE) -> 41950 | AD23: =VLOOKUP(Tab2_Rohdaten!$B41,Tab2_Rohdaten!$A$28:$GG$1800,10+AD$9,FALSE) -> 40808 | AE23: =VLOOKUP(Tab2_Rohdaten!$B41,Tab2_Rohdaten!$A$28:$GG$1800,10+AE$9,FALSE) -> 40399 | AF23: =VLOOKUP(Tab2_Rohdaten!$B41,Tab2_Rohdaten!$A$28:$GG$1800,10+AF$9,FALSE) -> 41317 | AG23: =VLOOKUP(Tab2_Rohdaten!$B41,Tab2_Rohdaten!$A$28:$GG$1800,10+AG$9,FALSE) -> 41958 | AH23: =VLOOKUP(Tab2_Rohdaten!$B41,Tab2_Rohdaten!$A$28:$GG$1800,10+AH$9,FALSE) -> 40838 | AI23: =VLOOKUP(Tab2_Rohdaten!$B41,Tab2_Rohdaten!$A$28:$GG$1800,10+AI$9,FALSE) -> 40754 | AJ23: =VLOOKUP(Tab2_Rohdaten!$B41,Tab2_Rohdaten!$A$28:$GG$1800,10+AJ$9,FALSE) -> 41628 | AK23: =VLOOKUP(Tab2_Rohdaten!$B41,Tab2_Rohdaten!$A$28:$GG$1800,10+AK$9,FALSE) -> 41898 | AL23: =VLOOKUP(Tab2_Rohdaten!$B41,Tab2_Rohdaten!$A$28:$GG$1800,10+AL$9,FALSE) -> 40891 | AM23: =VLOOKUP(Tab2_Rohdaten!$B41,Tab2_Rohdaten!$A$28:$GG$1800,10+AM$9,FALSE) -> 40988 | AN23: =VLOOKUP(Tab2_Rohdaten!$B41,Tab2_Rohdaten!$A$28:$GG$1800,10+AN$9,FALSE) -> 41705 | AO23: =VLOOKUP(Tab2_Rohdaten!$B41,Tab2_Rohdaten!$A$28:$GG$1800,10+AO$9,FALSE) -> 42112 | AP23: =VLOOKUP(Tab2_Rohdaten!$B41,Tab2_Rohdaten!$A$28:$GG$1800,10+AP$9,FALSE) -> 41227 | AQ23: =VLOOKUP(Tab2_Rohdaten!$B41,Tab2_Rohdaten!$A$28:$GG$1800,10+AQ$9,FALSE) -> 41138 | AR23: =VLOOKUP(Tab2_Rohdaten!$B41,Tab2_Rohdaten!$A$28:$GG$1800,10+AR$9,FALSE) -> 41683 | AS23: =VLOOKUP(Tab2_Rohdaten!$B41,Tab2_Rohdaten!$A$28:$GG$1800,10+AS$9,FALSE) -> 42156 | AT23: =VLOOKUP(Tab2_Rohdaten!$B41,Tab2_Rohdaten!$A$28:$GG$1800,10+AT$9,FALSE) -> 41381 | AU23: =VLOOKUP(Tab2_Rohdaten!$B41,Tab2_Rohdaten!$A$28:$GG$1800,10+AU$9,FALSE) -> 41418 | AV23: =VLOOKUP(Tab2_Rohdaten!$B41,Tab2_Rohdaten!$A$28:$GG$1800,10+AV$9,FALSE) -> 42080 | AW23: =VLOOKUP(Tab2_Rohdaten!$B41,Tab2_Rohdaten!$A$28:$GG$1800,10+AW$9,FALSE) -> 42566 | AX23: =VLOOKUP(Tab2_Rohdaten!$B41,Tab2_Rohdaten!$A$28:$GG$1800,10+AX$9,FALSE) -> 41916 | AY23: =VLOOKUP(Tab2_Rohdaten!$B41,Tab2_Rohdaten!$A$28:$GG$1800,10+AY$9,FALSE) -> 41808 | AZ23: =VLOOKUP(Tab2_Rohdaten!$B41,Tab2_Rohdaten!$A$28:$GG$1800,10+AZ$9,FALSE) -> 42499 | BA23: =VLOOKUP(Tab2_Rohdaten!$B41,Tab2_Rohdaten!$A$28:$GG$1800,10+BA$9,FALSE) -> 43089 | BB23: =VLOOKUP(Tab2_Rohdaten!$B41,Tab2_Rohdaten!$A$28:$GG$1800,10+BB$9,FALSE) -> 42499 | BC23: =VLOOKUP(Tab2_Rohdaten!$B41,Tab2_Rohdaten!$A$28:$GG$1800,10+BC$9,FALSE) -> 42469 | BD23: =VLOOKUP(Tab2_Rohdaten!$B41,Tab2_Rohdaten!$A$28:$GG$1800,10+BD$9,FALSE) -> 42799 | BE23: =VLOOKUP(Tab2_Rohdaten!$B41,Tab2_Rohdaten!$A$28:$GG$1800,10+BE$9,FALSE) -> 43321 | BF23: =VLOOKUP(Tab2_Rohdaten!$B41,Tab2_Rohdaten!$A$28:$GG$1800,10+BF$9,FALSE) -> 42725 | BG23: =VLOOKUP(Tab2_Rohdaten!$B41,Tab2_Rohdaten!$A$28:$GG$1800,10+BG$9,FALSE) -> 42680 | BH23: =VLOOKUP(Tab2_Rohdaten!$B41,Tab2_Rohdaten!$A$28:$GG$1800,10+BH$9,FALSE) -> 42525 | BI23: =VLOOKUP(Tab2_Rohdaten!$B41,Tab2_Rohdaten!$A$28:$GG$1800,10+BI$9,FALSE) -> 43093 | BJ23: =VLOOKUP(Tab2_Rohdaten!$B41,Tab2_Rohdaten!$A$28:$GG$1800,10+BJ$9,FALSE) -> 42657 | BK23: =VLOOKUP(Tab2_Rohdaten!$B41,Tab2_Rohdaten!$A$28:$GG$1800,10+BK$9,FALSE) -> 42339 | BL23: =VLOOKUP(Tab2_Rohdaten!$B41,Tab2_Rohdaten!$A$28:$GG$1800,10+BL$9,FALSE) -> 42673 | BM23: =VLOOKUP(Tab2_Rohdaten!$B41,Tab2_Rohdaten!$A$28:$GG$1800,10+BM$9,FALSE) -> 43215 | BN23: =VLOOKUP(Tab2_Rohdaten!$B41,Tab2_Rohdaten!$A$28:$GG$1800,10+BN$9,FALSE) -> 42872 | BO23: =VLOOKUP(Tab2_Rohdaten!$B41,Tab2_Rohdaten!$A$28:$GG$1800,10+BO$9,FALSE) -> 42692
A24: =VLOOKUP(Tab2_Rohdaten!$B42,Tab2_Rohdaten!$A$28:$GG$1800,9,FALSE) -> JC Dahme-Spreewald | B24: =VLOOKUP(Tab2_Rohdaten!$B42,Tab2_Rohdaten!$A$28:$GG$1800,10,FALSE) -> 03510 | C24: =VLOOKUP(Tab2_Rohdaten!$B42,Tab2_Rohdaten!$A$28:$GG$1800,10+C$9,FALSE) -> 53473 | D24: =VLOOKUP(Tab2_Rohdaten!$B42,Tab2_Rohdaten!$A$28:$GG$1800,10+D$9,FALSE) -> 55375 | E24: =VLOOKUP(Tab2_Rohdaten!$B42,Tab2_Rohdaten!$A$28:$GG$1800,10+E$9,FALSE) -> 56462 | F24: =VLOOKUP(Tab2_Rohdaten!$B42,Tab2_Rohdaten!$A$28:$GG$1800,10+F$9,FALSE) -> 56081 | G24: =VLOOKUP(Tab2_Rohdaten!$B42,Tab2_Rohdaten!$A$28:$GG$1800,10+G$9,FALSE) -> 55789 | H24: =VLOOKUP(Tab2_Rohdaten!$B42,Tab2_Rohdaten!$A$28:$GG$1800,10+H$9,FALSE) -> 57105 | I24: =VLOOKUP(Tab2_Rohdaten!$B42,Tab2_Rohdaten!$A$28:$GG$1800,10+I$9,FALSE) -> 58137 | J24: =VLOOKUP(Tab2_Rohdaten!$B42,Tab2_Rohdaten!$A$28:$GG$1800,10+J$9,FALSE) -> 57670 | K24: =VLOOKUP(Tab2_Rohdaten!$B42,Tab2_Rohdaten!$A$28:$GG$1800,10+K$9,FALSE) -> 57476 | L24: =VLOOKUP(Tab2_Rohdaten!$B42,Tab2_Rohdaten!$A$28:$GG$1800,10+L$9,FALSE) -> 58600 | M24: =VLOOKUP(Tab2_Rohdaten!$B42,Tab2_Rohdaten!$A$28:$GG$1800,10+M$9,FALSE) -> 59310 | N24: =VLOOKUP(Tab2_Rohdaten!$B42,Tab2_Rohdaten!$A$28:$GG$1800,10+N$9,FALSE) -> 58572 | O24: =VLOOKUP(Tab2_Rohdaten!$B42,Tab2_Rohdaten!$A$28:$GG$1800,10+O$9,FALSE) -> 58172 | P24: =VLOOKUP(Tab2_Rohdaten!$B42,Tab2_Rohdaten!$A$28:$GG$1800,10+P$9,FALSE) -> 58936 | Q24: =VLOOKUP(Tab2_Rohdaten!$B42,Tab2_Rohdaten!$A$28:$GG$1800,10+Q$9,FALSE) -> 59779 | R24: =VLOOKUP(Tab2_Rohdaten!$B42,Tab2_Rohdaten!$A$28:$GG$1800,10+R$9,FALSE) -> 59064 | S24: =VLOOKUP(Tab2_Rohdaten!$B42,Tab2_Rohdaten!$A$28:$GG$1800,10+S$9,FALSE) -> 58409 | T24: =VLOOKUP(Tab2_Rohdaten!$B42,Tab2_Rohdaten!$A$28:$GG$1800,10+T$9,FALSE) -> 59663 | U24: =VLOOKUP(Tab2_Rohdaten!$B42,Tab2_Rohdaten!$A$28:$GG$1800,10+U$9,FALSE) -> 60775 | V24: =VLOOKUP(Tab2_Rohdaten!$B42,Tab2_Rohdaten!$A$28:$GG$1800,10+V$9,FALSE) -> 59774 | W24: =VLOOKUP(Tab2_Rohdaten!$B42,Tab2_Rohdaten!$A$28:$GG$1800,10+W$9,FALSE) -> 59486 | X24: =VLOOKUP(Tab2_Rohdaten!$B42,Tab2_Rohdaten!$A$28:$GG$1800,10+X$9,FALSE) -> 60836 | Y24: =VLOOKUP(Tab2_Rohdaten!$B42,Tab2_Rohdaten!$A$28:$GG$1800,10+Y$9,FALSE) -> 61674 | Z24: =VLOOKUP(Tab2_Rohdaten!$B42,Tab2_Rohdaten!$A$28:$GG$1800,10+Z$9,FALSE) -> 61125 | AA24: =VLOOKUP(Tab2_Rohdaten!$B42,Tab2_Rohdaten!$A$28:$GG$1800,10+AA$9,FALSE) -> 60848 | AB24: =VLOOKUP(Tab2_Rohdaten!$B42,Tab2_Rohdaten!$A$28:$GG$1800,10+AB$9,FALSE) -> 61667 | AC24: =VLOOKUP(Tab2_Rohdaten!$B42,Tab2_Rohdaten!$A$28:$GG$1800,10+AC$9,FALSE) -> 62373 | AD24: =VLOOKUP(Tab2_Rohdaten!$B42,Tab2_Rohdaten!$A$28:$GG$1800,10+AD$9,FALSE) -> 61576 | AE24: =VLOOKUP(Tab2_Rohdaten!$B42,Tab2_Rohdaten!$A$28:$GG$1800,10+AE$9,FALSE) -> 61273 | AF24: =VLOOKUP(Tab2_Rohdaten!$B42,Tab2_Rohdaten!$A$28:$GG$1800,10+AF$9,FALSE) -> 62217 | AG24: =VLOOKUP(Tab2_Rohdaten!$B42,Tab2_Rohdaten!$A$28:$GG$1800,10+AG$9,FALSE) -> 63040 | AH24: =VLOOKUP(Tab2_Rohdaten!$B42,Tab2_Rohdaten!$A$28:$GG$1800,10+AH$9,FALSE) -> 62091 | AI24: =VLOOKUP(Tab2_Rohdaten!$B42,Tab2_Rohdaten!$A$28:$GG$1800,10+AI$9,FALSE) -> 62173 | AJ24: =VLOOKUP(Tab2_Rohdaten!$B42,Tab2_Rohdaten!$A$28:$GG$1800,10+AJ$9,FALSE) -> 63625 | AK24: =VLOOKUP(Tab2_Rohdaten!$B42,Tab2_Rohdaten!$A$28:$GG$1800,10+AK$9,FALSE) -> 64196 | AL24: =VLOOKUP(Tab2_Rohdaten!$B42,Tab2_Rohdaten!$A$28:$GG$1800,10+AL$9,FALSE) -> 63243 | AM24: =VLOOKUP(Tab2_Rohdaten!$B42,Tab2_Rohdaten!$A$28:$GG$1800,10+AM$9,FALSE) -> 63575 | AN24: =VLOOKUP(Tab2_Rohdaten!$B42,Tab2_Rohdaten!$A$28:$GG$1800,10+AN$9,FALSE) -> 64848 | AO24: =VLOOKUP(Tab2_Rohdaten!$B42,Tab2_Rohdaten!$A$28:$GG$1800,10+AO$9,FALSE) -> 65233 | AP24: =VLOOKUP(Tab2_Rohdaten!$B42,Tab2_Rohdaten!$A$28:$GG$1800,10+AP$9,FALSE) -> 64411 | AQ24: =VLOOKUP(Tab2_Rohdaten!$B42,Tab2_Rohdaten!$A$28:$GG$1800,10+AQ$9,FALSE) -> 64470 | AR24: =VLOOKUP(Tab2_Rohdaten!$B42,Tab2_Rohdaten!$A$28:$GG$1800,10+AR$9,FALSE) -> 65937 | AS24: =VLOOKUP(Tab2_Rohdaten!$B42,Tab2_Rohdaten!$A$28:$GG$1800,10+AS$9,FALSE) -> 66593 | AT24: =VLOOKUP(Tab2_Rohdaten!$B42,Tab2_Rohdaten!$A$28:$GG$1800,10+AT$9,FALSE) -> 66119 | AU24: =VLOOKUP(Tab2_Rohdaten!$B42,Tab2_Rohdaten!$A$28:$GG$1800,10+AU$9,FALSE) -> 66347 | AV24: =VLOOKUP(Tab2_Rohdaten!$B42,Tab2_Rohdaten!$A$28:$GG$1800,10+AV$9,FALSE) -> 67563 | AW24: =VLOOKUP(Tab2_Rohdaten!$B42,Tab2_Rohdaten!$A$28:$GG$1800,10+AW$9,FALSE) -> 67967 | AX24: =VLOOKUP(Tab2_Rohdaten!$B42,Tab2_Rohdaten!$A$28:$GG$1800,10+AX$9,FALSE) -> 67508 | AY24: =VLOOKUP(Tab2_Rohdaten!$B42,Tab2_Rohdaten!$A$28:$GG$1800,10+AY$9,FALSE) -> 67705 | AZ24: =VLOOKUP(Tab2_Rohdaten!$B42,Tab2_Rohdaten!$A$28:$GG$1800,10+AZ$9,FALSE) -> 69132 | BA24: =VLOOKUP(Tab2_Rohdaten!$B42,Tab2_Rohdaten!$A$28:$GG$1800,10+BA$9,FALSE) -> 69624 | BB24: =VLOOKUP(Tab2_Rohdaten!$B42,Tab2_Rohdaten!$A$28:$GG$1800,10+BB$9,FALSE) -> 69213 | BC24: =VLOOKUP(Tab2_Rohdaten!$B42,Tab2_Rohdaten!$A$28:$GG$1800,10+BC$9,FALSE) -> 69242 | BD24: =VLOOKUP(Tab2_Rohdaten!$B42,Tab2_Rohdaten!$A$28:$GG$1800,10+BD$9,FALSE) -> 69994 | BE24: =VLOOKUP(Tab2_Rohdaten!$B42,Tab2_Rohdaten!$A$28:$GG$1800,10+BE$9,FALSE) -> 70718 | BF24: =VLOOKUP(Tab2_Rohdaten!$B42,Tab2_Rohdaten!$A$28:$GG$1800,10+BF$9,FALSE) -> 70520 | BG24: =VLOOKUP(Tab2_Rohdaten!$B42,Tab2_Rohdaten!$A$28:$GG$1800,10+BG$9,FALSE) -> 70486 | BH24: =VLOOKUP(Tab2_Rohdaten!$B42,Tab2_Rohdaten!$A$28:$GG$1800,10+BH$9,FALSE) -> 70331 | BI24: =VLOOKUP(Tab2_Rohdaten!$B42,Tab2_Rohdaten!$A$28:$GG$1800,10+BI$9,FALSE) -> 71124 | BJ24: =VLOOKUP(Tab2_Rohdaten!$B42,Tab2_Rohdaten!$A$28:$GG$1800,10+BJ$9,FALSE) -> 70948 | BK24: =VLOOKUP(Tab2_Rohdaten!$B42,Tab2_Rohdaten!$A$28:$GG$1800,10+BK$9,FALSE) -> 70550 | BL24: =VLOOKUP(Tab2_Rohdaten!$B42,Tab2_Rohdaten!$A$28:$GG$1800,10+BL$9,FALSE) -> 71459 | BM24: =VLOOKUP(Tab2_Rohdaten!$B42,Tab2_Rohdaten!$A$28:$GG$1800,10+BM$9,FALSE) -> 72217 | BN24: =VLOOKUP(Tab2_Rohdaten!$B42,Tab2_Rohdaten!$A$28:$GG$1800,10+BN$9,FALSE) -> 72528 | BO24: =VLOOKUP(Tab2_Rohdaten!$B42,Tab2_Rohdaten!$A$28:$GG$1800,10+BO$9,FALSE) -> 72619
A25: =VLOOKUP(Tab2_Rohdaten!$B43,Tab2_Rohdaten!$A$28:$GG$1800,9,FALSE) -> JC Spree-Neiße | B25: =VLOOKUP(Tab2_Rohdaten!$B43,Tab2_Rohdaten!$A$28:$GG$1800,10,FALSE) -> 03538 | C25: =VLOOKUP(Tab2_Rohdaten!$B43,Tab2_Rohdaten!$A$28:$GG$1800,10+C$9,FALSE) -> 43606 | D25: =VLOOKUP(Tab2_Rohdaten!$B43,Tab2_Rohdaten!$A$28:$GG$1800,10+D$9,FALSE) -> 44697 | E25: =VLOOKUP(Tab2_Rohdaten!$B43,Tab2_Rohdaten!$A$28:$GG$1800,10+E$9,FALSE) -> 45051 | F25: =VLOOKUP(Tab2_Rohdaten!$B43,Tab2_Rohdaten!$A$28:$GG$1800,10+F$9,FALSE) -> 44590 | G25: =VLOOKUP(Tab2_Rohdaten!$B43,Tab2_Rohdaten!$A$28:$GG$1800,10+G$9,FALSE) -> 44213 | H25: =VLOOKUP(Tab2_Rohdaten!$B43,Tab2_Rohdaten!$A$28:$GG$1800,10+H$9,FALSE) -> 45074 | I25: =VLOOKUP(Tab2_Rohdaten!$B43,Tab2_Rohdaten!$A$28:$GG$1800,10+I$9,FALSE) -> 45815 | J25: =VLOOKUP(Tab2_Rohdaten!$B43,Tab2_Rohdaten!$A$28:$GG$1800,10+J$9,FALSE) -> 45163 | K25: =VLOOKUP(Tab2_Rohdaten!$B43,Tab2_Rohdaten!$A$28:$GG$1800,10+K$9,FALSE) -> 44716 | L25: =VLOOKUP(Tab2_Rohdaten!$B43,Tab2_Rohdaten!$A$28:$GG$1800,10+L$9,FALSE) -> 45477 | M25: =VLOOKUP(Tab2_Rohdaten!$B43,Tab2_Rohdaten!$A$28:$GG$1800,10+M$9,FALSE) -> 46152 | N25: =VLOOKUP(Tab2_Rohdaten!$B43,Tab2_Rohdaten!$A$28:$GG$1800,10+N$9,FALSE) -> 45290 | O25: =VLOOKUP(Tab2_Rohdaten!$B43,Tab2_Rohdaten!$A$28:$GG$1800,10+O$9,FALSE) -> 44686 | P25: =VLOOKUP(Tab2_Rohdaten!$B43,Tab2_Rohdaten!$A$28:$GG$1800,10+P$9,FALSE) -> 45224 | Q25: =VLOOKUP(Tab2_Rohdaten!$B43,Tab2_Rohdaten!$A$28:$GG$1800,10+Q$9,FALSE) -> 45811 | R25: =VLOOKUP(Tab2_Rohdaten!$B43,Tab2_Rohdaten!$A$28:$GG$1800,10+R$9,FALSE) -> 45140 | S25: =VLOOKUP(Tab2_Rohdaten!$B43,Tab2_Rohdaten!$A$28:$GG$1800,10+S$9,FALSE) -> 44680 | T25: =VLOOKUP(Tab2_Rohdaten!$B43,Tab2_Rohdaten!$A$28:$GG$1800,10+T$9,FALSE) -> 45496 | U25: =VLOOKUP(Tab2_Rohdaten!$B43,Tab2_Rohdaten!$A$28:$GG$1800,10+U$9,FALSE) -> 45961 | V25: =VLOOKUP(Tab2_Rohdaten!$B43,Tab2_Rohdaten!$A$28:$GG$1800,10+V$9,FALSE) -> 44885 | W25: =VLOOKUP(Tab2_Rohdaten!$B43,Tab2_Rohdaten!$A$28:$GG$1800,10+W$9,FALSE) -> 44162 | X25: =VLOOKUP(Tab2_Rohdaten!$B43,Tab2_Rohdaten!$A$28:$GG$1800,10+X$9,FALSE) -> 44850 | Y25: =VLOOKUP(Tab2_Rohdaten!$B43,Tab2_Rohdaten!$A$28:$GG$1800,10+Y$9,FALSE) -> 45359 | Z25: =VLOOKUP(Tab2_Rohdaten!$B43,Tab2_Rohdaten!$A$28:$GG$1800,10+Z$9,FALSE) -> 44781 | AA25: =VLOOKUP(Tab2_Rohdaten!$B43,Tab2_Rohdaten!$A$28:$GG$1800,10+AA$9,FALSE) -> 44276 | AB25: =VLOOKUP(Tab2_Rohdaten!$B43,Tab2_Rohdaten!$A$28:$GG$1800,10+AB$9,FALSE) -> 44940 | AC25: =VLOOKUP(Tab2_Rohdaten!$B43,Tab2_Rohdaten!$A$28:$GG$1800,10+AC$9,FALSE) -> 45156 | AD25: =VLOOKUP(Tab2_Rohdaten!$B43,Tab2_Rohdaten!$A$28:$GG$1800,10+AD$9,FALSE) -> 44284 | AE25: =VLOOKUP(Tab2_Rohdaten!$B43,Tab2_Rohdaten!$A$28:$GG$1800,10+AE$9,FALSE) -> 43656 | AF25: =VLOOKUP(Tab2_Rohdaten!$B43,Tab2_Rohdaten!$A$28:$GG$1800,10+AF$9,FALSE) -> 44466 | AG25: =VLOOKUP(Tab2_Rohdaten!$B43,Tab2_Rohdaten!$A$28:$GG$1800,10+AG$9,FALSE) -> 45038 | AH25: =VLOOKUP(Tab2_Rohdaten!$B43,Tab2_Rohdaten!$A$28:$GG$1800,10+AH$9,FALSE) -> 44195 | AI25: =VLOOKUP(Tab2_Rohdaten!$B43,Tab2_Rohdaten!$A$28:$GG$1800,10+AI$9,FALSE) -> 43790 | AJ25: =VLOOKUP(Tab2_Rohdaten!$B43,Tab2_Rohdaten!$A$28:$GG$1800,10+AJ$9,FALSE) -> 44372 | AK25: =VLOOKUP(Tab2_Rohdaten!$B43,Tab2_Rohdaten!$A$28:$GG$1800,10+AK$9,FALSE) -> 44687 | AL25: =VLOOKUP(Tab2_Rohdaten!$B43,Tab2_Rohdaten!$A$28:$GG$1800,10+AL$9,FALSE) -> 43723 | AM25: =VLOOKUP(Tab2_Rohdaten!$B43,Tab2_Rohdaten!$A$28:$GG$1800,10+AM$9,FALSE) -> 43572 | AN25: =VLOOKUP(Tab2_Rohdaten!$B43,Tab2_Rohdaten!$A$28:$GG$1800,10+AN$9,FALSE) -> 44180 | AO25: =VLOOKUP(Tab2_Rohdaten!$B43,Tab2_Rohdaten!$A$28:$GG$1800,10+AO$9,FALSE) -> 44592 | AP25: =VLOOKUP(Tab2_Rohdaten!$B43,Tab2_Rohdaten!$A$28:$GG$1800,10+AP$9,FALSE) -> 43945 | AQ25: =VLOOKUP(Tab2_Rohdaten!$B43,Tab2_Rohdaten!$A$28:$GG$1800,10+AQ$9,FALSE) -> 43791 | AR25: =VLOOKUP(Tab2_Rohdaten!$B43,Tab2_Rohdaten!$A$28:$GG$1800,10+AR$9,FALSE) -> 44176 | AS25: =VLOOKUP(Tab2_Rohdaten!$B43,Tab2_Rohdaten!$A$28:$GG$1800,10+AS$9,FALSE) -> 44753 | AT25: =VLOOKUP(Tab2_Rohdaten!$B43,Tab2_Rohdaten!$A$28:$GG$1800,10+AT$9,FALSE) -> 44296 | AU25: =VLOOKUP(Tab2_Rohdaten!$B43,Tab2_Rohdaten!$A$28:$GG$1800,10+AU$9,FALSE) -> 44020 | AV25: =VLOOKUP(Tab2_Rohdaten!$B43,Tab2_Rohdaten!$A$28:$GG$1800,10+AV$9,FALSE) -> 44533 | AW25: =VLOOKUP(Tab2_Rohdaten!$B43,Tab2_Rohdaten!$A$28:$GG$1800,10+AW$9,FALSE) -> 44930 | AX25: =VLOOKUP(Tab2_Rohdaten!$B43,Tab2_Rohdaten!$A$28:$GG$1800,10+AX$9,FALSE) -> 44467 | AY25: =VLOOKUP(Tab2_Rohdaten!$B43,Tab2_Rohdaten!$A$28:$GG$1800,10+AY$9,FALSE) -> 44137 | AZ25: =VLOOKUP(Tab2_Rohdaten!$B43,Tab2_Rohdaten!$A$28:$GG$1800,10+AZ$9,FALSE) -> 44427 | BA25: =VLOOKUP(Tab2_Rohdaten!$B43,Tab2_Rohdaten!$A$28:$GG$1800,10+BA$9,FALSE) -> 44811 | BB25: =VLOOKUP(Tab2_Rohdaten!$B43,Tab2_Rohdaten!$A$28:$GG$1800,10+BB$9,FALSE) -> 44414 | BC25: =VLOOKUP(Tab2_Rohdaten!$B43,Tab2_Rohdaten!$A$28:$GG$1800,10+BC$9,FALSE) -> 44012 | BD25: =VLOOKUP(Tab2_Rohdaten!$B43,Tab2_Rohdaten!$A$28:$GG$1800,10+BD$9,FALSE) -> 44121 | BE25: =VLOOKUP(Tab2_Rohdaten!$B43,Tab2_Rohdaten!$A$28:$GG$1800,10+BE$9,FALSE) -> 44686 | BF25: =VLOOKUP(Tab2_Rohdaten!$B43,Tab2_Rohdaten!$A$28:$GG$1800,10+BF$9,FALSE) -> 44440 | BG25: =VLOOKUP(Tab2_Rohdaten!$B43,Tab2_Rohdaten!$A$28:$GG$1800,10+BG$9,FALSE) -> 44021 | BH25: =VLOOKUP(Tab2_Rohdaten!$B43,Tab2_Rohdaten!$A$28:$GG$1800,10+BH$9,FALSE) -> 43648 | BI25: =VLOOKUP(Tab2_Rohdaten!$B43,Tab2_Rohdaten!$A$28:$GG$1800,10+BI$9,FALSE) -> 44273 | BJ25: =VLOOKUP(Tab2_Rohdaten!$B43,Tab2_Rohdaten!$A$28:$GG$1800,10+BJ$9,FALSE) -> 44087 | BK25: =VLOOKUP(Tab2_Rohdaten!$B43,Tab2_Rohdaten!$A$28:$GG$1800,10+BK$9,FALSE) -> 43666 | BL25: =VLOOKUP(Tab2_Rohdaten!$B43,Tab2_Rohdaten!$A$28:$GG$1800,10+BL$9,FALSE) -> 43663 | BM25: =VLOOKUP(Tab2_Rohdaten!$B43,Tab2_Rohdaten!$A$28:$GG$1800,10+BM$9,FALSE) -> 44254 | BN25: =VLOOKUP(Tab2_Rohdaten!$B43,Tab2_Rohdaten!$A$28:$GG$1800,10+BN$9,FALSE) -> 44014 | BO25: =VLOOKUP(Tab2_Rohdaten!$B43,Tab2_Rohdaten!$A$28:$GG$1800,10+BO$9,FALSE) -> 43697
A26: =VLOOKUP(Tab2_Rohdaten!$B44,Tab2_Rohdaten!$A$28:$GG$1800,9,FALSE) -> JC Barnim | B26: =VLOOKUP(Tab2_Rohdaten!$B44,Tab2_Rohdaten!$A$28:$GG$1800,10,FALSE) -> 03602 | C26: =VLOOKUP(Tab2_Rohdaten!$B44,Tab2_Rohdaten!$A$28:$GG$1800,10+C$9,FALSE) -> 58128 | D26: =VLOOKUP(Tab2_Rohdaten!$B44,Tab2_Rohdaten!$A$28:$GG$1800,10+D$9,FALSE) -> 59625 | E26: =VLOOKUP(Tab2_Rohdaten!$B44,Tab2_Rohdaten!$A$28:$GG$1800,10+E$9,FALSE) -> 60966 | F26: =VLOOKUP(Tab2_Rohdaten!$B44,Tab2_Rohdaten!$A$28:$GG$1800,10+F$9,FALSE) -> 60937 | G26: =VLOOKUP(Tab2_Rohdaten!$B44,Tab2_Rohdaten!$A$28:$GG$1800,10+G$9,FALSE) -> 60760 | H26: =VLOOKUP(Tab2_Rohdaten!$B44,Tab2_Rohdaten!$A$28:$GG$1800,10+H$9,FALSE) -> 61668 | I26: =VLOOKUP(Tab2_Rohdaten!$B44,Tab2_Rohdaten!$A$28:$GG$1800,10+I$9,FALSE) -> 62818 | J26: =VLOOKUP(Tab2_Rohdaten!$B44,Tab2_Rohdaten!$A$28:$GG$1800,10+J$9,FALSE) -> 62385 | K26: =VLOOKUP(Tab2_Rohdaten!$B44,Tab2_Rohdaten!$A$28:$GG$1800,10+K$9,FALSE) -> 62153 | L26: =VLOOKUP(Tab2_Rohdaten!$B44,Tab2_Rohdaten!$A$28:$GG$1800,10+L$9,FALSE) -> 63328 | M26: =VLOOKUP(Tab2_Rohdaten!$B44,Tab2_Rohdaten!$A$28:$GG$1800,10+M$9,FALSE) -> 64255 | N26: =VLOOKUP(Tab2_Rohdaten!$B44,Tab2_Rohdaten!$A$28:$GG$1800,10+N$9,FALSE) -> 63643 | O26: =VLOOKUP(Tab2_Rohdaten!$B44,Tab2_Rohdaten!$A$28:$GG$1800,10+O$9,FALSE) -> 63091 | P26: =VLOOKUP(Tab2_Rohdaten!$B44,Tab2_Rohdaten!$A$28:$GG$1800,10+P$9,FALSE) -> 63779 | Q26: =VLOOKUP(Tab2_Rohdaten!$B44,Tab2_Rohdaten!$A$28:$GG$1800,10+Q$9,FALSE) -> 64689 | R26: =VLOOKUP(Tab2_Rohdaten!$B44,Tab2_Rohdaten!$A$28:$GG$1800,10+R$9,FALSE) -> 64156 | S26: =VLOOKUP(Tab2_Rohdaten!$B44,Tab2_Rohdaten!$A$28:$GG$1800,10+S$9,FALSE) -> 63440 | T26: =VLOOKUP(Tab2_Rohdaten!$B44,Tab2_Rohdaten!$A$28:$GG$1800,10+T$9,FALSE) -> 64431 | U26: =VLOOKUP(Tab2_Rohdaten!$B44,Tab2_Rohdaten!$A$28:$GG$1800,10+U$9,FALSE) -> 65431 | V26: =VLOOKUP(Tab2_Rohdaten!$B44,Tab2_Rohdaten!$A$28:$GG$1800,10+V$9,FALSE) -> 64711 | W26: =VLOOKUP(Tab2_Rohdaten!$B44,Tab2_Rohdaten!$A$28:$GG$1800,10+W$9,FALSE) -> 64434 | X26: =VLOOKUP(Tab2_Rohdaten!$B44,Tab2_Rohdaten!$A$28:$GG$1800,10+X$9,FALSE) -> 65343 | Y26: =VLOOKUP(Tab2_Rohdaten!$B44,Tab2_Rohdaten!$A$28:$GG$1800,10+Y$9,FALSE) -> 66268 | Z26: =VLOOKUP(Tab2_Rohdaten!$B44,Tab2_Rohdaten!$A$28:$GG$1800,10+Z$9,FALSE) -> 65767 | AA26: =VLOOKUP(Tab2_Rohdaten!$B44,Tab2_Rohdaten!$A$28:$GG$1800,10+AA$9,FALSE) -> 65757 | AB26: =VLOOKUP(Tab2_Rohdaten!$B44,Tab2_Rohdaten!$A$28:$GG$1800,10+AB$9,FALSE) -> 66476 | AC26: =VLOOKUP(Tab2_Rohdaten!$B44,Tab2_Rohdaten!$A$28:$GG$1800,10+AC$9,FALSE) -> 67120 | AD26: =VLOOKUP(Tab2_Rohdaten!$B44,Tab2_Rohdaten!$A$28:$GG$1800,10+AD$9,FALSE) -> 66234 | AE26: =VLOOKUP(Tab2_Rohdaten!$B44,Tab2_Rohdaten!$A$28:$GG$1800,10+AE$9,FALSE) -> 65869 | AF26: =VLOOKUP(Tab2_Rohdaten!$B44,Tab2_Rohdaten!$A$28:$GG$1800,10+AF$9,FALSE) -> 66636 | AG26: =VLOOKUP(Tab2_Rohdaten!$B44,Tab2_Rohdaten!$A$28:$GG$1800,10+AG$9,FALSE) -> 67708 | AH26: =VLOOKUP(Tab2_Rohdaten!$B44,Tab2_Rohdaten!$A$28:$GG$1800,10+AH$9,FALSE) -> 66998 | AI26: =VLOOKUP(Tab2_Rohdaten!$B44,Tab2_Rohdaten!$A$28:$GG$1800,10+AI$9,FALSE) -> 66934 | AJ26: =VLOOKUP(Tab2_Rohdaten!$B44,Tab2_Rohdaten!$A$28:$GG$1800,10+AJ$9,FALSE) -> 67687 | AK26: =VLOOKUP(Tab2_Rohdaten!$B44,Tab2_Rohdaten!$A$28:$GG$1800,10+AK$9,FALSE) -> 68628 | AL26: =VLOOKUP(Tab2_Rohdaten!$B44,Tab2_Rohdaten!$A$28:$GG$1800,10+AL$9,FALSE) -> 68060 | AM26: =VLOOKUP(Tab2_Rohdaten!$B44,Tab2_Rohdaten!$A$28:$GG$1800,10+AM$9,FALSE) -> 68400 | AN26: =VLOOKUP(Tab2_Rohdaten!$B44,Tab2_Rohdaten!$A$28:$GG$1800,10+AN$9,FALSE) -> 69122 | AO26: =VLOOKUP(Tab2_Rohdaten!$B44,Tab2_Rohdaten!$A$28:$GG$1800,10+AO$9,FALSE) -> 70026 | AP26: =VLOOKUP(Tab2_Rohdaten!$B44,Tab2_Rohdaten!$A$28:$GG$1800,10+AP$9,FALSE) -> 69508 | AQ26: =VLOOKUP(Tab2_Rohdaten!$B44,Tab2_Rohdaten!$A$28:$GG$1800,10+AQ$9,FALSE) -> 69364 | AR26: =VLOOKUP(Tab2_Rohdaten!$B44,Tab2_Rohdaten!$A$28:$GG$1800,10+AR$9,FALSE) -> 70293 | AS26: =VLOOKUP(Tab2_Rohdaten!$B44,Tab2_Rohdaten!$A$28:$GG$1800,10+AS$9,FALSE) -> 71338 | AT26: =VLOOKUP(Tab2_Rohdaten!$B44,Tab2_Rohdaten!$A$28:$GG$1800,10+AT$9,FALSE) -> 71163 | AU26: =VLOOKUP(Tab2_Rohdaten!$B44,Tab2_Rohdaten!$A$28:$GG$1800,10+AU$9,FALSE) -> 71282 | AV26: =VLOOKUP(Tab2_Rohdaten!$B44,Tab2_Rohdaten!$A$28:$GG$1800,10+AV$9,FALSE) -> 71927 | AW26: =VLOOKUP(Tab2_Rohdaten!$B44,Tab2_Rohdaten!$A$28:$GG$1800,10+AW$9,FALSE) -> 72863 | AX26: =VLOOKUP(Tab2_Rohdaten!$B44,Tab2_Rohdaten!$A$28:$GG$1800,10+AX$9,FALSE) -> 72579 | AY26: =VLOOKUP(Tab2_Rohdaten!$B44,Tab2_Rohdaten!$A$28:$GG$1800,10+AY$9,FALSE) -> 72399 | AZ26: =VLOOKUP(Tab2_Rohdaten!$B44,Tab2_Rohdaten!$A$28:$GG$1800,10+AZ$9,FALSE) -> 73062 | BA26: =VLOOKUP(Tab2_Rohdaten!$B44,Tab2_Rohdaten!$A$28:$GG$1800,10+BA$9,FALSE) -> 74253 | BB26: =VLOOKUP(Tab2_Rohdaten!$B44,Tab2_Rohdaten!$A$28:$GG$1800,10+BB$9,FALSE) -> 74177 | BC26: =VLOOKUP(Tab2_Rohdaten!$B44,Tab2_Rohdaten!$A$28:$GG$1800,10+BC$9,FALSE) -> 74010 | BD26: =VLOOKUP(Tab2_Rohdaten!$B44,Tab2_Rohdaten!$A$28:$GG$1800,10+BD$9,FALSE) -> 74388 | BE26: =VLOOKUP(Tab2_Rohdaten!$B44,Tab2_Rohdaten!$A$28:$GG$1800,10+BE$9,FALSE) -> 75744 | BF26: =VLOOKUP(Tab2_Rohdaten!$B44,Tab2_Rohdaten!$A$28:$GG$1800,10+BF$9,FALSE) -> 75548 | BG26: =VLOOKUP(Tab2_Rohdaten!$B44,Tab2_Rohdaten!$A$28:$GG$1800,10+BG$9,FALSE) -> 75328 | BH26: =VLOOKUP(Tab2_Rohdaten!$B44,Tab2_Rohdaten!$A$28:$GG$1800,10+BH$9,FALSE) -> 74910 | BI26: =VLOOKUP(Tab2_Rohdaten!$B44,Tab2_Rohdaten!$A$28:$GG$1800,10+BI$9,FALSE) -> 75976 | BJ26: =VLOOKUP(Tab2_Rohdaten!$B44,Tab2_Rohdaten!$A$28:$GG$1800,10+BJ$9,FALSE) -> 76155 | BK26: =VLOOKUP(Tab2_Rohdaten!$B44,Tab2_Rohdaten!$A$28:$GG$1800,10+BK$9,FALSE) -> 75496 | BL26: =VLOOKUP(Tab2_Rohdaten!$B44,Tab2_Rohdaten!$A$28:$GG$1800,10+BL$9,FALSE) -> 75693 | BM26: =VLOOKUP(Tab2_Rohdaten!$B44,Tab2_Rohdaten!$A$28:$GG$1800,10+BM$9,FALSE) -> 76783 | BN26: =VLOOKUP(Tab2_Rohdaten!$B44,Tab2_Rohdaten!$A$28:$GG$1800,10+BN$9,FALSE) -> 76971 | BO26: =VLOOKUP(Tab2_Rohdaten!$B44,Tab2_Rohdaten!$A$28:$GG$1800,10+BO$9,FALSE) -> 76756
A27: =VLOOKUP(Tab2_Rohdaten!$B45,Tab2_Rohdaten!$A$28:$GG$1800,9,FALSE) -> JC Uckermark | B27: =VLOOKUP(Tab2_Rohdaten!$B45,Tab2_Rohdaten!$A$28:$GG$1800,10,FALSE) -> 03604 | C27: =VLOOKUP(Tab2_Rohdaten!$B45,Tab2_Rohdaten!$A$28:$GG$1800,10+C$9,FALSE) -> 39872 | D27: =VLOOKUP(Tab2_Rohdaten!$B45,Tab2_Rohdaten!$A$28:$GG$1800,10+D$9,FALSE) -> 41792 | E27: =VLOOKUP(Tab2_Rohdaten!$B45,Tab2_Rohdaten!$A$28:$GG$1800,10+E$9,FALSE) -> 42634 | F27: =VLOOKUP(Tab2_Rohdaten!$B45,Tab2_Rohdaten!$A$28:$GG$1800,10+F$9,FALSE) -> 42146 | G27: =VLOOKUP(Tab2_Rohdaten!$B45,Tab2_Rohdaten!$A$28:$GG$1800,10+G$9,FALSE) -> 41808 | H27: =VLOOKUP(Tab2_Rohdaten!$B45,Tab2_Rohdaten!$A$28:$GG$1800,10+H$9,FALSE) -> 42419 | I27: =VLOOKUP(Tab2_Rohdaten!$B45,Tab2_Rohdaten!$A$28:$GG$1800,10+I$9,FALSE) -> 43083 | J27: =VLOOKUP(Tab2_Rohdaten!$B45,Tab2_Rohdaten!$A$28:$GG$1800,10+J$9,FALSE) -> 42327 | K27: =VLOOKUP(Tab2_Rohdaten!$B45,Tab2_Rohdaten!$A$28:$GG$1800,10+K$9,FALSE) -> 41817 | L27: =VLOOKUP(Tab2_Rohdaten!$B45,Tab2_Rohdaten!$A$28:$GG$1800,10+L$9,FALSE) -> 42632 | M27: =VLOOKUP(Tab2_Rohdaten!$B45,Tab2_Rohdaten!$A$28:$GG$1800,10+M$9,FALSE) -> 43620 | N27: =VLOOKUP(Tab2_Rohdaten!$B45,Tab2_Rohdaten!$A$28:$GG$1800,10+N$9,FALSE) -> 42405 | O27: =VLOOKUP(Tab2_Rohdaten!$B45,Tab2_Rohdaten!$A$28:$GG$1800,10+O$9,FALSE) -> 41852 | P27: =VLOOKUP(Tab2_Rohdaten!$B45,Tab2_Rohdaten!$A$28:$GG$1800,10+P$9,FALSE) -> 42773 | Q27: =VLOOKUP(Tab2_Rohdaten!$B45,Tab2_Rohdaten!$A$28:$GG$1800,10+Q$9,FALSE) -> 43566 | R27: =VLOOKUP(Tab2_Rohdaten!$B45,Tab2_Rohdaten!$A$28:$GG$1800,10+R$9,FALSE) -> 42246 | S27: =VLOOKUP(Tab2_Rohdaten!$B45,Tab2_Rohdaten!$A$28:$GG$1800,10+S$9,FALSE) -> 41894 | T27: =VLOOKUP(Tab2_Rohdaten!$B45,Tab2_Rohdaten!$A$28:$GG$1800,10+T$9,FALSE) -> 43233 | U27: =VLOOKUP(Tab2_Rohdaten!$B45,Tab2_Rohdaten!$A$28:$GG$1800,10+U$9,FALSE) -> 43918 | V27: =VLOOKUP(Tab2_Rohdaten!$B45,Tab2_Rohdaten!$A$28:$GG$1800,10+V$9,FALSE) -> 42419 | W27: =VLOOKUP(Tab2_Rohdaten!$B45,Tab2_Rohdaten!$A$28:$GG$1800,10+W$9,FALSE) -> 42466 | X27: =VLOOKUP(Tab2_Rohdaten!$B45,Tab2_Rohdaten!$A$28:$GG$1800,10+X$9,FALSE) -> 43284 | Y27: =VLOOKUP(Tab2_Rohdaten!$B45,Tab2_Rohdaten!$A$28:$GG$1800,10+Y$9,FALSE) -> 43528 | Z27: =VLOOKUP(Tab2_Rohdaten!$B45,Tab2_Rohdaten!$A$28:$GG$1800,10+Z$9,FALSE) -> 42227 | AA27: =VLOOKUP(Tab2_Rohdaten!$B45,Tab2_Rohdaten!$A$28:$GG$1800,10+AA$9,FALSE) -> 42206 | AB27: =VLOOKUP(Tab2_Rohdaten!$B45,Tab2_Rohdaten!$A$28:$GG$1800,10+AB$9,FALSE) -> 43017 | AC27: =VLOOKUP(Tab2_Rohdaten!$B45,Tab2_Rohdaten!$A$28:$GG$1800,10+AC$9,FALSE) -> 43235 | AD27: =VLOOKUP(Tab2_Rohdaten!$B45,Tab2_Rohdaten!$A$28:$GG$1800,10+AD$9,FALSE) -> 41978 | AE27: =VLOOKUP(Tab2_Rohdaten!$B45,Tab2_Rohdaten!$A$28:$GG$1800,10+AE$9,FALSE) -> 41789 | AF27: =VLOOKUP(Tab2_Rohdaten!$B45,Tab2_Rohdaten!$A$28:$GG$1800,10+AF$9,FALSE) -> 42665 | AG27: =VLOOKUP(Tab2_Rohdaten!$B45,Tab2_Rohdaten!$A$28:$GG$1800,10+AG$9,FALSE) -> 43102 | AH27: =VLOOKUP(Tab2_Rohdaten!$B45,Tab2_Rohdaten!$A$28:$GG$1800,10+AH$9,FALSE) -> 41793 | AI27: =VLOOKUP(Tab2_Rohdaten!$B45,Tab2_Rohdaten!$A$28:$GG$1800,10+AI$9,FALSE) -> 41702 | AJ27: =VLOOKUP(Tab2_Rohdaten!$B45,Tab2_Rohdaten!$A$28:$GG$1800,10+AJ$9,FALSE) -> 42474 | AK27: =VLOOKUP(Tab2_Rohdaten!$B45,Tab2_Rohdaten!$A$28:$GG$1800,10+AK$9,FALSE) -> 42725 | AL27: =VLOOKUP(Tab2_Rohdaten!$B45,Tab2_Rohdaten!$A$28:$GG$1800,10+AL$9,FALSE) -> 41642 | AM27: =VLOOKUP(Tab2_Rohdaten!$B45,Tab2_Rohdaten!$A$28:$GG$1800,10+AM$9,FALSE) -> 41573 | AN27: =VLOOKUP(Tab2_Rohdaten!$B45,Tab2_Rohdaten!$A$28:$GG$1800,10+AN$9,FALSE) -> 42289 | AO27: =VLOOKUP(Tab2_Rohdaten!$B45,Tab2_Rohdaten!$A$28:$GG$1800,10+AO$9,FALSE) -> 42835 | AP27: =VLOOKUP(Tab2_Rohdaten!$B45,Tab2_Rohdaten!$A$28:$GG$1800,10+AP$9,FALSE) -> 41976 | AQ27: =VLOOKUP(Tab2_Rohdaten!$B45,Tab2_Rohdaten!$A$28:$GG$1800,10+AQ$9,FALSE) -> 41962 | AR27: =VLOOKUP(Tab2_Rohdaten!$B45,Tab2_Rohdaten!$A$28:$GG$1800,10+AR$9,FALSE) -> 42580 | AS27: =VLOOKUP(Tab2_Rohdaten!$B45,Tab2_Rohdaten!$A$28:$GG$1800,10+AS$9,FALSE) -> 43023 | AT27: =VLOOKUP(Tab2_Rohdaten!$B45,Tab2_Rohdaten!$A$28:$GG$1800,10+AT$9,FALSE) -> 42042 | AU27: =VLOOKUP(Tab2_Rohdaten!$B45,Tab2_Rohdaten!$A$28:$GG$1800,10+AU$9,FALSE) -> 42107 | AV27: =VLOOKUP(Tab2_Rohdaten!$B45,Tab2_Rohdaten!$A$28:$GG$1800,10+AV$9,FALSE) -> 42782 | AW27: =VLOOKUP(Tab2_Rohdaten!$B45,Tab2_Rohdaten!$A$28:$GG$1800,10+AW$9,FALSE) -> 43272 | AX27: =VLOOKUP(Tab2_Rohdaten!$B45,Tab2_Rohdaten!$A$28:$GG$1800,10+AX$9,FALSE) -> 42595 | AY27: =VLOOKUP(Tab2_Rohdaten!$B45,Tab2_Rohdaten!$A$28:$GG$1800,10+AY$9,FALSE) -> 42630 | AZ27: =VLOOKUP(Tab2_Rohdaten!$B45,Tab2_Rohdaten!$A$28:$GG$1800,10+AZ$9,FALSE) -> 43106 | BA27: =VLOOKUP(Tab2_Rohdaten!$B45,Tab2_Rohdaten!$A$28:$GG$1800,10+BA$9,FALSE) -> 43570 | BB27: =VLOOKUP(Tab2_Rohdaten!$B45,Tab2_Rohdaten!$A$28:$GG$1800,10+BB$9,FALSE) -> 42903 | BC27: =VLOOKUP(Tab2_Rohdaten!$B45,Tab2_Rohdaten!$A$28:$GG$1800,10+BC$9,FALSE) -> 42927 | BD27: =VLOOKUP(Tab2_Rohdaten!$B45,Tab2_Rohdaten!$A$28:$GG$1800,10+BD$9,FALSE) -> 43216 | BE27: =VLOOKUP(Tab2_Rohdaten!$B45,Tab2_Rohdaten!$A$28:$GG$1800,10+BE$9,FALSE) -> 43722 | BF27: =VLOOKUP(Tab2_Rohdaten!$B45,Tab2_Rohdaten!$A$28:$GG$1800,10+BF$9,FALSE) -> 43154 | BG27: =VLOOKUP(Tab2_Rohdaten!$B45,Tab2_Rohdaten!$A$28:$GG$1800,10+BG$9,FALSE) -> 42995 | BH27: =VLOOKUP(Tab2_Rohdaten!$B45,Tab2_Rohdaten!$A$28:$GG$1800,10+BH$9,FALSE) -> 42797 | BI27: =VLOOKUP(Tab2_Rohdaten!$B45,Tab2_Rohdaten!$A$28:$GG$1800,10+BI$9,FALSE) -> 43395 | BJ27: =VLOOKUP(Tab2_Rohdaten!$B45,Tab2_Rohdaten!$A$28:$GG$1800,10+BJ$9,FALSE) -> 43013 | BK27: =VLOOKUP(Tab2_Rohdaten!$B45,Tab2_Rohdaten!$A$28:$GG$1800,10+BK$9,FALSE) -> 42740 | BL27: =VLOOKUP(Tab2_Rohdaten!$B45,Tab2_Rohdaten!$A$28:$GG$1800,10+BL$9,FALSE) -> 42949 | BM27: =VLOOKUP(Tab2_Rohdaten!$B45,Tab2_Rohdaten!$A$28:$GG$1800,10+BM$9,FALSE) -> 43519 | BN27: =VLOOKUP(Tab2_Rohdaten!$B45,Tab2_Rohdaten!$A$28:$GG$1800,10+BN$9,FALSE) -> 43125 | BO27: =VLOOKUP(Tab2_Rohdaten!$B45,Tab2_Rohdaten!$A$28:$GG$1800,10+BO$9,FALSE) -> 42990
A28: =VLOOKUP(Tab2_Rohdaten!$B46,Tab2_Rohdaten!$A$28:$GG$1800,9,FALSE) -> JC Frankfurt (Oder), Stadt | B28: =VLOOKUP(Tab2_Rohdaten!$B46,Tab2_Rohdaten!$A$28:$GG$1800,10,FALSE) -> 03702 | C28: =VLOOKUP(Tab2_Rohdaten!$B46,Tab2_Rohdaten!$A$28:$GG$1800,10+C$9,FALSE) -> 19489 | D28: =VLOOKUP(Tab2_Rohdaten!$B46,Tab2_Rohdaten!$A$28:$GG$1800,10+D$9,FALSE) -> 19867 | E28: =VLOOKUP(Tab2_Rohdaten!$B46,Tab2_Rohdaten!$A$28:$GG$1800,10+E$9,FALSE) -> 20264 | F28: =VLOOKUP(Tab2_Rohdaten!$B46,Tab2_Rohdaten!$A$28:$GG$1800,10+F$9,FALSE) -> 20188 | G28: =VLOOKUP(Tab2_Rohdaten!$B46,Tab2_Rohdaten!$A$28:$GG$1800,10+G$9,FALSE) -> 20031 | H28: =VLOOKUP(Tab2_Rohdaten!$B46,Tab2_Rohdaten!$A$28:$GG$1800,10+H$9,FALSE) -> 20544 | I28: =VLOOKUP(Tab2_Rohdaten!$B46,Tab2_Rohdaten!$A$28:$GG$1800,10+I$9,FALSE) -> 21081 | J28: =VLOOKUP(Tab2_Rohdaten!$B46,Tab2_Rohdaten!$A$28:$GG$1800,10+J$9,FALSE) -> 20906 | K28: =VLOOKUP(Tab2_Rohdaten!$B46,Tab2_Rohdaten!$A$28:$GG$1800,10+K$9,FALSE) -> 20513 | L28: =VLOOKUP(Tab2_Rohdaten!$B46,Tab2_Rohdaten!$A$28:$GG$1800,10+L$9,FALSE) -> 20694 | M28: =VLOOKUP(Tab2_Rohdaten!$B46,Tab2_Rohdaten!$A$28:$GG$1800,10+M$9,FALSE) -> 21130 | N28: =VLOOKUP(Tab2_Rohdaten!$B46,Tab2_Rohdaten!$A$28:$GG$1800,10+N$9,FALSE) -> 20772 | O28: =VLOOKUP(Tab2_Rohdaten!$B46,Tab2_Rohdaten!$A$28:$GG$1800,10+O$9,FALSE) -> 20399 | P28: =VLOOKUP(Tab2_Rohdaten!$B46,Tab2_Rohdaten!$A$28:$GG$1800,10+P$9,FALSE) -> 20619 | Q28: =VLOOKUP(Tab2_Rohdaten!$B46,Tab2_Rohdaten!$A$28:$GG$1800,10+Q$9,FALSE) -> 21020 | R28: =VLOOKUP(Tab2_Rohdaten!$B46,Tab2_Rohdaten!$A$28:$GG$1800,10+R$9,FALSE) -> 20854 | S28: =VLOOKUP(Tab2_Rohdaten!$B46,Tab2_Rohdaten!$A$28:$GG$1800,10+S$9,FALSE) -> 20788 | T28: =VLOOKUP(Tab2_Rohdaten!$B46,Tab2_Rohdaten!$A$28:$GG$1800,10+T$9,FALSE) -> 21058 | U28: =VLOOKUP(Tab2_Rohdaten!$B46,Tab2_Rohdaten!$A$28:$GG$1800,10+U$9,FALSE) -> 21357 | V28: =VLOOKUP(Tab2_Rohdaten!$B46,Tab2_Rohdaten!$A$28:$GG$1800,10+V$9,FALSE) -> 21167 | W28: =VLOOKUP(Tab2_Rohdaten!$B46,Tab2_Rohdaten!$A$28:$GG$1800,10+W$9,FALSE) -> 20978 | X28: =VLOOKUP(Tab2_Rohdaten!$B46,Tab2_Rohdaten!$A$28:$GG$1800,10+X$9,FALSE) -> 21210 | Y28: =VLOOKUP(Tab2_Rohdaten!$B46,Tab2_Rohdaten!$A$28:$GG$1800,10+Y$9,FALSE) -> 21429 | Z28: =VLOOKUP(Tab2_Rohdaten!$B46,Tab2_Rohdaten!$A$28:$GG$1800,10+Z$9,FALSE) -> 21168 | AA28: =VLOOKUP(Tab2_Rohdaten!$B46,Tab2_Rohdaten!$A$28:$GG$1800,10+AA$9,FALSE) -> 20871 | AB28: =VLOOKUP(Tab2_Rohdaten!$B46,Tab2_Rohdaten!$A$28:$GG$1800,10+AB$9,FALSE) -> 20931 | AC28: =VLOOKUP(Tab2_Rohdaten!$B46,Tab2_Rohdaten!$A$28:$GG$1800,10+AC$9,FALSE) -> 21006 | AD28: =VLOOKUP(Tab2_Rohdaten!$B46,Tab2_Rohdaten!$A$28:$GG$1800,10+AD$9,FALSE) -> 20730 | AE28: =VLOOKUP(Tab2_Rohdaten!$B46,Tab2_Rohdaten!$A$28:$GG$1800,10+AE$9,FALSE) -> 20405 | AF28: =VLOOKUP(Tab2_Rohdaten!$B46,Tab2_Rohdaten!$A$28:$GG$1800,10+AF$9,FALSE) -> 20659 | AG28: =VLOOKUP(Tab2_Rohdaten!$B46,Tab2_Rohdaten!$A$28:$GG$1800,10+AG$9,FALSE) -> 20805 | AH28: =VLOOKUP(Tab2_Rohdaten!$B46,Tab2_Rohdaten!$A$28:$GG$1800,10+AH$9,FALSE) -> 20424 | AI28: =VLOOKUP(Tab2_Rohdaten!$B46,Tab2_Rohdaten!$A$28:$GG$1800,10+AI$9,FALSE) -> 20214 | AJ28: =VLOOKUP(Tab2_Rohdaten!$B46,Tab2_Rohdaten!$A$28:$GG$1800,10+AJ$9,FALSE) -> 20500 | AK28: =VLOOKUP(Tab2_Rohdaten!$B46,Tab2_Rohdaten!$A$28:$GG$1800,10+AK$9,FALSE) -> 20699 | AL28: =VLOOKUP(Tab2_Rohdaten!$B46,Tab2_Rohdaten!$A$28:$GG$1800,10+AL$9,FALSE) -> 20446 | AM28: =VLOOKUP(Tab2_Rohdaten!$B46,Tab2_Rohdaten!$A$28:$GG$1800,10+AM$9,FALSE) -> 20498 | AN28: =VLOOKUP(Tab2_Rohdaten!$B46,Tab2_Rohdaten!$A$28:$GG$1800,10+AN$9,FALSE) -> 20651 | AO28: =VLOOKUP(Tab2_Rohdaten!$B46,Tab2_Rohdaten!$A$28:$GG$1800,10+AO$9,FALSE) -> 20933 | AP28: =VLOOKUP(Tab2_Rohdaten!$B46,Tab2_Rohdaten!$A$28:$GG$1800,10+AP$9,FALSE) -> 20801 | AQ28: =VLOOKUP(Tab2_Rohdaten!$B46,Tab2_Rohdaten!$A$28:$GG$1800,10+AQ$9,FALSE) -> 20786 | AR28: =VLOOKUP(Tab2_Rohdaten!$B46,Tab2_Rohdaten!$A$28:$GG$1800,10+AR$9,FALSE) -> 20905 | AS28: =VLOOKUP(Tab2_Rohdaten!$B46,Tab2_Rohdaten!$A$28:$GG$1800,10+AS$9,FALSE) -> 21187 | AT28: =VLOOKUP(Tab2_Rohdaten!$B46,Tab2_Rohdaten!$A$28:$GG$1800,10+AT$9,FALSE) -> 21103 | AU28: =VLOOKUP(Tab2_Rohdaten!$B46,Tab2_Rohdaten!$A$28:$GG$1800,10+AU$9,FALSE) -> 21019 | AV28: =VLOOKUP(Tab2_Rohdaten!$B46,Tab2_Rohdaten!$A$28:$GG$1800,10+AV$9,FALSE) -> 21158 | AW28: =VLOOKUP(Tab2_Rohdaten!$B46,Tab2_Rohdaten!$A$28:$GG$1800,10+AW$9,FALSE) -> 21460 | AX28: =VLOOKUP(Tab2_Rohdaten!$B46,Tab2_Rohdaten!$A$28:$GG$1800,10+AX$9,FALSE) -> 21349 | AY28: =VLOOKUP(Tab2_Rohdaten!$B46,Tab2_Rohdaten!$A$28:$GG$1800,10+AY$9,FALSE) -> 21219 | AZ28: =VLOOKUP(Tab2_Rohdaten!$B46,Tab2_Rohdaten!$A$28:$GG$1800,10+AZ$9,FALSE) -> 21438 | BA28: =VLOOKUP(Tab2_Rohdaten!$B46,Tab2_Rohdaten!$A$28:$GG$1800,10+BA$9,FALSE) -> 21693 | BB28: =VLOOKUP(Tab2_Rohdaten!$B46,Tab2_Rohdaten!$A$28:$GG$1800,10+BB$9,FALSE) -> 21523 | BC28: =VLOOKUP(Tab2_Rohdaten!$B46,Tab2_Rohdaten!$A$28:$GG$1800,10+BC$9,FALSE) -> 21361 | BD28: =VLOOKUP(Tab2_Rohdaten!$B46,Tab2_Rohdaten!$A$28:$GG$1800,10+BD$9,FALSE) -> 21376 | BE28: =VLOOKUP(Tab2_Rohdaten!$B46,Tab2_Rohdaten!$A$28:$GG$1800,10+BE$9,FALSE) -> 21514 | BF28: =VLOOKUP(Tab2_Rohdaten!$B46,Tab2_Rohdaten!$A$28:$GG$1800,10+BF$9,FALSE) -> 21449 | BG28: =VLOOKUP(Tab2_Rohdaten!$B46,Tab2_Rohdaten!$A$28:$GG$1800,10+BG$9,FALSE) -> 21249 | BH28: =VLOOKUP(Tab2_Rohdaten!$B46,Tab2_Rohdaten!$A$28:$GG$1800,10+BH$9,FALSE) -> 21016 | BI28: =VLOOKUP(Tab2_Rohdaten!$B46,Tab2_Rohdaten!$A$28:$GG$1800,10+BI$9,FALSE) -> 21204 | BJ28: =VLOOKUP(Tab2_Rohdaten!$B46,Tab2_Rohdaten!$A$28:$GG$1800,10+BJ$9,FALSE) -> 21140 | BK28: =VLOOKUP(Tab2_Rohdaten!$B46,Tab2_Rohdaten!$A$28:$GG$1800,10+BK$9,FALSE) -> 20944 | BL28: =VLOOKUP(Tab2_Rohdaten!$B46,Tab2_Rohdaten!$A$28:$GG$1800,10+BL$9,FALSE) -> 21062 | BM28: =VLOOKUP(Tab2_Rohdaten!$B46,Tab2_Rohdaten!$A$28:$GG$1800,10+BM$9,FALSE) -> 21261 | BN28: =VLOOKUP(Tab2_Rohdaten!$B46,Tab2_Rohdaten!$A$28:$GG$1800,10+BN$9,FALSE) -> 21252 | BO28: =VLOOKUP(Tab2_Rohdaten!$B46,Tab2_Rohdaten!$A$28:$GG$1800,10+BO$9,FALSE) -> 21390
A29: =VLOOKUP(Tab2_Rohdaten!$B47,Tab2_Rohdaten!$A$28:$GG$1800,9,FALSE) -> JC Oder-Spree | B29: =VLOOKUP(Tab2_Rohdaten!$B47,Tab2_Rohdaten!$A$28:$GG$1800,10,FALSE) -> 03706 | C29: =VLOOKUP(Tab2_Rohdaten!$B47,Tab2_Rohdaten!$A$28:$GG$1800,10+C$9,FALSE) -> 61185 | D29: =VLOOKUP(Tab2_Rohdaten!$B47,Tab2_Rohdaten!$A$28:$GG$1800,10+D$9,FALSE) -> 63167 | E29: =VLOOKUP(Tab2_Rohdaten!$B47,Tab2_Rohdaten!$A$28:$GG$1800,10+E$9,FALSE) -> 64468 | F29: =VLOOKUP(Tab2_Rohdaten!$B47,Tab2_Rohdaten!$A$28:$GG$1800,10+F$9,FALSE) -> 64344 | G29: =VLOOKUP(Tab2_Rohdaten!$B47,Tab2_Rohdaten!$A$28:$GG$1800,10+G$9,FALSE) -> 64120 | H29: =VLOOKUP(Tab2_Rohdaten!$B47,Tab2_Rohdaten!$A$28:$GG$1800,10+H$9,FALSE) -> 65326 | I29: =VLOOKUP(Tab2_Rohdaten!$B47,Tab2_Rohdaten!$A$28:$GG$1800,10+I$9,FALSE) -> 66549 | J29: =VLOOKUP(Tab2_Rohdaten!$B47,Tab2_Rohdaten!$A$28:$GG$1800,10+J$9,FALSE) -> 65734 | K29: =VLOOKUP(Tab2_Rohdaten!$B47,Tab2_Rohdaten!$A$28:$GG$1800,10+K$9,FALSE) -> 65141 | L29: =VLOOKUP(Tab2_Rohdaten!$B47,Tab2_Rohdaten!$A$28:$GG$1800,10+L$9,FALSE) -> 65852 | M29: =VLOOKUP(Tab2_Rohdaten!$B47,Tab2_Rohdaten!$A$28:$GG$1800,10+M$9,FALSE) -> 66988 | N29: =VLOOKUP(Tab2_Rohdaten!$B47,Tab2_Rohdaten!$A$28:$GG$1800,10+N$9,FALSE) -> 65869 | O29: =VLOOKUP(Tab2_Rohdaten!$B47,Tab2_Rohdaten!$A$28:$GG$1800,10+O$9,FALSE) -> 64784 | P29: =VLOOKUP(Tab2_Rohdaten!$B47,Tab2_Rohdaten!$A$28:$GG$1800,10+P$9,FALSE) -> 65506 | Q29: =VLOOKUP(Tab2_Rohdaten!$B47,Tab2_Rohdaten!$A$28:$GG$1800,10+Q$9,FALSE) -> 66636 | R29: =VLOOKUP(Tab2_Rohdaten!$B47,Tab2_Rohdaten!$A$28:$GG$1800,10+R$9,FALSE) -> 65953 | S29: =VLOOKUP(Tab2_Rohdaten!$B47,Tab2_Rohdaten!$A$28:$GG$1800,10+S$9,FALSE) -> 65346 | T29: =VLOOKUP(Tab2_Rohdaten!$B47,Tab2_Rohdaten!$A$28:$GG$1800,10+T$9,FALSE) -> 66376 | U29: =VLOOKUP(Tab2_Rohdaten!$B47,Tab2_Rohdaten!$A$28:$GG$1800,10+U$9,FALSE) -> 67481 | V29: =VLOOKUP(Tab2_Rohdaten!$B47,Tab2_Rohdaten!$A$28:$GG$1800,10+V$9,FALSE) -> 66420 | W29: =VLOOKUP(Tab2_Rohdaten!$B47,Tab2_Rohdaten!$A$28:$GG$1800,10+W$9,FALSE) -> 65888 | X29: =VLOOKUP(Tab2_Rohdaten!$B47,Tab2_Rohdaten!$A$28:$GG$1800,10+X$9,FALSE) -> 66746 | Y29: =VLOOKUP(Tab2_Rohdaten!$B47,Tab2_Rohdaten!$A$28:$GG$1800,10+Y$9,FALSE) -> 67644 | Z29: =VLOOKUP(Tab2_Rohdaten!$B47,Tab2_Rohdaten!$A$28:$GG$1800,10+Z$9,FALSE) -> 66881 | AA29: =VLOOKUP(Tab2_Rohdaten!$B47,Tab2_Rohdaten!$A$28:$GG$1800,10+AA$9,FALSE) -> 66393 | AB29: =VLOOKUP(Tab2_Rohdaten!$B47,Tab2_Rohdaten!$A$28:$GG$1800,10+AB$9,FALSE) -> 67052 | AC29: =VLOOKUP(Tab2_Rohdaten!$B47,Tab2_Rohdaten!$A$28:$GG$1800,10+AC$9,FALSE) -> 67666 | AD29: =VLOOKUP(Tab2_Rohdaten!$B47,Tab2_Rohdaten!$A$28:$GG$1800,10+AD$9,FALSE) -> 66762 | AE29: =VLOOKUP(Tab2_Rohdaten!$B47,Tab2_Rohdaten!$A$28:$GG$1800,10+AE$9,FALSE) -> 66095 | AF29: =VLOOKUP(Tab2_Rohdaten!$B47,Tab2_Rohdaten!$A$28:$GG$1800,10+AF$9,FALSE) -> 66874 | AG29: =VLOOKUP(Tab2_Rohdaten!$B47,Tab2_Rohdaten!$A$28:$GG$1800,10+AG$9,FALSE) -> 67695 | AH29: =VLOOKUP(Tab2_Rohdaten!$B47,Tab2_Rohdaten!$A$28:$GG$1800,10+AH$9,FALSE) -> 66613 | AI29: =VLOOKUP(Tab2_Rohdaten!$B47,Tab2_Rohdaten!$A$28:$GG$1800,10+AI$9,FALSE) -> 66465 | AJ29: =VLOOKUP(Tab2_Rohdaten!$B47,Tab2_Rohdaten!$A$28:$GG$1800,10+AJ$9,FALSE) -> 67152 | AK29: =VLOOKUP(Tab2_Rohdaten!$B47,Tab2_Rohdaten!$A$28:$GG$1800,10+AK$9,FALSE) -> 67886 | AL29: =VLOOKUP(Tab2_Rohdaten!$B47,Tab2_Rohdaten!$A$28:$GG$1800,10+AL$9,FALSE) -> 66945 | AM29: =VLOOKUP(Tab2_Rohdaten!$B47,Tab2_Rohdaten!$A$28:$GG$1800,10+AM$9,FALSE) -> 67063 | AN29: =VLOOKUP(Tab2_Rohdaten!$B47,Tab2_Rohdaten!$A$28:$GG$1800,10+AN$9,FALSE) -> 67803 | AO29: =VLOOKUP(Tab2_Rohdaten!$B47,Tab2_Rohdaten!$A$28:$GG$1800,10+AO$9,FALSE) -> 68490 | AP29: =VLOOKUP(Tab2_Rohdaten!$B47,Tab2_Rohdaten!$A$28:$GG$1800,10+AP$9,FALSE) -> 67793 | AQ29: =VLOOKUP(Tab2_Rohdaten!$B47,Tab2_Rohdaten!$A$28:$GG$1800,10+AQ$9,FALSE) -> 67699 | AR29: =VLOOKUP(Tab2_Rohdaten!$B47,Tab2_Rohdaten!$A$28:$GG$1800,10+AR$9,FALSE) -> 68352 | AS29: =VLOOKUP(Tab2_Rohdaten!$B47,Tab2_Rohdaten!$A$28:$GG$1800,10+AS$9,FALSE) -> 69057 | AT29: =VLOOKUP(Tab2_Rohdaten!$B47,Tab2_Rohdaten!$A$28:$GG$1800,10+AT$9,FALSE) -> 68508 | AU29: =VLOOKUP(Tab2_Rohdaten!$B47,Tab2_Rohdaten!$A$28:$GG$1800,10+AU$9,FALSE) -> 68434 | AV29: =VLOOKUP(Tab2_Rohdaten!$B47,Tab2_Rohdaten!$A$28:$GG$1800,10+AV$9,FALSE) -> 68963 | AW29: =VLOOKUP(Tab2_Rohdaten!$B47,Tab2_Rohdaten!$A$28:$GG$1800,10+AW$9,FALSE) -> 69755 | AX29: =VLOOKUP(Tab2_Rohdaten!$B47,Tab2_Rohdaten!$A$28:$GG$1800,10+AX$9,FALSE) -> 69235 | AY29: =VLOOKUP(Tab2_Rohdaten!$B47,Tab2_Rohdaten!$A$28:$GG$1800,10+AY$9,FALSE) -> 69093 | AZ29: =VLOOKUP(Tab2_Rohdaten!$B47,Tab2_Rohdaten!$A$28:$GG$1800,10+AZ$9,FALSE) -> 69484 | BA29: =VLOOKUP(Tab2_Rohdaten!$B47,Tab2_Rohdaten!$A$28:$GG$1800,10+BA$9,FALSE) -> 70435 | BB29: =VLOOKUP(Tab2_Rohdaten!$B47,Tab2_Rohdaten!$A$28:$GG$1800,10+BB$9,FALSE) -> 70207 | BC29: =VLOOKUP(Tab2_Rohdaten!$B47,Tab2_Rohdaten!$A$28:$GG$1800,10+BC$9,FALSE) -> 70052 | BD29: =VLOOKUP(Tab2_Rohdaten!$B47,Tab2_Rohdaten!$A$28:$GG$1800,10+BD$9,FALSE) -> 70168 | BE29: =VLOOKUP(Tab2_Rohdaten!$B47,Tab2_Rohdaten!$A$28:$GG$1800,10+BE$9,FALSE) -> 71141 | BF29: =VLOOKUP(Tab2_Rohdaten!$B47,Tab2_Rohdaten!$A$28:$GG$1800,10+BF$9,FALSE) -> 70809 | BG29: =VLOOKUP(Tab2_Rohdaten!$B47,Tab2_Rohdaten!$A$28:$GG$1800,10+BG$9,FALSE) -> 70397 | BH29: =VLOOKUP(Tab2_Rohdaten!$B47,Tab2_Rohdaten!$A$28:$GG$1800,10+BH$9,FALSE) -> 69841 | BI29: =VLOOKUP(Tab2_Rohdaten!$B47,Tab2_Rohdaten!$A$28:$GG$1800,10+BI$9,FALSE) -> 70668 | BJ29: =VLOOKUP(Tab2_Rohdaten!$B47,Tab2_Rohdaten!$A$28:$GG$1800,10+BJ$9,FALSE) -> 70569 | BK29: =VLOOKUP(Tab2_Rohdaten!$B47,Tab2_Rohdaten!$A$28:$GG$1800,10+BK$9,FALSE) -> 70013 | BL29: =VLOOKUP(Tab2_Rohdaten!$B47,Tab2_Rohdaten!$A$28:$GG$1800,10+BL$9,FALSE) -> 70121 | BM29: =VLOOKUP(Tab2_Rohdaten!$B47,Tab2_Rohdaten!$A$28:$GG$1800,10+BM$9,FALSE) -> 71198 | BN29: =VLOOKUP(Tab2_Rohdaten!$B47,Tab2_Rohdaten!$A$28:$GG$1800,10+BN$9,FALSE) -> 71093 | BO29: =VLOOKUP(Tab2_Rohdaten!$B47,Tab2_Rohdaten!$A$28:$GG$1800,10+BO$9,FALSE) -> 70859
A30: =VLOOKUP(Tab2_Rohdaten!$B48,Tab2_Rohdaten!$A$28:$GG$1800,9,FALSE) -> JC Märkisch-Oderland | B30: =VLOOKUP(Tab2_Rohdaten!$B48,Tab2_Rohdaten!$A$28:$GG$1800,10,FALSE) -> 03708 | C30: =VLOOKUP(Tab2_Rohdaten!$B48,Tab2_Rohdaten!$A$28:$GG$1800,10+C$9,FALSE) -> 60901 | D30: =VLOOKUP(Tab2_Rohdaten!$B48,Tab2_Rohdaten!$A$28:$GG$1800,10+D$9,FALSE) -> 63725 | E30: =VLOOKUP(Tab2_Rohdaten!$B48,Tab2_Rohdaten!$A$28:$GG$1800,10+E$9,FALSE) -> 65503 | F30: =VLOOKUP(Tab2_Rohdaten!$B48,Tab2_Rohdaten!$A$28:$GG$1800,10+F$9,FALSE) -> 64746 | G30: =VLOOKUP(Tab2_Rohdaten!$B48,Tab2_Rohdaten!$A$28:$GG$1800,10+G$9,FALSE) -> 64669 | H30: =VLOOKUP(Tab2_Rohdaten!$B48,Tab2_Rohdaten!$A$28:$GG$1800,10+H$9,FALSE) -> 66024 | I30: =VLOOKUP(Tab2_Rohdaten!$B48,Tab2_Rohdaten!$A$28:$GG$1800,10+I$9,FALSE) -> 67680 | J30: =VLOOKUP(Tab2_Rohdaten!$B48,Tab2_Rohdaten!$A$28:$GG$1800,10+J$9,FALSE) -> 66588 | K30: =VLOOKUP(Tab2_Rohdaten!$B48,Tab2_Rohdaten!$A$28:$GG$1800,10+K$9,FALSE) -> 66116 | L30: =VLOOKUP(Tab2_Rohdaten!$B48,Tab2_Rohdaten!$A$28:$GG$1800,10+L$9,FALSE) -> 67659 | M30: =VLOOKUP(Tab2_Rohdaten!$B48,Tab2_Rohdaten!$A$28:$GG$1800,10+M$9,FALSE) -> 69032 | N30: =VLOOKUP(Tab2_Rohdaten!$B48,Tab2_Rohdaten!$A$28:$GG$1800,10+N$9,FALSE) -> 67801 | O30: =VLOOKUP(Tab2_Rohdaten!$B48,Tab2_Rohdaten!$A$28:$GG$1800,10+O$9,FALSE) -> 66682 | P30: =VLOOKUP(Tab2_Rohdaten!$B48,Tab2_Rohdaten!$A$28:$GG$1800,10+P$9,FALSE) -> 67955 | Q30: =VLOOKUP(Tab2_Rohdaten!$B48,Tab2_Rohdaten!$A$28:$GG$1800,10+Q$9,FALSE) -> 69426 | R30: =VLOOKUP(Tab2_Rohdaten!$B48,Tab2_Rohdaten!$A$28:$GG$1800,10+R$9,FALSE) -> 68083 | S30: =VLOOKUP(Tab2_Rohdaten!$B48,Tab2_Rohdaten!$A$28:$GG$1800,10+S$9,FALSE) -> 67077 | T30: =VLOOKUP(Tab2_Rohdaten!$B48,Tab2_Rohdaten!$A$28:$GG$1800,10+T$9,FALSE) -> 68223 | U30: =VLOOKUP(Tab2_Rohdaten!$B48,Tab2_Rohdaten!$A$28:$GG$1800,10+U$9,FALSE) -> 69589 | V30: =VLOOKUP(Tab2_Rohdaten!$B48,Tab2_Rohdaten!$A$28:$GG$1800,10+V$9,FALSE) -> 68041 | W30: =VLOOKUP(Tab2_Rohdaten!$B48,Tab2_Rohdaten!$A$28:$GG$1800,10+W$9,FALSE) -> 67650 | X30: =VLOOKUP(Tab2_Rohdaten!$B48,Tab2_Rohdaten!$A$28:$GG$1800,10+X$9,FALSE) -> 68861 | Y30: =VLOOKUP(Tab2_Rohdaten!$B48,Tab2_Rohdaten!$A$28:$GG$1800,10+Y$9,FALSE) -> 69791 | Z30: =VLOOKUP(Tab2_Rohdaten!$B48,Tab2_Rohdaten!$A$28:$GG$1800,10+Z$9,FALSE) -> 68667 | AA30: =VLOOKUP(Tab2_Rohdaten!$B48,Tab2_Rohdaten!$A$28:$GG$1800,10+AA$9,FALSE) -> 68596 | AB30: =VLOOKUP(Tab2_Rohdaten!$B48,Tab2_Rohdaten!$A$28:$GG$1800,10+AB$9,FALSE) -> 69499 | AC30: =VLOOKUP(Tab2_Rohdaten!$B48,Tab2_Rohdaten!$A$28:$GG$1800,10+AC$9,FALSE) -> 70410 | AD30: =VLOOKUP(Tab2_Rohdaten!$B48,Tab2_Rohdaten!$A$28:$GG$1800,10+AD$9,FALSE) -> 69206 | AE30: =VLOOKUP(Tab2_Rohdaten!$B48,Tab2_Rohdaten!$A$28:$GG$1800,10+AE$9,FALSE) -> 68694 | AF30: =VLOOKUP(Tab2_Rohdaten!$B48,Tab2_Rohdaten!$A$28:$GG$1800,10+AF$9,FALSE) -> 69809 | AG30: =VLOOKUP(Tab2_Rohdaten!$B48,Tab2_Rohdaten!$A$28:$GG$1800,10+AG$9,FALSE) -> 70836 | AH30: =VLOOKUP(Tab2_Rohdaten!$B48,Tab2_Rohdaten!$A$28:$GG$1800,10+AH$9,FALSE) -> 69615 | AI30: =VLOOKUP(Tab2_Rohdaten!$B48,Tab2_Rohdaten!$A$28:$GG$1800,10+AI$9,FALSE) -> 69612 | AJ30: =VLOOKUP(Tab2_Rohdaten!$B48,Tab2_Rohdaten!$A$28:$GG$1800,10+AJ$9,FALSE) -> 70558 | AK30: =VLOOKUP(Tab2_Rohdaten!$B48,Tab2_Rohdaten!$A$28:$GG$1800,10+AK$9,FALSE) -> 71537 | AL30: =VLOOKUP(Tab2_Rohdaten!$B48,Tab2_Rohdaten!$A$28:$GG$1800,10+AL$9,FALSE) -> 70434 | AM30: =VLOOKUP(Tab2_Rohdaten!$B48,Tab2_Rohdaten!$A$28:$GG$1800,10+AM$9,FALSE) -> 71240 | AN30: =VLOOKUP(Tab2_Rohdaten!$B48,Tab2_Rohdaten!$A$28:$GG$1800,10+AN$9,FALSE) -> 72070 | AO30: =VLOOKUP(Tab2_Rohdaten!$B48,Tab2_Rohdaten!$A$28:$GG$1800,10+AO$9,FALSE) -> 72977 | AP30: =VLOOKUP(Tab2_Rohdaten!$B48,Tab2_Rohdaten!$A$28:$GG$1800,10+AP$9,FALSE) -> 72305 | AQ30: =VLOOKUP(Tab2_Rohdaten!$B48,Tab2_Rohdaten!$A$28:$GG$1800,10+AQ$9,FALSE) -> 72439 | AR30: =VLOOKUP(Tab2_Rohdaten!$B48,Tab2_Rohdaten!$A$28:$GG$1800,10+AR$9,FALSE) -> 73338 | AS30: =VLOOKUP(Tab2_Rohdaten!$B48,Tab2_Rohdaten!$A$28:$GG$1800,10+AS$9,FALSE) -> 74495 | AT30: =VLOOKUP(Tab2_Rohdaten!$B48,Tab2_Rohdaten!$A$28:$GG$1800,10+AT$9,FALSE) -> 73897 | AU30: =VLOOKUP(Tab2_Rohdaten!$B48,Tab2_Rohdaten!$A$28:$GG$1800,10+AU$9,FALSE) -> 74084 | AV30: =VLOOKUP(Tab2_Rohdaten!$B48,Tab2_Rohdaten!$A$28:$GG$1800,10+AV$9,FALSE) -> 74881 | AW30: =VLOOKUP(Tab2_Rohdaten!$B48,Tab2_Rohdaten!$A$28:$GG$1800,10+AW$9,FALSE) -> 76091 | AX30: =VLOOKUP(Tab2_Rohdaten!$B48,Tab2_Rohdaten!$A$28:$GG$1800,10+AX$9,FALSE) -> 75483 | AY30: =VLOOKUP(Tab2_Rohdaten!$B48,Tab2_Rohdaten!$A$28:$GG$1800,10+AY$9,FALSE) -> 75318 | AZ30: =VLOOKUP(Tab2_Rohdaten!$B48,Tab2_Rohdaten!$A$28:$GG$1800,10+AZ$9,FALSE) -> 76054 | BA30: =VLOOKUP(Tab2_Rohdaten!$B48,Tab2_Rohdaten!$A$28:$GG$1800,10+BA$9,FALSE) -> 77070 | BB30: =VLOOKUP(Tab2_Rohdaten!$B48,Tab2_Rohdaten!$A$28:$GG$1800,10+BB$9,FALSE) -> 76591 | BC30: =VLOOKUP(Tab2_Rohdaten!$B48,Tab2_Rohdaten!$A$28:$GG$1800,10+BC$9,FALSE) -> 76500 | BD30: =VLOOKUP(Tab2_Rohdaten!$B48,Tab2_Rohdaten!$A$28:$GG$1800,10+BD$9,FALSE) -> 76953 | BE30: =VLOOKUP(Tab2_Rohdaten!$B48,Tab2_Rohdaten!$A$28:$GG$1800,10+BE$9,FALSE) -> 78214 | BF30: =VLOOKUP(Tab2_Rohdaten!$B48,Tab2_Rohdaten!$A$28:$GG$1800,10+BF$9,FALSE) -> 77894 | BG30: =VLOOKUP(Tab2_Rohdaten!$B48,Tab2_Rohdaten!$A$28:$GG$1800,10+BG$9,FALSE) -> 77530 | BH30: =VLOOKUP(Tab2_Rohdaten!$B48,Tab2_Rohdaten!$A$28:$GG$1800,10+BH$9,FALSE) -> 77104 | BI30: =VLOOKUP(Tab2_Rohdaten!$B48,Tab2_Rohdaten!$A$28:$GG$1800,10+BI$9,FALSE) -> 78199 | BJ30: =VLOOKUP(Tab2_Rohdaten!$B48,Tab2_Rohdaten!$A$28:$GG$1800,10+BJ$9,FALSE) -> 77980 | BK30: =VLOOKUP(Tab2_Rohdaten!$B48,Tab2_Rohdaten!$A$28:$GG$1800,10+BK$9,FALSE) -> 77323 | BL30: =VLOOKUP(Tab2_Rohdaten!$B48,Tab2_Rohdaten!$A$28:$GG$1800,10+BL$9,FALSE) -> 77632 | BM30: =VLOOKUP(Tab2_Rohdaten!$B48,Tab2_Rohdaten!$A$28:$GG$1800,10+BM$9,FALSE) -> 78614 | BN30: =VLOOKUP(Tab2_Rohdaten!$B48,Tab2_Rohdaten!$A$28:$GG$1800,10+BN$9,FALSE) -> 78277 | BO30: =VLOOKUP(Tab2_Rohdaten!$B48,Tab2_Rohdaten!$A$28:$GG$1800,10+BO$9,FALSE) -> 78193
A31: =VLOOKUP(Tab2_Rohdaten!$B49,Tab2_Rohdaten!$A$28:$GG$1800,9,FALSE) -> JC Ostprignitz-Ruppin | B31: =VLOOKUP(Tab2_Rohdaten!$B49,Tab2_Rohdaten!$A$28:$GG$1800,10,FALSE) -> 03802 | C31: =VLOOKUP(Tab2_Rohdaten!$B49,Tab2_Rohdaten!$A$28:$GG$1800,10+C$9,FALSE) -> 33288 | D31: =VLOOKUP(Tab2_Rohdaten!$B49,Tab2_Rohdaten!$A$28:$GG$1800,10+D$9,FALSE) -> 34952 | E31: =VLOOKUP(Tab2_Rohdaten!$B49,Tab2_Rohdaten!$A$28:$GG$1800,10+E$9,FALSE) -> 35705 | F31: =VLOOKUP(Tab2_Rohdaten!$B49,Tab2_Rohdaten!$A$28:$GG$1800,10+F$9,FALSE) -> 35411 | G31: =VLOOKUP(Tab2_Rohdaten!$B49,Tab2_Rohdaten!$A$28:$GG$1800,10+G$9,FALSE) -> 35079 | H31: =VLOOKUP(Tab2_Rohdaten!$B49,Tab2_Rohdaten!$A$28:$GG$1800,10+H$9,FALSE) -> 35707 | I31: =VLOOKUP(Tab2_Rohdaten!$B49,Tab2_Rohdaten!$A$28:$GG$1800,10+I$9,FALSE) -> 36494 | J31: =VLOOKUP(Tab2_Rohdaten!$B49,Tab2_Rohdaten!$A$28:$GG$1800,10+J$9,FALSE) -> 35885 | K31: =VLOOKUP(Tab2_Rohdaten!$B49,Tab2_Rohdaten!$A$28:$GG$1800,10+K$9,FALSE) -> 35661 | L31: =VLOOKUP(Tab2_Rohdaten!$B49,Tab2_Rohdaten!$A$28:$GG$1800,10+L$9,FALSE) -> 36514 | M31: =VLOOKUP(Tab2_Rohdaten!$B49,Tab2_Rohdaten!$A$28:$GG$1800,10+M$9,FALSE) -> 37153 | N31: =VLOOKUP(Tab2_Rohdaten!$B49,Tab2_Rohdaten!$A$28:$GG$1800,10+N$9,FALSE) -> 36201 | O31: =VLOOKUP(Tab2_Rohdaten!$B49,Tab2_Rohdaten!$A$28:$GG$1800,10+O$9,FALSE) -> 35570 | P31: =VLOOKUP(Tab2_Rohdaten!$B49,Tab2_Rohdaten!$A$28:$GG$1800,10+P$9,FALSE) -> 36220 | Q31: =VLOOKUP(Tab2_Rohdaten!$B49,Tab2_Rohdaten!$A$28:$GG$1800,10+Q$9,FALSE) -> 36849 | R31: =VLOOKUP(Tab2_Rohdaten!$B49,Tab2_Rohdaten!$A$28:$GG$1800,10+R$9,FALSE) -> 36105 | S31: =VLOOKUP(Tab2_Rohdaten!$B49,Tab2_Rohdaten!$A$28:$GG$1800,10+S$9,FALSE) -> 35693 | T31: =VLOOKUP(Tab2_Rohdaten!$B49,Tab2_Rohdaten!$A$28:$GG$1800,10+T$9,FALSE) -> 36628 | U31: =VLOOKUP(Tab2_Rohdaten!$B49,Tab2_Rohdaten!$A$28:$GG$1800,10+U$9,FALSE) -> 37288 | V31: =VLOOKUP(Tab2_Rohdaten!$B49,Tab2_Rohdaten!$A$28:$GG$1800,10+V$9,FALSE) -> 36360 | W31: =VLOOKUP(Tab2_Rohdaten!$B49,Tab2_Rohdaten!$A$28:$GG$1800,10+W$9,FALSE) -> 36243 | X31: =VLOOKUP(Tab2_Rohdaten!$B49,Tab2_Rohdaten!$A$28:$GG$1800,10+X$9,FALSE) -> 36829 | Y31: =VLOOKUP(Tab2_Rohdaten!$B49,Tab2_Rohdaten!$A$28:$GG$1800,10+Y$9,FALSE) -> 37350 | Z31: =VLOOKUP(Tab2_Rohdaten!$B49,Tab2_Rohdaten!$A$28:$GG$1800,10+Z$9,FALSE) -> 36464 | AA31: =VLOOKUP(Tab2_Rohdaten!$B49,Tab2_Rohdaten!$A$28:$GG$1800,10+AA$9,FALSE) -> 36167 | AB31: =VLOOKUP(Tab2_Rohdaten!$B49,Tab2_Rohdaten!$A$28:$GG$1800,10+AB$9,FALSE) -> 36725 | AC31: =VLOOKUP(Tab2_Rohdaten!$B49,Tab2_Rohdaten!$A$28:$GG$1800,10+AC$9,FALSE) -> 37039 | AD31: =VLOOKUP(Tab2_Rohdaten!$B49,Tab2_Rohdaten!$A$28:$GG$1800,10+AD$9,FALSE) -> 36124 | AE31: =VLOOKUP(Tab2_Rohdaten!$B49,Tab2_Rohdaten!$A$28:$GG$1800,10+AE$9,FALSE) -> 35875 | AF31: =VLOOKUP(Tab2_Rohdaten!$B49,Tab2_Rohdaten!$A$28:$GG$1800,10+AF$9,FALSE) -> 36598 | AG31: =VLOOKUP(Tab2_Rohdaten!$B49,Tab2_Rohdaten!$A$28:$GG$1800,10+AG$9,FALSE) -> 37088 | AH31: =VLOOKUP(Tab2_Rohdaten!$B49,Tab2_Rohdaten!$A$28:$GG$1800,10+AH$9,FALSE) -> 36292 | AI31: =VLOOKUP(Tab2_Rohdaten!$B49,Tab2_Rohdaten!$A$28:$GG$1800,10+AI$9,FALSE) -> 36163 | AJ31: =VLOOKUP(Tab2_Rohdaten!$B49,Tab2_Rohdaten!$A$28:$GG$1800,10+AJ$9,FALSE) -> 36735 | AK31: =VLOOKUP(Tab2_Rohdaten!$B49,Tab2_Rohdaten!$A$28:$GG$1800,10+AK$9,FALSE) -> 37186 | AL31: =VLOOKUP(Tab2_Rohdaten!$B49,Tab2_Rohdaten!$A$28:$GG$1800,10+AL$9,FALSE) -> 36276 | AM31: =VLOOKUP(Tab2_Rohdaten!$B49,Tab2_Rohdaten!$A$28:$GG$1800,10+AM$9,FALSE) -> 36501 | AN31: =VLOOKUP(Tab2_Rohdaten!$B49,Tab2_Rohdaten!$A$28:$GG$1800,10+AN$9,FALSE) -> 37168 | AO31: =VLOOKUP(Tab2_Rohdaten!$B49,Tab2_Rohdaten!$A$28:$GG$1800,10+AO$9,FALSE) -> 37637 | AP31: =VLOOKUP(Tab2_Rohdaten!$B49,Tab2_Rohdaten!$A$28:$GG$1800,10+AP$9,FALSE) -> 36899 | AQ31: =VLOOKUP(Tab2_Rohdaten!$B49,Tab2_Rohdaten!$A$28:$GG$1800,10+AQ$9,FALSE) -> 36776 | AR31: =VLOOKUP(Tab2_Rohdaten!$B49,Tab2_Rohdaten!$A$28:$GG$1800,10+AR$9,FALSE) -> 37410 | AS31: =VLOOKUP(Tab2_Rohdaten!$B49,Tab2_Rohdaten!$A$28:$GG$1800,10+AS$9,FALSE) -> 38005 | AT31: =VLOOKUP(Tab2_Rohdaten!$B49,Tab2_Rohdaten!$A$28:$GG$1800,10+AT$9,FALSE) -> 37456 | AU31: =VLOOKUP(Tab2_Rohdaten!$B49,Tab2_Rohdaten!$A$28:$GG$1800,10+AU$9,FALSE) -> 37420 | AV31: =VLOOKUP(Tab2_Rohdaten!$B49,Tab2_Rohdaten!$A$28:$GG$1800,10+AV$9,FALSE) -> 38006 | AW31: =VLOOKUP(Tab2_Rohdaten!$B49,Tab2_Rohdaten!$A$28:$GG$1800,10+AW$9,FALSE) -> 38646 | AX31: =VLOOKUP(Tab2_Rohdaten!$B49,Tab2_Rohdaten!$A$28:$GG$1800,10+AX$9,FALSE) -> 38054 | AY31: =VLOOKUP(Tab2_Rohdaten!$B49,Tab2_Rohdaten!$A$28:$GG$1800,10+AY$9,FALSE) -> 37852 | AZ31: =VLOOKUP(Tab2_Rohdaten!$B49,Tab2_Rohdaten!$A$28:$GG$1800,10+AZ$9,FALSE) -> 38324 | BA31: =VLOOKUP(Tab2_Rohdaten!$B49,Tab2_Rohdaten!$A$28:$GG$1800,10+BA$9,FALSE) -> 38792 | BB31: =VLOOKUP(Tab2_Rohdaten!$B49,Tab2_Rohdaten!$A$28:$GG$1800,10+BB$9,FALSE) -> 38318 | BC31: =VLOOKUP(Tab2_Rohdaten!$B49,Tab2_Rohdaten!$A$28:$GG$1800,10+BC$9,FALSE) -> 38177 | BD31: =VLOOKUP(Tab2_Rohdaten!$B49,Tab2_Rohdaten!$A$28:$GG$1800,10+BD$9,FALSE) -> 38477 | BE31: =VLOOKUP(Tab2_Rohdaten!$B49,Tab2_Rohdaten!$A$28:$GG$1800,10+BE$9,FALSE) -> 38970 | BF31: =VLOOKUP(Tab2_Rohdaten!$B49,Tab2_Rohdaten!$A$28:$GG$1800,10+BF$9,FALSE) -> 38560 | BG31: =VLOOKUP(Tab2_Rohdaten!$B49,Tab2_Rohdaten!$A$28:$GG$1800,10+BG$9,FALSE) -> 38297 | BH31: =VLOOKUP(Tab2_Rohdaten!$B49,Tab2_Rohdaten!$A$28:$GG$1800,10+BH$9,FALSE) -> 38078 | BI31: =VLOOKUP(Tab2_Rohdaten!$B49,Tab2_Rohdaten!$A$28:$GG$1800,10+BI$9,FALSE) -> 38604 | BJ31: =VLOOKUP(Tab2_Rohdaten!$B49,Tab2_Rohdaten!$A$28:$GG$1800,10+BJ$9,FALSE) -> 38321 | BK31: =VLOOKUP(Tab2_Rohdaten!$B49,Tab2_Rohdaten!$A$28:$GG$1800,10+BK$9,FALSE) -> 38043 | BL31: =VLOOKUP(Tab2_Rohdaten!$B49,Tab2_Rohdaten!$A$28:$GG$1800,10+BL$9,FALSE) -> 38240 | BM31: =VLOOKUP(Tab2_Rohdaten!$B49,Tab2_Rohdaten!$A$28:$GG$1800,10+BM$9,FALSE) -> 38817 | BN31: =VLOOKUP(Tab2_Rohdaten!$B49,Tab2_Rohdaten!$A$28:$GG$1800,10+BN$9,FALSE) -> 38572 | BO31: =VLOOKUP(Tab2_Rohdaten!$B49,Tab2_Rohdaten!$A$28:$GG$1800,10+BO$9,FALSE) -> 38382
A32: =VLOOKUP(Tab2_Rohdaten!$B50,Tab2_Rohdaten!$A$28:$GG$1800,9,FALSE) -> JC Prignitz | B32: =VLOOKUP(Tab2_Rohdaten!$B50,Tab2_Rohdaten!$A$28:$GG$1800,10,FALSE) -> 03804 | C32: =VLOOKUP(Tab2_Rohdaten!$B50,Tab2_Rohdaten!$A$28:$GG$1800,10+C$9,FALSE) -> 26643 | D32: =VLOOKUP(Tab2_Rohdaten!$B50,Tab2_Rohdaten!$A$28:$GG$1800,10+D$9,FALSE) -> 27585 | E32: =VLOOKUP(Tab2_Rohdaten!$B50,Tab2_Rohdaten!$A$28:$GG$1800,10+E$9,FALSE) -> 28073 | F32: =VLOOKUP(Tab2_Rohdaten!$B50,Tab2_Rohdaten!$A$28:$GG$1800,10+F$9,FALSE) -> 27939 | G32: =VLOOKUP(Tab2_Rohdaten!$B50,Tab2_Rohdaten!$A$28:$GG$1800,10+G$9,FALSE) -> 27634 | H32: =VLOOKUP(Tab2_Rohdaten!$B50,Tab2_Rohdaten!$A$28:$GG$1800,10+H$9,FALSE) -> 27990 | I32: =VLOOKUP(Tab2_Rohdaten!$B50,Tab2_Rohdaten!$A$28:$GG$1800,10+I$9,FALSE) -> 28760 | J32: =VLOOKUP(Tab2_Rohdaten!$B50,Tab2_Rohdaten!$A$28:$GG$1800,10+J$9,FALSE) -> 28371 | K32: =VLOOKUP(Tab2_Rohdaten!$B50,Tab2_Rohdaten!$A$28:$GG$1800,10+K$9,FALSE) -> 28126 | L32: =VLOOKUP(Tab2_Rohdaten!$B50,Tab2_Rohdaten!$A$28:$GG$1800,10+L$9,FALSE) -> 28646 | M32: =VLOOKUP(Tab2_Rohdaten!$B50,Tab2_Rohdaten!$A$28:$GG$1800,10+M$9,FALSE) -> 29163 | N32: =VLOOKUP(Tab2_Rohdaten!$B50,Tab2_Rohdaten!$A$28:$GG$1800,10+N$9,FALSE) -> 28521 | O32: =VLOOKUP(Tab2_Rohdaten!$B50,Tab2_Rohdaten!$A$28:$GG$1800,10+O$9,FALSE) -> 28001 | P32: =VLOOKUP(Tab2_Rohdaten!$B50,Tab2_Rohdaten!$A$28:$GG$1800,10+P$9,FALSE) -> 28256 | Q32: =VLOOKUP(Tab2_Rohdaten!$B50,Tab2_Rohdaten!$A$28:$GG$1800,10+Q$9,FALSE) -> 28699 | R32: =VLOOKUP(Tab2_Rohdaten!$B50,Tab2_Rohdaten!$A$28:$GG$1800,10+R$9,FALSE) -> 28187 | S32: =VLOOKUP(Tab2_Rohdaten!$B50,Tab2_Rohdaten!$A$28:$GG$1800,10+S$9,FALSE) -> 27840 | T32: =VLOOKUP(Tab2_Rohdaten!$B50,Tab2_Rohdaten!$A$28:$GG$1800,10+T$9,FALSE) -> 28362 | U32: =VLOOKUP(Tab2_Rohdaten!$B50,Tab2_Rohdaten!$A$28:$GG$1800,10+U$9,FALSE) -> 28885 | V32: =VLOOKUP(Tab2_Rohdaten!$B50,Tab2_Rohdaten!$A$28:$GG$1800,10+V$9,FALSE) -> 28208 | W32: =VLOOKUP(Tab2_Rohdaten!$B50,Tab2_Rohdaten!$A$28:$GG$1800,10+W$9,FALSE) -> 27982 | X32: =VLOOKUP(Tab2_Rohdaten!$B50,Tab2_Rohdaten!$A$28:$GG$1800,10+X$9,FALSE) -> 28342 | Y32: =VLOOKUP(Tab2_Rohdaten!$B50,Tab2_Rohdaten!$A$28:$GG$1800,10+Y$9,FALSE) -> 28689 | Z32: =VLOOKUP(Tab2_Rohdaten!$B50,Tab2_Rohdaten!$A$28:$GG$1800,10+Z$9,FALSE) -> 28153 | AA32: =VLOOKUP(Tab2_Rohdaten!$B50,Tab2_Rohdaten!$A$28:$GG$1800,10+AA$9,FALSE) -> 27834 | AB32: =VLOOKUP(Tab2_Rohdaten!$B50,Tab2_Rohdaten!$A$28:$GG$1800,10+AB$9,FALSE) -> 28193 | AC32: =VLOOKUP(Tab2_Rohdaten!$B50,Tab2_Rohdaten!$A$28:$GG$1800,10+AC$9,FALSE) -> 28472 | AD32: =VLOOKUP(Tab2_Rohdaten!$B50,Tab2_Rohdaten!$A$28:$GG$1800,10+AD$9,FALSE) -> 28040 | AE32: =VLOOKUP(Tab2_Rohdaten!$B50,Tab2_Rohdaten!$A$28:$GG$1800,10+AE$9,FALSE) -> 27770 | AF32: =VLOOKUP(Tab2_Rohdaten!$B50,Tab2_Rohdaten!$A$28:$GG$1800,10+AF$9,FALSE) -> 28175 | AG32: =VLOOKUP(Tab2_Rohdaten!$B50,Tab2_Rohdaten!$A$28:$GG$1800,10+AG$9,FALSE) -> 28561 | AH32: =VLOOKUP(Tab2_Rohdaten!$B50,Tab2_Rohdaten!$A$28:$GG$1800,10+AH$9,FALSE) -> 27967 | AI32: =VLOOKUP(Tab2_Rohdaten!$B50,Tab2_Rohdaten!$A$28:$GG$1800,10+AI$9,FALSE) -> 27884 | AJ32: =VLOOKUP(Tab2_Rohdaten!$B50,Tab2_Rohdaten!$A$28:$GG$1800,10+AJ$9,FALSE) -> 28284 | AK32: =VLOOKUP(Tab2_Rohdaten!$B50,Tab2_Rohdaten!$A$28:$GG$1800,10+AK$9,FALSE) -> 28599 | AL32: =VLOOKUP(Tab2_Rohdaten!$B50,Tab2_Rohdaten!$A$28:$GG$1800,10+AL$9,FALSE) -> 28157 | AM32: =VLOOKUP(Tab2_Rohdaten!$B50,Tab2_Rohdaten!$A$28:$GG$1800,10+AM$9,FALSE) -> 28370 | AN32: =VLOOKUP(Tab2_Rohdaten!$B50,Tab2_Rohdaten!$A$28:$GG$1800,10+AN$9,FALSE) -> 28665 | AO32: =VLOOKUP(Tab2_Rohdaten!$B50,Tab2_Rohdaten!$A$28:$GG$1800,10+AO$9,FALSE) -> 29033 | AP32: =VLOOKUP(Tab2_Rohdaten!$B50,Tab2_Rohdaten!$A$28:$GG$1800,10+AP$9,FALSE) -> 28556 | AQ32: =VLOOKUP(Tab2_Rohdaten!$B50,Tab2_Rohdaten!$A$28:$GG$1800,10+AQ$9,FALSE) -> 28565 | AR32: =VLOOKUP(Tab2_Rohdaten!$B50,Tab2_Rohdaten!$A$28:$GG$1800,10+AR$9,FALSE) -> 28823 | AS32: =VLOOKUP(Tab2_Rohdaten!$B50,Tab2_Rohdaten!$A$28:$GG$1800,10+AS$9,FALSE) -> 29130 | AT32: =VLOOKUP(Tab2_Rohdaten!$B50,Tab2_Rohdaten!$A$28:$GG$1800,10+AT$9,FALSE) -> 28737 | AU32: =VLOOKUP(Tab2_Rohdaten!$B50,Tab2_Rohdaten!$A$28:$GG$1800,10+AU$9,FALSE) -> 28701 | AV32: =VLOOKUP(Tab2_Rohdaten!$B50,Tab2_Rohdaten!$A$28:$GG$1800,10+AV$9,FALSE) -> 28957 | AW32: =VLOOKUP(Tab2_Rohdaten!$B50,Tab2_Rohdaten!$A$28:$GG$1800,10+AW$9,FALSE) -> 29362 | AX32: =VLOOKUP(Tab2_Rohdaten!$B50,Tab2_Rohdaten!$A$28:$GG$1800,10+AX$9,FALSE) -> 29094 | AY32: =VLOOKUP(Tab2_Rohdaten!$B50,Tab2_Rohdaten!$A$28:$GG$1800,10+AY$9,FALSE) -> 29035 | AZ32: =VLOOKUP(Tab2_Rohdaten!$B50,Tab2_Rohdaten!$A$28:$GG$1800,10+AZ$9,FALSE) -> 29301 | BA32: =VLOOKUP(Tab2_Rohdaten!$B50,Tab2_Rohdaten!$A$28:$GG$1800,10+BA$9,FALSE) -> 29583 | BB32: =VLOOKUP(Tab2_Rohdaten!$B50,Tab2_Rohdaten!$A$28:$GG$1800,10+BB$9,FALSE) -> 29267 | BC32: =VLOOKUP(Tab2_Rohdaten!$B50,Tab2_Rohdaten!$A$28:$GG$1800,10+BC$9,FALSE) -> 29183 | BD32: =VLOOKUP(Tab2_Rohdaten!$B50,Tab2_Rohdaten!$A$28:$GG$1800,10+BD$9,FALSE) -> 29271 | BE32: =VLOOKUP(Tab2_Rohdaten!$B50,Tab2_Rohdaten!$A$28:$GG$1800,10+BE$9,FALSE) -> 29789 | BF32: =VLOOKUP(Tab2_Rohdaten!$B50,Tab2_Rohdaten!$A$28:$GG$1800,10+BF$9,FALSE) -> 29493 | BG32: =VLOOKUP(Tab2_Rohdaten!$B50,Tab2_Rohdaten!$A$28:$GG$1800,10+BG$9,FALSE) -> 29393 | BH32: =VLOOKUP(Tab2_Rohdaten!$B50,Tab2_Rohdaten!$A$28:$GG$1800,10+BH$9,FALSE) -> 29130 | BI32: =VLOOKUP(Tab2_Rohdaten!$B50,Tab2_Rohdaten!$A$28:$GG$1800,10+BI$9,FALSE) -> 29548 | BJ32: =VLOOKUP(Tab2_Rohdaten!$B50,Tab2_Rohdaten!$A$28:$GG$1800,10+BJ$9,FALSE) -> 29320 | BK32: =VLOOKUP(Tab2_Rohdaten!$B50,Tab2_Rohdaten!$A$28:$GG$1800,10+BK$9,FALSE) -> 29062 | BL32: =VLOOKUP(Tab2_Rohdaten!$B50,Tab2_Rohdaten!$A$28:$GG$1800,10+BL$9,FALSE) -> 29140 | BM32: =VLOOKUP(Tab2_Rohdaten!$B50,Tab2_Rohdaten!$A$28:$GG$1800,10+BM$9,FALSE) -> 29561 | BN32: =VLOOKUP(Tab2_Rohdaten!$B50,Tab2_Rohdaten!$A$28:$GG$1800,10+BN$9,FALSE) -> 29357 | BO32: =VLOOKUP(Tab2_Rohdaten!$B50,Tab2_Rohdaten!$A$28:$GG$1800,10+BO$9,FALSE) -> 29204
A33: =VLOOKUP(Tab2_Rohdaten!$B51,Tab2_Rohdaten!$A$28:$GG$1800,9,FALSE) -> JC Oberhavel | B33: =VLOOKUP(Tab2_Rohdaten!$B51,Tab2_Rohdaten!$A$28:$GG$1800,10,FALSE) -> 03806 | C33: =VLOOKUP(Tab2_Rohdaten!$B51,Tab2_Rohdaten!$A$28:$GG$1800,10+C$9,FALSE) -> 65510 | D33: =VLOOKUP(Tab2_Rohdaten!$B51,Tab2_Rohdaten!$A$28:$GG$1800,10+D$9,FALSE) -> 67434 | E33: =VLOOKUP(Tab2_Rohdaten!$B51,Tab2_Rohdaten!$A$28:$GG$1800,10+E$9,FALSE) -> 68701 | F33: =VLOOKUP(Tab2_Rohdaten!$B51,Tab2_Rohdaten!$A$28:$GG$1800,10+F$9,FALSE) -> 68838 | G33: =VLOOKUP(Tab2_Rohdaten!$B51,Tab2_Rohdaten!$A$28:$GG$1800,10+G$9,FALSE) -> 68602 | H33: =VLOOKUP(Tab2_Rohdaten!$B51,Tab2_Rohdaten!$A$28:$GG$1800,10+H$9,FALSE) -> 69707 | I33: =VLOOKUP(Tab2_Rohdaten!$B51,Tab2_Rohdaten!$A$28:$GG$1800,10+I$9,FALSE) -> 71342 | J33: =VLOOKUP(Tab2_Rohdaten!$B51,Tab2_Rohdaten!$A$28:$GG$1800,10+J$9,FALSE) -> 70988 | K33: =VLOOKUP(Tab2_Rohdaten!$B51,Tab2_Rohdaten!$A$28:$GG$1800,10+K$9,FALSE) -> 70708 | L33: =VLOOKUP(Tab2_Rohdaten!$B51,Tab2_Rohdaten!$A$28:$GG$1800,10+L$9,FALSE) -> 71711 | M33: =VLOOKUP(Tab2_Rohdaten!$B51,Tab2_Rohdaten!$A$28:$GG$1800,10+M$9,FALSE) -> 72937 | N33: =VLOOKUP(Tab2_Rohdaten!$B51,Tab2_Rohdaten!$A$28:$GG$1800,10+N$9,FALSE) -> 72353 | O33: =VLOOKUP(Tab2_Rohdaten!$B51,Tab2_Rohdaten!$A$28:$GG$1800,10+O$9,FALSE) -> 71488 | P33: =VLOOKUP(Tab2_Rohdaten!$B51,Tab2_Rohdaten!$A$28:$GG$1800,10+P$9,FALSE) -> 72386 | Q33: =VLOOKUP(Tab2_Rohdaten!$B51,Tab2_Rohdaten!$A$28:$GG$1800,10+Q$9,FALSE) -> 73607 | R33: =VLOOKUP(Tab2_Rohdaten!$B51,Tab2_Rohdaten!$A$28:$GG$1800,10+R$9,FALSE) -> 73066 | S33: =VLOOKUP(Tab2_Rohdaten!$B51,Tab2_Rohdaten!$A$28:$GG$1800,10+S$9,FALSE) -> 72502 | T33: =VLOOKUP(Tab2_Rohdaten!$B51,Tab2_Rohdaten!$A$28:$GG$1800,10+T$9,FALSE) -> 73831 | U33: =VLOOKUP(Tab2_Rohdaten!$B51,Tab2_Rohdaten!$A$28:$GG$1800,10+U$9,FALSE) -> 75288 | V33: =VLOOKUP(Tab2_Rohdaten!$B51,Tab2_Rohdaten!$A$28:$GG$1800,10+V$9,FALSE) -> 74590 | W33: =VLOOKUP(Tab2_Rohdaten!$B51,Tab2_Rohdaten!$A$28:$GG$1800,10+W$9,FALSE) -> 74374 | X33: =VLOOKUP(Tab2_Rohdaten!$B51,Tab2_Rohdaten!$A$28:$GG$1800,10+X$9,FALSE) -> 75520 | Y33: =VLOOKUP(Tab2_Rohdaten!$B51,Tab2_Rohdaten!$A$28:$GG$1800,10+Y$9,FALSE) -> 76714 | Z33: =VLOOKUP(Tab2_Rohdaten!$B51,Tab2_Rohdaten!$A$28:$GG$1800,10+Z$9,FALSE) -> 76321 | AA33: =VLOOKUP(Tab2_Rohdaten!$B51,Tab2_Rohdaten!$A$28:$GG$1800,10+AA$9,FALSE) -> 76146 | AB33: =VLOOKUP(Tab2_Rohdaten!$B51,Tab2_Rohdaten!$A$28:$GG$1800,10+AB$9,FALSE) -> 77010 | AC33: =VLOOKUP(Tab2_Rohdaten!$B51,Tab2_Rohdaten!$A$28:$GG$1800,10+AC$9,FALSE) -> 78002 | AD33: =VLOOKUP(Tab2_Rohdaten!$B51,Tab2_Rohdaten!$A$28:$GG$1800,10+AD$9,FALSE) -> 77004 | AE33: =VLOOKUP(Tab2_Rohdaten!$B51,Tab2_Rohdaten!$A$28:$GG$1800,10+AE$9,FALSE) -> 76649 | AF33: =VLOOKUP(Tab2_Rohdaten!$B51,Tab2_Rohdaten!$A$28:$GG$1800,10+AF$9,FALSE) -> 77536 | AG33: =VLOOKUP(Tab2_Rohdaten!$B51,Tab2_Rohdaten!$A$28:$GG$1800,10+AG$9,FALSE) -> 78666 | AH33: =VLOOKUP(Tab2_Rohdaten!$B51,Tab2_Rohdaten!$A$28:$GG$1800,10+AH$9,FALSE) -> 77954 | AI33: =VLOOKUP(Tab2_Rohdaten!$B51,Tab2_Rohdaten!$A$28:$GG$1800,10+AI$9,FALSE) -> 77919 | AJ33: =VLOOKUP(Tab2_Rohdaten!$B51,Tab2_Rohdaten!$A$28:$GG$1800,10+AJ$9,FALSE) -> 78705 | AK33: =VLOOKUP(Tab2_Rohdaten!$B51,Tab2_Rohdaten!$A$28:$GG$1800,10+AK$9,FALSE) -> 79889 | AL33: =VLOOKUP(Tab2_Rohdaten!$B51,Tab2_Rohdaten!$A$28:$GG$1800,10+AL$9,FALSE) -> 79208 | AM33: =VLOOKUP(Tab2_Rohdaten!$B51,Tab2_Rohdaten!$A$28:$GG$1800,10+AM$9,FALSE) -> 79355 | AN33: =VLOOKUP(Tab2_Rohdaten!$B51,Tab2_Rohdaten!$A$28:$GG$1800,10+AN$9,FALSE) -> 80121 | AO33: =VLOOKUP(Tab2_Rohdaten!$B51,Tab2_Rohdaten!$A$28:$GG$1800,10+AO$9,FALSE) -> 81110 | AP33: =VLOOKUP(Tab2_Rohdaten!$B51,Tab2_Rohdaten!$A$28:$GG$1800,10+AP$9,FALSE) -> 80335 | AQ33: =VLOOKUP(Tab2_Rohdaten!$B51,Tab2_Rohdaten!$A$28:$GG$1800,10+AQ$9,FALSE) -> 80273 | AR33: =VLOOKUP(Tab2_Rohdaten!$B51,Tab2_Rohdaten!$A$28:$GG$1800,10+AR$9,FALSE) -> 81012 | AS33: =VLOOKUP(Tab2_Rohdaten!$B51,Tab2_Rohdaten!$A$28:$GG$1800,10+AS$9,FALSE) -> 82159 | AT33: =VLOOKUP(Tab2_Rohdaten!$B51,Tab2_Rohdaten!$A$28:$GG$1800,10+AT$9,FALSE) -> 81805 | AU33: =VLOOKUP(Tab2_Rohdaten!$B51,Tab2_Rohdaten!$A$28:$GG$1800,10+AU$9,FALSE) -> 81821 | AV33: =VLOOKUP(Tab2_Rohdaten!$B51,Tab2_Rohdaten!$A$28:$GG$1800,10+AV$9,FALSE) -> 82492 | AW33: =VLOOKUP(Tab2_Rohdaten!$B51,Tab2_Rohdaten!$A$28:$GG$1800,10+AW$9,FALSE) -> 83748 | AX33: =VLOOKUP(Tab2_Rohdaten!$B51,Tab2_Rohdaten!$A$28:$GG$1800,10+AX$9,FALSE) -> 83482 | AY33: =VLOOKUP(Tab2_Rohdaten!$B51,Tab2_Rohdaten!$A$28:$GG$1800,10+AY$9,FALSE) -> 83532 | AZ33: =VLOOKUP(Tab2_Rohdaten!$B51,Tab2_Rohdaten!$A$28:$GG$1800,10+AZ$9,FALSE) -> 84129 | BA33: =VLOOKUP(Tab2_Rohdaten!$B51,Tab2_Rohdaten!$A$28:$GG$1800,10+BA$9,FALSE) -> 85456 | BB33: =VLOOKUP(Tab2_Rohdaten!$B51,Tab2_Rohdaten!$A$28:$GG$1800,10+BB$9,FALSE) -> 85130 | BC33: =VLOOKUP(Tab2_Rohdaten!$B51,Tab2_Rohdaten!$A$28:$GG$1800,10+BC$9,FALSE) -> 85207 | BD33: =VLOOKUP(Tab2_Rohdaten!$B51,Tab2_Rohdaten!$A$28:$GG$1800,10+BD$9,FALSE) -> 85618 | BE33: =VLOOKUP(Tab2_Rohdaten!$B51,Tab2_Rohdaten!$A$28:$GG$1800,10+BE$9,FALSE) -> 86921 | BF33: =VLOOKUP(Tab2_Rohdaten!$B51,Tab2_Rohdaten!$A$28:$GG$1800,10+BF$9,FALSE) -> 86885 | BG33: =VLOOKUP(Tab2_Rohdaten!$B51,Tab2_Rohdaten!$A$28:$GG$1800,10+BG$9,FALSE) -> 86575 | BH33: =VLOOKUP(Tab2_Rohdaten!$B51,Tab2_Rohdaten!$A$28:$GG$1800,10+BH$9,FALSE) -> 85879 | BI33: =VLOOKUP(Tab2_Rohdaten!$B51,Tab2_Rohdaten!$A$28:$GG$1800,10+BI$9,FALSE) -> 86919 | BJ33: =VLOOKUP(Tab2_Rohdaten!$B51,Tab2_Rohdaten!$A$28:$GG$1800,10+BJ$9,FALSE) -> 86955 | BK33: =VLOOKUP(Tab2_Rohdaten!$B51,Tab2_Rohdaten!$A$28:$GG$1800,10+BK$9,FALSE) -> 86131 | BL33: =VLOOKUP(Tab2_Rohdaten!$B51,Tab2_Rohdaten!$A$28:$GG$1800,10+BL$9,FALSE) -> 86741 | BM33: =VLOOKUP(Tab2_Rohdaten!$B51,Tab2_Rohdaten!$A$28:$GG$1800,10+BM$9,FALSE) -> 88029 | BN33: =VLOOKUP(Tab2_Rohdaten!$B51,Tab2_Rohdaten!$A$28:$GG$1800,10+BN$9,FALSE) -> 88064 | BO33: =VLOOKUP(Tab2_Rohdaten!$B51,Tab2_Rohdaten!$A$28:$GG$1800,10+BO$9,FALSE) -> 87817
A34: =VLOOKUP(Tab2_Rohdaten!$B52,Tab2_Rohdaten!$A$28:$GG$1800,9,FALSE) -> JC Havelland | B34: =VLOOKUP(Tab2_Rohdaten!$B52,Tab2_Rohdaten!$A$28:$GG$1800,10,FALSE) -> 03846 | C34: =VLOOKUP(Tab2_Rohdaten!$B52,Tab2_Rohdaten!$A$28:$GG$1800,10+C$9,FALSE) -> 49478 | D34: =VLOOKUP(Tab2_Rohdaten!$B52,Tab2_Rohdaten!$A$28:$GG$1800,10+D$9,FALSE) -> 51045 | E34: =VLOOKUP(Tab2_Rohdaten!$B52,Tab2_Rohdaten!$A$28:$GG$1800,10+E$9,FALSE) -> 52486 | F34: =VLOOKUP(Tab2_Rohdaten!$B52,Tab2_Rohdaten!$A$28:$GG$1800,10+F$9,FALSE) -> 52592 | G34: =VLOOKUP(Tab2_Rohdaten!$B52,Tab2_Rohdaten!$A$28:$GG$1800,10+G$9,FALSE) -> 52466 | H34: =VLOOKUP(Tab2_Rohdaten!$B52,Tab2_Rohdaten!$A$28:$GG$1800,10+H$9,FALSE) -> 53233 | I34: =VLOOKUP(Tab2_Rohdaten!$B52,Tab2_Rohdaten!$A$28:$GG$1800,10+I$9,FALSE) -> 54365 | J34: =VLOOKUP(Tab2_Rohdaten!$B52,Tab2_Rohdaten!$A$28:$GG$1800,10+J$9,FALSE) -> 54091 | K34: =VLOOKUP(Tab2_Rohdaten!$B52,Tab2_Rohdaten!$A$28:$GG$1800,10+K$9,FALSE) -> 53902 | L34: =VLOOKUP(Tab2_Rohdaten!$B52,Tab2_Rohdaten!$A$28:$GG$1800,10+L$9,FALSE) -> 54830 | M34: =VLOOKUP(Tab2_Rohdaten!$B52,Tab2_Rohdaten!$A$28:$GG$1800,10+M$9,FALSE) -> 56086 | N34: =VLOOKUP(Tab2_Rohdaten!$B52,Tab2_Rohdaten!$A$28:$GG$1800,10+N$9,FALSE) -> 55533 | O34: =VLOOKUP(Tab2_Rohdaten!$B52,Tab2_Rohdaten!$A$28:$GG$1800,10+O$9,FALSE) -> 54763 | P34: =VLOOKUP(Tab2_Rohdaten!$B52,Tab2_Rohdaten!$A$28:$GG$1800,10+P$9,FALSE) -> 55255 | Q34: =VLOOKUP(Tab2_Rohdaten!$B52,Tab2_Rohdaten!$A$28:$GG$1800,10+Q$9,FALSE) -> 56572 | R34: =VLOOKUP(Tab2_Rohdaten!$B52,Tab2_Rohdaten!$A$28:$GG$1800,10+R$9,FALSE) -> 56192 | S34: =VLOOKUP(Tab2_Rohdaten!$B52,Tab2_Rohdaten!$A$28:$GG$1800,10+S$9,FALSE) -> 55430 | T34: =VLOOKUP(Tab2_Rohdaten!$B52,Tab2_Rohdaten!$A$28:$GG$1800,10+T$9,FALSE) -> 56244 | U34: =VLOOKUP(Tab2_Rohdaten!$B52,Tab2_Rohdaten!$A$28:$GG$1800,10+U$9,FALSE) -> 57246 | V34: =VLOOKUP(Tab2_Rohdaten!$B52,Tab2_Rohdaten!$A$28:$GG$1800,10+V$9,FALSE) -> 56663 | W34: =VLOOKUP(Tab2_Rohdaten!$B52,Tab2_Rohdaten!$A$28:$GG$1800,10+W$9,FALSE) -> 56503 | X34: =VLOOKUP(Tab2_Rohdaten!$B52,Tab2_Rohdaten!$A$28:$GG$1800,10+X$9,FALSE) -> 57285 | Y34: =VLOOKUP(Tab2_Rohdaten!$B52,Tab2_Rohdaten!$A$28:$GG$1800,10+Y$9,FALSE) -> 58586 | Z34: =VLOOKUP(Tab2_Rohdaten!$B52,Tab2_Rohdaten!$A$28:$GG$1800,10+Z$9,FALSE) -> 58472 | AA34: =VLOOKUP(Tab2_Rohdaten!$B52,Tab2_Rohdaten!$A$28:$GG$1800,10+AA$9,FALSE) -> 58156 | AB34: =VLOOKUP(Tab2_Rohdaten!$B52,Tab2_Rohdaten!$A$28:$GG$1800,10+AB$9,FALSE) -> 58730 | AC34: =VLOOKUP(Tab2_Rohdaten!$B52,Tab2_Rohdaten!$A$28:$GG$1800,10+AC$9,FALSE) -> 59467 | AD34: =VLOOKUP(Tab2_Rohdaten!$B52,Tab2_Rohdaten!$A$28:$GG$1800,10+AD$9,FALSE) -> 58840 | AE34: =VLOOKUP(Tab2_Rohdaten!$B52,Tab2_Rohdaten!$A$28:$GG$1800,10+AE$9,FALSE) -> 58588 | AF34: =VLOOKUP(Tab2_Rohdaten!$B52,Tab2_Rohdaten!$A$28:$GG$1800,10+AF$9,FALSE) -> 59035 | AG34: =VLOOKUP(Tab2_Rohdaten!$B52,Tab2_Rohdaten!$A$28:$GG$1800,10+AG$9,FALSE) -> 59896 | AH34: =VLOOKUP(Tab2_Rohdaten!$B52,Tab2_Rohdaten!$A$28:$GG$1800,10+AH$9,FALSE) -> 59688 | AI34: =VLOOKUP(Tab2_Rohdaten!$B52,Tab2_Rohdaten!$A$28:$GG$1800,10+AI$9,FALSE) -> 59653 | AJ34: =VLOOKUP(Tab2_Rohdaten!$B52,Tab2_Rohdaten!$A$28:$GG$1800,10+AJ$9,FALSE) -> 60298 | AK34: =VLOOKUP(Tab2_Rohdaten!$B52,Tab2_Rohdaten!$A$28:$GG$1800,10+AK$9,FALSE) -> 61167 | AL34: =VLOOKUP(Tab2_Rohdaten!$B52,Tab2_Rohdaten!$A$28:$GG$1800,10+AL$9,FALSE) -> 60606 | AM34: =VLOOKUP(Tab2_Rohdaten!$B52,Tab2_Rohdaten!$A$28:$GG$1800,10+AM$9,FALSE) -> 60692 | AN34: =VLOOKUP(Tab2_Rohdaten!$B52,Tab2_Rohdaten!$A$28:$GG$1800,10+AN$9,FALSE) -> 61372 | AO34: =VLOOKUP(Tab2_Rohdaten!$B52,Tab2_Rohdaten!$A$28:$GG$1800,10+AO$9,FALSE) -> 62193 | AP34: =VLOOKUP(Tab2_Rohdaten!$B52,Tab2_Rohdaten!$A$28:$GG$1800,10+AP$9,FALSE) -> 61585 | AQ34: =VLOOKUP(Tab2_Rohdaten!$B52,Tab2_Rohdaten!$A$28:$GG$1800,10+AQ$9,FALSE) -> 61559 | AR34: =VLOOKUP(Tab2_Rohdaten!$B52,Tab2_Rohdaten!$A$28:$GG$1800,10+AR$9,FALSE) -> 62232 | AS34: =VLOOKUP(Tab2_Rohdaten!$B52,Tab2_Rohdaten!$A$28:$GG$1800,10+AS$9,FALSE) -> 63254 | AT34: =VLOOKUP(Tab2_Rohdaten!$B52,Tab2_Rohdaten!$A$28:$GG$1800,10+AT$9,FALSE) -> 62957 | AU34: =VLOOKUP(Tab2_Rohdaten!$B52,Tab2_Rohdaten!$A$28:$GG$1800,10+AU$9,FALSE) -> 63141 | AV34: =VLOOKUP(Tab2_Rohdaten!$B52,Tab2_Rohdaten!$A$28:$GG$1800,10+AV$9,FALSE) -> 63663 | AW34: =VLOOKUP(Tab2_Rohdaten!$B52,Tab2_Rohdaten!$A$28:$GG$1800,10+AW$9,FALSE) -> 64777 | AX34: =VLOOKUP(Tab2_Rohdaten!$B52,Tab2_Rohdaten!$A$28:$GG$1800,10+AX$9,FALSE) -> 64439 | AY34: =VLOOKUP(Tab2_Rohdaten!$B52,Tab2_Rohdaten!$A$28:$GG$1800,10+AY$9,FALSE) -> 64484 | AZ34: =VLOOKUP(Tab2_Rohdaten!$B52,Tab2_Rohdaten!$A$28:$GG$1800,10+AZ$9,FALSE) -> 65053 | BA34: =VLOOKUP(Tab2_Rohdaten!$B52,Tab2_Rohdaten!$A$28:$GG$1800,10+BA$9,FALSE) -> 66045 | BB34: =VLOOKUP(Tab2_Rohdaten!$B52,Tab2_Rohdaten!$A$28:$GG$1800,10+BB$9,FALSE) -> 65780 | BC34: =VLOOKUP(Tab2_Rohdaten!$B52,Tab2_Rohdaten!$A$28:$GG$1800,10+BC$9,FALSE) -> 65698 | BD34: =VLOOKUP(Tab2_Rohdaten!$B52,Tab2_Rohdaten!$A$28:$GG$1800,10+BD$9,FALSE) -> 66003 | BE34: =VLOOKUP(Tab2_Rohdaten!$B52,Tab2_Rohdaten!$A$28:$GG$1800,10+BE$9,FALSE) -> 67167 | BF34: =VLOOKUP(Tab2_Rohdaten!$B52,Tab2_Rohdaten!$A$28:$GG$1800,10+BF$9,FALSE) -> 66838 | BG34: =VLOOKUP(Tab2_Rohdaten!$B52,Tab2_Rohdaten!$A$28:$GG$1800,10+BG$9,FALSE) -> 66814 | BH34: =VLOOKUP(Tab2_Rohdaten!$B52,Tab2_Rohdaten!$A$28:$GG$1800,10+BH$9,FALSE) -> 66293 | BI34: =VLOOKUP(Tab2_Rohdaten!$B52,Tab2_Rohdaten!$A$28:$GG$1800,10+BI$9,FALSE) -> 67260 | BJ34: =VLOOKUP(Tab2_Rohdaten!$B52,Tab2_Rohdaten!$A$28:$GG$1800,10+BJ$9,FALSE) -> 67283 | BK34: =VLOOKUP(Tab2_Rohdaten!$B52,Tab2_Rohdaten!$A$28:$GG$1800,10+BK$9,FALSE) -> 66798 | BL34: =VLOOKUP(Tab2_Rohdaten!$B52,Tab2_Rohdaten!$A$28:$GG$1800,10+BL$9,FALSE) -> 67131 | BM34: =VLOOKUP(Tab2_Rohdaten!$B52,Tab2_Rohdaten!$A$28:$GG$1800,10+BM$9,FALSE) -> 68188 | BN34: =VLOOKUP(Tab2_Rohdaten!$B52,Tab2_Rohdaten!$A$28:$GG$1800,10+BN$9,FALSE) -> 68270 | BO34: =VLOOKUP(Tab2_Rohdaten!$B52,Tab2_Rohdaten!$A$28:$GG$1800,10+BO$9,FALSE) -> 68380
A35: =VLOOKUP(Tab2_Rohdaten!$B53,Tab2_Rohdaten!$A$28:$GG$1800,9,FALSE) -> JC Brandenburg an der Havel, Stadt | B35: =VLOOKUP(Tab2_Rohdaten!$B53,Tab2_Rohdaten!$A$28:$GG$1800,10,FALSE) -> 03902 | C35: =VLOOKUP(Tab2_Rohdaten!$B53,Tab2_Rohdaten!$A$28:$GG$1800,10+C$9,FALSE) -> 21961 | D35: =VLOOKUP(Tab2_Rohdaten!$B53,Tab2_Rohdaten!$A$28:$GG$1800,10+D$9,FALSE) -> 22537 | E35: =VLOOKUP(Tab2_Rohdaten!$B53,Tab2_Rohdaten!$A$28:$GG$1800,10+E$9,FALSE) -> 23066 | F35: =VLOOKUP(Tab2_Rohdaten!$B53,Tab2_Rohdaten!$A$28:$GG$1800,10+F$9,FALSE) -> 23097 | G35: =VLOOKUP(Tab2_Rohdaten!$B53,Tab2_Rohdaten!$A$28:$GG$1800,10+G$9,FALSE) -> 23014 | H35: =VLOOKUP(Tab2_Rohdaten!$B53,Tab2_Rohdaten!$A$28:$GG$1800,10+H$9,FALSE) -> 23392 | I35: =VLOOKUP(Tab2_Rohdaten!$B53,Tab2_Rohdaten!$A$28:$GG$1800,10+I$9,FALSE) -> 23821 | J35: =VLOOKUP(Tab2_Rohdaten!$B53,Tab2_Rohdaten!$A$28:$GG$1800,10+J$9,FALSE) -> 23765 | K35: =VLOOKUP(Tab2_Rohdaten!$B53,Tab2_Rohdaten!$A$28:$GG$1800,10+K$9,FALSE) -> 23707 | L35: =VLOOKUP(Tab2_Rohdaten!$B53,Tab2_Rohdaten!$A$28:$GG$1800,10+L$9,FALSE) -> 24170 | M35: =VLOOKUP(Tab2_Rohdaten!$B53,Tab2_Rohdaten!$A$28:$GG$1800,10+M$9,FALSE) -> 24727 | N35: =VLOOKUP(Tab2_Rohdaten!$B53,Tab2_Rohdaten!$A$28:$GG$1800,10+N$9,FALSE) -> 24389 | O35: =VLOOKUP(Tab2_Rohdaten!$B53,Tab2_Rohdaten!$A$28:$GG$1800,10+O$9,FALSE) -> 24098 | P35: =VLOOKUP(Tab2_Rohdaten!$B53,Tab2_Rohdaten!$A$28:$GG$1800,10+P$9,FALSE) -> 24250 | Q35: =VLOOKUP(Tab2_Rohdaten!$B53,Tab2_Rohdaten!$A$28:$GG$1800,10+Q$9,FALSE) -> 24556 | R35: =VLOOKUP(Tab2_Rohdaten!$B53,Tab2_Rohdaten!$A$28:$GG$1800,10+R$9,FALSE) -> 24458 | S35: =VLOOKUP(Tab2_Rohdaten!$B53,Tab2_Rohdaten!$A$28:$GG$1800,10+S$9,FALSE) -> 24256 | T35: =VLOOKUP(Tab2_Rohdaten!$B53,Tab2_Rohdaten!$A$28:$GG$1800,10+T$9,FALSE) -> 24598 | U35: =VLOOKUP(Tab2_Rohdaten!$B53,Tab2_Rohdaten!$A$28:$GG$1800,10+U$9,FALSE) -> 25134 | V35: =VLOOKUP(Tab2_Rohdaten!$B53,Tab2_Rohdaten!$A$28:$GG$1800,10+V$9,FALSE) -> 24726 | W35: =VLOOKUP(Tab2_Rohdaten!$B53,Tab2_Rohdaten!$A$28:$GG$1800,10+W$9,FALSE) -> 24684 | X35: =VLOOKUP(Tab2_Rohdaten!$B53,Tab2_Rohdaten!$A$28:$GG$1800,10+X$9,FALSE) -> 25177 | Y35: =VLOOKUP(Tab2_Rohdaten!$B53,Tab2_Rohdaten!$A$28:$GG$1800,10+Y$9,FALSE) -> 25613 | Z35: =VLOOKUP(Tab2_Rohdaten!$B53,Tab2_Rohdaten!$A$28:$GG$1800,10+Z$9,FALSE) -> 25459 | AA35: =VLOOKUP(Tab2_Rohdaten!$B53,Tab2_Rohdaten!$A$28:$GG$1800,10+AA$9,FALSE) -> 25464 | AB35: =VLOOKUP(Tab2_Rohdaten!$B53,Tab2_Rohdaten!$A$28:$GG$1800,10+AB$9,FALSE) -> 25610 | AC35: =VLOOKUP(Tab2_Rohdaten!$B53,Tab2_Rohdaten!$A$28:$GG$1800,10+AC$9,FALSE) -> 25753 | AD35: =VLOOKUP(Tab2_Rohdaten!$B53,Tab2_Rohdaten!$A$28:$GG$1800,10+AD$9,FALSE) -> 25497 | AE35: =VLOOKUP(Tab2_Rohdaten!$B53,Tab2_Rohdaten!$A$28:$GG$1800,10+AE$9,FALSE) -> 25343 | AF35: =VLOOKUP(Tab2_Rohdaten!$B53,Tab2_Rohdaten!$A$28:$GG$1800,10+AF$9,FALSE) -> 25511 | AG35: =VLOOKUP(Tab2_Rohdaten!$B53,Tab2_Rohdaten!$A$28:$GG$1800,10+AG$9,FALSE) -> 25926 | AH35: =VLOOKUP(Tab2_Rohdaten!$B53,Tab2_Rohdaten!$A$28:$GG$1800,10+AH$9,FALSE) -> 25637 | AI35: =VLOOKUP(Tab2_Rohdaten!$B53,Tab2_Rohdaten!$A$28:$GG$1800,10+AI$9,FALSE) -> 25652 | AJ35: =VLOOKUP(Tab2_Rohdaten!$B53,Tab2_Rohdaten!$A$28:$GG$1800,10+AJ$9,FALSE) -> 25855 | AK35: =VLOOKUP(Tab2_Rohdaten!$B53,Tab2_Rohdaten!$A$28:$GG$1800,10+AK$9,FALSE) -> 26042 | AL35: =VLOOKUP(Tab2_Rohdaten!$B53,Tab2_Rohdaten!$A$28:$GG$1800,10+AL$9,FALSE) -> 25765 | AM35: =VLOOKUP(Tab2_Rohdaten!$B53,Tab2_Rohdaten!$A$28:$GG$1800,10+AM$9,FALSE) -> 25749 | AN35: =VLOOKUP(Tab2_Rohdaten!$B53,Tab2_Rohdaten!$A$28:$GG$1800,10+AN$9,FALSE) -> 26063 | AO35: =VLOOKUP(Tab2_Rohdaten!$B53,Tab2_Rohdaten!$A$28:$GG$1800,10+AO$9,FALSE) -> 26282 | AP35: =VLOOKUP(Tab2_Rohdaten!$B53,Tab2_Rohdaten!$A$28:$GG$1800,10+AP$9,FALSE) -> 25930 | AQ35: =VLOOKUP(Tab2_Rohdaten!$B53,Tab2_Rohdaten!$A$28:$GG$1800,10+AQ$9,FALSE) -> 25893 | AR35: =VLOOKUP(Tab2_Rohdaten!$B53,Tab2_Rohdaten!$A$28:$GG$1800,10+AR$9,FALSE) -> 26168 | AS35: =VLOOKUP(Tab2_Rohdaten!$B53,Tab2_Rohdaten!$A$28:$GG$1800,10+AS$9,FALSE) -> 26570 | AT35: =VLOOKUP(Tab2_Rohdaten!$B53,Tab2_Rohdaten!$A$28:$GG$1800,10+AT$9,FALSE) -> 26478 | AU35: =VLOOKUP(Tab2_Rohdaten!$B53,Tab2_Rohdaten!$A$28:$GG$1800,10+AU$9,FALSE) -> 26602 | AV35: =VLOOKUP(Tab2_Rohdaten!$B53,Tab2_Rohdaten!$A$28:$GG$1800,10+AV$9,FALSE) -> 26911 | AW35: =VLOOKUP(Tab2_Rohdaten!$B53,Tab2_Rohdaten!$A$28:$GG$1800,10+AW$9,FALSE) -> 27189 | AX35: =VLOOKUP(Tab2_Rohdaten!$B53,Tab2_Rohdaten!$A$28:$GG$1800,10+AX$9,FALSE) -> 27135 | AY35: =VLOOKUP(Tab2_Rohdaten!$B53,Tab2_Rohdaten!$A$28:$GG$1800,10+AY$9,FALSE) -> 27037 | AZ35: =VLOOKUP(Tab2_Rohdaten!$B53,Tab2_Rohdaten!$A$28:$GG$1800,10+AZ$9,FALSE) -> 27213 | BA35: =VLOOKUP(Tab2_Rohdaten!$B53,Tab2_Rohdaten!$A$28:$GG$1800,10+BA$9,FALSE) -> 27516 | BB35: =VLOOKUP(Tab2_Rohdaten!$B53,Tab2_Rohdaten!$A$28:$GG$1800,10+BB$9,FALSE) -> 27416 | BC35: =VLOOKUP(Tab2_Rohdaten!$B53,Tab2_Rohdaten!$A$28:$GG$1800,10+BC$9,FALSE) -> 27379 | BD35: =VLOOKUP(Tab2_Rohdaten!$B53,Tab2_Rohdaten!$A$28:$GG$1800,10+BD$9,FALSE) -> 27528 | BE35: =VLOOKUP(Tab2_Rohdaten!$B53,Tab2_Rohdaten!$A$28:$GG$1800,10+BE$9,FALSE) -> 27815 | BF35: =VLOOKUP(Tab2_Rohdaten!$B53,Tab2_Rohdaten!$A$28:$GG$1800,10+BF$9,FALSE) -> 27814 | BG35: =VLOOKUP(Tab2_Rohdaten!$B53,Tab2_Rohdaten!$A$28:$GG$1800,10+BG$9,FALSE) -> 27734 | BH35: =VLOOKUP(Tab2_Rohdaten!$B53,Tab2_Rohdaten!$A$28:$GG$1800,10+BH$9,FALSE) -> 27420 | BI35: =VLOOKUP(Tab2_Rohdaten!$B53,Tab2_Rohdaten!$A$28:$GG$1800,10+BI$9,FALSE) -> 27719 | BJ35: =VLOOKUP(Tab2_Rohdaten!$B53,Tab2_Rohdaten!$A$28:$GG$1800,10+BJ$9,FALSE) -> 27768 | BK35: =VLOOKUP(Tab2_Rohdaten!$B53,Tab2_Rohdaten!$A$28:$GG$1800,10+BK$9,FALSE) -> 27653 | BL35: =VLOOKUP(Tab2_Rohdaten!$B53,Tab2_Rohdaten!$A$28:$GG$1800,10+BL$9,FALSE) -> 27726 | BM35: =VLOOKUP(Tab2_Rohdaten!$B53,Tab2_Rohdaten!$A$28:$GG$1800,10+BM$9,FALSE) -> 28109 | BN35: =VLOOKUP(Tab2_Rohdaten!$B53,Tab2_Rohdaten!$A$28:$GG$1800,10+BN$9,FALSE) -> 28258 | BO35: =VLOOKUP(Tab2_Rohdaten!$B53,Tab2_Rohdaten!$A$28:$GG$1800,10+BO$9,FALSE) -> 28242
A36: =VLOOKUP(Tab2_Rohdaten!$B54,Tab2_Rohdaten!$A$28:$GG$1800,9,FALSE) -> JC Potsdam, Stadt | B36: =VLOOKUP(Tab2_Rohdaten!$B54,Tab2_Rohdaten!$A$28:$GG$1800,10,FALSE) -> 03904 | C36: =VLOOKUP(Tab2_Rohdaten!$B54,Tab2_Rohdaten!$A$28:$GG$1800,10+C$9,FALSE) -> 50789 | D36: =VLOOKUP(Tab2_Rohdaten!$B54,Tab2_Rohdaten!$A$28:$GG$1800,10+D$9,FALSE) -> 51875 | E36: =VLOOKUP(Tab2_Rohdaten!$B54,Tab2_Rohdaten!$A$28:$GG$1800,10+E$9,FALSE) -> 52788 | F36: =VLOOKUP(Tab2_Rohdaten!$B54,Tab2_Rohdaten!$A$28:$GG$1800,10+F$9,FALSE) -> 52891 | G36: =VLOOKUP(Tab2_Rohdaten!$B54,Tab2_Rohdaten!$A$28:$GG$1800,10+G$9,FALSE) -> 52828 | H36: =VLOOKUP(Tab2_Rohdaten!$B54,Tab2_Rohdaten!$A$28:$GG$1800,10+H$9,FALSE) -> 53463 | I36: =VLOOKUP(Tab2_Rohdaten!$B54,Tab2_Rohdaten!$A$28:$GG$1800,10+I$9,FALSE) -> 54794 | J36: =VLOOKUP(Tab2_Rohdaten!$B54,Tab2_Rohdaten!$A$28:$GG$1800,10+J$9,FALSE) -> 54794 | K36: =VLOOKUP(Tab2_Rohdaten!$B54,Tab2_Rohdaten!$A$28:$GG$1800,10+K$9,FALSE) -> 54785 | L36: =VLOOKUP(Tab2_Rohdaten!$B54,Tab2_Rohdaten!$A$28:$GG$1800,10+L$9,FALSE) -> 55581 | M36: =VLOOKUP(Tab2_Rohdaten!$B54,Tab2_Rohdaten!$A$28:$GG$1800,10+M$9,FALSE) -> 56522 | N36: =VLOOKUP(Tab2_Rohdaten!$B54,Tab2_Rohdaten!$A$28:$GG$1800,10+N$9,FALSE) -> 56131 | O36: =VLOOKUP(Tab2_Rohdaten!$B54,Tab2_Rohdaten!$A$28:$GG$1800,10+O$9,FALSE) -> 55782 | P36: =VLOOKUP(Tab2_Rohdaten!$B54,Tab2_Rohdaten!$A$28:$GG$1800,10+P$9,FALSE) -> 56451 | Q36: =VLOOKUP(Tab2_Rohdaten!$B54,Tab2_Rohdaten!$A$28:$GG$1800,10+Q$9,FALSE) -> 57073 | R36: =VLOOKUP(Tab2_Rohdaten!$B54,Tab2_Rohdaten!$A$28:$GG$1800,10+R$9,FALSE) -> 57047 | S36: =VLOOKUP(Tab2_Rohdaten!$B54,Tab2_Rohdaten!$A$28:$GG$1800,10+S$9,FALSE) -> 56821 | T36: =VLOOKUP(Tab2_Rohdaten!$B54,Tab2_Rohdaten!$A$28:$GG$1800,10+T$9,FALSE) -> 57520 | U36: =VLOOKUP(Tab2_Rohdaten!$B54,Tab2_Rohdaten!$A$28:$GG$1800,10+U$9,FALSE) -> 58370 | V36: =VLOOKUP(Tab2_Rohdaten!$B54,Tab2_Rohdaten!$A$28:$GG$1800,10+V$9,FALSE) -> 58380 | W36: =VLOOKUP(Tab2_Rohdaten!$B54,Tab2_Rohdaten!$A$28:$GG$1800,10+W$9,FALSE) -> 58329 | X36: =VLOOKUP(Tab2_Rohdaten!$B54,Tab2_Rohdaten!$A$28:$GG$1800,10+X$9,FALSE) -> 59296 | Y36: =VLOOKUP(Tab2_Rohdaten!$B54,Tab2_Rohdaten!$A$28:$GG$1800,10+Y$9,FALSE) -> 60363 | Z36: =VLOOKUP(Tab2_Rohdaten!$B54,Tab2_Rohdaten!$A$28:$GG$1800,10+Z$9,FALSE) -> 60188 | AA36: =VLOOKUP(Tab2_Rohdaten!$B54,Tab2_Rohdaten!$A$28:$GG$1800,10+AA$9,FALSE) -> 60413 | AB36: =VLOOKUP(Tab2_Rohdaten!$B54,Tab2_Rohdaten!$A$28:$GG$1800,10+AB$9,FALSE) -> 61085 | AC36: =VLOOKUP(Tab2_Rohdaten!$B54,Tab2_Rohdaten!$A$28:$GG$1800,10+AC$9,FALSE) -> 61900 | AD36: =VLOOKUP(Tab2_Rohdaten!$B54,Tab2_Rohdaten!$A$28:$GG$1800,10+AD$9,FALSE) -> 61724 | AE36: =VLOOKUP(Tab2_Rohdaten!$B54,Tab2_Rohdaten!$A$28:$GG$1800,10+AE$9,FALSE) -> 61654 | AF36: =VLOOKUP(Tab2_Rohdaten!$B54,Tab2_Rohdaten!$A$28:$GG$1800,10+AF$9,FALSE) -> 61995 | AG36: =VLOOKUP(Tab2_Rohdaten!$B54,Tab2_Rohdaten!$A$28:$GG$1800,10+AG$9,FALSE) -> 62956 | AH36: =VLOOKUP(Tab2_Rohdaten!$B54,Tab2_Rohdaten!$A$28:$GG$1800,10+AH$9,FALSE) -> 62623 | AI36: =VLOOKUP(Tab2_Rohdaten!$B54,Tab2_Rohdaten!$A$28:$GG$1800,10+AI$9,FALSE) -> 62758 | AJ36: =VLOOKUP(Tab2_Rohdaten!$B54,Tab2_Rohdaten!$A$28:$GG$1800,10+AJ$9,FALSE) -> 63366 | AK36: =VLOOKUP(Tab2_Rohdaten!$B54,Tab2_Rohdaten!$A$28:$GG$1800,10+AK$9,FALSE) -> 64179 | AL36: =VLOOKUP(Tab2_Rohdaten!$B54,Tab2_Rohdaten!$A$28:$GG$1800,10+AL$9,FALSE) -> 64046 | AM36: =VLOOKUP(Tab2_Rohdaten!$B54,Tab2_Rohdaten!$A$28:$GG$1800,10+AM$9,FALSE) -> 64157 | AN36: =VLOOKUP(Tab2_Rohdaten!$B54,Tab2_Rohdaten!$A$28:$GG$1800,10+AN$9,FALSE) -> 64731 | AO36: =VLOOKUP(Tab2_Rohdaten!$B54,Tab2_Rohdaten!$A$28:$GG$1800,10+AO$9,FALSE) -> 65312 | AP36: =VLOOKUP(Tab2_Rohdaten!$B54,Tab2_Rohdaten!$A$28:$GG$1800,10+AP$9,FALSE) -> 65047 | AQ36: =VLOOKUP(Tab2_Rohdaten!$B54,Tab2_Rohdaten!$A$28:$GG$1800,10+AQ$9,FALSE) -> 65152 | AR36: =VLOOKUP(Tab2_Rohdaten!$B54,Tab2_Rohdaten!$A$28:$GG$1800,10+AR$9,FALSE) -> 65909 | AS36: =VLOOKUP(Tab2_Rohdaten!$B54,Tab2_Rohdaten!$A$28:$GG$1800,10+AS$9,FALSE) -> 66790 | AT36: =VLOOKUP(Tab2_Rohdaten!$B54,Tab2_Rohdaten!$A$28:$GG$1800,10+AT$9,FALSE) -> 66929 | AU36: =VLOOKUP(Tab2_Rohdaten!$B54,Tab2_Rohdaten!$A$28:$GG$1800,10+AU$9,FALSE) -> 67202 | AV36: =VLOOKUP(Tab2_Rohdaten!$B54,Tab2_Rohdaten!$A$28:$GG$1800,10+AV$9,FALSE) -> 67978 | AW36: =VLOOKUP(Tab2_Rohdaten!$B54,Tab2_Rohdaten!$A$28:$GG$1800,10+AW$9,FALSE) -> 69145 | AX36: =VLOOKUP(Tab2_Rohdaten!$B54,Tab2_Rohdaten!$A$28:$GG$1800,10+AX$9,FALSE) -> 69217 | AY36: =VLOOKUP(Tab2_Rohdaten!$B54,Tab2_Rohdaten!$A$28:$GG$1800,10+AY$9,FALSE) -> 69520 | AZ36: =VLOOKUP(Tab2_Rohdaten!$B54,Tab2_Rohdaten!$A$28:$GG$1800,10+AZ$9,FALSE) -> 70310 | BA36: =VLOOKUP(Tab2_Rohdaten!$B54,Tab2_Rohdaten!$A$28:$GG$1800,10+BA$9,FALSE) -> 71304 | BB36: =VLOOKUP(Tab2_Rohdaten!$B54,Tab2_Rohdaten!$A$28:$GG$1800,10+BB$9,FALSE) -> 71569 | BC36: =VLOOKUP(Tab2_Rohdaten!$B54,Tab2_Rohdaten!$A$28:$GG$1800,10+BC$9,FALSE) -> 71585 | BD36: =VLOOKUP(Tab2_Rohdaten!$B54,Tab2_Rohdaten!$A$28:$GG$1800,10+BD$9,FALSE) -> 72042 | BE36: =VLOOKUP(Tab2_Rohdaten!$B54,Tab2_Rohdaten!$A$28:$GG$1800,10+BE$9,FALSE) -> 73044 | BF36: =VLOOKUP(Tab2_Rohdaten!$B54,Tab2_Rohdaten!$A$28:$GG$1800,10+BF$9,FALSE) -> 73164 | BG36: =VLOOKUP(Tab2_Rohdaten!$B54,Tab2_Rohdaten!$A$28:$GG$1800,10+BG$9,FALSE) -> 72867 | BH36: =VLOOKUP(Tab2_Rohdaten!$B54,Tab2_Rohdaten!$A$28:$GG$1800,10+BH$9,FALSE) -> 72470 | BI36: =VLOOKUP(Tab2_Rohdaten!$B54,Tab2_Rohdaten!$A$28:$GG$1800,10+BI$9,FALSE) -> 73546 | BJ36: =VLOOKUP(Tab2_Rohdaten!$B54,Tab2_Rohdaten!$A$28:$GG$1800,10+BJ$9,FALSE) -> 73906 | BK36: =VLOOKUP(Tab2_Rohdaten!$B54,Tab2_Rohdaten!$A$28:$GG$1800,10+BK$9,FALSE) -> 73744 | BL36: =VLOOKUP(Tab2_Rohdaten!$B54,Tab2_Rohdaten!$A$28:$GG$1800,10+BL$9,FALSE) -> 74007 | BM36: =VLOOKUP(Tab2_Rohdaten!$B54,Tab2_Rohdaten!$A$28:$GG$1800,10+BM$9,FALSE) -> 74678 | BN36: =VLOOKUP(Tab2_Rohdaten!$B54,Tab2_Rohdaten!$A$28:$GG$1800,10+BN$9,FALSE) -> 74841 | BO36: =VLOOKUP(Tab2_Rohdaten!$B54,Tab2_Rohdaten!$A$28:$GG$1800,10+BO$9,FALSE) -> 74672
A37: =VLOOKUP(Tab2_Rohdaten!$B55,Tab2_Rohdaten!$A$28:$GG$1800,9,FALSE) -> JC Teltow-Fläming | B37: =VLOOKUP(Tab2_Rohdaten!$B55,Tab2_Rohdaten!$A$28:$GG$1800,10,FALSE) -> 03908 | C37: =VLOOKUP(Tab2_Rohdaten!$B55,Tab2_Rohdaten!$A$28:$GG$1800,10+C$9,FALSE) -> 56220 | D37: =VLOOKUP(Tab2_Rohdaten!$B55,Tab2_Rohdaten!$A$28:$GG$1800,10+D$9,FALSE) -> 57640 | E37: =VLOOKUP(Tab2_Rohdaten!$B55,Tab2_Rohdaten!$A$28:$GG$1800,10+E$9,FALSE) -> 58922 | F37: =VLOOKUP(Tab2_Rohdaten!$B55,Tab2_Rohdaten!$A$28:$GG$1800,10+F$9,FALSE) -> 59177 | G37: =VLOOKUP(Tab2_Rohdaten!$B55,Tab2_Rohdaten!$A$28:$GG$1800,10+G$9,FALSE) -> 59002 | H37: =VLOOKUP(Tab2_Rohdaten!$B55,Tab2_Rohdaten!$A$28:$GG$1800,10+H$9,FALSE) -> 59867 | I37: =VLOOKUP(Tab2_Rohdaten!$B55,Tab2_Rohdaten!$A$28:$GG$1800,10+I$9,FALSE) -> 61551 | J37: =VLOOKUP(Tab2_Rohdaten!$B55,Tab2_Rohdaten!$A$28:$GG$1800,10+J$9,FALSE) -> 61310 | K37: =VLOOKUP(Tab2_Rohdaten!$B55,Tab2_Rohdaten!$A$28:$GG$1800,10+K$9,FALSE) -> 60804 | L37: =VLOOKUP(Tab2_Rohdaten!$B55,Tab2_Rohdaten!$A$28:$GG$1800,10+L$9,FALSE) -> 61658 | M37: =VLOOKUP(Tab2_Rohdaten!$B55,Tab2_Rohdaten!$A$28:$GG$1800,10+M$9,FALSE) -> 62840 | N37: =VLOOKUP(Tab2_Rohdaten!$B55,Tab2_Rohdaten!$A$28:$GG$1800,10+N$9,FALSE) -> 62353 | O37: =VLOOKUP(Tab2_Rohdaten!$B55,Tab2_Rohdaten!$A$28:$GG$1800,10+O$9,FALSE) -> 61186 | P37: =VLOOKUP(Tab2_Rohdaten!$B55,Tab2_Rohdaten!$A$28:$GG$1800,10+P$9,FALSE) -> 61550 | Q37: =VLOOKUP(Tab2_Rohdaten!$B55,Tab2_Rohdaten!$A$28:$GG$1800,10+Q$9,FALSE) -> 62702 | R37: =VLOOKUP(Tab2_Rohdaten!$B55,Tab2_Rohdaten!$A$28:$GG$1800,10+R$9,FALSE) -> 62200 | S37: =VLOOKUP(Tab2_Rohdaten!$B55,Tab2_Rohdaten!$A$28:$GG$1800,10+S$9,FALSE) -> 61826 | T37: =VLOOKUP(Tab2_Rohdaten!$B55,Tab2_Rohdaten!$A$28:$GG$1800,10+T$9,FALSE) -> 62698 | U37: =VLOOKUP(Tab2_Rohdaten!$B55,Tab2_Rohdaten!$A$28:$GG$1800,10+U$9,FALSE) -> 63642 | V37: =VLOOKUP(Tab2_Rohdaten!$B55,Tab2_Rohdaten!$A$28:$GG$1800,10+V$9,FALSE) -> 63107 | W37: =VLOOKUP(Tab2_Rohdaten!$B55,Tab2_Rohdaten!$A$28:$GG$1800,10+W$9,FALSE) -> 62762 | X37: =VLOOKUP(Tab2_Rohdaten!$B55,Tab2_Rohdaten!$A$28:$GG$1800,10+X$9,FALSE) -> 63603 | Y37: =VLOOKUP(Tab2_Rohdaten!$B55,Tab2_Rohdaten!$A$28:$GG$1800,10+Y$9,FALSE) -> 64528 | Z37: =VLOOKUP(Tab2_Rohdaten!$B55,Tab2_Rohdaten!$A$28:$GG$1800,10+Z$9,FALSE) -> 64227 | AA37: =VLOOKUP(Tab2_Rohdaten!$B55,Tab2_Rohdaten!$A$28:$GG$1800,10+AA$9,FALSE) -> 64129 | AB37: =VLOOKUP(Tab2_Rohdaten!$B55,Tab2_Rohdaten!$A$28:$GG$1800,10+AB$9,FALSE) -> 64732 | AC37: =VLOOKUP(Tab2_Rohdaten!$B55,Tab2_Rohdaten!$A$28:$GG$1800,10+AC$9,FALSE) -> 65552 | AD37: =VLOOKUP(Tab2_Rohdaten!$B55,Tab2_Rohdaten!$A$28:$GG$1800,10+AD$9,FALSE) -> 64678 | AE37: =VLOOKUP(Tab2_Rohdaten!$B55,Tab2_Rohdaten!$A$28:$GG$1800,10+AE$9,FALSE) -> 64418 | AF37: =VLOOKUP(Tab2_Rohdaten!$B55,Tab2_Rohdaten!$A$28:$GG$1800,10+AF$9,FALSE) -> 64930 | AG37: =VLOOKUP(Tab2_Rohdaten!$B55,Tab2_Rohdaten!$A$28:$GG$1800,10+AG$9,FALSE) -> 66006 | AH37: =VLOOKUP(Tab2_Rohdaten!$B55,Tab2_Rohdaten!$A$28:$GG$1800,10+AH$9,FALSE) -> 65189 | AI37: =VLOOKUP(Tab2_Rohdaten!$B55,Tab2_Rohdaten!$A$28:$GG$1800,10+AI$9,FALSE) -> 65050 | AJ37: =VLOOKUP(Tab2_Rohdaten!$B55,Tab2_Rohdaten!$A$28:$GG$1800,10+AJ$9,FALSE) -> 65604 | AK37: =VLOOKUP(Tab2_Rohdaten!$B55,Tab2_Rohdaten!$A$28:$GG$1800,10+AK$9,FALSE) -> 66516 | AL37: =VLOOKUP(Tab2_Rohdaten!$B55,Tab2_Rohdaten!$A$28:$GG$1800,10+AL$9,FALSE) -> 65949 | AM37: =VLOOKUP(Tab2_Rohdaten!$B55,Tab2_Rohdaten!$A$28:$GG$1800,10+AM$9,FALSE) -> 66143 | AN37: =VLOOKUP(Tab2_Rohdaten!$B55,Tab2_Rohdaten!$A$28:$GG$1800,10+AN$9,FALSE) -> 66549 | AO37: =VLOOKUP(Tab2_Rohdaten!$B55,Tab2_Rohdaten!$A$28:$GG$1800,10+AO$9,FALSE) -> 67422 | AP37: =VLOOKUP(Tab2_Rohdaten!$B55,Tab2_Rohdaten!$A$28:$GG$1800,10+AP$9,FALSE) -> 66870 | AQ37: =VLOOKUP(Tab2_Rohdaten!$B55,Tab2_Rohdaten!$A$28:$GG$1800,10+AQ$9,FALSE) -> 66705 | AR37: =VLOOKUP(Tab2_Rohdaten!$B55,Tab2_Rohdaten!$A$28:$GG$1800,10+AR$9,FALSE) -> 67345 | AS37: =VLOOKUP(Tab2_Rohdaten!$B55,Tab2_Rohdaten!$A$28:$GG$1800,10+AS$9,FALSE) -> 68416 | AT37: =VLOOKUP(Tab2_Rohdaten!$B55,Tab2_Rohdaten!$A$28:$GG$1800,10+AT$9,FALSE) -> 68262 | AU37: =VLOOKUP(Tab2_Rohdaten!$B55,Tab2_Rohdaten!$A$28:$GG$1800,10+AU$9,FALSE) -> 68489 | AV37: =VLOOKUP(Tab2_Rohdaten!$B55,Tab2_Rohdaten!$A$28:$GG$1800,10+AV$9,FALSE) -> 69244 | AW37: =VLOOKUP(Tab2_Rohdaten!$B55,Tab2_Rohdaten!$A$28:$GG$1800,10+AW$9,FALSE) -> 70381 | AX37: =VLOOKUP(Tab2_Rohdaten!$B55,Tab2_Rohdaten!$A$28:$GG$1800,10+AX$9,FALSE) -> 70167 | AY37: =VLOOKUP(Tab2_Rohdaten!$B55,Tab2_Rohdaten!$A$28:$GG$1800,10+AY$9,FALSE) -> 70437 | AZ37: =VLOOKUP(Tab2_Rohdaten!$B55,Tab2_Rohdaten!$A$28:$GG$1800,10+AZ$9,FALSE) -> 70871 | BA37: =VLOOKUP(Tab2_Rohdaten!$B55,Tab2_Rohdaten!$A$28:$GG$1800,10+BA$9,FALSE) -> 71888 | BB37: =VLOOKUP(Tab2_Rohdaten!$B55,Tab2_Rohdaten!$A$28:$GG$1800,10+BB$9,FALSE) -> 71748 | BC37: =VLOOKUP(Tab2_Rohdaten!$B55,Tab2_Rohdaten!$A$28:$GG$1800,10+BC$9,FALSE) -> 71724 | BD37: =VLOOKUP(Tab2_Rohdaten!$B55,Tab2_Rohdaten!$A$28:$GG$1800,10+BD$9,FALSE) -> 71943 | BE37: =VLOOKUP(Tab2_Rohdaten!$B55,Tab2_Rohdaten!$A$28:$GG$1800,10+BE$9,FALSE) -> 73089 | BF37: =VLOOKUP(Tab2_Rohdaten!$B55,Tab2_Rohdaten!$A$28:$GG$1800,10+BF$9,FALSE) -> 72781 | BG37: =VLOOKUP(Tab2_Rohdaten!$B55,Tab2_Rohdaten!$A$28:$GG$1800,10+BG$9,FALSE) -> 72692 | BH37: =VLOOKUP(Tab2_Rohdaten!$B55,Tab2_Rohdaten!$A$28:$GG$1800,10+BH$9,FALSE) -> 72224 | BI37: =VLOOKUP(Tab2_Rohdaten!$B55,Tab2_Rohdaten!$A$28:$GG$1800,10+BI$9,FALSE) -> 73272 | BJ37: =VLOOKUP(Tab2_Rohdaten!$B55,Tab2_Rohdaten!$A$28:$GG$1800,10+BJ$9,FALSE) -> 73160 | BK37: =VLOOKUP(Tab2_Rohdaten!$B55,Tab2_Rohdaten!$A$28:$GG$1800,10+BK$9,FALSE) -> 72878 | BL37: =VLOOKUP(Tab2_Rohdaten!$B55,Tab2_Rohdaten!$A$28:$GG$1800,10+BL$9,FALSE) -> 73235 | BM37: =VLOOKUP(Tab2_Rohdaten!$B55,Tab2_Rohdaten!$A$28:$GG$1800,10+BM$9,FALSE) -> 74320 | BN37: =VLOOKUP(Tab2_Rohdaten!$B55,Tab2_Rohdaten!$A$28:$GG$1800,10+BN$9,FALSE) -> 74362 | BO37: =VLOOKUP(Tab2_Rohdaten!$B55,Tab2_Rohdaten!$A$28:$GG$1800,10+BO$9,FALSE) -> 74394
A38: =VLOOKUP(Tab2_Rohdaten!$B56,Tab2_Rohdaten!$A$28:$GG$1800,9,FALSE) -> JC Potsdam-Mittelmark | B38: =VLOOKUP(Tab2_Rohdaten!$B56,Tab2_Rohdaten!$A$28:$GG$1800,10,FALSE) -> 03942 | C38: =VLOOKUP(Tab2_Rohdaten!$B56,Tab2_Rohdaten!$A$28:$GG$1800,10+C$9,FALSE) -> 69334 | D38: =VLOOKUP(Tab2_Rohdaten!$B56,Tab2_Rohdaten!$A$28:$GG$1800,10+D$9,FALSE) -> 71505 | E38: =VLOOKUP(Tab2_Rohdaten!$B56,Tab2_Rohdaten!$A$28:$GG$1800,10+E$9,FALSE) -> 72565 | F38: =VLOOKUP(Tab2_Rohdaten!$B56,Tab2_Rohdaten!$A$28:$GG$1800,10+F$9,FALSE) -> 72672 | G38: =VLOOKUP(Tab2_Rohdaten!$B56,Tab2_Rohdaten!$A$28:$GG$1800,10+G$9,FALSE) -> 72643 | H38: =VLOOKUP(Tab2_Rohdaten!$B56,Tab2_Rohdaten!$A$28:$GG$1800,10+H$9,FALSE) -> 73845 | I38: =VLOOKUP(Tab2_Rohdaten!$B56,Tab2_Rohdaten!$A$28:$GG$1800,10+I$9,FALSE) -> 75016 | J38: =VLOOKUP(Tab2_Rohdaten!$B56,Tab2_Rohdaten!$A$28:$GG$1800,10+J$9,FALSE) -> 74473 | K38: =VLOOKUP(Tab2_Rohdaten!$B56,Tab2_Rohdaten!$A$28:$GG$1800,10+K$9,FALSE) -> 74270 | L38: =VLOOKUP(Tab2_Rohdaten!$B56,Tab2_Rohdaten!$A$28:$GG$1800,10+L$9,FALSE) -> 75364 | M38: =VLOOKUP(Tab2_Rohdaten!$B56,Tab2_Rohdaten!$A$28:$GG$1800,10+M$9,FALSE) -> 76473 | N38: =VLOOKUP(Tab2_Rohdaten!$B56,Tab2_Rohdaten!$A$28:$GG$1800,10+N$9,FALSE) -> 75714 | O38: =VLOOKUP(Tab2_Rohdaten!$B56,Tab2_Rohdaten!$A$28:$GG$1800,10+O$9,FALSE) -> 75090 | P38: =VLOOKUP(Tab2_Rohdaten!$B56,Tab2_Rohdaten!$A$28:$GG$1800,10+P$9,FALSE) -> 75979 | Q38: =VLOOKUP(Tab2_Rohdaten!$B56,Tab2_Rohdaten!$A$28:$GG$1800,10+Q$9,FALSE) -> 76713 | R38: =VLOOKUP(Tab2_Rohdaten!$B56,Tab2_Rohdaten!$A$28:$GG$1800,10+R$9,FALSE) -> 75935 | S38: =VLOOKUP(Tab2_Rohdaten!$B56,Tab2_Rohdaten!$A$28:$GG$1800,10+S$9,FALSE) -> 75547 | T38: =VLOOKUP(Tab2_Rohdaten!$B56,Tab2_Rohdaten!$A$28:$GG$1800,10+T$9,FALSE) -> 76718 | U38: =VLOOKUP(Tab2_Rohdaten!$B56,Tab2_Rohdaten!$A$28:$GG$1800,10+U$9,FALSE) -> 77629 | V38: =VLOOKUP(Tab2_Rohdaten!$B56,Tab2_Rohdaten!$A$28:$GG$1800,10+V$9,FALSE) -> 76900 | W38: =VLOOKUP(Tab2_Rohdaten!$B56,Tab2_Rohdaten!$A$28:$GG$1800,10+W$9,FALSE) -> 76993 | X38: =VLOOKUP(Tab2_Rohdaten!$B56,Tab2_Rohdaten!$A$28:$GG$1800,10+X$9,FALSE) -> 78027 | Y38: =VLOOKUP(Tab2_Rohdaten!$B56,Tab2_Rohdaten!$A$28:$GG$1800,10+Y$9,FALSE) -> 79063 | Z38: =VLOOKUP(Tab2_Rohdaten!$B56,Tab2_Rohdaten!$A$28:$GG$1800,10+Z$9,FALSE) -> 78590 | AA38: =VLOOKUP(Tab2_Rohdaten!$B56,Tab2_Rohdaten!$A$28:$GG$1800,10+AA$9,FALSE) -> 78572 | AB38: =VLOOKUP(Tab2_Rohdaten!$B56,Tab2_Rohdaten!$A$28:$GG$1800,10+AB$9,FALSE) -> 79151 | AC38: =VLOOKUP(Tab2_Rohdaten!$B56,Tab2_Rohdaten!$A$28:$GG$1800,10+AC$9,FALSE) -> 80028 | AD38: =VLOOKUP(Tab2_Rohdaten!$B56,Tab2_Rohdaten!$A$28:$GG$1800,10+AD$9,FALSE) -> 79247 | AE38: =VLOOKUP(Tab2_Rohdaten!$B56,Tab2_Rohdaten!$A$28:$GG$1800,10+AE$9,FALSE) -> 78950 | AF38: =VLOOKUP(Tab2_Rohdaten!$B56,Tab2_Rohdaten!$A$28:$GG$1800,10+AF$9,FALSE) -> 79667 | AG38: =VLOOKUP(Tab2_Rohdaten!$B56,Tab2_Rohdaten!$A$28:$GG$1800,10+AG$9,FALSE) -> 80587 | AH38: =VLOOKUP(Tab2_Rohdaten!$B56,Tab2_Rohdaten!$A$28:$GG$1800,10+AH$9,FALSE) -> 79868 | AI38: =VLOOKUP(Tab2_Rohdaten!$B56,Tab2_Rohdaten!$A$28:$GG$1800,10+AI$9,FALSE) -> 79945 | AJ38: =VLOOKUP(Tab2_Rohdaten!$B56,Tab2_Rohdaten!$A$28:$GG$1800,10+AJ$9,FALSE) -> 81003 | AK38: =VLOOKUP(Tab2_Rohdaten!$B56,Tab2_Rohdaten!$A$28:$GG$1800,10+AK$9,FALSE) -> 81800 | AL38: =VLOOKUP(Tab2_Rohdaten!$B56,Tab2_Rohdaten!$A$28:$GG$1800,10+AL$9,FALSE) -> 81153 | AM38: =VLOOKUP(Tab2_Rohdaten!$B56,Tab2_Rohdaten!$A$28:$GG$1800,10+AM$9,FALSE) -> 81270 | AN38: =VLOOKUP(Tab2_Rohdaten!$B56,Tab2_Rohdaten!$A$28:$GG$1800,10+AN$9,FALSE) -> 82201 | AO38: =VLOOKUP(Tab2_Rohdaten!$B56,Tab2_Rohdaten!$A$28:$GG$1800,10+AO$9,FALSE) -> 83259 | AP38: =VLOOKUP(Tab2_Rohdaten!$B56,Tab2_Rohdaten!$A$28:$GG$1800,10+AP$9,FALSE) -> 82660 | AQ38: =VLOOKUP(Tab2_Rohdaten!$B56,Tab2_Rohdaten!$A$28:$GG$1800,10+AQ$9,FALSE) -> 82789 | AR38: =VLOOKUP(Tab2_Rohdaten!$B56,Tab2_Rohdaten!$A$28:$GG$1800,10+AR$9,FALSE) -> 83408 | AS38: =VLOOKUP(Tab2_Rohdaten!$B56,Tab2_Rohdaten!$A$28:$GG$1800,10+AS$9,FALSE) -> 84320 | AT38: =VLOOKUP(Tab2_Rohdaten!$B56,Tab2_Rohdaten!$A$28:$GG$1800,10+AT$9,FALSE) -> 84036 | AU38: =VLOOKUP(Tab2_Rohdaten!$B56,Tab2_Rohdaten!$A$28:$GG$1800,10+AU$9,FALSE) -> 84129 | AV38: =VLOOKUP(Tab2_Rohdaten!$B56,Tab2_Rohdaten!$A$28:$GG$1800,10+AV$9,FALSE) -> 84825 | AW38: =VLOOKUP(Tab2_Rohdaten!$B56,Tab2_Rohdaten!$A$28:$GG$1800,10+AW$9,FALSE) -> 85586 | AX38: =VLOOKUP(Tab2_Rohdaten!$B56,Tab2_Rohdaten!$A$28:$GG$1800,10+AX$9,FALSE) -> 85131 | AY38: =VLOOKUP(Tab2_Rohdaten!$B56,Tab2_Rohdaten!$A$28:$GG$1800,10+AY$9,FALSE) -> 85237 | AZ38: =VLOOKUP(Tab2_Rohdaten!$B56,Tab2_Rohdaten!$A$28:$GG$1800,10+AZ$9,FALSE) -> 85926 | BA38: =VLOOKUP(Tab2_Rohdaten!$B56,Tab2_Rohdaten!$A$28:$GG$1800,10+BA$9,FALSE) -> 86771 | BB38: =VLOOKUP(Tab2_Rohdaten!$B56,Tab2_Rohdaten!$A$28:$GG$1800,10+BB$9,FALSE) -> 86248 | BC38: =VLOOKUP(Tab2_Rohdaten!$B56,Tab2_Rohdaten!$A$28:$GG$1800,10+BC$9,FALSE) -> 86257 | BD38: =VLOOKUP(Tab2_Rohdaten!$B56,Tab2_Rohdaten!$A$28:$GG$1800,10+BD$9,FALSE) -> 86625 | BE38: =VLOOKUP(Tab2_Rohdaten!$B56,Tab2_Rohdaten!$A$28:$GG$1800,10+BE$9,FALSE) -> 87816 | BF38: =VLOOKUP(Tab2_Rohdaten!$B56,Tab2_Rohdaten!$A$28:$GG$1800,10+BF$9,FALSE) -> 87299 | BG38: =VLOOKUP(Tab2_Rohdaten!$B56,Tab2_Rohdaten!$A$28:$GG$1800,10+BG$9,FALSE) -> 87128 | BH38: =VLOOKUP(Tab2_Rohdaten!$B56,Tab2_Rohdaten!$A$28:$GG$1800,10+BH$9,FALSE) -> 86660 | BI38: =VLOOKUP(Tab2_Rohdaten!$B56,Tab2_Rohdaten!$A$28:$GG$1800,10+BI$9,FALSE) -> 87520 | BJ38: =VLOOKUP(Tab2_Rohdaten!$B56,Tab2_Rohdaten!$A$28:$GG$1800,10+BJ$9,FALSE) -> 87453 | BK38: =VLOOKUP(Tab2_Rohdaten!$B56,Tab2_Rohdaten!$A$28:$GG$1800,10+BK$9,FALSE) -> 87047 | BL38: =VLOOKUP(Tab2_Rohdaten!$B56,Tab2_Rohdaten!$A$28:$GG$1800,10+BL$9,FALSE) -> 87368 | BM38: =VLOOKUP(Tab2_Rohdaten!$B56,Tab2_Rohdaten!$A$28:$GG$1800,10+BM$9,FALSE) -> 88366 | BN38: =VLOOKUP(Tab2_Rohdaten!$B56,Tab2_Rohdaten!$A$28:$GG$1800,10+BN$9,FALSE) -> 88296 | BO38: =VLOOKUP(Tab2_Rohdaten!$B56,Tab2_Rohdaten!$A$28:$GG$1800,10+BO$9,FALSE) -> 87985
A39: =VLOOKUP(Tab2_Rohdaten!$B57,Tab2_Rohdaten!$A$28:$GG$1800,9,FALSE) -> JC Salzlandkreis | B39: =VLOOKUP(Tab2_Rohdaten!$B57,Tab2_Rohdaten!$A$28:$GG$1800,10,FALSE) -> 04102 | C39: =VLOOKUP(Tab2_Rohdaten!$B57,Tab2_Rohdaten!$A$28:$GG$1800,10+C$9,FALSE) -> 69682 | D39: =VLOOKUP(Tab2_Rohdaten!$B57,Tab2_Rohdaten!$A$28:$GG$1800,10+D$9,FALSE) -> 71624 | E39: =VLOOKUP(Tab2_Rohdaten!$B57,Tab2_Rohdaten!$A$28:$GG$1800,10+E$9,FALSE) -> 72205 | F39: =VLOOKUP(Tab2_Rohdaten!$B57,Tab2_Rohdaten!$A$28:$GG$1800,10+F$9,FALSE) -> 71621 | G39: =VLOOKUP(Tab2_Rohdaten!$B57,Tab2_Rohdaten!$A$28:$GG$1800,10+G$9,FALSE) -> 70818 | H39: =VLOOKUP(Tab2_Rohdaten!$B57,Tab2_Rohdaten!$A$28:$GG$1800,10+H$9,FALSE) -> 71753 | I39: =VLOOKUP(Tab2_Rohdaten!$B57,Tab2_Rohdaten!$A$28:$GG$1800,10+I$9,FALSE) -> 73267 | J39: =VLOOKUP(Tab2_Rohdaten!$B57,Tab2_Rohdaten!$A$28:$GG$1800,10+J$9,FALSE) -> 72663 | K39: =VLOOKUP(Tab2_Rohdaten!$B57,Tab2_Rohdaten!$A$28:$GG$1800,10+K$9,FALSE) -> 72163 | L39: =VLOOKUP(Tab2_Rohdaten!$B57,Tab2_Rohdaten!$A$28:$GG$1800,10+L$9,FALSE) -> 72885 | M39: =VLOOKUP(Tab2_Rohdaten!$B57,Tab2_Rohdaten!$A$28:$GG$1800,10+M$9,FALSE) -> 74413 | N39: =VLOOKUP(Tab2_Rohdaten!$B57,Tab2_Rohdaten!$A$28:$GG$1800,10+N$9,FALSE) -> 73139 | O39: =VLOOKUP(Tab2_Rohdaten!$B57,Tab2_Rohdaten!$A$28:$GG$1800,10+O$9,FALSE) -> 71839 | P39: =VLOOKUP(Tab2_Rohdaten!$B57,Tab2_Rohdaten!$A$28:$GG$1800,10+P$9,FALSE) -> 72283 | Q39: =VLOOKUP(Tab2_Rohdaten!$B57,Tab2_Rohdaten!$A$28:$GG$1800,10+Q$9,FALSE) -> 73160 | R39: =VLOOKUP(Tab2_Rohdaten!$B57,Tab2_Rohdaten!$A$28:$GG$1800,10+R$9,FALSE) -> 72011 | S39: =VLOOKUP(Tab2_Rohdaten!$B57,Tab2_Rohdaten!$A$28:$GG$1800,10+S$9,FALSE) -> 71052 | T39: =VLOOKUP(Tab2_Rohdaten!$B57,Tab2_Rohdaten!$A$28:$GG$1800,10+T$9,FALSE) -> 72535 | U39: =VLOOKUP(Tab2_Rohdaten!$B57,Tab2_Rohdaten!$A$28:$GG$1800,10+U$9,FALSE) -> 73805 | V39: =VLOOKUP(Tab2_Rohdaten!$B57,Tab2_Rohdaten!$A$28:$GG$1800,10+V$9,FALSE) -> 71964 | W39: =VLOOKUP(Tab2_Rohdaten!$B57,Tab2_Rohdaten!$A$28:$GG$1800,10+W$9,FALSE) -> 71241 | X39: =VLOOKUP(Tab2_Rohdaten!$B57,Tab2_Rohdaten!$A$28:$GG$1800,10+X$9,FALSE) -> 72235 | Y39: =VLOOKUP(Tab2_Rohdaten!$B57,Tab2_Rohdaten!$A$28:$GG$1800,10+Y$9,FALSE) -> 73226 | Z39: =VLOOKUP(Tab2_Rohdaten!$B57,Tab2_Rohdaten!$A$28:$GG$1800,10+Z$9,FALSE) -> 72019 | AA39: =VLOOKUP(Tab2_Rohdaten!$B57,Tab2_Rohdaten!$A$28:$GG$1800,10+AA$9,FALSE) -> 71301 | AB39: =VLOOKUP(Tab2_Rohdaten!$B57,Tab2_Rohdaten!$A$28:$GG$1800,10+AB$9,FALSE) -> 72046 | AC39: =VLOOKUP(Tab2_Rohdaten!$B57,Tab2_Rohdaten!$A$28:$GG$1800,10+AC$9,FALSE) -> 72835 | AD39: =VLOOKUP(Tab2_Rohdaten!$B57,Tab2_Rohdaten!$A$28:$GG$1800,10+AD$9,FALSE) -> 71463 | AE39: =VLOOKUP(Tab2_Rohdaten!$B57,Tab2_Rohdaten!$A$28:$GG$1800,10+AE$9,FALSE) -> 70317 | AF39: =VLOOKUP(Tab2_Rohdaten!$B57,Tab2_Rohdaten!$A$28:$GG$1800,10+AF$9,FALSE) -> 71235 | AG39: =VLOOKUP(Tab2_Rohdaten!$B57,Tab2_Rohdaten!$A$28:$GG$1800,10+AG$9,FALSE) -> 72250 | AH39: =VLOOKUP(Tab2_Rohdaten!$B57,Tab2_Rohdaten!$A$28:$GG$1800,10+AH$9,FALSE) -> 70921 | AI39: =VLOOKUP(Tab2_Rohdaten!$B57,Tab2_Rohdaten!$A$28:$GG$1800,10+AI$9,FALSE) -> 70667 | AJ39: =VLOOKUP(Tab2_Rohdaten!$B57,Tab2_Rohdaten!$A$28:$GG$1800,10+AJ$9,FALSE) -> 71281 | AK39: =VLOOKUP(Tab2_Rohdaten!$B57,Tab2_Rohdaten!$A$28:$GG$1800,10+AK$9,FALSE) -> 72132 | AL39: =VLOOKUP(Tab2_Rohdaten!$B57,Tab2_Rohdaten!$A$28:$GG$1800,10+AL$9,FALSE) -> 70554 | AM39: =VLOOKUP(Tab2_Rohdaten!$B57,Tab2_Rohdaten!$A$28:$GG$1800,10+AM$9,FALSE) -> 70719 | AN39: =VLOOKUP(Tab2_Rohdaten!$B57,Tab2_Rohdaten!$A$28:$GG$1800,10+AN$9,FALSE) -> 71274 | AO39: =VLOOKUP(Tab2_Rohdaten!$B57,Tab2_Rohdaten!$A$28:$GG$1800,10+AO$9,FALSE) -> 72131 | AP39: =VLOOKUP(Tab2_Rohdaten!$B57,Tab2_Rohdaten!$A$28:$GG$1800,10+AP$9,FALSE) -> 71098 | AQ39: =VLOOKUP(Tab2_Rohdaten!$B57,Tab2_Rohdaten!$A$28:$GG$1800,10+AQ$9,FALSE) -> 71133 | AR39: =VLOOKUP(Tab2_Rohdaten!$B57,Tab2_Rohdaten!$A$28:$GG$1800,10+AR$9,FALSE) -> 71395 | AS39: =VLOOKUP(Tab2_Rohdaten!$B57,Tab2_Rohdaten!$A$28:$GG$1800,10+AS$9,FALSE) -> 72640 | AT39: =VLOOKUP(Tab2_Rohdaten!$B57,Tab2_Rohdaten!$A$28:$GG$1800,10+AT$9,FALSE) -> 71635 | AU39: =VLOOKUP(Tab2_Rohdaten!$B57,Tab2_Rohdaten!$A$28:$GG$1800,10+AU$9,FALSE) -> 71812 | AV39: =VLOOKUP(Tab2_Rohdaten!$B57,Tab2_Rohdaten!$A$28:$GG$1800,10+AV$9,FALSE) -> 72190 | AW39: =VLOOKUP(Tab2_Rohdaten!$B57,Tab2_Rohdaten!$A$28:$GG$1800,10+AW$9,FALSE) -> 73301 | AX39: =VLOOKUP(Tab2_Rohdaten!$B57,Tab2_Rohdaten!$A$28:$GG$1800,10+AX$9,FALSE) -> 72525 | AY39: =VLOOKUP(Tab2_Rohdaten!$B57,Tab2_Rohdaten!$A$28:$GG$1800,10+AY$9,FALSE) -> 72189 | AZ39: =VLOOKUP(Tab2_Rohdaten!$B57,Tab2_Rohdaten!$A$28:$GG$1800,10+AZ$9,FALSE) -> 72458 | BA39: =VLOOKUP(Tab2_Rohdaten!$B57,Tab2_Rohdaten!$A$28:$GG$1800,10+BA$9,FALSE) -> 73298 | BB39: =VLOOKUP(Tab2_Rohdaten!$B57,Tab2_Rohdaten!$A$28:$GG$1800,10+BB$9,FALSE) -> 72415 | BC39: =VLOOKUP(Tab2_Rohdaten!$B57,Tab2_Rohdaten!$A$28:$GG$1800,10+BC$9,FALSE) -> 72061 | BD39: =VLOOKUP(Tab2_Rohdaten!$B57,Tab2_Rohdaten!$A$28:$GG$1800,10+BD$9,FALSE) -> 72219 | BE39: =VLOOKUP(Tab2_Rohdaten!$B57,Tab2_Rohdaten!$A$28:$GG$1800,10+BE$9,FALSE) -> 73109 | BF39: =VLOOKUP(Tab2_Rohdaten!$B57,Tab2_Rohdaten!$A$28:$GG$1800,10+BF$9,FALSE) -> 72377 | BG39: =VLOOKUP(Tab2_Rohdaten!$B57,Tab2_Rohdaten!$A$28:$GG$1800,10+BG$9,FALSE) -> 71964 | BH39: =VLOOKUP(Tab2_Rohdaten!$B57,Tab2_Rohdaten!$A$28:$GG$1800,10+BH$9,FALSE) -> 71242 | BI39: =VLOOKUP(Tab2_Rohdaten!$B57,Tab2_Rohdaten!$A$28:$GG$1800,10+BI$9,FALSE) -> 72226 | BJ39: =VLOOKUP(Tab2_Rohdaten!$B57,Tab2_Rohdaten!$A$28:$GG$1800,10+BJ$9,FALSE) -> 71720 | BK39: =VLOOKUP(Tab2_Rohdaten!$B57,Tab2_Rohdaten!$A$28:$GG$1800,10+BK$9,FALSE) -> 71356 | BL39: =VLOOKUP(Tab2_Rohdaten!$B57,Tab2_Rohdaten!$A$28:$GG$1800,10+BL$9,FALSE) -> 71543 | BM39: =VLOOKUP(Tab2_Rohdaten!$B57,Tab2_Rohdaten!$A$28:$GG$1800,10+BM$9,FALSE) -> 72545 | BN39: =VLOOKUP(Tab2_Rohdaten!$B57,Tab2_Rohdaten!$A$28:$GG$1800,10+BN$9,FALSE) -> 72147 | BO39: =VLOOKUP(Tab2_Rohdaten!$B57,Tab2_Rohdaten!$A$28:$GG$1800,10+BO$9,FALSE) -> 71834
A40: =VLOOKUP(Tab2_Rohdaten!$B58,Tab2_Rohdaten!$A$28:$GG$1800,9,FALSE) -> JC Dessau-Roßlau | B40: =VLOOKUP(Tab2_Rohdaten!$B58,Tab2_Rohdaten!$A$28:$GG$1800,10,FALSE) -> 04202 | C40: =VLOOKUP(Tab2_Rohdaten!$B58,Tab2_Rohdaten!$A$28:$GG$1800,10+C$9,FALSE) -> 29323 | D40: =VLOOKUP(Tab2_Rohdaten!$B58,Tab2_Rohdaten!$A$28:$GG$1800,10+D$9,FALSE) -> 29778 | E40: =VLOOKUP(Tab2_Rohdaten!$B58,Tab2_Rohdaten!$A$28:$GG$1800,10+E$9,FALSE) -> 30194 | F40: =VLOOKUP(Tab2_Rohdaten!$B58,Tab2_Rohdaten!$A$28:$GG$1800,10+F$9,FALSE) -> 30518 | G40: =VLOOKUP(Tab2_Rohdaten!$B58,Tab2_Rohdaten!$A$28:$GG$1800,10+G$9,FALSE) -> 29666 | H40: =VLOOKUP(Tab2_Rohdaten!$B58,Tab2_Rohdaten!$A$28:$GG$1800,10+H$9,FALSE) -> 29985 | I40: =VLOOKUP(Tab2_Rohdaten!$B58,Tab2_Rohdaten!$A$28:$GG$1800,10+I$9,FALSE) -> 30601 | J40: =VLOOKUP(Tab2_Rohdaten!$B58,Tab2_Rohdaten!$A$28:$GG$1800,10+J$9,FALSE) -> 30488 | K40: =VLOOKUP(Tab2_Rohdaten!$B58,Tab2_Rohdaten!$A$28:$GG$1800,10+K$9,FALSE) -> 30215 | L40: =VLOOKUP(Tab2_Rohdaten!$B58,Tab2_Rohdaten!$A$28:$GG$1800,10+L$9,FALSE) -> 30423 | M40: =VLOOKUP(Tab2_Rohdaten!$B58,Tab2_Rohdaten!$A$28:$GG$1800,10+M$9,FALSE) -> 30988 | N40: =VLOOKUP(Tab2_Rohdaten!$B58,Tab2_Rohdaten!$A$28:$GG$1800,10+N$9,FALSE) -> 30678 | O40: =VLOOKUP(Tab2_Rohdaten!$B58,Tab2_Rohdaten!$A$28:$GG$1800,10+O$9,FALSE) -> 29962 | P40: =VLOOKUP(Tab2_Rohdaten!$B58,Tab2_Rohdaten!$A$28:$GG$1800,10+P$9,FALSE) -> 30047 | Q40: =VLOOKUP(Tab2_Rohdaten!$B58,Tab2_Rohdaten!$A$28:$GG$1800,10+Q$9,FALSE) -> 30607 | R40: =VLOOKUP(Tab2_Rohdaten!$B58,Tab2_Rohdaten!$A$28:$GG$1800,10+R$9,FALSE) -> 30432 | S40: =VLOOKUP(Tab2_Rohdaten!$B58,Tab2_Rohdaten!$A$28:$GG$1800,10+S$9,FALSE) -> 29556 | T40: =VLOOKUP(Tab2_Rohdaten!$B58,Tab2_Rohdaten!$A$28:$GG$1800,10+T$9,FALSE) -> 29882 | U40: =VLOOKUP(Tab2_Rohdaten!$B58,Tab2_Rohdaten!$A$28:$GG$1800,10+U$9,FALSE) -> 30470 | V40: =VLOOKUP(Tab2_Rohdaten!$B58,Tab2_Rohdaten!$A$28:$GG$1800,10+V$9,FALSE) -> 30226 | W40: =VLOOKUP(Tab2_Rohdaten!$B58,Tab2_Rohdaten!$A$28:$GG$1800,10+W$9,FALSE) -> 29679 | X40: =VLOOKUP(Tab2_Rohdaten!$B58,Tab2_Rohdaten!$A$28:$GG$1800,10+X$9,FALSE) -> 30181 | Y40: =VLOOKUP(Tab2_Rohdaten!$B58,Tab2_Rohdaten!$A$28:$GG$1800,10+Y$9,FALSE) -> 30761 | Z40: =VLOOKUP(Tab2_Rohdaten!$B58,Tab2_Rohdaten!$A$28:$GG$1800,10+Z$9,FALSE) -> 30368 | AA40: =VLOOKUP(Tab2_Rohdaten!$B58,Tab2_Rohdaten!$A$28:$GG$1800,10+AA$9,FALSE) -> 29913 | AB40: =VLOOKUP(Tab2_Rohdaten!$B58,Tab2_Rohdaten!$A$28:$GG$1800,10+AB$9,FALSE) -> 30247 | AC40: =VLOOKUP(Tab2_Rohdaten!$B58,Tab2_Rohdaten!$A$28:$GG$1800,10+AC$9,FALSE) -> 30468 | AD40: =VLOOKUP(Tab2_Rohdaten!$B58,Tab2_Rohdaten!$A$28:$GG$1800,10+AD$9,FALSE) -> 30094 | AE40: =VLOOKUP(Tab2_Rohdaten!$B58,Tab2_Rohdaten!$A$28:$GG$1800,10+AE$9,FALSE) -> 29786 | AF40: =VLOOKUP(Tab2_Rohdaten!$B58,Tab2_Rohdaten!$A$28:$GG$1800,10+AF$9,FALSE) -> 30061 | AG40: =VLOOKUP(Tab2_Rohdaten!$B58,Tab2_Rohdaten!$A$28:$GG$1800,10+AG$9,FALSE) -> 30307 | AH40: =VLOOKUP(Tab2_Rohdaten!$B58,Tab2_Rohdaten!$A$28:$GG$1800,10+AH$9,FALSE) -> 29870 | AI40: =VLOOKUP(Tab2_Rohdaten!$B58,Tab2_Rohdaten!$A$28:$GG$1800,10+AI$9,FALSE) -> 29612 | AJ40: =VLOOKUP(Tab2_Rohdaten!$B58,Tab2_Rohdaten!$A$28:$GG$1800,10+AJ$9,FALSE) -> 29814 | AK40: =VLOOKUP(Tab2_Rohdaten!$B58,Tab2_Rohdaten!$A$28:$GG$1800,10+AK$9,FALSE) -> 30417 | AL40: =VLOOKUP(Tab2_Rohdaten!$B58,Tab2_Rohdaten!$A$28:$GG$1800,10+AL$9,FALSE) -> 29987 | AM40: =VLOOKUP(Tab2_Rohdaten!$B58,Tab2_Rohdaten!$A$28:$GG$1800,10+AM$9,FALSE) -> 29843 | AN40: =VLOOKUP(Tab2_Rohdaten!$B58,Tab2_Rohdaten!$A$28:$GG$1800,10+AN$9,FALSE) -> 30051 | AO40: =VLOOKUP(Tab2_Rohdaten!$B58,Tab2_Rohdaten!$A$28:$GG$1800,10+AO$9,FALSE) -> 30332 | AP40: =VLOOKUP(Tab2_Rohdaten!$B58,Tab2_Rohdaten!$A$28:$GG$1800,10+AP$9,FALSE) -> 30033 | AQ40: =VLOOKUP(Tab2_Rohdaten!$B58,Tab2_Rohdaten!$A$28:$GG$1800,10+AQ$9,FALSE) -> 29927 | AR40: =VLOOKUP(Tab2_Rohdaten!$B58,Tab2_Rohdaten!$A$28:$GG$1800,10+AR$9,FALSE) -> 30104 | AS40: =VLOOKUP(Tab2_Rohdaten!$B58,Tab2_Rohdaten!$A$28:$GG$1800,10+AS$9,FALSE) -> 30464 | AT40: =VLOOKUP(Tab2_Rohdaten!$B58,Tab2_Rohdaten!$A$28:$GG$1800,10+AT$9,FALSE) -> 30159 | AU40: =VLOOKUP(Tab2_Rohdaten!$B58,Tab2_Rohdaten!$A$28:$GG$1800,10+AU$9,FALSE) -> 30042 | AV40: =VLOOKUP(Tab2_Rohdaten!$B58,Tab2_Rohdaten!$A$28:$GG$1800,10+AV$9,FALSE) -> 30206 | AW40: =VLOOKUP(Tab2_Rohdaten!$B58,Tab2_Rohdaten!$A$28:$GG$1800,10+AW$9,FALSE) -> 30514 | AX40: =VLOOKUP(Tab2_Rohdaten!$B58,Tab2_Rohdaten!$A$28:$GG$1800,10+AX$9,FALSE) -> 30355 | AY40: =VLOOKUP(Tab2_Rohdaten!$B58,Tab2_Rohdaten!$A$28:$GG$1800,10+AY$9,FALSE) -> 30200 | AZ40: =VLOOKUP(Tab2_Rohdaten!$B58,Tab2_Rohdaten!$A$28:$GG$1800,10+AZ$9,FALSE) -> 30295 | BA40: =VLOOKUP(Tab2_Rohdaten!$B58,Tab2_Rohdaten!$A$28:$GG$1800,10+BA$9,FALSE) -> 30523 | BB40: =VLOOKUP(Tab2_Rohdaten!$B58,Tab2_Rohdaten!$A$28:$GG$1800,10+BB$9,FALSE) -> 30229 | BC40: =VLOOKUP(Tab2_Rohdaten!$B58,Tab2_Rohdaten!$A$28:$GG$1800,10+BC$9,FALSE) -> 30120 | BD40: =VLOOKUP(Tab2_Rohdaten!$B58,Tab2_Rohdaten!$A$28:$GG$1800,10+BD$9,FALSE) -> 30079 | BE40: =VLOOKUP(Tab2_Rohdaten!$B58,Tab2_Rohdaten!$A$28:$GG$1800,10+BE$9,FALSE) -> 30432 | BF40: =VLOOKUP(Tab2_Rohdaten!$B58,Tab2_Rohdaten!$A$28:$GG$1800,10+BF$9,FALSE) -> 30232 | BG40: =VLOOKUP(Tab2_Rohdaten!$B58,Tab2_Rohdaten!$A$28:$GG$1800,10+BG$9,FALSE) -> 29946 | BH40: =VLOOKUP(Tab2_Rohdaten!$B58,Tab2_Rohdaten!$A$28:$GG$1800,10+BH$9,FALSE) -> 29599 | BI40: =VLOOKUP(Tab2_Rohdaten!$B58,Tab2_Rohdaten!$A$28:$GG$1800,10+BI$9,FALSE) -> 29765 | BJ40: =VLOOKUP(Tab2_Rohdaten!$B58,Tab2_Rohdaten!$A$28:$GG$1800,10+BJ$9,FALSE) -> 29667 | BK40: =VLOOKUP(Tab2_Rohdaten!$B58,Tab2_Rohdaten!$A$28:$GG$1800,10+BK$9,FALSE) -> 29360 | BL40: =VLOOKUP(Tab2_Rohdaten!$B58,Tab2_Rohdaten!$A$28:$GG$1800,10+BL$9,FALSE) -> 29441 | BM40: =VLOOKUP(Tab2_Rohdaten!$B58,Tab2_Rohdaten!$A$28:$GG$1800,10+BM$9,FALSE) -> 29951 | BN40: =VLOOKUP(Tab2_Rohdaten!$B58,Tab2_Rohdaten!$A$28:$GG$1800,10+BN$9,FALSE) -> 29729 | BO40: =VLOOKUP(Tab2_Rohdaten!$B58,Tab2_Rohdaten!$A$28:$GG$1800,10+BO$9,FALSE) -> 29619
A41: =VLOOKUP(Tab2_Rohdaten!$B59,Tab2_Rohdaten!$A$28:$GG$1800,9,FALSE) -> JC Anhalt-Bitterfeld | B41: =VLOOKUP(Tab2_Rohdaten!$B59,Tab2_Rohdaten!$A$28:$GG$1800,10,FALSE) -> 04208 | C41: =VLOOKUP(Tab2_Rohdaten!$B59,Tab2_Rohdaten!$A$28:$GG$1800,10+C$9,FALSE) -> 59940 | D41: =VLOOKUP(Tab2_Rohdaten!$B59,Tab2_Rohdaten!$A$28:$GG$1800,10+D$9,FALSE) -> 61310 | E41: =VLOOKUP(Tab2_Rohdaten!$B59,Tab2_Rohdaten!$A$28:$GG$1800,10+E$9,FALSE) -> 62872 | F41: =VLOOKUP(Tab2_Rohdaten!$B59,Tab2_Rohdaten!$A$28:$GG$1800,10+F$9,FALSE) -> 62516 | G41: =VLOOKUP(Tab2_Rohdaten!$B59,Tab2_Rohdaten!$A$28:$GG$1800,10+G$9,FALSE) -> 61848 | H41: =VLOOKUP(Tab2_Rohdaten!$B59,Tab2_Rohdaten!$A$28:$GG$1800,10+H$9,FALSE) -> 62993 | I41: =VLOOKUP(Tab2_Rohdaten!$B59,Tab2_Rohdaten!$A$28:$GG$1800,10+I$9,FALSE) -> 64916 | J41: =VLOOKUP(Tab2_Rohdaten!$B59,Tab2_Rohdaten!$A$28:$GG$1800,10+J$9,FALSE) -> 64110 | K41: =VLOOKUP(Tab2_Rohdaten!$B59,Tab2_Rohdaten!$A$28:$GG$1800,10+K$9,FALSE) -> 63834 | L41: =VLOOKUP(Tab2_Rohdaten!$B59,Tab2_Rohdaten!$A$28:$GG$1800,10+L$9,FALSE) -> 64746 | M41: =VLOOKUP(Tab2_Rohdaten!$B59,Tab2_Rohdaten!$A$28:$GG$1800,10+M$9,FALSE) -> 66507 | N41: =VLOOKUP(Tab2_Rohdaten!$B59,Tab2_Rohdaten!$A$28:$GG$1800,10+N$9,FALSE) -> 65338 | O41: =VLOOKUP(Tab2_Rohdaten!$B59,Tab2_Rohdaten!$A$28:$GG$1800,10+O$9,FALSE) -> 63596 | P41: =VLOOKUP(Tab2_Rohdaten!$B59,Tab2_Rohdaten!$A$28:$GG$1800,10+P$9,FALSE) -> 64039 | Q41: =VLOOKUP(Tab2_Rohdaten!$B59,Tab2_Rohdaten!$A$28:$GG$1800,10+Q$9,FALSE) -> 65724 | R41: =VLOOKUP(Tab2_Rohdaten!$B59,Tab2_Rohdaten!$A$28:$GG$1800,10+R$9,FALSE) -> 64829 | S41: =VLOOKUP(Tab2_Rohdaten!$B59,Tab2_Rohdaten!$A$28:$GG$1800,10+S$9,FALSE) -> 63690 | T41: =VLOOKUP(Tab2_Rohdaten!$B59,Tab2_Rohdaten!$A$28:$GG$1800,10+T$9,FALSE) -> 64592 | U41: =VLOOKUP(Tab2_Rohdaten!$B59,Tab2_Rohdaten!$A$28:$GG$1800,10+U$9,FALSE) -> 65850 | V41: =VLOOKUP(Tab2_Rohdaten!$B59,Tab2_Rohdaten!$A$28:$GG$1800,10+V$9,FALSE) -> 64071 | W41: =VLOOKUP(Tab2_Rohdaten!$B59,Tab2_Rohdaten!$A$28:$GG$1800,10+W$9,FALSE) -> 63056 | X41: =VLOOKUP(Tab2_Rohdaten!$B59,Tab2_Rohdaten!$A$28:$GG$1800,10+X$9,FALSE) -> 63891 | Y41: =VLOOKUP(Tab2_Rohdaten!$B59,Tab2_Rohdaten!$A$28:$GG$1800,10+Y$9,FALSE) -> 64923 | Z41: =VLOOKUP(Tab2_Rohdaten!$B59,Tab2_Rohdaten!$A$28:$GG$1800,10+Z$9,FALSE) -> 64680 | AA41: =VLOOKUP(Tab2_Rohdaten!$B59,Tab2_Rohdaten!$A$28:$GG$1800,10+AA$9,FALSE) -> 63752 | AB41: =VLOOKUP(Tab2_Rohdaten!$B59,Tab2_Rohdaten!$A$28:$GG$1800,10+AB$9,FALSE) -> 63813 | AC41: =VLOOKUP(Tab2_Rohdaten!$B59,Tab2_Rohdaten!$A$28:$GG$1800,10+AC$9,FALSE) -> 64171 | AD41: =VLOOKUP(Tab2_Rohdaten!$B59,Tab2_Rohdaten!$A$28:$GG$1800,10+AD$9,FALSE) -> 63043 | AE41: =VLOOKUP(Tab2_Rohdaten!$B59,Tab2_Rohdaten!$A$28:$GG$1800,10+AE$9,FALSE) -> 62139 | AF41: =VLOOKUP(Tab2_Rohdaten!$B59,Tab2_Rohdaten!$A$28:$GG$1800,10+AF$9,FALSE) -> 62714 | AG41: =VLOOKUP(Tab2_Rohdaten!$B59,Tab2_Rohdaten!$A$28:$GG$1800,10+AG$9,FALSE) -> 63718 | AH41: =VLOOKUP(Tab2_Rohdaten!$B59,Tab2_Rohdaten!$A$28:$GG$1800,10+AH$9,FALSE) -> 62574 | AI41: =VLOOKUP(Tab2_Rohdaten!$B59,Tab2_Rohdaten!$A$28:$GG$1800,10+AI$9,FALSE) -> 62217 | AJ41: =VLOOKUP(Tab2_Rohdaten!$B59,Tab2_Rohdaten!$A$28:$GG$1800,10+AJ$9,FALSE) -> 62515 | AK41: =VLOOKUP(Tab2_Rohdaten!$B59,Tab2_Rohdaten!$A$28:$GG$1800,10+AK$9,FALSE) -> 63360 | AL41: =VLOOKUP(Tab2_Rohdaten!$B59,Tab2_Rohdaten!$A$28:$GG$1800,10+AL$9,FALSE) -> 62343 | AM41: =VLOOKUP(Tab2_Rohdaten!$B59,Tab2_Rohdaten!$A$28:$GG$1800,10+AM$9,FALSE) -> 61983 | AN41: =VLOOKUP(Tab2_Rohdaten!$B59,Tab2_Rohdaten!$A$28:$GG$1800,10+AN$9,FALSE) -> 62490 | AO41: =VLOOKUP(Tab2_Rohdaten!$B59,Tab2_Rohdaten!$A$28:$GG$1800,10+AO$9,FALSE) -> 62977 | AP41: =VLOOKUP(Tab2_Rohdaten!$B59,Tab2_Rohdaten!$A$28:$GG$1800,10+AP$9,FALSE) -> 62172 | AQ41: =VLOOKUP(Tab2_Rohdaten!$B59,Tab2_Rohdaten!$A$28:$GG$1800,10+AQ$9,FALSE) -> 61846 | AR41: =VLOOKUP(Tab2_Rohdaten!$B59,Tab2_Rohdaten!$A$28:$GG$1800,10+AR$9,FALSE) -> 62166 | AS41: =VLOOKUP(Tab2_Rohdaten!$B59,Tab2_Rohdaten!$A$28:$GG$1800,10+AS$9,FALSE) -> 63030 | AT41: =VLOOKUP(Tab2_Rohdaten!$B59,Tab2_Rohdaten!$A$28:$GG$1800,10+AT$9,FALSE) -> 62343 | AU41: =VLOOKUP(Tab2_Rohdaten!$B59,Tab2_Rohdaten!$A$28:$GG$1800,10+AU$9,FALSE) -> 62069 | AV41: =VLOOKUP(Tab2_Rohdaten!$B59,Tab2_Rohdaten!$A$28:$GG$1800,10+AV$9,FALSE) -> 62495 | AW41: =VLOOKUP(Tab2_Rohdaten!$B59,Tab2_Rohdaten!$A$28:$GG$1800,10+AW$9,FALSE) -> 63215 | AX41: =VLOOKUP(Tab2_Rohdaten!$B59,Tab2_Rohdaten!$A$28:$GG$1800,10+AX$9,FALSE) -> 62513 | AY41: =VLOOKUP(Tab2_Rohdaten!$B59,Tab2_Rohdaten!$A$28:$GG$1800,10+AY$9,FALSE) -> 62074 | AZ41: =VLOOKUP(Tab2_Rohdaten!$B59,Tab2_Rohdaten!$A$28:$GG$1800,10+AZ$9,FALSE) -> 62210 | BA41: =VLOOKUP(Tab2_Rohdaten!$B59,Tab2_Rohdaten!$A$28:$GG$1800,10+BA$9,FALSE) -> 62905 | BB41: =VLOOKUP(Tab2_Rohdaten!$B59,Tab2_Rohdaten!$A$28:$GG$1800,10+BB$9,FALSE) -> 62095 | BC41: =VLOOKUP(Tab2_Rohdaten!$B59,Tab2_Rohdaten!$A$28:$GG$1800,10+BC$9,FALSE) -> 61495 | BD41: =VLOOKUP(Tab2_Rohdaten!$B59,Tab2_Rohdaten!$A$28:$GG$1800,10+BD$9,FALSE) -> 61469 | BE41: =VLOOKUP(Tab2_Rohdaten!$B59,Tab2_Rohdaten!$A$28:$GG$1800,10+BE$9,FALSE) -> 62109 | BF41: =VLOOKUP(Tab2_Rohdaten!$B59,Tab2_Rohdaten!$A$28:$GG$1800,10+BF$9,FALSE) -> 61380 | BG41: =VLOOKUP(Tab2_Rohdaten!$B59,Tab2_Rohdaten!$A$28:$GG$1800,10+BG$9,FALSE) -> 61001 | BH41: =VLOOKUP(Tab2_Rohdaten!$B59,Tab2_Rohdaten!$A$28:$GG$1800,10+BH$9,FALSE) -> 60353 | BI41: =VLOOKUP(Tab2_Rohdaten!$B59,Tab2_Rohdaten!$A$28:$GG$1800,10+BI$9,FALSE) -> 60826 | BJ41: =VLOOKUP(Tab2_Rohdaten!$B59,Tab2_Rohdaten!$A$28:$GG$1800,10+BJ$9,FALSE) -> 60408 | BK41: =VLOOKUP(Tab2_Rohdaten!$B59,Tab2_Rohdaten!$A$28:$GG$1800,10+BK$9,FALSE) -> 60032 | BL41: =VLOOKUP(Tab2_Rohdaten!$B59,Tab2_Rohdaten!$A$28:$GG$1800,10+BL$9,FALSE) -> 60028 | BM41: =VLOOKUP(Tab2_Rohdaten!$B59,Tab2_Rohdaten!$A$28:$GG$1800,10+BM$9,FALSE) -> 60710 | BN41: =VLOOKUP(Tab2_Rohdaten!$B59,Tab2_Rohdaten!$A$28:$GG$1800,10+BN$9,FALSE) -> 60347 | BO41: =VLOOKUP(Tab2_Rohdaten!$B59,Tab2_Rohdaten!$A$28:$GG$1800,10+BO$9,FALSE) -> 60041
A42: =VLOOKUP(Tab2_Rohdaten!$B60,Tab2_Rohdaten!$A$28:$GG$1800,9,FALSE) -> JC Wittenberg | B42: =VLOOKUP(Tab2_Rohdaten!$B60,Tab2_Rohdaten!$A$28:$GG$1800,10,FALSE) -> 04214 | C42: =VLOOKUP(Tab2_Rohdaten!$B60,Tab2_Rohdaten!$A$28:$GG$1800,10+C$9,FALSE) -> 47544 | D42: =VLOOKUP(Tab2_Rohdaten!$B60,Tab2_Rohdaten!$A$28:$GG$1800,10+D$9,FALSE) -> 48917 | E42: =VLOOKUP(Tab2_Rohdaten!$B60,Tab2_Rohdaten!$A$28:$GG$1800,10+E$9,FALSE) -> 49946 | F42: =VLOOKUP(Tab2_Rohdaten!$B60,Tab2_Rohdaten!$A$28:$GG$1800,10+F$9,FALSE) -> 49705 | G42: =VLOOKUP(Tab2_Rohdaten!$B60,Tab2_Rohdaten!$A$28:$GG$1800,10+G$9,FALSE) -> 49253 | H42: =VLOOKUP(Tab2_Rohdaten!$B60,Tab2_Rohdaten!$A$28:$GG$1800,10+H$9,FALSE) -> 50198 | I42: =VLOOKUP(Tab2_Rohdaten!$B60,Tab2_Rohdaten!$A$28:$GG$1800,10+I$9,FALSE) -> 50821 | J42: =VLOOKUP(Tab2_Rohdaten!$B60,Tab2_Rohdaten!$A$28:$GG$1800,10+J$9,FALSE) -> 50214 | K42: =VLOOKUP(Tab2_Rohdaten!$B60,Tab2_Rohdaten!$A$28:$GG$1800,10+K$9,FALSE) -> 49872 | L42: =VLOOKUP(Tab2_Rohdaten!$B60,Tab2_Rohdaten!$A$28:$GG$1800,10+L$9,FALSE) -> 50521 | M42: =VLOOKUP(Tab2_Rohdaten!$B60,Tab2_Rohdaten!$A$28:$GG$1800,10+M$9,FALSE) -> 51223 | N42: =VLOOKUP(Tab2_Rohdaten!$B60,Tab2_Rohdaten!$A$28:$GG$1800,10+N$9,FALSE) -> 49944 | O42: =VLOOKUP(Tab2_Rohdaten!$B60,Tab2_Rohdaten!$A$28:$GG$1800,10+O$9,FALSE) -> 48834 | P42: =VLOOKUP(Tab2_Rohdaten!$B60,Tab2_Rohdaten!$A$28:$GG$1800,10+P$9,FALSE) -> 49222 | Q42: =VLOOKUP(Tab2_Rohdaten!$B60,Tab2_Rohdaten!$A$28:$GG$1800,10+Q$9,FALSE) -> 49939 | R42: =VLOOKUP(Tab2_Rohdaten!$B60,Tab2_Rohdaten!$A$28:$GG$1800,10+R$9,FALSE) -> 48784 | S42: =VLOOKUP(Tab2_Rohdaten!$B60,Tab2_Rohdaten!$A$28:$GG$1800,10+S$9,FALSE) -> 48126 | T42: =VLOOKUP(Tab2_Rohdaten!$B60,Tab2_Rohdaten!$A$28:$GG$1800,10+T$9,FALSE) -> 49342 | U42: =VLOOKUP(Tab2_Rohdaten!$B60,Tab2_Rohdaten!$A$28:$GG$1800,10+U$9,FALSE) -> 49972 | V42: =VLOOKUP(Tab2_Rohdaten!$B60,Tab2_Rohdaten!$A$28:$GG$1800,10+V$9,FALSE) -> 48364 | W42: =VLOOKUP(Tab2_Rohdaten!$B60,Tab2_Rohdaten!$A$28:$GG$1800,10+W$9,FALSE) -> 47431 | X42: =VLOOKUP(Tab2_Rohdaten!$B60,Tab2_Rohdaten!$A$28:$GG$1800,10+X$9,FALSE) -> 48276 | Y42: =VLOOKUP(Tab2_Rohdaten!$B60,Tab2_Rohdaten!$A$28:$GG$1800,10+Y$9,FALSE) -> 49954 | Z42: =VLOOKUP(Tab2_Rohdaten!$B60,Tab2_Rohdaten!$A$28:$GG$1800,10+Z$9,FALSE) -> 49242 | AA42: =VLOOKUP(Tab2_Rohdaten!$B60,Tab2_Rohdaten!$A$28:$GG$1800,10+AA$9,FALSE) -> 48986 | AB42: =VLOOKUP(Tab2_Rohdaten!$B60,Tab2_Rohdaten!$A$28:$GG$1800,10+AB$9,FALSE) -> 49606 | AC42: =VLOOKUP(Tab2_Rohdaten!$B60,Tab2_Rohdaten!$A$28:$GG$1800,10+AC$9,FALSE) -> 50142 | AD42: =VLOOKUP(Tab2_Rohdaten!$B60,Tab2_Rohdaten!$A$28:$GG$1800,10+AD$9,FALSE) -> 49158 | AE42: =VLOOKUP(Tab2_Rohdaten!$B60,Tab2_Rohdaten!$A$28:$GG$1800,10+AE$9,FALSE) -> 48540 | AF42: =VLOOKUP(Tab2_Rohdaten!$B60,Tab2_Rohdaten!$A$28:$GG$1800,10+AF$9,FALSE) -> 49210 | AG42: =VLOOKUP(Tab2_Rohdaten!$B60,Tab2_Rohdaten!$A$28:$GG$1800,10+AG$9,FALSE) -> 50159 | AH42: =VLOOKUP(Tab2_Rohdaten!$B60,Tab2_Rohdaten!$A$28:$GG$1800,10+AH$9,FALSE) -> 49247 | AI42: =VLOOKUP(Tab2_Rohdaten!$B60,Tab2_Rohdaten!$A$28:$GG$1800,10+AI$9,FALSE) -> 49043 | AJ42: =VLOOKUP(Tab2_Rohdaten!$B60,Tab2_Rohdaten!$A$28:$GG$1800,10+AJ$9,FALSE) -> 49820 | AK42: =VLOOKUP(Tab2_Rohdaten!$B60,Tab2_Rohdaten!$A$28:$GG$1800,10+AK$9,FALSE) -> 50219 | AL42: =VLOOKUP(Tab2_Rohdaten!$B60,Tab2_Rohdaten!$A$28:$GG$1800,10+AL$9,FALSE) -> 48938 | AM42: =VLOOKUP(Tab2_Rohdaten!$B60,Tab2_Rohdaten!$A$28:$GG$1800,10+AM$9,FALSE) -> 49052 | AN42: =VLOOKUP(Tab2_Rohdaten!$B60,Tab2_Rohdaten!$A$28:$GG$1800,10+AN$9,FALSE) -> 49621 | AO42: =VLOOKUP(Tab2_Rohdaten!$B60,Tab2_Rohdaten!$A$28:$GG$1800,10+AO$9,FALSE) -> 50044 | AP42: =VLOOKUP(Tab2_Rohdaten!$B60,Tab2_Rohdaten!$A$28:$GG$1800,10+AP$9,FALSE) -> 49198 | AQ42: =VLOOKUP(Tab2_Rohdaten!$B60,Tab2_Rohdaten!$A$28:$GG$1800,10+AQ$9,FALSE) -> 49096 | AR42: =VLOOKUP(Tab2_Rohdaten!$B60,Tab2_Rohdaten!$A$28:$GG$1800,10+AR$9,FALSE) -> 49651 | AS42: =VLOOKUP(Tab2_Rohdaten!$B60,Tab2_Rohdaten!$A$28:$GG$1800,10+AS$9,FALSE) -> 50406 | AT42: =VLOOKUP(Tab2_Rohdaten!$B60,Tab2_Rohdaten!$A$28:$GG$1800,10+AT$9,FALSE) -> 49499 | AU42: =VLOOKUP(Tab2_Rohdaten!$B60,Tab2_Rohdaten!$A$28:$GG$1800,10+AU$9,FALSE) -> 49516 | AV42: =VLOOKUP(Tab2_Rohdaten!$B60,Tab2_Rohdaten!$A$28:$GG$1800,10+AV$9,FALSE) -> 50234 | AW42: =VLOOKUP(Tab2_Rohdaten!$B60,Tab2_Rohdaten!$A$28:$GG$1800,10+AW$9,FALSE) -> 50850 | AX42: =VLOOKUP(Tab2_Rohdaten!$B60,Tab2_Rohdaten!$A$28:$GG$1800,10+AX$9,FALSE) -> 50085 | AY42: =VLOOKUP(Tab2_Rohdaten!$B60,Tab2_Rohdaten!$A$28:$GG$1800,10+AY$9,FALSE) -> 49938 | AZ42: =VLOOKUP(Tab2_Rohdaten!$B60,Tab2_Rohdaten!$A$28:$GG$1800,10+AZ$9,FALSE) -> 50552 | BA42: =VLOOKUP(Tab2_Rohdaten!$B60,Tab2_Rohdaten!$A$28:$GG$1800,10+BA$9,FALSE) -> 51159 | BB42: =VLOOKUP(Tab2_Rohdaten!$B60,Tab2_Rohdaten!$A$28:$GG$1800,10+BB$9,FALSE) -> 50543 | BC42: =VLOOKUP(Tab2_Rohdaten!$B60,Tab2_Rohdaten!$A$28:$GG$1800,10+BC$9,FALSE) -> 50451 | BD42: =VLOOKUP(Tab2_Rohdaten!$B60,Tab2_Rohdaten!$A$28:$GG$1800,10+BD$9,FALSE) -> 50701 | BE42: =VLOOKUP(Tab2_Rohdaten!$B60,Tab2_Rohdaten!$A$28:$GG$1800,10+BE$9,FALSE) -> 51351 | BF42: =VLOOKUP(Tab2_Rohdaten!$B60,Tab2_Rohdaten!$A$28:$GG$1800,10+BF$9,FALSE) -> 50422 | BG42: =VLOOKUP(Tab2_Rohdaten!$B60,Tab2_Rohdaten!$A$28:$GG$1800,10+BG$9,FALSE) -> 50337 | BH42: =VLOOKUP(Tab2_Rohdaten!$B60,Tab2_Rohdaten!$A$28:$GG$1800,10+BH$9,FALSE) -> 49986 | BI42: =VLOOKUP(Tab2_Rohdaten!$B60,Tab2_Rohdaten!$A$28:$GG$1800,10+BI$9,FALSE) -> 50451 | BJ42: =VLOOKUP(Tab2_Rohdaten!$B60,Tab2_Rohdaten!$A$28:$GG$1800,10+BJ$9,FALSE) -> 49888 | BK42: =VLOOKUP(Tab2_Rohdaten!$B60,Tab2_Rohdaten!$A$28:$GG$1800,10+BK$9,FALSE) -> 49577 | BL42: =VLOOKUP(Tab2_Rohdaten!$B60,Tab2_Rohdaten!$A$28:$GG$1800,10+BL$9,FALSE) -> 49770 | BM42: =VLOOKUP(Tab2_Rohdaten!$B60,Tab2_Rohdaten!$A$28:$GG$1800,10+BM$9,FALSE) -> 50416 | BN42: =VLOOKUP(Tab2_Rohdaten!$B60,Tab2_Rohdaten!$A$28:$GG$1800,10+BN$9,FALSE) -> 49770 | BO42: =VLOOKUP(Tab2_Rohdaten!$B60,Tab2_Rohdaten!$A$28:$GG$1800,10+BO$9,FALSE) -> 49636
A43: =VLOOKUP(Tab2_Rohdaten!$B61,Tab2_Rohdaten!$A$28:$GG$1800,9,FALSE) -> JC Harz | B43: =VLOOKUP(Tab2_Rohdaten!$B61,Tab2_Rohdaten!$A$28:$GG$1800,10,FALSE) -> 04306 | C43: =VLOOKUP(Tab2_Rohdaten!$B61,Tab2_Rohdaten!$A$28:$GG$1800,10+C$9,FALSE) -> 80869 | D43: =VLOOKUP(Tab2_Rohdaten!$B61,Tab2_Rohdaten!$A$28:$GG$1800,10+D$9,FALSE) -> 83816 | E43: =VLOOKUP(Tab2_Rohdaten!$B61,Tab2_Rohdaten!$A$28:$GG$1800,10+E$9,FALSE) -> 85546 | F43: =VLOOKUP(Tab2_Rohdaten!$B61,Tab2_Rohdaten!$A$28:$GG$1800,10+F$9,FALSE) -> 84339 | G43: =VLOOKUP(Tab2_Rohdaten!$B61,Tab2_Rohdaten!$A$28:$GG$1800,10+G$9,FALSE) -> 83124 | H43: =VLOOKUP(Tab2_Rohdaten!$B61,Tab2_Rohdaten!$A$28:$GG$1800,10+H$9,FALSE) -> 84763 | I43: =VLOOKUP(Tab2_Rohdaten!$B61,Tab2_Rohdaten!$A$28:$GG$1800,10+I$9,FALSE) -> 86420 | J43: =VLOOKUP(Tab2_Rohdaten!$B61,Tab2_Rohdaten!$A$28:$GG$1800,10+J$9,FALSE) -> 84933 | K43: =VLOOKUP(Tab2_Rohdaten!$B61,Tab2_Rohdaten!$A$28:$GG$1800,10+K$9,FALSE) -> 84146 | L43: =VLOOKUP(Tab2_Rohdaten!$B61,Tab2_Rohdaten!$A$28:$GG$1800,10+L$9,FALSE) -> 85695 | M43: =VLOOKUP(Tab2_Rohdaten!$B61,Tab2_Rohdaten!$A$28:$GG$1800,10+M$9,FALSE) -> 87674 | N43: =VLOOKUP(Tab2_Rohdaten!$B61,Tab2_Rohdaten!$A$28:$GG$1800,10+N$9,FALSE) -> 85533 | O43: =VLOOKUP(Tab2_Rohdaten!$B61,Tab2_Rohdaten!$A$28:$GG$1800,10+O$9,FALSE) -> 83044 | P43: =VLOOKUP(Tab2_Rohdaten!$B61,Tab2_Rohdaten!$A$28:$GG$1800,10+P$9,FALSE) -> 84198 | Q43: =VLOOKUP(Tab2_Rohdaten!$B61,Tab2_Rohdaten!$A$28:$GG$1800,10+Q$9,FALSE) -> 85877 | R43: =VLOOKUP(Tab2_Rohdaten!$B61,Tab2_Rohdaten!$A$28:$GG$1800,10+R$9,FALSE) -> 84569 | S43: =VLOOKUP(Tab2_Rohdaten!$B61,Tab2_Rohdaten!$A$28:$GG$1800,10+S$9,FALSE) -> 83344 | T43: =VLOOKUP(Tab2_Rohdaten!$B61,Tab2_Rohdaten!$A$28:$GG$1800,10+T$9,FALSE) -> 85129 | U43: =VLOOKUP(Tab2_Rohdaten!$B61,Tab2_Rohdaten!$A$28:$GG$1800,10+U$9,FALSE) -> 86579 | V43: =VLOOKUP(Tab2_Rohdaten!$B61,Tab2_Rohdaten!$A$28:$GG$1800,10+V$9,FALSE) -> 84651 | W43: =VLOOKUP(Tab2_Rohdaten!$B61,Tab2_Rohdaten!$A$28:$GG$1800,10+W$9,FALSE) -> 83475 | X43: =VLOOKUP(Tab2_Rohdaten!$B61,Tab2_Rohdaten!$A$28:$GG$1800,10+X$9,FALSE) -> 85067 | Y43: =VLOOKUP(Tab2_Rohdaten!$B61,Tab2_Rohdaten!$A$28:$GG$1800,10+Y$9,FALSE) -> 86460 | Z43: =VLOOKUP(Tab2_Rohdaten!$B61,Tab2_Rohdaten!$A$28:$GG$1800,10+Z$9,FALSE) -> 84773 | AA43: =VLOOKUP(Tab2_Rohdaten!$B61,Tab2_Rohdaten!$A$28:$GG$1800,10+AA$9,FALSE) -> 83993 | AB43: =VLOOKUP(Tab2_Rohdaten!$B61,Tab2_Rohdaten!$A$28:$GG$1800,10+AB$9,FALSE) -> 83799 | AC43: =VLOOKUP(Tab2_Rohdaten!$B61,Tab2_Rohdaten!$A$28:$GG$1800,10+AC$9,FALSE) -> 84816 | AD43: =VLOOKUP(Tab2_Rohdaten!$B61,Tab2_Rohdaten!$A$28:$GG$1800,10+AD$9,FALSE) -> 82963 | AE43: =VLOOKUP(Tab2_Rohdaten!$B61,Tab2_Rohdaten!$A$28:$GG$1800,10+AE$9,FALSE) -> 81717 | AF43: =VLOOKUP(Tab2_Rohdaten!$B61,Tab2_Rohdaten!$A$28:$GG$1800,10+AF$9,FALSE) -> 83280 | AG43: =VLOOKUP(Tab2_Rohdaten!$B61,Tab2_Rohdaten!$A$28:$GG$1800,10+AG$9,FALSE) -> 84710 | AH43: =VLOOKUP(Tab2_Rohdaten!$B61,Tab2_Rohdaten!$A$28:$GG$1800,10+AH$9,FALSE) -> 82874 | AI43: =VLOOKUP(Tab2_Rohdaten!$B61,Tab2_Rohdaten!$A$28:$GG$1800,10+AI$9,FALSE) -> 82475 | AJ43: =VLOOKUP(Tab2_Rohdaten!$B61,Tab2_Rohdaten!$A$28:$GG$1800,10+AJ$9,FALSE) -> 83813 | AK43: =VLOOKUP(Tab2_Rohdaten!$B61,Tab2_Rohdaten!$A$28:$GG$1800,10+AK$9,FALSE) -> 84756 | AL43: =VLOOKUP(Tab2_Rohdaten!$B61,Tab2_Rohdaten!$A$28:$GG$1800,10+AL$9,FALSE) -> 83153 | AM43: =VLOOKUP(Tab2_Rohdaten!$B61,Tab2_Rohdaten!$A$28:$GG$1800,10+AM$9,FALSE) -> 83184 | AN43: =VLOOKUP(Tab2_Rohdaten!$B61,Tab2_Rohdaten!$A$28:$GG$1800,10+AN$9,FALSE) -> 84288 | AO43: =VLOOKUP(Tab2_Rohdaten!$B61,Tab2_Rohdaten!$A$28:$GG$1800,10+AO$9,FALSE) -> 85275 | AP43: =VLOOKUP(Tab2_Rohdaten!$B61,Tab2_Rohdaten!$A$28:$GG$1800,10+AP$9,FALSE) -> 84103 | AQ43: =VLOOKUP(Tab2_Rohdaten!$B61,Tab2_Rohdaten!$A$28:$GG$1800,10+AQ$9,FALSE) -> 83829 | AR43: =VLOOKUP(Tab2_Rohdaten!$B61,Tab2_Rohdaten!$A$28:$GG$1800,10+AR$9,FALSE) -> 84559 | AS43: =VLOOKUP(Tab2_Rohdaten!$B61,Tab2_Rohdaten!$A$28:$GG$1800,10+AS$9,FALSE) -> 85809 | AT43: =VLOOKUP(Tab2_Rohdaten!$B61,Tab2_Rohdaten!$A$28:$GG$1800,10+AT$9,FALSE) -> 84443 | AU43: =VLOOKUP(Tab2_Rohdaten!$B61,Tab2_Rohdaten!$A$28:$GG$1800,10+AU$9,FALSE) -> 84101 | AV43: =VLOOKUP(Tab2_Rohdaten!$B61,Tab2_Rohdaten!$A$28:$GG$1800,10+AV$9,FALSE) -> 84771 | AW43: =VLOOKUP(Tab2_Rohdaten!$B61,Tab2_Rohdaten!$A$28:$GG$1800,10+AW$9,FALSE) -> 85930 | AX43: =VLOOKUP(Tab2_Rohdaten!$B61,Tab2_Rohdaten!$A$28:$GG$1800,10+AX$9,FALSE) -> 84854 | AY43: =VLOOKUP(Tab2_Rohdaten!$B61,Tab2_Rohdaten!$A$28:$GG$1800,10+AY$9,FALSE) -> 84353 | AZ43: =VLOOKUP(Tab2_Rohdaten!$B61,Tab2_Rohdaten!$A$28:$GG$1800,10+AZ$9,FALSE) -> 85005 | BA43: =VLOOKUP(Tab2_Rohdaten!$B61,Tab2_Rohdaten!$A$28:$GG$1800,10+BA$9,FALSE) -> 85862 | BB43: =VLOOKUP(Tab2_Rohdaten!$B61,Tab2_Rohdaten!$A$28:$GG$1800,10+BB$9,FALSE) -> 84649 | BC43: =VLOOKUP(Tab2_Rohdaten!$B61,Tab2_Rohdaten!$A$28:$GG$1800,10+BC$9,FALSE) -> 84032 | BD43: =VLOOKUP(Tab2_Rohdaten!$B61,Tab2_Rohdaten!$A$28:$GG$1800,10+BD$9,FALSE) -> 84459 | BE43: =VLOOKUP(Tab2_Rohdaten!$B61,Tab2_Rohdaten!$A$28:$GG$1800,10+BE$9,FALSE) -> 85399 | BF43: =VLOOKUP(Tab2_Rohdaten!$B61,Tab2_Rohdaten!$A$28:$GG$1800,10+BF$9,FALSE) -> 84287 | BG43: =VLOOKUP(Tab2_Rohdaten!$B61,Tab2_Rohdaten!$A$28:$GG$1800,10+BG$9,FALSE) -> 83546 | BH43: =VLOOKUP(Tab2_Rohdaten!$B61,Tab2_Rohdaten!$A$28:$GG$1800,10+BH$9,FALSE) -> 82698 | BI43: =VLOOKUP(Tab2_Rohdaten!$B61,Tab2_Rohdaten!$A$28:$GG$1800,10+BI$9,FALSE) -> 83700 | BJ43: =VLOOKUP(Tab2_Rohdaten!$B61,Tab2_Rohdaten!$A$28:$GG$1800,10+BJ$9,FALSE) -> 82967 | BK43: =VLOOKUP(Tab2_Rohdaten!$B61,Tab2_Rohdaten!$A$28:$GG$1800,10+BK$9,FALSE) -> 82347 | BL43: =VLOOKUP(Tab2_Rohdaten!$B61,Tab2_Rohdaten!$A$28:$GG$1800,10+BL$9,FALSE) -> 82624 | BM43: =VLOOKUP(Tab2_Rohdaten!$B61,Tab2_Rohdaten!$A$28:$GG$1800,10+BM$9,FALSE) -> 83877 | BN43: =VLOOKUP(Tab2_Rohdaten!$B61,Tab2_Rohdaten!$A$28:$GG$1800,10+BN$9,FALSE) -> 83121 | BO43: =VLOOKUP(Tab2_Rohdaten!$B61,Tab2_Rohdaten!$A$28:$GG$1800,10+BO$9,FALSE) -> 82572
A44: =VLOOKUP(Tab2_Rohdaten!$B62,Tab2_Rohdaten!$A$28:$GG$1800,9,FALSE) -> JC Halle (Saale), Stadt | B44: =VLOOKUP(Tab2_Rohdaten!$B62,Tab2_Rohdaten!$A$28:$GG$1800,10,FALSE) -> 04402 | C44: =VLOOKUP(Tab2_Rohdaten!$B62,Tab2_Rohdaten!$A$28:$GG$1800,10+C$9,FALSE) -> 69648 | D44: =VLOOKUP(Tab2_Rohdaten!$B62,Tab2_Rohdaten!$A$28:$GG$1800,10+D$9,FALSE) -> 70741 | E44: =VLOOKUP(Tab2_Rohdaten!$B62,Tab2_Rohdaten!$A$28:$GG$1800,10+E$9,FALSE) -> 71984 | F44: =VLOOKUP(Tab2_Rohdaten!$B62,Tab2_Rohdaten!$A$28:$GG$1800,10+F$9,FALSE) -> 72612 | G44: =VLOOKUP(Tab2_Rohdaten!$B62,Tab2_Rohdaten!$A$28:$GG$1800,10+G$9,FALSE) -> 72594 | H44: =VLOOKUP(Tab2_Rohdaten!$B62,Tab2_Rohdaten!$A$28:$GG$1800,10+H$9,FALSE) -> 72893 | I44: =VLOOKUP(Tab2_Rohdaten!$B62,Tab2_Rohdaten!$A$28:$GG$1800,10+I$9,FALSE) -> 73731 | J44: =VLOOKUP(Tab2_Rohdaten!$B62,Tab2_Rohdaten!$A$28:$GG$1800,10+J$9,FALSE) -> 74333 | K44: =VLOOKUP(Tab2_Rohdaten!$B62,Tab2_Rohdaten!$A$28:$GG$1800,10+K$9,FALSE) -> 74031 | L44: =VLOOKUP(Tab2_Rohdaten!$B62,Tab2_Rohdaten!$A$28:$GG$1800,10+L$9,FALSE) -> 74534 | M44: =VLOOKUP(Tab2_Rohdaten!$B62,Tab2_Rohdaten!$A$28:$GG$1800,10+M$9,FALSE) -> 76082 | N44: =VLOOKUP(Tab2_Rohdaten!$B62,Tab2_Rohdaten!$A$28:$GG$1800,10+N$9,FALSE) -> 75738 | O44: =VLOOKUP(Tab2_Rohdaten!$B62,Tab2_Rohdaten!$A$28:$GG$1800,10+O$9,FALSE) -> 74606 | P44: =VLOOKUP(Tab2_Rohdaten!$B62,Tab2_Rohdaten!$A$28:$GG$1800,10+P$9,FALSE) -> 74794 | Q44: =VLOOKUP(Tab2_Rohdaten!$B62,Tab2_Rohdaten!$A$28:$GG$1800,10+Q$9,FALSE) -> 75657 | R44: =VLOOKUP(Tab2_Rohdaten!$B62,Tab2_Rohdaten!$A$28:$GG$1800,10+R$9,FALSE) -> 75587 | S44: =VLOOKUP(Tab2_Rohdaten!$B62,Tab2_Rohdaten!$A$28:$GG$1800,10+S$9,FALSE) -> 75158 | T44: =VLOOKUP(Tab2_Rohdaten!$B62,Tab2_Rohdaten!$A$28:$GG$1800,10+T$9,FALSE) -> 75840 | U44: =VLOOKUP(Tab2_Rohdaten!$B62,Tab2_Rohdaten!$A$28:$GG$1800,10+U$9,FALSE) -> 77159 | V44: =VLOOKUP(Tab2_Rohdaten!$B62,Tab2_Rohdaten!$A$28:$GG$1800,10+V$9,FALSE) -> 76971 | W44: =VLOOKUP(Tab2_Rohdaten!$B62,Tab2_Rohdaten!$A$28:$GG$1800,10+W$9,FALSE) -> 76485 | X44: =VLOOKUP(Tab2_Rohdaten!$B62,Tab2_Rohdaten!$A$28:$GG$1800,10+X$9,FALSE) -> 77446 | Y44: =VLOOKUP(Tab2_Rohdaten!$B62,Tab2_Rohdaten!$A$28:$GG$1800,10+Y$9,FALSE) -> 78959 | Z44: =VLOOKUP(Tab2_Rohdaten!$B62,Tab2_Rohdaten!$A$28:$GG$1800,10+Z$9,FALSE) -> 79054 | AA44: =VLOOKUP(Tab2_Rohdaten!$B62,Tab2_Rohdaten!$A$28:$GG$1800,10+AA$9,FALSE) -> 78739 | AB44: =VLOOKUP(Tab2_Rohdaten!$B62,Tab2_Rohdaten!$A$28:$GG$1800,10+AB$9,FALSE) -> 79225 | AC44: =VLOOKUP(Tab2_Rohdaten!$B62,Tab2_Rohdaten!$A$28:$GG$1800,10+AC$9,FALSE) -> 80092 | AD44: =VLOOKUP(Tab2_Rohdaten!$B62,Tab2_Rohdaten!$A$28:$GG$1800,10+AD$9,FALSE) -> 79713 | AE44: =VLOOKUP(Tab2_Rohdaten!$B62,Tab2_Rohdaten!$A$28:$GG$1800,10+AE$9,FALSE) -> 78599 | AF44: =VLOOKUP(Tab2_Rohdaten!$B62,Tab2_Rohdaten!$A$28:$GG$1800,10+AF$9,FALSE) -> 79198 | AG44: =VLOOKUP(Tab2_Rohdaten!$B62,Tab2_Rohdaten!$A$28:$GG$1800,10+AG$9,FALSE) -> 80436 | AH44: =VLOOKUP(Tab2_Rohdaten!$B62,Tab2_Rohdaten!$A$28:$GG$1800,10+AH$9,FALSE) -> 79909 | AI44: =VLOOKUP(Tab2_Rohdaten!$B62,Tab2_Rohdaten!$A$28:$GG$1800,10+AI$9,FALSE) -> 79378 | AJ44: =VLOOKUP(Tab2_Rohdaten!$B62,Tab2_Rohdaten!$A$28:$GG$1800,10+AJ$9,FALSE) -> 80094 | AK44: =VLOOKUP(Tab2_Rohdaten!$B62,Tab2_Rohdaten!$A$28:$GG$1800,10+AK$9,FALSE) -> 81143 | AL44: =VLOOKUP(Tab2_Rohdaten!$B62,Tab2_Rohdaten!$A$28:$GG$1800,10+AL$9,FALSE) -> 80750 | AM44: =VLOOKUP(Tab2_Rohdaten!$B62,Tab2_Rohdaten!$A$28:$GG$1800,10+AM$9,FALSE) -> 81005 | AN44: =VLOOKUP(Tab2_Rohdaten!$B62,Tab2_Rohdaten!$A$28:$GG$1800,10+AN$9,FALSE) -> 81505 | AO44: =VLOOKUP(Tab2_Rohdaten!$B62,Tab2_Rohdaten!$A$28:$GG$1800,10+AO$9,FALSE) -> 82894 | AP44: =VLOOKUP(Tab2_Rohdaten!$B62,Tab2_Rohdaten!$A$28:$GG$1800,10+AP$9,FALSE) -> 82803 | AQ44: =VLOOKUP(Tab2_Rohdaten!$B62,Tab2_Rohdaten!$A$28:$GG$1800,10+AQ$9,FALSE) -> 82914 | AR44: =VLOOKUP(Tab2_Rohdaten!$B62,Tab2_Rohdaten!$A$28:$GG$1800,10+AR$9,FALSE) -> 83287 | AS44: =VLOOKUP(Tab2_Rohdaten!$B62,Tab2_Rohdaten!$A$28:$GG$1800,10+AS$9,FALSE) -> 84685 | AT44: =VLOOKUP(Tab2_Rohdaten!$B62,Tab2_Rohdaten!$A$28:$GG$1800,10+AT$9,FALSE) -> 84554 | AU44: =VLOOKUP(Tab2_Rohdaten!$B62,Tab2_Rohdaten!$A$28:$GG$1800,10+AU$9,FALSE) -> 84515 | AV44: =VLOOKUP(Tab2_Rohdaten!$B62,Tab2_Rohdaten!$A$28:$GG$1800,10+AV$9,FALSE) -> 84975 | AW44: =VLOOKUP(Tab2_Rohdaten!$B62,Tab2_Rohdaten!$A$28:$GG$1800,10+AW$9,FALSE) -> 86260 | AX44: =VLOOKUP(Tab2_Rohdaten!$B62,Tab2_Rohdaten!$A$28:$GG$1800,10+AX$9,FALSE) -> 85964 | AY44: =VLOOKUP(Tab2_Rohdaten!$B62,Tab2_Rohdaten!$A$28:$GG$1800,10+AY$9,FALSE) -> 85974 | AZ44: =VLOOKUP(Tab2_Rohdaten!$B62,Tab2_Rohdaten!$A$28:$GG$1800,10+AZ$9,FALSE) -> 86457 | BA44: =VLOOKUP(Tab2_Rohdaten!$B62,Tab2_Rohdaten!$A$28:$GG$1800,10+BA$9,FALSE) -> 87844 | BB44: =VLOOKUP(Tab2_Rohdaten!$B62,Tab2_Rohdaten!$A$28:$GG$1800,10+BB$9,FALSE) -> 87441 | BC44: =VLOOKUP(Tab2_Rohdaten!$B62,Tab2_Rohdaten!$A$28:$GG$1800,10+BC$9,FALSE) -> 87043 | BD44: =VLOOKUP(Tab2_Rohdaten!$B62,Tab2_Rohdaten!$A$28:$GG$1800,10+BD$9,FALSE) -> 87170 | BE44: =VLOOKUP(Tab2_Rohdaten!$B62,Tab2_Rohdaten!$A$28:$GG$1800,10+BE$9,FALSE) -> 88514 | BF44: =VLOOKUP(Tab2_Rohdaten!$B62,Tab2_Rohdaten!$A$28:$GG$1800,10+BF$9,FALSE) -> 88289 | BG44: =VLOOKUP(Tab2_Rohdaten!$B62,Tab2_Rohdaten!$A$28:$GG$1800,10+BG$9,FALSE) -> 88062 | BH44: =VLOOKUP(Tab2_Rohdaten!$B62,Tab2_Rohdaten!$A$28:$GG$1800,10+BH$9,FALSE) -> 87290 | BI44: =VLOOKUP(Tab2_Rohdaten!$B62,Tab2_Rohdaten!$A$28:$GG$1800,10+BI$9,FALSE) -> 88811 | BJ44: =VLOOKUP(Tab2_Rohdaten!$B62,Tab2_Rohdaten!$A$28:$GG$1800,10+BJ$9,FALSE) -> 88917 | BK44: =VLOOKUP(Tab2_Rohdaten!$B62,Tab2_Rohdaten!$A$28:$GG$1800,10+BK$9,FALSE) -> 88870 | BL44: =VLOOKUP(Tab2_Rohdaten!$B62,Tab2_Rohdaten!$A$28:$GG$1800,10+BL$9,FALSE) -> 89343 | BM44: =VLOOKUP(Tab2_Rohdaten!$B62,Tab2_Rohdaten!$A$28:$GG$1800,10+BM$9,FALSE) -> 91010 | BN44: =VLOOKUP(Tab2_Rohdaten!$B62,Tab2_Rohdaten!$A$28:$GG$1800,10+BN$9,FALSE) -> 91330 | BO44: =VLOOKUP(Tab2_Rohdaten!$B62,Tab2_Rohdaten!$A$28:$GG$1800,10+BO$9,FALSE) -> 91098
A45: =VLOOKUP(Tab2_Rohdaten!$B63,Tab2_Rohdaten!$A$28:$GG$1800,9,FALSE) -> JC Saalekreis | B45: =VLOOKUP(Tab2_Rohdaten!$B63,Tab2_Rohdaten!$A$28:$GG$1800,10,FALSE) -> 04412 | C45: =VLOOKUP(Tab2_Rohdaten!$B63,Tab2_Rohdaten!$A$28:$GG$1800,10+C$9,FALSE) -> 70207 | D45: =VLOOKUP(Tab2_Rohdaten!$B63,Tab2_Rohdaten!$A$28:$GG$1800,10+D$9,FALSE) -> 72606 | E45: =VLOOKUP(Tab2_Rohdaten!$B63,Tab2_Rohdaten!$A$28:$GG$1800,10+E$9,FALSE) -> 74021 | F45: =VLOOKUP(Tab2_Rohdaten!$B63,Tab2_Rohdaten!$A$28:$GG$1800,10+F$9,FALSE) -> 74232 | G45: =VLOOKUP(Tab2_Rohdaten!$B63,Tab2_Rohdaten!$A$28:$GG$1800,10+G$9,FALSE) -> 72810 | H45: =VLOOKUP(Tab2_Rohdaten!$B63,Tab2_Rohdaten!$A$28:$GG$1800,10+H$9,FALSE) -> 73971 | I45: =VLOOKUP(Tab2_Rohdaten!$B63,Tab2_Rohdaten!$A$28:$GG$1800,10+I$9,FALSE) -> 75276 | J45: =VLOOKUP(Tab2_Rohdaten!$B63,Tab2_Rohdaten!$A$28:$GG$1800,10+J$9,FALSE) -> 74835 | K45: =VLOOKUP(Tab2_Rohdaten!$B63,Tab2_Rohdaten!$A$28:$GG$1800,10+K$9,FALSE) -> 74573 | L45: =VLOOKUP(Tab2_Rohdaten!$B63,Tab2_Rohdaten!$A$28:$GG$1800,10+L$9,FALSE) -> 75517 | M45: =VLOOKUP(Tab2_Rohdaten!$B63,Tab2_Rohdaten!$A$28:$GG$1800,10+M$9,FALSE) -> 76852 | N45: =VLOOKUP(Tab2_Rohdaten!$B63,Tab2_Rohdaten!$A$28:$GG$1800,10+N$9,FALSE) -> 75650 | O45: =VLOOKUP(Tab2_Rohdaten!$B63,Tab2_Rohdaten!$A$28:$GG$1800,10+O$9,FALSE) -> 74245 | P45: =VLOOKUP(Tab2_Rohdaten!$B63,Tab2_Rohdaten!$A$28:$GG$1800,10+P$9,FALSE) -> 74941 | Q45: =VLOOKUP(Tab2_Rohdaten!$B63,Tab2_Rohdaten!$A$28:$GG$1800,10+Q$9,FALSE) -> 76122 | R45: =VLOOKUP(Tab2_Rohdaten!$B63,Tab2_Rohdaten!$A$28:$GG$1800,10+R$9,FALSE) -> 75248 | S45: =VLOOKUP(Tab2_Rohdaten!$B63,Tab2_Rohdaten!$A$28:$GG$1800,10+S$9,FALSE) -> 74156 | T45: =VLOOKUP(Tab2_Rohdaten!$B63,Tab2_Rohdaten!$A$28:$GG$1800,10+T$9,FALSE) -> 75305 | U45: =VLOOKUP(Tab2_Rohdaten!$B63,Tab2_Rohdaten!$A$28:$GG$1800,10+U$9,FALSE) -> 76632 | V45: =VLOOKUP(Tab2_Rohdaten!$B63,Tab2_Rohdaten!$A$28:$GG$1800,10+V$9,FALSE) -> 74601 | W45: =VLOOKUP(Tab2_Rohdaten!$B63,Tab2_Rohdaten!$A$28:$GG$1800,10+W$9,FALSE) -> 74788 | X45: =VLOOKUP(Tab2_Rohdaten!$B63,Tab2_Rohdaten!$A$28:$GG$1800,10+X$9,FALSE) -> 75844 | Y45: =VLOOKUP(Tab2_Rohdaten!$B63,Tab2_Rohdaten!$A$28:$GG$1800,10+Y$9,FALSE) -> 76826 | Z45: =VLOOKUP(Tab2_Rohdaten!$B63,Tab2_Rohdaten!$A$28:$GG$1800,10+Z$9,FALSE) -> 76019 | AA45: =VLOOKUP(Tab2_Rohdaten!$B63,Tab2_Rohdaten!$A$28:$GG$1800,10+AA$9,FALSE) -> 75507 | AB45: =VLOOKUP(Tab2_Rohdaten!$B63,Tab2_Rohdaten!$A$28:$GG$1800,10+AB$9,FALSE) -> 75849 | AC45: =VLOOKUP(Tab2_Rohdaten!$B63,Tab2_Rohdaten!$A$28:$GG$1800,10+AC$9,FALSE) -> 76663 | AD45: =VLOOKUP(Tab2_Rohdaten!$B63,Tab2_Rohdaten!$A$28:$GG$1800,10+AD$9,FALSE) -> 75624 | AE45: =VLOOKUP(Tab2_Rohdaten!$B63,Tab2_Rohdaten!$A$28:$GG$1800,10+AE$9,FALSE) -> 74803 | AF45: =VLOOKUP(Tab2_Rohdaten!$B63,Tab2_Rohdaten!$A$28:$GG$1800,10+AF$9,FALSE) -> 75562 | AG45: =VLOOKUP(Tab2_Rohdaten!$B63,Tab2_Rohdaten!$A$28:$GG$1800,10+AG$9,FALSE) -> 76565 | AH45: =VLOOKUP(Tab2_Rohdaten!$B63,Tab2_Rohdaten!$A$28:$GG$1800,10+AH$9,FALSE) -> 75376 | AI45: =VLOOKUP(Tab2_Rohdaten!$B63,Tab2_Rohdaten!$A$28:$GG$1800,10+AI$9,FALSE) -> 74938 | AJ45: =VLOOKUP(Tab2_Rohdaten!$B63,Tab2_Rohdaten!$A$28:$GG$1800,10+AJ$9,FALSE) -> 75563 | AK45: =VLOOKUP(Tab2_Rohdaten!$B63,Tab2_Rohdaten!$A$28:$GG$1800,10+AK$9,FALSE) -> 76267 | AL45: =VLOOKUP(Tab2_Rohdaten!$B63,Tab2_Rohdaten!$A$28:$GG$1800,10+AL$9,FALSE) -> 75171 | AM45: =VLOOKUP(Tab2_Rohdaten!$B63,Tab2_Rohdaten!$A$28:$GG$1800,10+AM$9,FALSE) -> 75028 | AN45: =VLOOKUP(Tab2_Rohdaten!$B63,Tab2_Rohdaten!$A$28:$GG$1800,10+AN$9,FALSE) -> 75481 | AO45: =VLOOKUP(Tab2_Rohdaten!$B63,Tab2_Rohdaten!$A$28:$GG$1800,10+AO$9,FALSE) -> 76608 | AP45: =VLOOKUP(Tab2_Rohdaten!$B63,Tab2_Rohdaten!$A$28:$GG$1800,10+AP$9,FALSE) -> 75638 | AQ45: =VLOOKUP(Tab2_Rohdaten!$B63,Tab2_Rohdaten!$A$28:$GG$1800,10+AQ$9,FALSE) -> 75391 | AR45: =VLOOKUP(Tab2_Rohdaten!$B63,Tab2_Rohdaten!$A$28:$GG$1800,10+AR$9,FALSE) -> 75726 | AS45: =VLOOKUP(Tab2_Rohdaten!$B63,Tab2_Rohdaten!$A$28:$GG$1800,10+AS$9,FALSE) -> 76957 | AT45: =VLOOKUP(Tab2_Rohdaten!$B63,Tab2_Rohdaten!$A$28:$GG$1800,10+AT$9,FALSE) -> 76160 | AU45: =VLOOKUP(Tab2_Rohdaten!$B63,Tab2_Rohdaten!$A$28:$GG$1800,10+AU$9,FALSE) -> 76067 | AV45: =VLOOKUP(Tab2_Rohdaten!$B63,Tab2_Rohdaten!$A$28:$GG$1800,10+AV$9,FALSE) -> 76442 | AW45: =VLOOKUP(Tab2_Rohdaten!$B63,Tab2_Rohdaten!$A$28:$GG$1800,10+AW$9,FALSE) -> 77475 | AX45: =VLOOKUP(Tab2_Rohdaten!$B63,Tab2_Rohdaten!$A$28:$GG$1800,10+AX$9,FALSE) -> 76814 | AY45: =VLOOKUP(Tab2_Rohdaten!$B63,Tab2_Rohdaten!$A$28:$GG$1800,10+AY$9,FALSE) -> 76507 | AZ45: =VLOOKUP(Tab2_Rohdaten!$B63,Tab2_Rohdaten!$A$28:$GG$1800,10+AZ$9,FALSE) -> 76783 | BA45: =VLOOKUP(Tab2_Rohdaten!$B63,Tab2_Rohdaten!$A$28:$GG$1800,10+BA$9,FALSE) -> 77742 | BB45: =VLOOKUP(Tab2_Rohdaten!$B63,Tab2_Rohdaten!$A$28:$GG$1800,10+BB$9,FALSE) -> 77082 | BC45: =VLOOKUP(Tab2_Rohdaten!$B63,Tab2_Rohdaten!$A$28:$GG$1800,10+BC$9,FALSE) -> 76544 | BD45: =VLOOKUP(Tab2_Rohdaten!$B63,Tab2_Rohdaten!$A$28:$GG$1800,10+BD$9,FALSE) -> 76706 | BE45: =VLOOKUP(Tab2_Rohdaten!$B63,Tab2_Rohdaten!$A$28:$GG$1800,10+BE$9,FALSE) -> 77865 | BF45: =VLOOKUP(Tab2_Rohdaten!$B63,Tab2_Rohdaten!$A$28:$GG$1800,10+BF$9,FALSE) -> 77305 | BG45: =VLOOKUP(Tab2_Rohdaten!$B63,Tab2_Rohdaten!$A$28:$GG$1800,10+BG$9,FALSE) -> 76891 | BH45: =VLOOKUP(Tab2_Rohdaten!$B63,Tab2_Rohdaten!$A$28:$GG$1800,10+BH$9,FALSE) -> 76275 | BI45: =VLOOKUP(Tab2_Rohdaten!$B63,Tab2_Rohdaten!$A$28:$GG$1800,10+BI$9,FALSE) -> 77311 | BJ45: =VLOOKUP(Tab2_Rohdaten!$B63,Tab2_Rohdaten!$A$28:$GG$1800,10+BJ$9,FALSE) -> 77097 | BK45: =VLOOKUP(Tab2_Rohdaten!$B63,Tab2_Rohdaten!$A$28:$GG$1800,10+BK$9,FALSE) -> 76490 | BL45: =VLOOKUP(Tab2_Rohdaten!$B63,Tab2_Rohdaten!$A$28:$GG$1800,10+BL$9,FALSE) -> 76854 | BM45: =VLOOKUP(Tab2_Rohdaten!$B63,Tab2_Rohdaten!$A$28:$GG$1800,10+BM$9,FALSE) -> 77824 | BN45: =VLOOKUP(Tab2_Rohdaten!$B63,Tab2_Rohdaten!$A$28:$GG$1800,10+BN$9,FALSE) -> 77622 | BO45: =VLOOKUP(Tab2_Rohdaten!$B63,Tab2_Rohdaten!$A$28:$GG$1800,10+BO$9,FALSE) -> 77197
A46: =VLOOKUP(Tab2_Rohdaten!$B64,Tab2_Rohdaten!$A$28:$GG$1800,9,FALSE) -> JC Magdeburg, Landeshauptstadt | B46: =VLOOKUP(Tab2_Rohdaten!$B64,Tab2_Rohdaten!$A$28:$GG$1800,10,FALSE) -> 04502 | C46: =VLOOKUP(Tab2_Rohdaten!$B64,Tab2_Rohdaten!$A$28:$GG$1800,10+C$9,FALSE) -> 73374 | D46: =VLOOKUP(Tab2_Rohdaten!$B64,Tab2_Rohdaten!$A$28:$GG$1800,10+D$9,FALSE) -> 73688 | E46: =VLOOKUP(Tab2_Rohdaten!$B64,Tab2_Rohdaten!$A$28:$GG$1800,10+E$9,FALSE) -> 74550 | F46: =VLOOKUP(Tab2_Rohdaten!$B64,Tab2_Rohdaten!$A$28:$GG$1800,10+F$9,FALSE) -> 75016 | G46: =VLOOKUP(Tab2_Rohdaten!$B64,Tab2_Rohdaten!$A$28:$GG$1800,10+G$9,FALSE) -> 74407 | H46: =VLOOKUP(Tab2_Rohdaten!$B64,Tab2_Rohdaten!$A$28:$GG$1800,10+H$9,FALSE) -> 74879 | I46: =VLOOKUP(Tab2_Rohdaten!$B64,Tab2_Rohdaten!$A$28:$GG$1800,10+I$9,FALSE) -> 76101 | J46: =VLOOKUP(Tab2_Rohdaten!$B64,Tab2_Rohdaten!$A$28:$GG$1800,10+J$9,FALSE) -> 76526 | K46: =VLOOKUP(Tab2_Rohdaten!$B64,Tab2_Rohdaten!$A$28:$GG$1800,10+K$9,FALSE) -> 76024 | L46: =VLOOKUP(Tab2_Rohdaten!$B64,Tab2_Rohdaten!$A$28:$GG$1800,10+L$9,FALSE) -> 76914 | M46: =VLOOKUP(Tab2_Rohdaten!$B64,Tab2_Rohdaten!$A$28:$GG$1800,10+M$9,FALSE) -> 78480 | N46: =VLOOKUP(Tab2_Rohdaten!$B64,Tab2_Rohdaten!$A$28:$GG$1800,10+N$9,FALSE) -> 78227 | O46: =VLOOKUP(Tab2_Rohdaten!$B64,Tab2_Rohdaten!$A$28:$GG$1800,10+O$9,FALSE) -> 77531 | P46: =VLOOKUP(Tab2_Rohdaten!$B64,Tab2_Rohdaten!$A$28:$GG$1800,10+P$9,FALSE) -> 77423 | Q46: =VLOOKUP(Tab2_Rohdaten!$B64,Tab2_Rohdaten!$A$28:$GG$1800,10+Q$9,FALSE) -> 78790 | R46: =VLOOKUP(Tab2_Rohdaten!$B64,Tab2_Rohdaten!$A$28:$GG$1800,10+R$9,FALSE) -> 78543 | S46: =VLOOKUP(Tab2_Rohdaten!$B64,Tab2_Rohdaten!$A$28:$GG$1800,10+S$9,FALSE) -> 77703 | T46: =VLOOKUP(Tab2_Rohdaten!$B64,Tab2_Rohdaten!$A$28:$GG$1800,10+T$9,FALSE) -> 78677 | U46: =VLOOKUP(Tab2_Rohdaten!$B64,Tab2_Rohdaten!$A$28:$GG$1800,10+U$9,FALSE) -> 80201 | V46: =VLOOKUP(Tab2_Rohdaten!$B64,Tab2_Rohdaten!$A$28:$GG$1800,10+V$9,FALSE) -> 80170 | W46: =VLOOKUP(Tab2_Rohdaten!$B64,Tab2_Rohdaten!$A$28:$GG$1800,10+W$9,FALSE) -> 80356 | X46: =VLOOKUP(Tab2_Rohdaten!$B64,Tab2_Rohdaten!$A$28:$GG$1800,10+X$9,FALSE) -> 81621 | Y46: =VLOOKUP(Tab2_Rohdaten!$B64,Tab2_Rohdaten!$A$28:$GG$1800,10+Y$9,FALSE) -> 83023 | Z46: =VLOOKUP(Tab2_Rohdaten!$B64,Tab2_Rohdaten!$A$28:$GG$1800,10+Z$9,FALSE) -> 82830 | AA46: =VLOOKUP(Tab2_Rohdaten!$B64,Tab2_Rohdaten!$A$28:$GG$1800,10+AA$9,FALSE) -> 82693 | AB46: =VLOOKUP(Tab2_Rohdaten!$B64,Tab2_Rohdaten!$A$28:$GG$1800,10+AB$9,FALSE) -> 83292 | AC46: =VLOOKUP(Tab2_Rohdaten!$B64,Tab2_Rohdaten!$A$28:$GG$1800,10+AC$9,FALSE) -> 84263 | AD46: =VLOOKUP(Tab2_Rohdaten!$B64,Tab2_Rohdaten!$A$28:$GG$1800,10+AD$9,FALSE) -> 83688 | AE46: =VLOOKUP(Tab2_Rohdaten!$B64,Tab2_Rohdaten!$A$28:$GG$1800,10+AE$9,FALSE) -> 83153 | AF46: =VLOOKUP(Tab2_Rohdaten!$B64,Tab2_Rohdaten!$A$28:$GG$1800,10+AF$9,FALSE) -> 83978 | AG46: =VLOOKUP(Tab2_Rohdaten!$B64,Tab2_Rohdaten!$A$28:$GG$1800,10+AG$9,FALSE) -> 85604 | AH46: =VLOOKUP(Tab2_Rohdaten!$B64,Tab2_Rohdaten!$A$28:$GG$1800,10+AH$9,FALSE) -> 84911 | AI46: =VLOOKUP(Tab2_Rohdaten!$B64,Tab2_Rohdaten!$A$28:$GG$1800,10+AI$9,FALSE) -> 84931 | AJ46: =VLOOKUP(Tab2_Rohdaten!$B64,Tab2_Rohdaten!$A$28:$GG$1800,10+AJ$9,FALSE) -> 85694 | AK46: =VLOOKUP(Tab2_Rohdaten!$B64,Tab2_Rohdaten!$A$28:$GG$1800,10+AK$9,FALSE) -> 86766 | AL46: =VLOOKUP(Tab2_Rohdaten!$B64,Tab2_Rohdaten!$A$28:$GG$1800,10+AL$9,FALSE) -> 85865 | AM46: =VLOOKUP(Tab2_Rohdaten!$B64,Tab2_Rohdaten!$A$28:$GG$1800,10+AM$9,FALSE) -> 86113 | AN46: =VLOOKUP(Tab2_Rohdaten!$B64,Tab2_Rohdaten!$A$28:$GG$1800,10+AN$9,FALSE) -> 86861 | AO46: =VLOOKUP(Tab2_Rohdaten!$B64,Tab2_Rohdaten!$A$28:$GG$1800,10+AO$9,FALSE) -> 88056 | AP46: =VLOOKUP(Tab2_Rohdaten!$B64,Tab2_Rohdaten!$A$28:$GG$1800,10+AP$9,FALSE) -> 87748 | AQ46: =VLOOKUP(Tab2_Rohdaten!$B64,Tab2_Rohdaten!$A$28:$GG$1800,10+AQ$9,FALSE) -> 88021 | AR46: =VLOOKUP(Tab2_Rohdaten!$B64,Tab2_Rohdaten!$A$28:$GG$1800,10+AR$9,FALSE) -> 88710 | AS46: =VLOOKUP(Tab2_Rohdaten!$B64,Tab2_Rohdaten!$A$28:$GG$1800,10+AS$9,FALSE) -> 90454 | AT46: =VLOOKUP(Tab2_Rohdaten!$B64,Tab2_Rohdaten!$A$28:$GG$1800,10+AT$9,FALSE) -> 90272 | AU46: =VLOOKUP(Tab2_Rohdaten!$B64,Tab2_Rohdaten!$A$28:$GG$1800,10+AU$9,FALSE) -> 90308 | AV46: =VLOOKUP(Tab2_Rohdaten!$B64,Tab2_Rohdaten!$A$28:$GG$1800,10+AV$9,FALSE) -> 91149 | AW46: =VLOOKUP(Tab2_Rohdaten!$B64,Tab2_Rohdaten!$A$28:$GG$1800,10+AW$9,FALSE) -> 92575 | AX46: =VLOOKUP(Tab2_Rohdaten!$B64,Tab2_Rohdaten!$A$28:$GG$1800,10+AX$9,FALSE) -> 92345 | AY46: =VLOOKUP(Tab2_Rohdaten!$B64,Tab2_Rohdaten!$A$28:$GG$1800,10+AY$9,FALSE) -> 92217 | AZ46: =VLOOKUP(Tab2_Rohdaten!$B64,Tab2_Rohdaten!$A$28:$GG$1800,10+AZ$9,FALSE) -> 92844 | BA46: =VLOOKUP(Tab2_Rohdaten!$B64,Tab2_Rohdaten!$A$28:$GG$1800,10+BA$9,FALSE) -> 94101 | BB46: =VLOOKUP(Tab2_Rohdaten!$B64,Tab2_Rohdaten!$A$28:$GG$1800,10+BB$9,FALSE) -> 93818 | BC46: =VLOOKUP(Tab2_Rohdaten!$B64,Tab2_Rohdaten!$A$28:$GG$1800,10+BC$9,FALSE) -> 93499 | BD46: =VLOOKUP(Tab2_Rohdaten!$B64,Tab2_Rohdaten!$A$28:$GG$1800,10+BD$9,FALSE) -> 93708 | BE46: =VLOOKUP(Tab2_Rohdaten!$B64,Tab2_Rohdaten!$A$28:$GG$1800,10+BE$9,FALSE) -> 94763 | BF46: =VLOOKUP(Tab2_Rohdaten!$B64,Tab2_Rohdaten!$A$28:$GG$1800,10+BF$9,FALSE) -> 94376 | BG46: =VLOOKUP(Tab2_Rohdaten!$B64,Tab2_Rohdaten!$A$28:$GG$1800,10+BG$9,FALSE) -> 93936 | BH46: =VLOOKUP(Tab2_Rohdaten!$B64,Tab2_Rohdaten!$A$28:$GG$1800,10+BH$9,FALSE) -> 92804 | BI46: =VLOOKUP(Tab2_Rohdaten!$B64,Tab2_Rohdaten!$A$28:$GG$1800,10+BI$9,FALSE) -> 94164 | BJ46: =VLOOKUP(Tab2_Rohdaten!$B64,Tab2_Rohdaten!$A$28:$GG$1800,10+BJ$9,FALSE) -> 94768 | BK46: =VLOOKUP(Tab2_Rohdaten!$B64,Tab2_Rohdaten!$A$28:$GG$1800,10+BK$9,FALSE) -> 94712 | BL46: =VLOOKUP(Tab2_Rohdaten!$B64,Tab2_Rohdaten!$A$28:$GG$1800,10+BL$9,FALSE) -> 95109 | BM46: =VLOOKUP(Tab2_Rohdaten!$B64,Tab2_Rohdaten!$A$28:$GG$1800,10+BM$9,FALSE) -> 96148 | BN46: =VLOOKUP(Tab2_Rohdaten!$B64,Tab2_Rohdaten!$A$28:$GG$1800,10+BN$9,FALSE) -> 96217 | BO46: =VLOOKUP(Tab2_Rohdaten!$B64,Tab2_Rohdaten!$A$28:$GG$1800,10+BO$9,FALSE) -> 95824
A47: =VLOOKUP(Tab2_Rohdaten!$B65,Tab2_Rohdaten!$A$28:$GG$1800,9,FALSE) -> JC Jerichower Land | B47: =VLOOKUP(Tab2_Rohdaten!$B65,Tab2_Rohdaten!$A$28:$GG$1800,10,FALSE) -> 04506 | C47: =VLOOKUP(Tab2_Rohdaten!$B65,Tab2_Rohdaten!$A$28:$GG$1800,10+C$9,FALSE) -> 34212 | D47: =VLOOKUP(Tab2_Rohdaten!$B65,Tab2_Rohdaten!$A$28:$GG$1800,10+D$9,FALSE) -> 35338 | E47: =VLOOKUP(Tab2_Rohdaten!$B65,Tab2_Rohdaten!$A$28:$GG$1800,10+E$9,FALSE) -> 35812 | F47: =VLOOKUP(Tab2_Rohdaten!$B65,Tab2_Rohdaten!$A$28:$GG$1800,10+F$9,FALSE) -> 35497 | G47: =VLOOKUP(Tab2_Rohdaten!$B65,Tab2_Rohdaten!$A$28:$GG$1800,10+G$9,FALSE) -> 35219 | H47: =VLOOKUP(Tab2_Rohdaten!$B65,Tab2_Rohdaten!$A$28:$GG$1800,10+H$9,FALSE) -> 35937 | I47: =VLOOKUP(Tab2_Rohdaten!$B65,Tab2_Rohdaten!$A$28:$GG$1800,10+I$9,FALSE) -> 36513 | J47: =VLOOKUP(Tab2_Rohdaten!$B65,Tab2_Rohdaten!$A$28:$GG$1800,10+J$9,FALSE) -> 36146 | K47: =VLOOKUP(Tab2_Rohdaten!$B65,Tab2_Rohdaten!$A$28:$GG$1800,10+K$9,FALSE) -> 35994 | L47: =VLOOKUP(Tab2_Rohdaten!$B65,Tab2_Rohdaten!$A$28:$GG$1800,10+L$9,FALSE) -> 36223 | M47: =VLOOKUP(Tab2_Rohdaten!$B65,Tab2_Rohdaten!$A$28:$GG$1800,10+M$9,FALSE) -> 37046 | N47: =VLOOKUP(Tab2_Rohdaten!$B65,Tab2_Rohdaten!$A$28:$GG$1800,10+N$9,FALSE) -> 36243 | O47: =VLOOKUP(Tab2_Rohdaten!$B65,Tab2_Rohdaten!$A$28:$GG$1800,10+O$9,FALSE) -> 35665 | P47: =VLOOKUP(Tab2_Rohdaten!$B65,Tab2_Rohdaten!$A$28:$GG$1800,10+P$9,FALSE) -> 35938 | Q47: =VLOOKUP(Tab2_Rohdaten!$B65,Tab2_Rohdaten!$A$28:$GG$1800,10+Q$9,FALSE) -> 36341 | R47: =VLOOKUP(Tab2_Rohdaten!$B65,Tab2_Rohdaten!$A$28:$GG$1800,10+R$9,FALSE) -> 35741 | S47: =VLOOKUP(Tab2_Rohdaten!$B65,Tab2_Rohdaten!$A$28:$GG$1800,10+S$9,FALSE) -> 35247 | T47: =VLOOKUP(Tab2_Rohdaten!$B65,Tab2_Rohdaten!$A$28:$GG$1800,10+T$9,FALSE) -> 35987 | U47: =VLOOKUP(Tab2_Rohdaten!$B65,Tab2_Rohdaten!$A$28:$GG$1800,10+U$9,FALSE) -> 36376 | V47: =VLOOKUP(Tab2_Rohdaten!$B65,Tab2_Rohdaten!$A$28:$GG$1800,10+V$9,FALSE) -> 35665 | W47: =VLOOKUP(Tab2_Rohdaten!$B65,Tab2_Rohdaten!$A$28:$GG$1800,10+W$9,FALSE) -> 35541 | X47: =VLOOKUP(Tab2_Rohdaten!$B65,Tab2_Rohdaten!$A$28:$GG$1800,10+X$9,FALSE) -> 36045 | Y47: =VLOOKUP(Tab2_Rohdaten!$B65,Tab2_Rohdaten!$A$28:$GG$1800,10+Y$9,FALSE) -> 36520 | Z47: =VLOOKUP(Tab2_Rohdaten!$B65,Tab2_Rohdaten!$A$28:$GG$1800,10+Z$9,FALSE) -> 35974 | AA47: =VLOOKUP(Tab2_Rohdaten!$B65,Tab2_Rohdaten!$A$28:$GG$1800,10+AA$9,FALSE) -> 35719 | AB47: =VLOOKUP(Tab2_Rohdaten!$B65,Tab2_Rohdaten!$A$28:$GG$1800,10+AB$9,FALSE) -> 36048 | AC47: =VLOOKUP(Tab2_Rohdaten!$B65,Tab2_Rohdaten!$A$28:$GG$1800,10+AC$9,FALSE) -> 36134 | AD47: =VLOOKUP(Tab2_Rohdaten!$B65,Tab2_Rohdaten!$A$28:$GG$1800,10+AD$9,FALSE) -> 35303 | AE47: =VLOOKUP(Tab2_Rohdaten!$B65,Tab2_Rohdaten!$A$28:$GG$1800,10+AE$9,FALSE) -> 34996 | AF47: =VLOOKUP(Tab2_Rohdaten!$B65,Tab2_Rohdaten!$A$28:$GG$1800,10+AF$9,FALSE) -> 35538 | AG47: =VLOOKUP(Tab2_Rohdaten!$B65,Tab2_Rohdaten!$A$28:$GG$1800,10+AG$9,FALSE) -> 35916 | AH47: =VLOOKUP(Tab2_Rohdaten!$B65,Tab2_Rohdaten!$A$28:$GG$1800,10+AH$9,FALSE) -> 35180 | AI47: =VLOOKUP(Tab2_Rohdaten!$B65,Tab2_Rohdaten!$A$28:$GG$1800,10+AI$9,FALSE) -> 35145 | AJ47: =VLOOKUP(Tab2_Rohdaten!$B65,Tab2_Rohdaten!$A$28:$GG$1800,10+AJ$9,FALSE) -> 35478 | AK47: =VLOOKUP(Tab2_Rohdaten!$B65,Tab2_Rohdaten!$A$28:$GG$1800,10+AK$9,FALSE) -> 35732 | AL47: =VLOOKUP(Tab2_Rohdaten!$B65,Tab2_Rohdaten!$A$28:$GG$1800,10+AL$9,FALSE) -> 35311 | AM47: =VLOOKUP(Tab2_Rohdaten!$B65,Tab2_Rohdaten!$A$28:$GG$1800,10+AM$9,FALSE) -> 35313 | AN47: =VLOOKUP(Tab2_Rohdaten!$B65,Tab2_Rohdaten!$A$28:$GG$1800,10+AN$9,FALSE) -> 35562 | AO47: =VLOOKUP(Tab2_Rohdaten!$B65,Tab2_Rohdaten!$A$28:$GG$1800,10+AO$9,FALSE) -> 35942 | AP47: =VLOOKUP(Tab2_Rohdaten!$B65,Tab2_Rohdaten!$A$28:$GG$1800,10+AP$9,FALSE) -> 35239 | AQ47: =VLOOKUP(Tab2_Rohdaten!$B65,Tab2_Rohdaten!$A$28:$GG$1800,10+AQ$9,FALSE) -> 35287 | AR47: =VLOOKUP(Tab2_Rohdaten!$B65,Tab2_Rohdaten!$A$28:$GG$1800,10+AR$9,FALSE) -> 35611 | AS47: =VLOOKUP(Tab2_Rohdaten!$B65,Tab2_Rohdaten!$A$28:$GG$1800,10+AS$9,FALSE) -> 36121 | AT47: =VLOOKUP(Tab2_Rohdaten!$B65,Tab2_Rohdaten!$A$28:$GG$1800,10+AT$9,FALSE) -> 35485 | AU47: =VLOOKUP(Tab2_Rohdaten!$B65,Tab2_Rohdaten!$A$28:$GG$1800,10+AU$9,FALSE) -> 35588 | AV47: =VLOOKUP(Tab2_Rohdaten!$B65,Tab2_Rohdaten!$A$28:$GG$1800,10+AV$9,FALSE) -> 35787 | AW47: =VLOOKUP(Tab2_Rohdaten!$B65,Tab2_Rohdaten!$A$28:$GG$1800,10+AW$9,FALSE) -> 36201 | AX47: =VLOOKUP(Tab2_Rohdaten!$B65,Tab2_Rohdaten!$A$28:$GG$1800,10+AX$9,FALSE) -> 35660 | AY47: =VLOOKUP(Tab2_Rohdaten!$B65,Tab2_Rohdaten!$A$28:$GG$1800,10+AY$9,FALSE) -> 35588 | AZ47: =VLOOKUP(Tab2_Rohdaten!$B65,Tab2_Rohdaten!$A$28:$GG$1800,10+AZ$9,FALSE) -> 35892 | BA47: =VLOOKUP(Tab2_Rohdaten!$B65,Tab2_Rohdaten!$A$28:$GG$1800,10+BA$9,FALSE) -> 36319 | BB47: =VLOOKUP(Tab2_Rohdaten!$B65,Tab2_Rohdaten!$A$28:$GG$1800,10+BB$9,FALSE) -> 35772 | BC47: =VLOOKUP(Tab2_Rohdaten!$B65,Tab2_Rohdaten!$A$28:$GG$1800,10+BC$9,FALSE) -> 35792 | BD47: =VLOOKUP(Tab2_Rohdaten!$B65,Tab2_Rohdaten!$A$28:$GG$1800,10+BD$9,FALSE) -> 35888 | BE47: =VLOOKUP(Tab2_Rohdaten!$B65,Tab2_Rohdaten!$A$28:$GG$1800,10+BE$9,FALSE) -> 36293 | BF47: =VLOOKUP(Tab2_Rohdaten!$B65,Tab2_Rohdaten!$A$28:$GG$1800,10+BF$9,FALSE) -> 35786 | BG47: =VLOOKUP(Tab2_Rohdaten!$B65,Tab2_Rohdaten!$A$28:$GG$1800,10+BG$9,FALSE) -> 35633 | BH47: =VLOOKUP(Tab2_Rohdaten!$B65,Tab2_Rohdaten!$A$28:$GG$1800,10+BH$9,FALSE) -> 35369 | BI47: =VLOOKUP(Tab2_Rohdaten!$B65,Tab2_Rohdaten!$A$28:$GG$1800,10+BI$9,FALSE) -> 35718 | BJ47: =VLOOKUP(Tab2_Rohdaten!$B65,Tab2_Rohdaten!$A$28:$GG$1800,10+BJ$9,FALSE) -> 35326 | BK47: =VLOOKUP(Tab2_Rohdaten!$B65,Tab2_Rohdaten!$A$28:$GG$1800,10+BK$9,FALSE) -> 35205 | BL47: =VLOOKUP(Tab2_Rohdaten!$B65,Tab2_Rohdaten!$A$28:$GG$1800,10+BL$9,FALSE) -> 35329 | BM47: =VLOOKUP(Tab2_Rohdaten!$B65,Tab2_Rohdaten!$A$28:$GG$1800,10+BM$9,FALSE) -> 35727 | BN47: =VLOOKUP(Tab2_Rohdaten!$B65,Tab2_Rohdaten!$A$28:$GG$1800,10+BN$9,FALSE) -> 35473 | BO47: =VLOOKUP(Tab2_Rohdaten!$B65,Tab2_Rohdaten!$A$28:$GG$1800,10+BO$9,FALSE) -> 35341
A48: =VLOOKUP(Tab2_Rohdaten!$B66,Tab2_Rohdaten!$A$28:$GG$1800,9,FALSE) -> JC Börde | B48: =VLOOKUP(Tab2_Rohdaten!$B66,Tab2_Rohdaten!$A$28:$GG$1800,10,FALSE) -> 04514 | C48: =VLOOKUP(Tab2_Rohdaten!$B66,Tab2_Rohdaten!$A$28:$GG$1800,10+C$9,FALSE) -> 71263 | D48: =VLOOKUP(Tab2_Rohdaten!$B66,Tab2_Rohdaten!$A$28:$GG$1800,10+D$9,FALSE) -> 73066 | E48: =VLOOKUP(Tab2_Rohdaten!$B66,Tab2_Rohdaten!$A$28:$GG$1800,10+E$9,FALSE) -> 74093 | F48: =VLOOKUP(Tab2_Rohdaten!$B66,Tab2_Rohdaten!$A$28:$GG$1800,10+F$9,FALSE) -> 73668 | G48: =VLOOKUP(Tab2_Rohdaten!$B66,Tab2_Rohdaten!$A$28:$GG$1800,10+G$9,FALSE) -> 72815 | H48: =VLOOKUP(Tab2_Rohdaten!$B66,Tab2_Rohdaten!$A$28:$GG$1800,10+H$9,FALSE) -> 73661 | I48: =VLOOKUP(Tab2_Rohdaten!$B66,Tab2_Rohdaten!$A$28:$GG$1800,10+I$9,FALSE) -> 75132 | J48: =VLOOKUP(Tab2_Rohdaten!$B66,Tab2_Rohdaten!$A$28:$GG$1800,10+J$9,FALSE) -> 74379 | K48: =VLOOKUP(Tab2_Rohdaten!$B66,Tab2_Rohdaten!$A$28:$GG$1800,10+K$9,FALSE) -> 73848 | L48: =VLOOKUP(Tab2_Rohdaten!$B66,Tab2_Rohdaten!$A$28:$GG$1800,10+L$9,FALSE) -> 74942 | M48: =VLOOKUP(Tab2_Rohdaten!$B66,Tab2_Rohdaten!$A$28:$GG$1800,10+M$9,FALSE) -> 76238 | N48: =VLOOKUP(Tab2_Rohdaten!$B66,Tab2_Rohdaten!$A$28:$GG$1800,10+N$9,FALSE) -> 74988 | O48: =VLOOKUP(Tab2_Rohdaten!$B66,Tab2_Rohdaten!$A$28:$GG$1800,10+O$9,FALSE) -> 73757 | P48: =VLOOKUP(Tab2_Rohdaten!$B66,Tab2_Rohdaten!$A$28:$GG$1800,10+P$9,FALSE) -> 74116 | Q48: =VLOOKUP(Tab2_Rohdaten!$B66,Tab2_Rohdaten!$A$28:$GG$1800,10+Q$9,FALSE) -> 75056 | R48: =VLOOKUP(Tab2_Rohdaten!$B66,Tab2_Rohdaten!$A$28:$GG$1800,10+R$9,FALSE) -> 73770 | S48: =VLOOKUP(Tab2_Rohdaten!$B66,Tab2_Rohdaten!$A$28:$GG$1800,10+S$9,FALSE) -> 72924 | T48: =VLOOKUP(Tab2_Rohdaten!$B66,Tab2_Rohdaten!$A$28:$GG$1800,10+T$9,FALSE) -> 74037 | U48: =VLOOKUP(Tab2_Rohdaten!$B66,Tab2_Rohdaten!$A$28:$GG$1800,10+U$9,FALSE) -> 75239 | V48: =VLOOKUP(Tab2_Rohdaten!$B66,Tab2_Rohdaten!$A$28:$GG$1800,10+V$9,FALSE) -> 73518 | W48: =VLOOKUP(Tab2_Rohdaten!$B66,Tab2_Rohdaten!$A$28:$GG$1800,10+W$9,FALSE) -> 73325 | X48: =VLOOKUP(Tab2_Rohdaten!$B66,Tab2_Rohdaten!$A$28:$GG$1800,10+X$9,FALSE) -> 74099 | Y48: =VLOOKUP(Tab2_Rohdaten!$B66,Tab2_Rohdaten!$A$28:$GG$1800,10+Y$9,FALSE) -> 74875 | Z48: =VLOOKUP(Tab2_Rohdaten!$B66,Tab2_Rohdaten!$A$28:$GG$1800,10+Z$9,FALSE) -> 73763 | AA48: =VLOOKUP(Tab2_Rohdaten!$B66,Tab2_Rohdaten!$A$28:$GG$1800,10+AA$9,FALSE) -> 73289 | AB48: =VLOOKUP(Tab2_Rohdaten!$B66,Tab2_Rohdaten!$A$28:$GG$1800,10+AB$9,FALSE) -> 73813 | AC48: =VLOOKUP(Tab2_Rohdaten!$B66,Tab2_Rohdaten!$A$28:$GG$1800,10+AC$9,FALSE) -> 74428 | AD48: =VLOOKUP(Tab2_Rohdaten!$B66,Tab2_Rohdaten!$A$28:$GG$1800,10+AD$9,FALSE) -> 72998 | AE48: =VLOOKUP(Tab2_Rohdaten!$B66,Tab2_Rohdaten!$A$28:$GG$1800,10+AE$9,FALSE) -> 72382 | AF48: =VLOOKUP(Tab2_Rohdaten!$B66,Tab2_Rohdaten!$A$28:$GG$1800,10+AF$9,FALSE) -> 73182 | AG48: =VLOOKUP(Tab2_Rohdaten!$B66,Tab2_Rohdaten!$A$28:$GG$1800,10+AG$9,FALSE) -> 74113 | AH48: =VLOOKUP(Tab2_Rohdaten!$B66,Tab2_Rohdaten!$A$28:$GG$1800,10+AH$9,FALSE) -> 73025 | AI48: =VLOOKUP(Tab2_Rohdaten!$B66,Tab2_Rohdaten!$A$28:$GG$1800,10+AI$9,FALSE) -> 72696 | AJ48: =VLOOKUP(Tab2_Rohdaten!$B66,Tab2_Rohdaten!$A$28:$GG$1800,10+AJ$9,FALSE) -> 73265 | AK48: =VLOOKUP(Tab2_Rohdaten!$B66,Tab2_Rohdaten!$A$28:$GG$1800,10+AK$9,FALSE) -> 73998 | AL48: =VLOOKUP(Tab2_Rohdaten!$B66,Tab2_Rohdaten!$A$28:$GG$1800,10+AL$9,FALSE) -> 72840 | AM48: =VLOOKUP(Tab2_Rohdaten!$B66,Tab2_Rohdaten!$A$28:$GG$1800,10+AM$9,FALSE) -> 73788 | AN48: =VLOOKUP(Tab2_Rohdaten!$B66,Tab2_Rohdaten!$A$28:$GG$1800,10+AN$9,FALSE) -> 74143 | AO48: =VLOOKUP(Tab2_Rohdaten!$B66,Tab2_Rohdaten!$A$28:$GG$1800,10+AO$9,FALSE) -> 74876 | AP48: =VLOOKUP(Tab2_Rohdaten!$B66,Tab2_Rohdaten!$A$28:$GG$1800,10+AP$9,FALSE) -> 73800 | AQ48: =VLOOKUP(Tab2_Rohdaten!$B66,Tab2_Rohdaten!$A$28:$GG$1800,10+AQ$9,FALSE) -> 73582 | AR48: =VLOOKUP(Tab2_Rohdaten!$B66,Tab2_Rohdaten!$A$28:$GG$1800,10+AR$9,FALSE) -> 73903 | AS48: =VLOOKUP(Tab2_Rohdaten!$B66,Tab2_Rohdaten!$A$28:$GG$1800,10+AS$9,FALSE) -> 74942 | AT48: =VLOOKUP(Tab2_Rohdaten!$B66,Tab2_Rohdaten!$A$28:$GG$1800,10+AT$9,FALSE) -> 73991 | AU48: =VLOOKUP(Tab2_Rohdaten!$B66,Tab2_Rohdaten!$A$28:$GG$1800,10+AU$9,FALSE) -> 73888 | AV48: =VLOOKUP(Tab2_Rohdaten!$B66,Tab2_Rohdaten!$A$28:$GG$1800,10+AV$9,FALSE) -> 74238 | AW48: =VLOOKUP(Tab2_Rohdaten!$B66,Tab2_Rohdaten!$A$28:$GG$1800,10+AW$9,FALSE) -> 75163 | AX48: =VLOOKUP(Tab2_Rohdaten!$B66,Tab2_Rohdaten!$A$28:$GG$1800,10+AX$9,FALSE) -> 74496 | AY48: =VLOOKUP(Tab2_Rohdaten!$B66,Tab2_Rohdaten!$A$28:$GG$1800,10+AY$9,FALSE) -> 74093 | AZ48: =VLOOKUP(Tab2_Rohdaten!$B66,Tab2_Rohdaten!$A$28:$GG$1800,10+AZ$9,FALSE) -> 74217 | BA48: =VLOOKUP(Tab2_Rohdaten!$B66,Tab2_Rohdaten!$A$28:$GG$1800,10+BA$9,FALSE) -> 75045 | BB48: =VLOOKUP(Tab2_Rohdaten!$B66,Tab2_Rohdaten!$A$28:$GG$1800,10+BB$9,FALSE) -> 74213 | BC48: =VLOOKUP(Tab2_Rohdaten!$B66,Tab2_Rohdaten!$A$28:$GG$1800,10+BC$9,FALSE) -> 73793 | BD48: =VLOOKUP(Tab2_Rohdaten!$B66,Tab2_Rohdaten!$A$28:$GG$1800,10+BD$9,FALSE) -> 73639 | BE48: =VLOOKUP(Tab2_Rohdaten!$B66,Tab2_Rohdaten!$A$28:$GG$1800,10+BE$9,FALSE) -> 74491 | BF48: =VLOOKUP(Tab2_Rohdaten!$B66,Tab2_Rohdaten!$A$28:$GG$1800,10+BF$9,FALSE) -> 73619 | BG48: =VLOOKUP(Tab2_Rohdaten!$B66,Tab2_Rohdaten!$A$28:$GG$1800,10+BG$9,FALSE) -> 73205 | BH48: =VLOOKUP(Tab2_Rohdaten!$B66,Tab2_Rohdaten!$A$28:$GG$1800,10+BH$9,FALSE) -> 72554 | BI48: =VLOOKUP(Tab2_Rohdaten!$B66,Tab2_Rohdaten!$A$28:$GG$1800,10+BI$9,FALSE) -> 73442 | BJ48: =VLOOKUP(Tab2_Rohdaten!$B66,Tab2_Rohdaten!$A$28:$GG$1800,10+BJ$9,FALSE) -> 73000 | BK48: =VLOOKUP(Tab2_Rohdaten!$B66,Tab2_Rohdaten!$A$28:$GG$1800,10+BK$9,FALSE) -> 72449 | BL48: =VLOOKUP(Tab2_Rohdaten!$B66,Tab2_Rohdaten!$A$28:$GG$1800,10+BL$9,FALSE) -> 72419 | BM48: =VLOOKUP(Tab2_Rohdaten!$B66,Tab2_Rohdaten!$A$28:$GG$1800,10+BM$9,FALSE) -> 73320 | BN48: =VLOOKUP(Tab2_Rohdaten!$B66,Tab2_Rohdaten!$A$28:$GG$1800,10+BN$9,FALSE) -> 72856 | BO48: =VLOOKUP(Tab2_Rohdaten!$B66,Tab2_Rohdaten!$A$28:$GG$1800,10+BO$9,FALSE) -> 72459
A49: =VLOOKUP(Tab2_Rohdaten!$B67,Tab2_Rohdaten!$A$28:$GG$1800,9,FALSE) -> JC Stendal | B49: =VLOOKUP(Tab2_Rohdaten!$B67,Tab2_Rohdaten!$A$28:$GG$1800,10,FALSE) -> 04518 | C49: =VLOOKUP(Tab2_Rohdaten!$B67,Tab2_Rohdaten!$A$28:$GG$1800,10+C$9,FALSE) -> 41039 | D49: =VLOOKUP(Tab2_Rohdaten!$B67,Tab2_Rohdaten!$A$28:$GG$1800,10+D$9,FALSE) -> 42646 | E49: =VLOOKUP(Tab2_Rohdaten!$B67,Tab2_Rohdaten!$A$28:$GG$1800,10+E$9,FALSE) -> 43164 | F49: =VLOOKUP(Tab2_Rohdaten!$B67,Tab2_Rohdaten!$A$28:$GG$1800,10+F$9,FALSE) -> 42359 | G49: =VLOOKUP(Tab2_Rohdaten!$B67,Tab2_Rohdaten!$A$28:$GG$1800,10+G$9,FALSE) -> 41843 | H49: =VLOOKUP(Tab2_Rohdaten!$B67,Tab2_Rohdaten!$A$28:$GG$1800,10+H$9,FALSE) -> 42480 | I49: =VLOOKUP(Tab2_Rohdaten!$B67,Tab2_Rohdaten!$A$28:$GG$1800,10+I$9,FALSE) -> 43631 | J49: =VLOOKUP(Tab2_Rohdaten!$B67,Tab2_Rohdaten!$A$28:$GG$1800,10+J$9,FALSE) -> 42952 | K49: =VLOOKUP(Tab2_Rohdaten!$B67,Tab2_Rohdaten!$A$28:$GG$1800,10+K$9,FALSE) -> 43008 | L49: =VLOOKUP(Tab2_Rohdaten!$B67,Tab2_Rohdaten!$A$28:$GG$1800,10+L$9,FALSE) -> 43696 | M49: =VLOOKUP(Tab2_Rohdaten!$B67,Tab2_Rohdaten!$A$28:$GG$1800,10+M$9,FALSE) -> 44681 | N49: =VLOOKUP(Tab2_Rohdaten!$B67,Tab2_Rohdaten!$A$28:$GG$1800,10+N$9,FALSE) -> 43428 | O49: =VLOOKUP(Tab2_Rohdaten!$B67,Tab2_Rohdaten!$A$28:$GG$1800,10+O$9,FALSE) -> 42537 | P49: =VLOOKUP(Tab2_Rohdaten!$B67,Tab2_Rohdaten!$A$28:$GG$1800,10+P$9,FALSE) -> 43227 | Q49: =VLOOKUP(Tab2_Rohdaten!$B67,Tab2_Rohdaten!$A$28:$GG$1800,10+Q$9,FALSE) -> 44298 | R49: =VLOOKUP(Tab2_Rohdaten!$B67,Tab2_Rohdaten!$A$28:$GG$1800,10+R$9,FALSE) -> 43251 | S49: =VLOOKUP(Tab2_Rohdaten!$B67,Tab2_Rohdaten!$A$28:$GG$1800,10+S$9,FALSE) -> 42527 | T49: =VLOOKUP(Tab2_Rohdaten!$B67,Tab2_Rohdaten!$A$28:$GG$1800,10+T$9,FALSE) -> 42780 | U49: =VLOOKUP(Tab2_Rohdaten!$B67,Tab2_Rohdaten!$A$28:$GG$1800,10+U$9,FALSE) -> 43083 | V49: =VLOOKUP(Tab2_Rohdaten!$B67,Tab2_Rohdaten!$A$28:$GG$1800,10+V$9,FALSE) -> 41463 | W49: =VLOOKUP(Tab2_Rohdaten!$B67,Tab2_Rohdaten!$A$28:$GG$1800,10+W$9,FALSE) -> 40514 | X49: =VLOOKUP(Tab2_Rohdaten!$B67,Tab2_Rohdaten!$A$28:$GG$1800,10+X$9,FALSE) -> 41594 | Y49: =VLOOKUP(Tab2_Rohdaten!$B67,Tab2_Rohdaten!$A$28:$GG$1800,10+Y$9,FALSE) -> 42320 | Z49: =VLOOKUP(Tab2_Rohdaten!$B67,Tab2_Rohdaten!$A$28:$GG$1800,10+Z$9,FALSE) -> 40988 | AA49: =VLOOKUP(Tab2_Rohdaten!$B67,Tab2_Rohdaten!$A$28:$GG$1800,10+AA$9,FALSE) -> 40435 | AB49: =VLOOKUP(Tab2_Rohdaten!$B67,Tab2_Rohdaten!$A$28:$GG$1800,10+AB$9,FALSE) -> 40673 | AC49: =VLOOKUP(Tab2_Rohdaten!$B67,Tab2_Rohdaten!$A$28:$GG$1800,10+AC$9,FALSE) -> 41031 | AD49: =VLOOKUP(Tab2_Rohdaten!$B67,Tab2_Rohdaten!$A$28:$GG$1800,10+AD$9,FALSE) -> 40670 | AE49: =VLOOKUP(Tab2_Rohdaten!$B67,Tab2_Rohdaten!$A$28:$GG$1800,10+AE$9,FALSE) -> 40209 | AF49: =VLOOKUP(Tab2_Rohdaten!$B67,Tab2_Rohdaten!$A$28:$GG$1800,10+AF$9,FALSE) -> 40892 | AG49: =VLOOKUP(Tab2_Rohdaten!$B67,Tab2_Rohdaten!$A$28:$GG$1800,10+AG$9,FALSE) -> 41554 | AH49: =VLOOKUP(Tab2_Rohdaten!$B67,Tab2_Rohdaten!$A$28:$GG$1800,10+AH$9,FALSE) -> 40895 | AI49: =VLOOKUP(Tab2_Rohdaten!$B67,Tab2_Rohdaten!$A$28:$GG$1800,10+AI$9,FALSE) -> 41012 | AJ49: =VLOOKUP(Tab2_Rohdaten!$B67,Tab2_Rohdaten!$A$28:$GG$1800,10+AJ$9,FALSE) -> 41582 | AK49: =VLOOKUP(Tab2_Rohdaten!$B67,Tab2_Rohdaten!$A$28:$GG$1800,10+AK$9,FALSE) -> 41992 | AL49: =VLOOKUP(Tab2_Rohdaten!$B67,Tab2_Rohdaten!$A$28:$GG$1800,10+AL$9,FALSE) -> 41076 | AM49: =VLOOKUP(Tab2_Rohdaten!$B67,Tab2_Rohdaten!$A$28:$GG$1800,10+AM$9,FALSE) -> 41399 | AN49: =VLOOKUP(Tab2_Rohdaten!$B67,Tab2_Rohdaten!$A$28:$GG$1800,10+AN$9,FALSE) -> 42012 | AO49: =VLOOKUP(Tab2_Rohdaten!$B67,Tab2_Rohdaten!$A$28:$GG$1800,10+AO$9,FALSE) -> 42325 | AP49: =VLOOKUP(Tab2_Rohdaten!$B67,Tab2_Rohdaten!$A$28:$GG$1800,10+AP$9,FALSE) -> 41445 | AQ49: =VLOOKUP(Tab2_Rohdaten!$B67,Tab2_Rohdaten!$A$28:$GG$1800,10+AQ$9,FALSE) -> 41336 | AR49: =VLOOKUP(Tab2_Rohdaten!$B67,Tab2_Rohdaten!$A$28:$GG$1800,10+AR$9,FALSE) -> 41837 | AS49: =VLOOKUP(Tab2_Rohdaten!$B67,Tab2_Rohdaten!$A$28:$GG$1800,10+AS$9,FALSE) -> 42476 | AT49: =VLOOKUP(Tab2_Rohdaten!$B67,Tab2_Rohdaten!$A$28:$GG$1800,10+AT$9,FALSE) -> 41888 | AU49: =VLOOKUP(Tab2_Rohdaten!$B67,Tab2_Rohdaten!$A$28:$GG$1800,10+AU$9,FALSE) -> 41760 | AV49: =VLOOKUP(Tab2_Rohdaten!$B67,Tab2_Rohdaten!$A$28:$GG$1800,10+AV$9,FALSE) -> 41994 | AW49: =VLOOKUP(Tab2_Rohdaten!$B67,Tab2_Rohdaten!$A$28:$GG$1800,10+AW$9,FALSE) -> 42573 | AX49: =VLOOKUP(Tab2_Rohdaten!$B67,Tab2_Rohdaten!$A$28:$GG$1800,10+AX$9,FALSE) -> 41972 | AY49: =VLOOKUP(Tab2_Rohdaten!$B67,Tab2_Rohdaten!$A$28:$GG$1800,10+AY$9,FALSE) -> 41773 | AZ49: =VLOOKUP(Tab2_Rohdaten!$B67,Tab2_Rohdaten!$A$28:$GG$1800,10+AZ$9,FALSE) -> 41894 | BA49: =VLOOKUP(Tab2_Rohdaten!$B67,Tab2_Rohdaten!$A$28:$GG$1800,10+BA$9,FALSE) -> 42150 | BB49: =VLOOKUP(Tab2_Rohdaten!$B67,Tab2_Rohdaten!$A$28:$GG$1800,10+BB$9,FALSE) -> 42763 | BC49: =VLOOKUP(Tab2_Rohdaten!$B67,Tab2_Rohdaten!$A$28:$GG$1800,10+BC$9,FALSE) -> 42558 | BD49: =VLOOKUP(Tab2_Rohdaten!$B67,Tab2_Rohdaten!$A$28:$GG$1800,10+BD$9,FALSE) -> 42749 | BE49: =VLOOKUP(Tab2_Rohdaten!$B67,Tab2_Rohdaten!$A$28:$GG$1800,10+BE$9,FALSE) -> 43294 | BF49: =VLOOKUP(Tab2_Rohdaten!$B67,Tab2_Rohdaten!$A$28:$GG$1800,10+BF$9,FALSE) -> 42703 | BG49: =VLOOKUP(Tab2_Rohdaten!$B67,Tab2_Rohdaten!$A$28:$GG$1800,10+BG$9,FALSE) -> 42350 | BH49: =VLOOKUP(Tab2_Rohdaten!$B67,Tab2_Rohdaten!$A$28:$GG$1800,10+BH$9,FALSE) -> 42099 | BI49: =VLOOKUP(Tab2_Rohdaten!$B67,Tab2_Rohdaten!$A$28:$GG$1800,10+BI$9,FALSE) -> 42694 | BJ49: =VLOOKUP(Tab2_Rohdaten!$B67,Tab2_Rohdaten!$A$28:$GG$1800,10+BJ$9,FALSE) -> 42296 | BK49: =VLOOKUP(Tab2_Rohdaten!$B67,Tab2_Rohdaten!$A$28:$GG$1800,10+BK$9,FALSE) -> 42010 | BL49: =VLOOKUP(Tab2_Rohdaten!$B67,Tab2_Rohdaten!$A$28:$GG$1800,10+BL$9,FALSE) -> 42138 | BM49: =VLOOKUP(Tab2_Rohdaten!$B67,Tab2_Rohdaten!$A$28:$GG$1800,10+BM$9,FALSE) -> 42729 | BN49: =VLOOKUP(Tab2_Rohdaten!$B67,Tab2_Rohdaten!$A$28:$GG$1800,10+BN$9,FALSE) -> 42379 | BO49: =VLOOKUP(Tab2_Rohdaten!$B67,Tab2_Rohdaten!$A$28:$GG$1800,10+BO$9,FALSE) -> 42075
A50: =VLOOKUP(Tab2_Rohdaten!$B68,Tab2_Rohdaten!$A$28:$GG$1800,9,FALSE) -> JC Altmarkkreis Salzwedel | B50: =VLOOKUP(Tab2_Rohdaten!$B68,Tab2_Rohdaten!$A$28:$GG$1800,10,FALSE) -> 04546 | C50: =VLOOKUP(Tab2_Rohdaten!$B68,Tab2_Rohdaten!$A$28:$GG$1800,10+C$9,FALSE) -> 33366 | D50: =VLOOKUP(Tab2_Rohdaten!$B68,Tab2_Rohdaten!$A$28:$GG$1800,10+D$9,FALSE) -> 34597 | E50: =VLOOKUP(Tab2_Rohdaten!$B68,Tab2_Rohdaten!$A$28:$GG$1800,10+E$9,FALSE) -> 35228 | F50: =VLOOKUP(Tab2_Rohdaten!$B68,Tab2_Rohdaten!$A$28:$GG$1800,10+F$9,FALSE) -> 34670 | G50: =VLOOKUP(Tab2_Rohdaten!$B68,Tab2_Rohdaten!$A$28:$GG$1800,10+G$9,FALSE) -> 34422 | H50: =VLOOKUP(Tab2_Rohdaten!$B68,Tab2_Rohdaten!$A$28:$GG$1800,10+H$9,FALSE) -> 34882 | I50: =VLOOKUP(Tab2_Rohdaten!$B68,Tab2_Rohdaten!$A$28:$GG$1800,10+I$9,FALSE) -> 35535 | J50: =VLOOKUP(Tab2_Rohdaten!$B68,Tab2_Rohdaten!$A$28:$GG$1800,10+J$9,FALSE) -> 35226 | K50: =VLOOKUP(Tab2_Rohdaten!$B68,Tab2_Rohdaten!$A$28:$GG$1800,10+K$9,FALSE) -> 35016 | L50: =VLOOKUP(Tab2_Rohdaten!$B68,Tab2_Rohdaten!$A$28:$GG$1800,10+L$9,FALSE) -> 35610 | M50: =VLOOKUP(Tab2_Rohdaten!$B68,Tab2_Rohdaten!$A$28:$GG$1800,10+M$9,FALSE) -> 36369 | N50: =VLOOKUP(Tab2_Rohdaten!$B68,Tab2_Rohdaten!$A$28:$GG$1800,10+N$9,FALSE) -> 35639 | O50: =VLOOKUP(Tab2_Rohdaten!$B68,Tab2_Rohdaten!$A$28:$GG$1800,10+O$9,FALSE) -> 34666 | P50: =VLOOKUP(Tab2_Rohdaten!$B68,Tab2_Rohdaten!$A$28:$GG$1800,10+P$9,FALSE) -> 35208 | Q50: =VLOOKUP(Tab2_Rohdaten!$B68,Tab2_Rohdaten!$A$28:$GG$1800,10+Q$9,FALSE) -> 35965 | R50: =VLOOKUP(Tab2_Rohdaten!$B68,Tab2_Rohdaten!$A$28:$GG$1800,10+R$9,FALSE) -> 35385 | S50: =VLOOKUP(Tab2_Rohdaten!$B68,Tab2_Rohdaten!$A$28:$GG$1800,10+S$9,FALSE) -> 34816 | T50: =VLOOKUP(Tab2_Rohdaten!$B68,Tab2_Rohdaten!$A$28:$GG$1800,10+T$9,FALSE) -> 35458 | U50: =VLOOKUP(Tab2_Rohdaten!$B68,Tab2_Rohdaten!$A$28:$GG$1800,10+U$9,FALSE) -> 36108 | V50: =VLOOKUP(Tab2_Rohdaten!$B68,Tab2_Rohdaten!$A$28:$GG$1800,10+V$9,FALSE) -> 35627 | W50: =VLOOKUP(Tab2_Rohdaten!$B68,Tab2_Rohdaten!$A$28:$GG$1800,10+W$9,FALSE) -> 33634 | X50: =VLOOKUP(Tab2_Rohdaten!$B68,Tab2_Rohdaten!$A$28:$GG$1800,10+X$9,FALSE) -> 34140 | Y50: =VLOOKUP(Tab2_Rohdaten!$B68,Tab2_Rohdaten!$A$28:$GG$1800,10+Y$9,FALSE) -> 34706 | Z50: =VLOOKUP(Tab2_Rohdaten!$B68,Tab2_Rohdaten!$A$28:$GG$1800,10+Z$9,FALSE) -> 34093 | AA50: =VLOOKUP(Tab2_Rohdaten!$B68,Tab2_Rohdaten!$A$28:$GG$1800,10+AA$9,FALSE) -> 33736 | AB50: =VLOOKUP(Tab2_Rohdaten!$B68,Tab2_Rohdaten!$A$28:$GG$1800,10+AB$9,FALSE) -> 33984 | AC50: =VLOOKUP(Tab2_Rohdaten!$B68,Tab2_Rohdaten!$A$28:$GG$1800,10+AC$9,FALSE) -> 34270 | AD50: =VLOOKUP(Tab2_Rohdaten!$B68,Tab2_Rohdaten!$A$28:$GG$1800,10+AD$9,FALSE) -> 33698 | AE50: =VLOOKUP(Tab2_Rohdaten!$B68,Tab2_Rohdaten!$A$28:$GG$1800,10+AE$9,FALSE) -> 35205 | AF50: =VLOOKUP(Tab2_Rohdaten!$B68,Tab2_Rohdaten!$A$28:$GG$1800,10+AF$9,FALSE) -> 35597 | AG50: =VLOOKUP(Tab2_Rohdaten!$B68,Tab2_Rohdaten!$A$28:$GG$1800,10+AG$9,FALSE) -> 36130 | AH50: =VLOOKUP(Tab2_Rohdaten!$B68,Tab2_Rohdaten!$A$28:$GG$1800,10+AH$9,FALSE) -> 35626 | AI50: =VLOOKUP(Tab2_Rohdaten!$B68,Tab2_Rohdaten!$A$28:$GG$1800,10+AI$9,FALSE) -> 35614 | AJ50: =VLOOKUP(Tab2_Rohdaten!$B68,Tab2_Rohdaten!$A$28:$GG$1800,10+AJ$9,FALSE) -> 35860 | AK50: =VLOOKUP(Tab2_Rohdaten!$B68,Tab2_Rohdaten!$A$28:$GG$1800,10+AK$9,FALSE) -> 36317 | AL50: =VLOOKUP(Tab2_Rohdaten!$B68,Tab2_Rohdaten!$A$28:$GG$1800,10+AL$9,FALSE) -> 35710 | AM50: =VLOOKUP(Tab2_Rohdaten!$B68,Tab2_Rohdaten!$A$28:$GG$1800,10+AM$9,FALSE) -> 35825 | AN50: =VLOOKUP(Tab2_Rohdaten!$B68,Tab2_Rohdaten!$A$28:$GG$1800,10+AN$9,FALSE) -> 36007 | AO50: =VLOOKUP(Tab2_Rohdaten!$B68,Tab2_Rohdaten!$A$28:$GG$1800,10+AO$9,FALSE) -> 36399 | AP50: =VLOOKUP(Tab2_Rohdaten!$B68,Tab2_Rohdaten!$A$28:$GG$1800,10+AP$9,FALSE) -> 35793 | AQ50: =VLOOKUP(Tab2_Rohdaten!$B68,Tab2_Rohdaten!$A$28:$GG$1800,10+AQ$9,FALSE) -> 35582 | AR50: =VLOOKUP(Tab2_Rohdaten!$B68,Tab2_Rohdaten!$A$28:$GG$1800,10+AR$9,FALSE) -> 35814 | AS50: =VLOOKUP(Tab2_Rohdaten!$B68,Tab2_Rohdaten!$A$28:$GG$1800,10+AS$9,FALSE) -> 36231 | AT50: =VLOOKUP(Tab2_Rohdaten!$B68,Tab2_Rohdaten!$A$28:$GG$1800,10+AT$9,FALSE) -> 35595 | AU50: =VLOOKUP(Tab2_Rohdaten!$B68,Tab2_Rohdaten!$A$28:$GG$1800,10+AU$9,FALSE) -> 35561 | AV50: =VLOOKUP(Tab2_Rohdaten!$B68,Tab2_Rohdaten!$A$28:$GG$1800,10+AV$9,FALSE) -> 35629 | AW50: =VLOOKUP(Tab2_Rohdaten!$B68,Tab2_Rohdaten!$A$28:$GG$1800,10+AW$9,FALSE) -> 36116 | AX50: =VLOOKUP(Tab2_Rohdaten!$B68,Tab2_Rohdaten!$A$28:$GG$1800,10+AX$9,FALSE) -> 35641 | AY50: =VLOOKUP(Tab2_Rohdaten!$B68,Tab2_Rohdaten!$A$28:$GG$1800,10+AY$9,FALSE) -> 35562 | AZ50: =VLOOKUP(Tab2_Rohdaten!$B68,Tab2_Rohdaten!$A$28:$GG$1800,10+AZ$9,FALSE) -> 35567 | BA50: =VLOOKUP(Tab2_Rohdaten!$B68,Tab2_Rohdaten!$A$28:$GG$1800,10+BA$9,FALSE) -> 35975 | BB50: =VLOOKUP(Tab2_Rohdaten!$B68,Tab2_Rohdaten!$A$28:$GG$1800,10+BB$9,FALSE) -> 35415 | BC50: =VLOOKUP(Tab2_Rohdaten!$B68,Tab2_Rohdaten!$A$28:$GG$1800,10+BC$9,FALSE) -> 35292 | BD50: =VLOOKUP(Tab2_Rohdaten!$B68,Tab2_Rohdaten!$A$28:$GG$1800,10+BD$9,FALSE) -> 35297 | BE50: =VLOOKUP(Tab2_Rohdaten!$B68,Tab2_Rohdaten!$A$28:$GG$1800,10+BE$9,FALSE) -> 35731 | BF50: =VLOOKUP(Tab2_Rohdaten!$B68,Tab2_Rohdaten!$A$28:$GG$1800,10+BF$9,FALSE) -> 35185 | BG50: =VLOOKUP(Tab2_Rohdaten!$B68,Tab2_Rohdaten!$A$28:$GG$1800,10+BG$9,FALSE) -> 35043 | BH50: =VLOOKUP(Tab2_Rohdaten!$B68,Tab2_Rohdaten!$A$28:$GG$1800,10+BH$9,FALSE) -> 34668 | BI50: =VLOOKUP(Tab2_Rohdaten!$B68,Tab2_Rohdaten!$A$28:$GG$1800,10+BI$9,FALSE) -> 35050 | BJ50: =VLOOKUP(Tab2_Rohdaten!$B68,Tab2_Rohdaten!$A$28:$GG$1800,10+BJ$9,FALSE) -> 34655 | BK50: =VLOOKUP(Tab2_Rohdaten!$B68,Tab2_Rohdaten!$A$28:$GG$1800,10+BK$9,FALSE) -> 34479 | BL50: =VLOOKUP(Tab2_Rohdaten!$B68,Tab2_Rohdaten!$A$28:$GG$1800,10+BL$9,FALSE) -> 34445 | BM50: =VLOOKUP(Tab2_Rohdaten!$B68,Tab2_Rohdaten!$A$28:$GG$1800,10+BM$9,FALSE) -> 34843 | BN50: =VLOOKUP(Tab2_Rohdaten!$B68,Tab2_Rohdaten!$A$28:$GG$1800,10+BN$9,FALSE) -> 34475 | BO50: =VLOOKUP(Tab2_Rohdaten!$B68,Tab2_Rohdaten!$A$28:$GG$1800,10+BO$9,FALSE) -> 34397
A51: =VLOOKUP(Tab2_Rohdaten!$B69,Tab2_Rohdaten!$A$28:$GG$1800,9,FALSE) -> JC Burgenlandkreis | B51: =VLOOKUP(Tab2_Rohdaten!$B69,Tab2_Rohdaten!$A$28:$GG$1800,10,FALSE) -> 04648 | C51: =VLOOKUP(Tab2_Rohdaten!$B69,Tab2_Rohdaten!$A$28:$GG$1800,10+C$9,FALSE) -> 62580 | D51: =VLOOKUP(Tab2_Rohdaten!$B69,Tab2_Rohdaten!$A$28:$GG$1800,10+D$9,FALSE) -> 65063 | E51: =VLOOKUP(Tab2_Rohdaten!$B69,Tab2_Rohdaten!$A$28:$GG$1800,10+E$9,FALSE) -> 66081 | F51: =VLOOKUP(Tab2_Rohdaten!$B69,Tab2_Rohdaten!$A$28:$GG$1800,10+F$9,FALSE) -> 65464 | G51: =VLOOKUP(Tab2_Rohdaten!$B69,Tab2_Rohdaten!$A$28:$GG$1800,10+G$9,FALSE) -> 65121 | H51: =VLOOKUP(Tab2_Rohdaten!$B69,Tab2_Rohdaten!$A$28:$GG$1800,10+H$9,FALSE) -> 66004 | I51: =VLOOKUP(Tab2_Rohdaten!$B69,Tab2_Rohdaten!$A$28:$GG$1800,10+I$9,FALSE) -> 67473 | J51: =VLOOKUP(Tab2_Rohdaten!$B69,Tab2_Rohdaten!$A$28:$GG$1800,10+J$9,FALSE) -> 66793 | K51: =VLOOKUP(Tab2_Rohdaten!$B69,Tab2_Rohdaten!$A$28:$GG$1800,10+K$9,FALSE) -> 66393 | L51: =VLOOKUP(Tab2_Rohdaten!$B69,Tab2_Rohdaten!$A$28:$GG$1800,10+L$9,FALSE) -> 67401 | M51: =VLOOKUP(Tab2_Rohdaten!$B69,Tab2_Rohdaten!$A$28:$GG$1800,10+M$9,FALSE) -> 69386 | N51: =VLOOKUP(Tab2_Rohdaten!$B69,Tab2_Rohdaten!$A$28:$GG$1800,10+N$9,FALSE) -> 68542 | O51: =VLOOKUP(Tab2_Rohdaten!$B69,Tab2_Rohdaten!$A$28:$GG$1800,10+O$9,FALSE) -> 66875 | P51: =VLOOKUP(Tab2_Rohdaten!$B69,Tab2_Rohdaten!$A$28:$GG$1800,10+P$9,FALSE) -> 67781 | Q51: =VLOOKUP(Tab2_Rohdaten!$B69,Tab2_Rohdaten!$A$28:$GG$1800,10+Q$9,FALSE) -> 68887 | R51: =VLOOKUP(Tab2_Rohdaten!$B69,Tab2_Rohdaten!$A$28:$GG$1800,10+R$9,FALSE) -> 67298 | S51: =VLOOKUP(Tab2_Rohdaten!$B69,Tab2_Rohdaten!$A$28:$GG$1800,10+S$9,FALSE) -> 66494 | T51: =VLOOKUP(Tab2_Rohdaten!$B69,Tab2_Rohdaten!$A$28:$GG$1800,10+T$9,FALSE) -> 67635 | U51: =VLOOKUP(Tab2_Rohdaten!$B69,Tab2_Rohdaten!$A$28:$GG$1800,10+U$9,FALSE) -> 69019 | V51: =VLOOKUP(Tab2_Rohdaten!$B69,Tab2_Rohdaten!$A$28:$GG$1800,10+V$9,FALSE) -> 67451 | W51: =VLOOKUP(Tab2_Rohdaten!$B69,Tab2_Rohdaten!$A$28:$GG$1800,10+W$9,FALSE) -> 67224 | X51: =VLOOKUP(Tab2_Rohdaten!$B69,Tab2_Rohdaten!$A$28:$GG$1800,10+X$9,FALSE) -> 68504 | Y51: =VLOOKUP(Tab2_Rohdaten!$B69,Tab2_Rohdaten!$A$28:$GG$1800,10+Y$9,FALSE) -> 69548 | Z51: =VLOOKUP(Tab2_Rohdaten!$B69,Tab2_Rohdaten!$A$28:$GG$1800,10+Z$9,FALSE) -> 68162 | AA51: =VLOOKUP(Tab2_Rohdaten!$B69,Tab2_Rohdaten!$A$28:$GG$1800,10+AA$9,FALSE) -> 67536 | AB51: =VLOOKUP(Tab2_Rohdaten!$B69,Tab2_Rohdaten!$A$28:$GG$1800,10+AB$9,FALSE) -> 68451 | AC51: =VLOOKUP(Tab2_Rohdaten!$B69,Tab2_Rohdaten!$A$28:$GG$1800,10+AC$9,FALSE) -> 69403 | AD51: =VLOOKUP(Tab2_Rohdaten!$B69,Tab2_Rohdaten!$A$28:$GG$1800,10+AD$9,FALSE) -> 67968 | AE51: =VLOOKUP(Tab2_Rohdaten!$B69,Tab2_Rohdaten!$A$28:$GG$1800,10+AE$9,FALSE) -> 67304 | AF51: =VLOOKUP(Tab2_Rohdaten!$B69,Tab2_Rohdaten!$A$28:$GG$1800,10+AF$9,FALSE) -> 68484 | AG51: =VLOOKUP(Tab2_Rohdaten!$B69,Tab2_Rohdaten!$A$28:$GG$1800,10+AG$9,FALSE) -> 69521 | AH51: =VLOOKUP(Tab2_Rohdaten!$B69,Tab2_Rohdaten!$A$28:$GG$1800,10+AH$9,FALSE) -> 68317 | AI51: =VLOOKUP(Tab2_Rohdaten!$B69,Tab2_Rohdaten!$A$28:$GG$1800,10+AI$9,FALSE) -> 68168 | AJ51: =VLOOKUP(Tab2_Rohdaten!$B69,Tab2_Rohdaten!$A$28:$GG$1800,10+AJ$9,FALSE) -> 69295 | AK51: =VLOOKUP(Tab2_Rohdaten!$B69,Tab2_Rohdaten!$A$28:$GG$1800,10+AK$9,FALSE) -> 70098 | AL51: =VLOOKUP(Tab2_Rohdaten!$B69,Tab2_Rohdaten!$A$28:$GG$1800,10+AL$9,FALSE) -> 69032 | AM51: =VLOOKUP(Tab2_Rohdaten!$B69,Tab2_Rohdaten!$A$28:$GG$1800,10+AM$9,FALSE) -> 69366 | AN51: =VLOOKUP(Tab2_Rohdaten!$B69,Tab2_Rohdaten!$A$28:$GG$1800,10+AN$9,FALSE) -> 70108 | AO51: =VLOOKUP(Tab2_Rohdaten!$B69,Tab2_Rohdaten!$A$28:$GG$1800,10+AO$9,FALSE) -> 71001 | AP51: =VLOOKUP(Tab2_Rohdaten!$B69,Tab2_Rohdaten!$A$28:$GG$1800,10+AP$9,FALSE) -> 70104 | AQ51: =VLOOKUP(Tab2_Rohdaten!$B69,Tab2_Rohdaten!$A$28:$GG$1800,10+AQ$9,FALSE) -> 70092 | AR51: =VLOOKUP(Tab2_Rohdaten!$B69,Tab2_Rohdaten!$A$28:$GG$1800,10+AR$9,FALSE) -> 70850 | AS51: =VLOOKUP(Tab2_Rohdaten!$B69,Tab2_Rohdaten!$A$28:$GG$1800,10+AS$9,FALSE) -> 72070 | AT51: =VLOOKUP(Tab2_Rohdaten!$B69,Tab2_Rohdaten!$A$28:$GG$1800,10+AT$9,FALSE) -> 71169 | AU51: =VLOOKUP(Tab2_Rohdaten!$B69,Tab2_Rohdaten!$A$28:$GG$1800,10+AU$9,FALSE) -> 71231 | AV51: =VLOOKUP(Tab2_Rohdaten!$B69,Tab2_Rohdaten!$A$28:$GG$1800,10+AV$9,FALSE) -> 71986 | AW51: =VLOOKUP(Tab2_Rohdaten!$B69,Tab2_Rohdaten!$A$28:$GG$1800,10+AW$9,FALSE) -> 72996 | AX51: =VLOOKUP(Tab2_Rohdaten!$B69,Tab2_Rohdaten!$A$28:$GG$1800,10+AX$9,FALSE) -> 72322 | AY51: =VLOOKUP(Tab2_Rohdaten!$B69,Tab2_Rohdaten!$A$28:$GG$1800,10+AY$9,FALSE) -> 72112 | AZ51: =VLOOKUP(Tab2_Rohdaten!$B69,Tab2_Rohdaten!$A$28:$GG$1800,10+AZ$9,FALSE) -> 72420 | BA51: =VLOOKUP(Tab2_Rohdaten!$B69,Tab2_Rohdaten!$A$28:$GG$1800,10+BA$9,FALSE) -> 73353 | BB51: =VLOOKUP(Tab2_Rohdaten!$B69,Tab2_Rohdaten!$A$28:$GG$1800,10+BB$9,FALSE) -> 72705 | BC51: =VLOOKUP(Tab2_Rohdaten!$B69,Tab2_Rohdaten!$A$28:$GG$1800,10+BC$9,FALSE) -> 72653 | BD51: =VLOOKUP(Tab2_Rohdaten!$B69,Tab2_Rohdaten!$A$28:$GG$1800,10+BD$9,FALSE) -> 72645 | BE51: =VLOOKUP(Tab2_Rohdaten!$B69,Tab2_Rohdaten!$A$28:$GG$1800,10+BE$9,FALSE) -> 73689 | BF51: =VLOOKUP(Tab2_Rohdaten!$B69,Tab2_Rohdaten!$A$28:$GG$1800,10+BF$9,FALSE) -> 72916 | BG51: =VLOOKUP(Tab2_Rohdaten!$B69,Tab2_Rohdaten!$A$28:$GG$1800,10+BG$9,FALSE) -> 72659 | BH51: =VLOOKUP(Tab2_Rohdaten!$B69,Tab2_Rohdaten!$A$28:$GG$1800,10+BH$9,FALSE) -> 71920 | BI51: =VLOOKUP(Tab2_Rohdaten!$B69,Tab2_Rohdaten!$A$28:$GG$1800,10+BI$9,FALSE) -> 72902 | BJ51: =VLOOKUP(Tab2_Rohdaten!$B69,Tab2_Rohdaten!$A$28:$GG$1800,10+BJ$9,FALSE) -> 72166 | BK51: =VLOOKUP(Tab2_Rohdaten!$B69,Tab2_Rohdaten!$A$28:$GG$1800,10+BK$9,FALSE) -> 71497 | BL51: =VLOOKUP(Tab2_Rohdaten!$B69,Tab2_Rohdaten!$A$28:$GG$1800,10+BL$9,FALSE) -> 71669 | BM51: =VLOOKUP(Tab2_Rohdaten!$B69,Tab2_Rohdaten!$A$28:$GG$1800,10+BM$9,FALSE) -> 72718 | BN51: =VLOOKUP(Tab2_Rohdaten!$B69,Tab2_Rohdaten!$A$28:$GG$1800,10+BN$9,FALSE) -> 72323 | BO51: =VLOOKUP(Tab2_Rohdaten!$B69,Tab2_Rohdaten!$A$28:$GG$1800,10+BO$9,FALSE) -> 72045
A52: =VLOOKUP(Tab2_Rohdaten!$B70,Tab2_Rohdaten!$A$28:$GG$1800,9,FALSE) -> JC Mansfeld-Südharz | B52: =VLOOKUP(Tab2_Rohdaten!$B70,Tab2_Rohdaten!$A$28:$GG$1800,10,FALSE) -> 04704 | C52: =VLOOKUP(Tab2_Rohdaten!$B70,Tab2_Rohdaten!$A$28:$GG$1800,10+C$9,FALSE) -> 47859 | D52: =VLOOKUP(Tab2_Rohdaten!$B70,Tab2_Rohdaten!$A$28:$GG$1800,10+D$9,FALSE) -> 49259 | E52: =VLOOKUP(Tab2_Rohdaten!$B70,Tab2_Rohdaten!$A$28:$GG$1800,10+E$9,FALSE) -> 50177 | F52: =VLOOKUP(Tab2_Rohdaten!$B70,Tab2_Rohdaten!$A$28:$GG$1800,10+F$9,FALSE) -> 49624 | G52: =VLOOKUP(Tab2_Rohdaten!$B70,Tab2_Rohdaten!$A$28:$GG$1800,10+G$9,FALSE) -> 49034 | H52: =VLOOKUP(Tab2_Rohdaten!$B70,Tab2_Rohdaten!$A$28:$GG$1800,10+H$9,FALSE) -> 50239 | I52: =VLOOKUP(Tab2_Rohdaten!$B70,Tab2_Rohdaten!$A$28:$GG$1800,10+I$9,FALSE) -> 51584 | J52: =VLOOKUP(Tab2_Rohdaten!$B70,Tab2_Rohdaten!$A$28:$GG$1800,10+J$9,FALSE) -> 50428 | K52: =VLOOKUP(Tab2_Rohdaten!$B70,Tab2_Rohdaten!$A$28:$GG$1800,10+K$9,FALSE) -> 50404 | L52: =VLOOKUP(Tab2_Rohdaten!$B70,Tab2_Rohdaten!$A$28:$GG$1800,10+L$9,FALSE) -> 51315 | M52: =VLOOKUP(Tab2_Rohdaten!$B70,Tab2_Rohdaten!$A$28:$GG$1800,10+M$9,FALSE) -> 52800 | N52: =VLOOKUP(Tab2_Rohdaten!$B70,Tab2_Rohdaten!$A$28:$GG$1800,10+N$9,FALSE) -> 51051 | O52: =VLOOKUP(Tab2_Rohdaten!$B70,Tab2_Rohdaten!$A$28:$GG$1800,10+O$9,FALSE) -> 50084 | P52: =VLOOKUP(Tab2_Rohdaten!$B70,Tab2_Rohdaten!$A$28:$GG$1800,10+P$9,FALSE) -> 50668 | Q52: =VLOOKUP(Tab2_Rohdaten!$B70,Tab2_Rohdaten!$A$28:$GG$1800,10+Q$9,FALSE) -> 51402 | R52: =VLOOKUP(Tab2_Rohdaten!$B70,Tab2_Rohdaten!$A$28:$GG$1800,10+R$9,FALSE) -> 50063 | S52: =VLOOKUP(Tab2_Rohdaten!$B70,Tab2_Rohdaten!$A$28:$GG$1800,10+S$9,FALSE) -> 49372 | T52: =VLOOKUP(Tab2_Rohdaten!$B70,Tab2_Rohdaten!$A$28:$GG$1800,10+T$9,FALSE) -> 50514 | U52: =VLOOKUP(Tab2_Rohdaten!$B70,Tab2_Rohdaten!$A$28:$GG$1800,10+U$9,FALSE) -> 51286 | V52: =VLOOKUP(Tab2_Rohdaten!$B70,Tab2_Rohdaten!$A$28:$GG$1800,10+V$9,FALSE) -> 50028 | W52: =VLOOKUP(Tab2_Rohdaten!$B70,Tab2_Rohdaten!$A$28:$GG$1800,10+W$9,FALSE) -> 49659 | X52: =VLOOKUP(Tab2_Rohdaten!$B70,Tab2_Rohdaten!$A$28:$GG$1800,10+X$9,FALSE) -> 50883 | Y52: =VLOOKUP(Tab2_Rohdaten!$B70,Tab2_Rohdaten!$A$28:$GG$1800,10+Y$9,FALSE) -> 51089 | Z52: =VLOOKUP(Tab2_Rohdaten!$B70,Tab2_Rohdaten!$A$28:$GG$1800,10+Z$9,FALSE) -> 50042 | AA52: =VLOOKUP(Tab2_Rohdaten!$B70,Tab2_Rohdaten!$A$28:$GG$1800,10+AA$9,FALSE) -> 50305 | AB52: =VLOOKUP(Tab2_Rohdaten!$B70,Tab2_Rohdaten!$A$28:$GG$1800,10+AB$9,FALSE) -> 50764 | AC52: =VLOOKUP(Tab2_Rohdaten!$B70,Tab2_Rohdaten!$A$28:$GG$1800,10+AC$9,FALSE) -> 51323 | AD52: =VLOOKUP(Tab2_Rohdaten!$B70,Tab2_Rohdaten!$A$28:$GG$1800,10+AD$9,FALSE) -> 49995 | AE52: =VLOOKUP(Tab2_Rohdaten!$B70,Tab2_Rohdaten!$A$28:$GG$1800,10+AE$9,FALSE) -> 49489 | AF52: =VLOOKUP(Tab2_Rohdaten!$B70,Tab2_Rohdaten!$A$28:$GG$1800,10+AF$9,FALSE) -> 50212 | AG52: =VLOOKUP(Tab2_Rohdaten!$B70,Tab2_Rohdaten!$A$28:$GG$1800,10+AG$9,FALSE) -> 50938 | AH52: =VLOOKUP(Tab2_Rohdaten!$B70,Tab2_Rohdaten!$A$28:$GG$1800,10+AH$9,FALSE) -> 49635 | AI52: =VLOOKUP(Tab2_Rohdaten!$B70,Tab2_Rohdaten!$A$28:$GG$1800,10+AI$9,FALSE) -> 49633 | AJ52: =VLOOKUP(Tab2_Rohdaten!$B70,Tab2_Rohdaten!$A$28:$GG$1800,10+AJ$9,FALSE) -> 50102 | AK52: =VLOOKUP(Tab2_Rohdaten!$B70,Tab2_Rohdaten!$A$28:$GG$1800,10+AK$9,FALSE) -> 50354 | AL52: =VLOOKUP(Tab2_Rohdaten!$B70,Tab2_Rohdaten!$A$28:$GG$1800,10+AL$9,FALSE) -> 49260 | AM52: =VLOOKUP(Tab2_Rohdaten!$B70,Tab2_Rohdaten!$A$28:$GG$1800,10+AM$9,FALSE) -> 49460 | AN52: =VLOOKUP(Tab2_Rohdaten!$B70,Tab2_Rohdaten!$A$28:$GG$1800,10+AN$9,FALSE) -> 50040 | AO52: =VLOOKUP(Tab2_Rohdaten!$B70,Tab2_Rohdaten!$A$28:$GG$1800,10+AO$9,FALSE) -> 50632 | AP52: =VLOOKUP(Tab2_Rohdaten!$B70,Tab2_Rohdaten!$A$28:$GG$1800,10+AP$9,FALSE) -> 49791 | AQ52: =VLOOKUP(Tab2_Rohdaten!$B70,Tab2_Rohdaten!$A$28:$GG$1800,10+AQ$9,FALSE) -> 49703 | AR52: =VLOOKUP(Tab2_Rohdaten!$B70,Tab2_Rohdaten!$A$28:$GG$1800,10+AR$9,FALSE) -> 50206 | AS52: =VLOOKUP(Tab2_Rohdaten!$B70,Tab2_Rohdaten!$A$28:$GG$1800,10+AS$9,FALSE) -> 51112 | AT52: =VLOOKUP(Tab2_Rohdaten!$B70,Tab2_Rohdaten!$A$28:$GG$1800,10+AT$9,FALSE) -> 50155 | AU52: =VLOOKUP(Tab2_Rohdaten!$B70,Tab2_Rohdaten!$A$28:$GG$1800,10+AU$9,FALSE) -> 50168 | AV52: =VLOOKUP(Tab2_Rohdaten!$B70,Tab2_Rohdaten!$A$28:$GG$1800,10+AV$9,FALSE) -> 50578 | AW52: =VLOOKUP(Tab2_Rohdaten!$B70,Tab2_Rohdaten!$A$28:$GG$1800,10+AW$9,FALSE) -> 51184 | AX52: =VLOOKUP(Tab2_Rohdaten!$B70,Tab2_Rohdaten!$A$28:$GG$1800,10+AX$9,FALSE) -> 50386 | AY52: =VLOOKUP(Tab2_Rohdaten!$B70,Tab2_Rohdaten!$A$28:$GG$1800,10+AY$9,FALSE) -> 50148 | AZ52: =VLOOKUP(Tab2_Rohdaten!$B70,Tab2_Rohdaten!$A$28:$GG$1800,10+AZ$9,FALSE) -> 50403 | BA52: =VLOOKUP(Tab2_Rohdaten!$B70,Tab2_Rohdaten!$A$28:$GG$1800,10+BA$9,FALSE) -> 51080 | BB52: =VLOOKUP(Tab2_Rohdaten!$B70,Tab2_Rohdaten!$A$28:$GG$1800,10+BB$9,FALSE) -> 50208 | BC52: =VLOOKUP(Tab2_Rohdaten!$B70,Tab2_Rohdaten!$A$28:$GG$1800,10+BC$9,FALSE) -> 49889 | BD52: =VLOOKUP(Tab2_Rohdaten!$B70,Tab2_Rohdaten!$A$28:$GG$1800,10+BD$9,FALSE) -> 50105 | BE52: =VLOOKUP(Tab2_Rohdaten!$B70,Tab2_Rohdaten!$A$28:$GG$1800,10+BE$9,FALSE) -> 50575 | BF52: =VLOOKUP(Tab2_Rohdaten!$B70,Tab2_Rohdaten!$A$28:$GG$1800,10+BF$9,FALSE) -> 49884 | BG52: =VLOOKUP(Tab2_Rohdaten!$B70,Tab2_Rohdaten!$A$28:$GG$1800,10+BG$9,FALSE) -> 49463 | BH52: =VLOOKUP(Tab2_Rohdaten!$B70,Tab2_Rohdaten!$A$28:$GG$1800,10+BH$9,FALSE) -> 49158 | BI52: =VLOOKUP(Tab2_Rohdaten!$B70,Tab2_Rohdaten!$A$28:$GG$1800,10+BI$9,FALSE) -> 49883 | BJ52: =VLOOKUP(Tab2_Rohdaten!$B70,Tab2_Rohdaten!$A$28:$GG$1800,10+BJ$9,FALSE) -> 49570 | BK52: =VLOOKUP(Tab2_Rohdaten!$B70,Tab2_Rohdaten!$A$28:$GG$1800,10+BK$9,FALSE) -> 49046 | BL52: =VLOOKUP(Tab2_Rohdaten!$B70,Tab2_Rohdaten!$A$28:$GG$1800,10+BL$9,FALSE) -> 49253 | BM52: =VLOOKUP(Tab2_Rohdaten!$B70,Tab2_Rohdaten!$A$28:$GG$1800,10+BM$9,FALSE) -> 49863 | BN52: =VLOOKUP(Tab2_Rohdaten!$B70,Tab2_Rohdaten!$A$28:$GG$1800,10+BN$9,FALSE) -> 49640 | BO52: =VLOOKUP(Tab2_Rohdaten!$B70,Tab2_Rohdaten!$A$28:$GG$1800,10+BO$9,FALSE) -> 49335
A53: =VLOOKUP(Tab2_Rohdaten!$B71,Tab2_Rohdaten!$A$28:$GG$1800,9,FALSE) -> JC Erzgebirgskreis | B53: =VLOOKUP(Tab2_Rohdaten!$B71,Tab2_Rohdaten!$A$28:$GG$1800,10,FALSE) -> 07146 | C53: =VLOOKUP(Tab2_Rohdaten!$B71,Tab2_Rohdaten!$A$28:$GG$1800,10+C$9,FALSE) -> 124619 | D53: =VLOOKUP(Tab2_Rohdaten!$B71,Tab2_Rohdaten!$A$28:$GG$1800,10+D$9,FALSE) -> 130440 | E53: =VLOOKUP(Tab2_Rohdaten!$B71,Tab2_Rohdaten!$A$28:$GG$1800,10+E$9,FALSE) -> 133017 | F53: =VLOOKUP(Tab2_Rohdaten!$B71,Tab2_Rohdaten!$A$28:$GG$1800,10+F$9,FALSE) -> 131537 | G53: =VLOOKUP(Tab2_Rohdaten!$B71,Tab2_Rohdaten!$A$28:$GG$1800,10+G$9,FALSE) -> 129421 | H53: =VLOOKUP(Tab2_Rohdaten!$B71,Tab2_Rohdaten!$A$28:$GG$1800,10+H$9,FALSE) -> 133117 | I53: =VLOOKUP(Tab2_Rohdaten!$B71,Tab2_Rohdaten!$A$28:$GG$1800,10+I$9,FALSE) -> 135757 | J53: =VLOOKUP(Tab2_Rohdaten!$B71,Tab2_Rohdaten!$A$28:$GG$1800,10+J$9,FALSE) -> 133495 | K53: =VLOOKUP(Tab2_Rohdaten!$B71,Tab2_Rohdaten!$A$28:$GG$1800,10+K$9,FALSE) -> 131948 | L53: =VLOOKUP(Tab2_Rohdaten!$B71,Tab2_Rohdaten!$A$28:$GG$1800,10+L$9,FALSE) -> 134881 | M53: =VLOOKUP(Tab2_Rohdaten!$B71,Tab2_Rohdaten!$A$28:$GG$1800,10+M$9,FALSE) -> 137428 | N53: =VLOOKUP(Tab2_Rohdaten!$B71,Tab2_Rohdaten!$A$28:$GG$1800,10+N$9,FALSE) -> 134292 | O53: =VLOOKUP(Tab2_Rohdaten!$B71,Tab2_Rohdaten!$A$28:$GG$1800,10+O$9,FALSE) -> 130155 | P53: =VLOOKUP(Tab2_Rohdaten!$B71,Tab2_Rohdaten!$A$28:$GG$1800,10+P$9,FALSE) -> 131744 | Q53: =VLOOKUP(Tab2_Rohdaten!$B71,Tab2_Rohdaten!$A$28:$GG$1800,10+Q$9,FALSE) -> 133791 | R53: =VLOOKUP(Tab2_Rohdaten!$B71,Tab2_Rohdaten!$A$28:$GG$1800,10+R$9,FALSE) -> 132194 | S53: =VLOOKUP(Tab2_Rohdaten!$B71,Tab2_Rohdaten!$A$28:$GG$1800,10+S$9,FALSE) -> 130493 | T53: =VLOOKUP(Tab2_Rohdaten!$B71,Tab2_Rohdaten!$A$28:$GG$1800,10+T$9,FALSE) -> 133718 | U53: =VLOOKUP(Tab2_Rohdaten!$B71,Tab2_Rohdaten!$A$28:$GG$1800,10+U$9,FALSE) -> 136118 | V53: =VLOOKUP(Tab2_Rohdaten!$B71,Tab2_Rohdaten!$A$28:$GG$1800,10+V$9,FALSE) -> 133764 | W53: =VLOOKUP(Tab2_Rohdaten!$B71,Tab2_Rohdaten!$A$28:$GG$1800,10+W$9,FALSE) -> 133095 | X53: =VLOOKUP(Tab2_Rohdaten!$B71,Tab2_Rohdaten!$A$28:$GG$1800,10+X$9,FALSE) -> 135237 | Y53: =VLOOKUP(Tab2_Rohdaten!$B71,Tab2_Rohdaten!$A$28:$GG$1800,10+Y$9,FALSE) -> 136587 | Z53: =VLOOKUP(Tab2_Rohdaten!$B71,Tab2_Rohdaten!$A$28:$GG$1800,10+Z$9,FALSE) -> 134713 | AA53: =VLOOKUP(Tab2_Rohdaten!$B71,Tab2_Rohdaten!$A$28:$GG$1800,10+AA$9,FALSE) -> 133572 | AB53: =VLOOKUP(Tab2_Rohdaten!$B71,Tab2_Rohdaten!$A$28:$GG$1800,10+AB$9,FALSE) -> 135001 | AC53: =VLOOKUP(Tab2_Rohdaten!$B71,Tab2_Rohdaten!$A$28:$GG$1800,10+AC$9,FALSE) -> 136085 | AD53: =VLOOKUP(Tab2_Rohdaten!$B71,Tab2_Rohdaten!$A$28:$GG$1800,10+AD$9,FALSE) -> 133626 | AE53: =VLOOKUP(Tab2_Rohdaten!$B71,Tab2_Rohdaten!$A$28:$GG$1800,10+AE$9,FALSE) -> 131830 | AF53: =VLOOKUP(Tab2_Rohdaten!$B71,Tab2_Rohdaten!$A$28:$GG$1800,10+AF$9,FALSE) -> 133515 | AG53: =VLOOKUP(Tab2_Rohdaten!$B71,Tab2_Rohdaten!$A$28:$GG$1800,10+AG$9,FALSE) -> 134870 | AH53: =VLOOKUP(Tab2_Rohdaten!$B71,Tab2_Rohdaten!$A$28:$GG$1800,10+AH$9,FALSE) -> 132919 | AI53: =VLOOKUP(Tab2_Rohdaten!$B71,Tab2_Rohdaten!$A$28:$GG$1800,10+AI$9,FALSE) -> 132338 | AJ53: =VLOOKUP(Tab2_Rohdaten!$B71,Tab2_Rohdaten!$A$28:$GG$1800,10+AJ$9,FALSE) -> 133695 | AK53: =VLOOKUP(Tab2_Rohdaten!$B71,Tab2_Rohdaten!$A$28:$GG$1800,10+AK$9,FALSE) -> 134654 | AL53: =VLOOKUP(Tab2_Rohdaten!$B71,Tab2_Rohdaten!$A$28:$GG$1800,10+AL$9,FALSE) -> 132748 | AM53: =VLOOKUP(Tab2_Rohdaten!$B71,Tab2_Rohdaten!$A$28:$GG$1800,10+AM$9,FALSE) -> 132425 | AN53: =VLOOKUP(Tab2_Rohdaten!$B71,Tab2_Rohdaten!$A$28:$GG$1800,10+AN$9,FALSE) -> 133482 | AO53: =VLOOKUP(Tab2_Rohdaten!$B71,Tab2_Rohdaten!$A$28:$GG$1800,10+AO$9,FALSE) -> 135070 | AP53: =VLOOKUP(Tab2_Rohdaten!$B71,Tab2_Rohdaten!$A$28:$GG$1800,10+AP$9,FALSE) -> 133670 | AQ53: =VLOOKUP(Tab2_Rohdaten!$B71,Tab2_Rohdaten!$A$28:$GG$1800,10+AQ$9,FALSE) -> 132964 | AR53: =VLOOKUP(Tab2_Rohdaten!$B71,Tab2_Rohdaten!$A$28:$GG$1800,10+AR$9,FALSE) -> 133807 | AS53: =VLOOKUP(Tab2_Rohdaten!$B71,Tab2_Rohdaten!$A$28:$GG$1800,10+AS$9,FALSE) -> 135469 | AT53: =VLOOKUP(Tab2_Rohdaten!$B71,Tab2_Rohdaten!$A$28:$GG$1800,10+AT$9,FALSE) -> 133911 | AU53: =VLOOKUP(Tab2_Rohdaten!$B71,Tab2_Rohdaten!$A$28:$GG$1800,10+AU$9,FALSE) -> 133255 | AV53: =VLOOKUP(Tab2_Rohdaten!$B71,Tab2_Rohdaten!$A$28:$GG$1800,10+AV$9,FALSE) -> 134042 | AW53: =VLOOKUP(Tab2_Rohdaten!$B71,Tab2_Rohdaten!$A$28:$GG$1800,10+AW$9,FALSE) -> 135395 | AX53: =VLOOKUP(Tab2_Rohdaten!$B71,Tab2_Rohdaten!$A$28:$GG$1800,10+AX$9,FALSE) -> 134193 | AY53: =VLOOKUP(Tab2_Rohdaten!$B71,Tab2_Rohdaten!$A$28:$GG$1800,10+AY$9,FALSE) -> 133084 | AZ53: =VLOOKUP(Tab2_Rohdaten!$B71,Tab2_Rohdaten!$A$28:$GG$1800,10+AZ$9,FALSE) -> 133510 | BA53: =VLOOKUP(Tab2_Rohdaten!$B71,Tab2_Rohdaten!$A$28:$GG$1800,10+BA$9,FALSE) -> 135179 | BB53: =VLOOKUP(Tab2_Rohdaten!$B71,Tab2_Rohdaten!$A$28:$GG$1800,10+BB$9,FALSE) -> 134024 | BC53: =VLOOKUP(Tab2_Rohdaten!$B71,Tab2_Rohdaten!$A$28:$GG$1800,10+BC$9,FALSE) -> 132664 | BD53: =VLOOKUP(Tab2_Rohdaten!$B71,Tab2_Rohdaten!$A$28:$GG$1800,10+BD$9,FALSE) -> 132730 | BE53: =VLOOKUP(Tab2_Rohdaten!$B71,Tab2_Rohdaten!$A$28:$GG$1800,10+BE$9,FALSE) -> 134093 | BF53: =VLOOKUP(Tab2_Rohdaten!$B71,Tab2_Rohdaten!$A$28:$GG$1800,10+BF$9,FALSE) -> 132665 | BG53: =VLOOKUP(Tab2_Rohdaten!$B71,Tab2_Rohdaten!$A$28:$GG$1800,10+BG$9,FALSE) -> 131429 | BH53: =VLOOKUP(Tab2_Rohdaten!$B71,Tab2_Rohdaten!$A$28:$GG$1800,10+BH$9,FALSE) -> 130355 | BI53: =VLOOKUP(Tab2_Rohdaten!$B71,Tab2_Rohdaten!$A$28:$GG$1800,10+BI$9,FALSE) -> 131919 | BJ53: =VLOOKUP(Tab2_Rohdaten!$B71,Tab2_Rohdaten!$A$28:$GG$1800,10+BJ$9,FALSE) -> 131048 | BK53: =VLOOKUP(Tab2_Rohdaten!$B71,Tab2_Rohdaten!$A$28:$GG$1800,10+BK$9,FALSE) -> 130091 | BL53: =VLOOKUP(Tab2_Rohdaten!$B71,Tab2_Rohdaten!$A$28:$GG$1800,10+BL$9,FALSE) -> 130118 | BM53: =VLOOKUP(Tab2_Rohdaten!$B71,Tab2_Rohdaten!$A$28:$GG$1800,10+BM$9,FALSE) -> 131936 | BN53: =VLOOKUP(Tab2_Rohdaten!$B71,Tab2_Rohdaten!$A$28:$GG$1800,10+BN$9,FALSE) -> 130923 | BO53: =VLOOKUP(Tab2_Rohdaten!$B71,Tab2_Rohdaten!$A$28:$GG$1800,10+BO$9,FALSE) -> 130034
A54: =VLOOKUP(Tab2_Rohdaten!$B72,Tab2_Rohdaten!$A$28:$GG$1800,9,FALSE) -> JC Bautzen | B54: =VLOOKUP(Tab2_Rohdaten!$B72,Tab2_Rohdaten!$A$28:$GG$1800,10,FALSE) -> 07202 | C54: =VLOOKUP(Tab2_Rohdaten!$B72,Tab2_Rohdaten!$A$28:$GG$1800,10+C$9,FALSE) -> 110366 | D54: =VLOOKUP(Tab2_Rohdaten!$B72,Tab2_Rohdaten!$A$28:$GG$1800,10+D$9,FALSE) -> 114739 | E54: =VLOOKUP(Tab2_Rohdaten!$B72,Tab2_Rohdaten!$A$28:$GG$1800,10+E$9,FALSE) -> 117059 | F54: =VLOOKUP(Tab2_Rohdaten!$B72,Tab2_Rohdaten!$A$28:$GG$1800,10+F$9,FALSE) -> 115660 | G54: =VLOOKUP(Tab2_Rohdaten!$B72,Tab2_Rohdaten!$A$28:$GG$1800,10+G$9,FALSE) -> 114921 | H54: =VLOOKUP(Tab2_Rohdaten!$B72,Tab2_Rohdaten!$A$28:$GG$1800,10+H$9,FALSE) -> 117214 | I54: =VLOOKUP(Tab2_Rohdaten!$B72,Tab2_Rohdaten!$A$28:$GG$1800,10+I$9,FALSE) -> 119085 | J54: =VLOOKUP(Tab2_Rohdaten!$B72,Tab2_Rohdaten!$A$28:$GG$1800,10+J$9,FALSE) -> 117357 | K54: =VLOOKUP(Tab2_Rohdaten!$B72,Tab2_Rohdaten!$A$28:$GG$1800,10+K$9,FALSE) -> 116509 | L54: =VLOOKUP(Tab2_Rohdaten!$B72,Tab2_Rohdaten!$A$28:$GG$1800,10+L$9,FALSE) -> 118375 | M54: =VLOOKUP(Tab2_Rohdaten!$B72,Tab2_Rohdaten!$A$28:$GG$1800,10+M$9,FALSE) -> 119648 | N54: =VLOOKUP(Tab2_Rohdaten!$B72,Tab2_Rohdaten!$A$28:$GG$1800,10+N$9,FALSE) -> 117676 | O54: =VLOOKUP(Tab2_Rohdaten!$B72,Tab2_Rohdaten!$A$28:$GG$1800,10+O$9,FALSE) -> 115411 | P54: =VLOOKUP(Tab2_Rohdaten!$B72,Tab2_Rohdaten!$A$28:$GG$1800,10+P$9,FALSE) -> 116625 | Q54: =VLOOKUP(Tab2_Rohdaten!$B72,Tab2_Rohdaten!$A$28:$GG$1800,10+Q$9,FALSE) -> 117939 | R54: =VLOOKUP(Tab2_Rohdaten!$B72,Tab2_Rohdaten!$A$28:$GG$1800,10+R$9,FALSE) -> 116391 | S54: =VLOOKUP(Tab2_Rohdaten!$B72,Tab2_Rohdaten!$A$28:$GG$1800,10+S$9,FALSE) -> 115110 | T54: =VLOOKUP(Tab2_Rohdaten!$B72,Tab2_Rohdaten!$A$28:$GG$1800,10+T$9,FALSE) -> 117634 | U54: =VLOOKUP(Tab2_Rohdaten!$B72,Tab2_Rohdaten!$A$28:$GG$1800,10+U$9,FALSE) -> 119091 | V54: =VLOOKUP(Tab2_Rohdaten!$B72,Tab2_Rohdaten!$A$28:$GG$1800,10+V$9,FALSE) -> 117284 | W54: =VLOOKUP(Tab2_Rohdaten!$B72,Tab2_Rohdaten!$A$28:$GG$1800,10+W$9,FALSE) -> 116810 | X54: =VLOOKUP(Tab2_Rohdaten!$B72,Tab2_Rohdaten!$A$28:$GG$1800,10+X$9,FALSE) -> 118838 | Y54: =VLOOKUP(Tab2_Rohdaten!$B72,Tab2_Rohdaten!$A$28:$GG$1800,10+Y$9,FALSE) -> 120362 | Z54: =VLOOKUP(Tab2_Rohdaten!$B72,Tab2_Rohdaten!$A$28:$GG$1800,10+Z$9,FALSE) -> 118991 | AA54: =VLOOKUP(Tab2_Rohdaten!$B72,Tab2_Rohdaten!$A$28:$GG$1800,10+AA$9,FALSE) -> 118475 | AB54: =VLOOKUP(Tab2_Rohdaten!$B72,Tab2_Rohdaten!$A$28:$GG$1800,10+AB$9,FALSE) -> 119477 | AC54: =VLOOKUP(Tab2_Rohdaten!$B72,Tab2_Rohdaten!$A$28:$GG$1800,10+AC$9,FALSE) -> 120359 | AD54: =VLOOKUP(Tab2_Rohdaten!$B72,Tab2_Rohdaten!$A$28:$GG$1800,10+AD$9,FALSE) -> 118566 | AE54: =VLOOKUP(Tab2_Rohdaten!$B72,Tab2_Rohdaten!$A$28:$GG$1800,10+AE$9,FALSE) -> 117275 | AF54: =VLOOKUP(Tab2_Rohdaten!$B72,Tab2_Rohdaten!$A$28:$GG$1800,10+AF$9,FALSE) -> 118737 | AG54: =VLOOKUP(Tab2_Rohdaten!$B72,Tab2_Rohdaten!$A$28:$GG$1800,10+AG$9,FALSE) -> 120274 | AH54: =VLOOKUP(Tab2_Rohdaten!$B72,Tab2_Rohdaten!$A$28:$GG$1800,10+AH$9,FALSE) -> 118573 | AI54: =VLOOKUP(Tab2_Rohdaten!$B72,Tab2_Rohdaten!$A$28:$GG$1800,10+AI$9,FALSE) -> 118138 | AJ54: =VLOOKUP(Tab2_Rohdaten!$B72,Tab2_Rohdaten!$A$28:$GG$1800,10+AJ$9,FALSE) -> 119119 | AK54: =VLOOKUP(Tab2_Rohdaten!$B72,Tab2_Rohdaten!$A$28:$GG$1800,10+AK$9,FALSE) -> 120201 | AL54: =VLOOKUP(Tab2_Rohdaten!$B72,Tab2_Rohdaten!$A$28:$GG$1800,10+AL$9,FALSE) -> 118266 | AM54: =VLOOKUP(Tab2_Rohdaten!$B72,Tab2_Rohdaten!$A$28:$GG$1800,10+AM$9,FALSE) -> 117926 | AN54: =VLOOKUP(Tab2_Rohdaten!$B72,Tab2_Rohdaten!$A$28:$GG$1800,10+AN$9,FALSE) -> 118764 | AO54: =VLOOKUP(Tab2_Rohdaten!$B72,Tab2_Rohdaten!$A$28:$GG$1800,10+AO$9,FALSE) -> 120311 | AP54: =VLOOKUP(Tab2_Rohdaten!$B72,Tab2_Rohdaten!$A$28:$GG$1800,10+AP$9,FALSE) -> 118945 | AQ54: =VLOOKUP(Tab2_Rohdaten!$B72,Tab2_Rohdaten!$A$28:$GG$1800,10+AQ$9,FALSE) -> 118593 | AR54: =VLOOKUP(Tab2_Rohdaten!$B72,Tab2_Rohdaten!$A$28:$GG$1800,10+AR$9,FALSE) -> 119394 | AS54: =VLOOKUP(Tab2_Rohdaten!$B72,Tab2_Rohdaten!$A$28:$GG$1800,10+AS$9,FALSE) -> 120917 | AT54: =VLOOKUP(Tab2_Rohdaten!$B72,Tab2_Rohdaten!$A$28:$GG$1800,10+AT$9,FALSE) -> 119691 | AU54: =VLOOKUP(Tab2_Rohdaten!$B72,Tab2_Rohdaten!$A$28:$GG$1800,10+AU$9,FALSE) -> 119303 | AV54: =VLOOKUP(Tab2_Rohdaten!$B72,Tab2_Rohdaten!$A$28:$GG$1800,10+AV$9,FALSE) -> 120048 | AW54: =VLOOKUP(Tab2_Rohdaten!$B72,Tab2_Rohdaten!$A$28:$GG$1800,10+AW$9,FALSE) -> 121601 | AX54: =VLOOKUP(Tab2_Rohdaten!$B72,Tab2_Rohdaten!$A$28:$GG$1800,10+AX$9,FALSE) -> 120694 | AY54: =VLOOKUP(Tab2_Rohdaten!$B72,Tab2_Rohdaten!$A$28:$GG$1800,10+AY$9,FALSE) -> 120014 | AZ54: =VLOOKUP(Tab2_Rohdaten!$B72,Tab2_Rohdaten!$A$28:$GG$1800,10+AZ$9,FALSE) -> 120367 | BA54: =VLOOKUP(Tab2_Rohdaten!$B72,Tab2_Rohdaten!$A$28:$GG$1800,10+BA$9,FALSE) -> 121818 | BB54: =VLOOKUP(Tab2_Rohdaten!$B72,Tab2_Rohdaten!$A$28:$GG$1800,10+BB$9,FALSE) -> 120949 | BC54: =VLOOKUP(Tab2_Rohdaten!$B72,Tab2_Rohdaten!$A$28:$GG$1800,10+BC$9,FALSE) -> 119903 | BD54: =VLOOKUP(Tab2_Rohdaten!$B72,Tab2_Rohdaten!$A$28:$GG$1800,10+BD$9,FALSE) -> 120193 | BE54: =VLOOKUP(Tab2_Rohdaten!$B72,Tab2_Rohdaten!$A$28:$GG$1800,10+BE$9,FALSE) -> 121948 | BF54: =VLOOKUP(Tab2_Rohdaten!$B72,Tab2_Rohdaten!$A$28:$GG$1800,10+BF$9,FALSE) -> 121065 | BG54: =VLOOKUP(Tab2_Rohdaten!$B72,Tab2_Rohdaten!$A$28:$GG$1800,10+BG$9,FALSE) -> 120278 | BH54: =VLOOKUP(Tab2_Rohdaten!$B72,Tab2_Rohdaten!$A$28:$GG$1800,10+BH$9,FALSE) -> 119485 | BI54: =VLOOKUP(Tab2_Rohdaten!$B72,Tab2_Rohdaten!$A$28:$GG$1800,10+BI$9,FALSE) -> 121055 | BJ54: =VLOOKUP(Tab2_Rohdaten!$B72,Tab2_Rohdaten!$A$28:$GG$1800,10+BJ$9,FALSE) -> 120565 | BK54: =VLOOKUP(Tab2_Rohdaten!$B72,Tab2_Rohdaten!$A$28:$GG$1800,10+BK$9,FALSE) -> 119520 | BL54: =VLOOKUP(Tab2_Rohdaten!$B72,Tab2_Rohdaten!$A$28:$GG$1800,10+BL$9,FALSE) -> 119418 | BM54: =VLOOKUP(Tab2_Rohdaten!$B72,Tab2_Rohdaten!$A$28:$GG$1800,10+BM$9,FALSE) -> 120847 | BN54: =VLOOKUP(Tab2_Rohdaten!$B72,Tab2_Rohdaten!$A$28:$GG$1800,10+BN$9,FALSE) -> 120113 | BO54: =VLOOKUP(Tab2_Rohdaten!$B72,Tab2_Rohdaten!$A$28:$GG$1800,10+BO$9,FALSE) -> 119585
A55: =VLOOKUP(Tab2_Rohdaten!$B73,Tab2_Rohdaten!$A$28:$GG$1800,9,FALSE) -> JC Görlitz | B55: =VLOOKUP(Tab2_Rohdaten!$B73,Tab2_Rohdaten!$A$28:$GG$1800,10,FALSE) -> 07208 | C55: =VLOOKUP(Tab2_Rohdaten!$B73,Tab2_Rohdaten!$A$28:$GG$1800,10+C$9,FALSE) -> 83248 | D55: =VLOOKUP(Tab2_Rohdaten!$B73,Tab2_Rohdaten!$A$28:$GG$1800,10+D$9,FALSE) -> 87008 | E55: =VLOOKUP(Tab2_Rohdaten!$B73,Tab2_Rohdaten!$A$28:$GG$1800,10+E$9,FALSE) -> 89282 | F55: =VLOOKUP(Tab2_Rohdaten!$B73,Tab2_Rohdaten!$A$28:$GG$1800,10+F$9,FALSE) -> 87628 | G55: =VLOOKUP(Tab2_Rohdaten!$B73,Tab2_Rohdaten!$A$28:$GG$1800,10+G$9,FALSE) -> 86159 | H55: =VLOOKUP(Tab2_Rohdaten!$B73,Tab2_Rohdaten!$A$28:$GG$1800,10+H$9,FALSE) -> 88478 | I55: =VLOOKUP(Tab2_Rohdaten!$B73,Tab2_Rohdaten!$A$28:$GG$1800,10+I$9,FALSE) -> 90244 | J55: =VLOOKUP(Tab2_Rohdaten!$B73,Tab2_Rohdaten!$A$28:$GG$1800,10+J$9,FALSE) -> 88526 | K55: =VLOOKUP(Tab2_Rohdaten!$B73,Tab2_Rohdaten!$A$28:$GG$1800,10+K$9,FALSE) -> 87795 | L55: =VLOOKUP(Tab2_Rohdaten!$B73,Tab2_Rohdaten!$A$28:$GG$1800,10+L$9,FALSE) -> 89772 | M55: =VLOOKUP(Tab2_Rohdaten!$B73,Tab2_Rohdaten!$A$28:$GG$1800,10+M$9,FALSE) -> 91607 | N55: =VLOOKUP(Tab2_Rohdaten!$B73,Tab2_Rohdaten!$A$28:$GG$1800,10+N$9,FALSE) -> 89632 | O55: =VLOOKUP(Tab2_Rohdaten!$B73,Tab2_Rohdaten!$A$28:$GG$1800,10+O$9,FALSE) -> 87936 | P55: =VLOOKUP(Tab2_Rohdaten!$B73,Tab2_Rohdaten!$A$28:$GG$1800,10+P$9,FALSE) -> 89371 | Q55: =VLOOKUP(Tab2_Rohdaten!$B73,Tab2_Rohdaten!$A$28:$GG$1800,10+Q$9,FALSE) -> 91009 | R55: =VLOOKUP(Tab2_Rohdaten!$B73,Tab2_Rohdaten!$A$28:$GG$1800,10+R$9,FALSE) -> 89277 | S55: =VLOOKUP(Tab2_Rohdaten!$B73,Tab2_Rohdaten!$A$28:$GG$1800,10+S$9,FALSE) -> 87910 | T55: =VLOOKUP(Tab2_Rohdaten!$B73,Tab2_Rohdaten!$A$28:$GG$1800,10+T$9,FALSE) -> 90164 | U55: =VLOOKUP(Tab2_Rohdaten!$B73,Tab2_Rohdaten!$A$28:$GG$1800,10+U$9,FALSE) -> 91762 | V55: =VLOOKUP(Tab2_Rohdaten!$B73,Tab2_Rohdaten!$A$28:$GG$1800,10+V$9,FALSE) -> 89741 | W55: =VLOOKUP(Tab2_Rohdaten!$B73,Tab2_Rohdaten!$A$28:$GG$1800,10+W$9,FALSE) -> 89152 | X55: =VLOOKUP(Tab2_Rohdaten!$B73,Tab2_Rohdaten!$A$28:$GG$1800,10+X$9,FALSE) -> 90940 | Y55: =VLOOKUP(Tab2_Rohdaten!$B73,Tab2_Rohdaten!$A$28:$GG$1800,10+Y$9,FALSE) -> 92323 | Z55: =VLOOKUP(Tab2_Rohdaten!$B73,Tab2_Rohdaten!$A$28:$GG$1800,10+Z$9,FALSE) -> 90570 | AA55: =VLOOKUP(Tab2_Rohdaten!$B73,Tab2_Rohdaten!$A$28:$GG$1800,10+AA$9,FALSE) -> 89679 | AB55: =VLOOKUP(Tab2_Rohdaten!$B73,Tab2_Rohdaten!$A$28:$GG$1800,10+AB$9,FALSE) -> 91297 | AC55: =VLOOKUP(Tab2_Rohdaten!$B73,Tab2_Rohdaten!$A$28:$GG$1800,10+AC$9,FALSE) -> 92368 | AD55: =VLOOKUP(Tab2_Rohdaten!$B73,Tab2_Rohdaten!$A$28:$GG$1800,10+AD$9,FALSE) -> 90467 | AE55: =VLOOKUP(Tab2_Rohdaten!$B73,Tab2_Rohdaten!$A$28:$GG$1800,10+AE$9,FALSE) -> 89237 | AF55: =VLOOKUP(Tab2_Rohdaten!$B73,Tab2_Rohdaten!$A$28:$GG$1800,10+AF$9,FALSE) -> 91202 | AG55: =VLOOKUP(Tab2_Rohdaten!$B73,Tab2_Rohdaten!$A$28:$GG$1800,10+AG$9,FALSE) -> 92687 | AH55: =VLOOKUP(Tab2_Rohdaten!$B73,Tab2_Rohdaten!$A$28:$GG$1800,10+AH$9,FALSE) -> 90997 | AI55: =VLOOKUP(Tab2_Rohdaten!$B73,Tab2_Rohdaten!$A$28:$GG$1800,10+AI$9,FALSE) -> 90394 | AJ55: =VLOOKUP(Tab2_Rohdaten!$B73,Tab2_Rohdaten!$A$28:$GG$1800,10+AJ$9,FALSE) -> 91670 | AK55: =VLOOKUP(Tab2_Rohdaten!$B73,Tab2_Rohdaten!$A$28:$GG$1800,10+AK$9,FALSE) -> 92612 | AL55: =VLOOKUP(Tab2_Rohdaten!$B73,Tab2_Rohdaten!$A$28:$GG$1800,10+AL$9,FALSE) -> 90505 | AM55: =VLOOKUP(Tab2_Rohdaten!$B73,Tab2_Rohdaten!$A$28:$GG$1800,10+AM$9,FALSE) -> 89803 | AN55: =VLOOKUP(Tab2_Rohdaten!$B73,Tab2_Rohdaten!$A$28:$GG$1800,10+AN$9,FALSE) -> 91000 | AO55: =VLOOKUP(Tab2_Rohdaten!$B73,Tab2_Rohdaten!$A$28:$GG$1800,10+AO$9,FALSE) -> 92467 | AP55: =VLOOKUP(Tab2_Rohdaten!$B73,Tab2_Rohdaten!$A$28:$GG$1800,10+AP$9,FALSE) -> 91179 | AQ55: =VLOOKUP(Tab2_Rohdaten!$B73,Tab2_Rohdaten!$A$28:$GG$1800,10+AQ$9,FALSE) -> 90540 | AR55: =VLOOKUP(Tab2_Rohdaten!$B73,Tab2_Rohdaten!$A$28:$GG$1800,10+AR$9,FALSE) -> 91637 | AS55: =VLOOKUP(Tab2_Rohdaten!$B73,Tab2_Rohdaten!$A$28:$GG$1800,10+AS$9,FALSE) -> 93024 | AT55: =VLOOKUP(Tab2_Rohdaten!$B73,Tab2_Rohdaten!$A$28:$GG$1800,10+AT$9,FALSE) -> 91502 | AU55: =VLOOKUP(Tab2_Rohdaten!$B73,Tab2_Rohdaten!$A$28:$GG$1800,10+AU$9,FALSE) -> 91285 | AV55: =VLOOKUP(Tab2_Rohdaten!$B73,Tab2_Rohdaten!$A$28:$GG$1800,10+AV$9,FALSE) -> 92360 | AW55: =VLOOKUP(Tab2_Rohdaten!$B73,Tab2_Rohdaten!$A$28:$GG$1800,10+AW$9,FALSE) -> 93727 | AX55: =VLOOKUP(Tab2_Rohdaten!$B73,Tab2_Rohdaten!$A$28:$GG$1800,10+AX$9,FALSE) -> 92546 | AY55: =VLOOKUP(Tab2_Rohdaten!$B73,Tab2_Rohdaten!$A$28:$GG$1800,10+AY$9,FALSE) -> 91655 | AZ55: =VLOOKUP(Tab2_Rohdaten!$B73,Tab2_Rohdaten!$A$28:$GG$1800,10+AZ$9,FALSE) -> 92463 | BA55: =VLOOKUP(Tab2_Rohdaten!$B73,Tab2_Rohdaten!$A$28:$GG$1800,10+BA$9,FALSE) -> 93836 | BB55: =VLOOKUP(Tab2_Rohdaten!$B73,Tab2_Rohdaten!$A$28:$GG$1800,10+BB$9,FALSE) -> 92855 | BC55: =VLOOKUP(Tab2_Rohdaten!$B73,Tab2_Rohdaten!$A$28:$GG$1800,10+BC$9,FALSE) -> 91973 | BD55: =VLOOKUP(Tab2_Rohdaten!$B73,Tab2_Rohdaten!$A$28:$GG$1800,10+BD$9,FALSE) -> 92487 | BE55: =VLOOKUP(Tab2_Rohdaten!$B73,Tab2_Rohdaten!$A$28:$GG$1800,10+BE$9,FALSE) -> 93904 | BF55: =VLOOKUP(Tab2_Rohdaten!$B73,Tab2_Rohdaten!$A$28:$GG$1800,10+BF$9,FALSE) -> 92991 | BG55: =VLOOKUP(Tab2_Rohdaten!$B73,Tab2_Rohdaten!$A$28:$GG$1800,10+BG$9,FALSE) -> 92355 | BH55: =VLOOKUP(Tab2_Rohdaten!$B73,Tab2_Rohdaten!$A$28:$GG$1800,10+BH$9,FALSE) -> 92028 | BI55: =VLOOKUP(Tab2_Rohdaten!$B73,Tab2_Rohdaten!$A$28:$GG$1800,10+BI$9,FALSE) -> 93315 | BJ55: =VLOOKUP(Tab2_Rohdaten!$B73,Tab2_Rohdaten!$A$28:$GG$1800,10+BJ$9,FALSE) -> 92705 | BK55: =VLOOKUP(Tab2_Rohdaten!$B73,Tab2_Rohdaten!$A$28:$GG$1800,10+BK$9,FALSE) -> 91817 | BL55: =VLOOKUP(Tab2_Rohdaten!$B73,Tab2_Rohdaten!$A$28:$GG$1800,10+BL$9,FALSE) -> 92041 | BM55: =VLOOKUP(Tab2_Rohdaten!$B73,Tab2_Rohdaten!$A$28:$GG$1800,10+BM$9,FALSE) -> 93358 | BN55: =VLOOKUP(Tab2_Rohdaten!$B73,Tab2_Rohdaten!$A$28:$GG$1800,10+BN$9,FALSE) -> 92600 | BO55: =VLOOKUP(Tab2_Rohdaten!$B73,Tab2_Rohdaten!$A$28:$GG$1800,10+BO$9,FALSE) -> 92004
A56: =VLOOKUP(Tab2_Rohdaten!$B74,Tab2_Rohdaten!$A$28:$GG$1800,9,FALSE) -> JC Chemnitz, Stadt | B56: =VLOOKUP(Tab2_Rohdaten!$B74,Tab2_Rohdaten!$A$28:$GG$1800,10,FALSE) -> 07302 | C56: =VLOOKUP(Tab2_Rohdaten!$B74,Tab2_Rohdaten!$A$28:$GG$1800,10+C$9,FALSE) -> 75918 | D56: =VLOOKUP(Tab2_Rohdaten!$B74,Tab2_Rohdaten!$A$28:$GG$1800,10+D$9,FALSE) -> 77708 | E56: =VLOOKUP(Tab2_Rohdaten!$B74,Tab2_Rohdaten!$A$28:$GG$1800,10+E$9,FALSE) -> 79296 | F56: =VLOOKUP(Tab2_Rohdaten!$B74,Tab2_Rohdaten!$A$28:$GG$1800,10+F$9,FALSE) -> 79218 | G56: =VLOOKUP(Tab2_Rohdaten!$B74,Tab2_Rohdaten!$A$28:$GG$1800,10+G$9,FALSE) -> 78481 | H56: =VLOOKUP(Tab2_Rohdaten!$B74,Tab2_Rohdaten!$A$28:$GG$1800,10+H$9,FALSE) -> 79809 | I56: =VLOOKUP(Tab2_Rohdaten!$B74,Tab2_Rohdaten!$A$28:$GG$1800,10+I$9,FALSE) -> 80896 | J56: =VLOOKUP(Tab2_Rohdaten!$B74,Tab2_Rohdaten!$A$28:$GG$1800,10+J$9,FALSE) -> 80696 | K56: =VLOOKUP(Tab2_Rohdaten!$B74,Tab2_Rohdaten!$A$28:$GG$1800,10+K$9,FALSE) -> 80420 | L56: =VLOOKUP(Tab2_Rohdaten!$B74,Tab2_Rohdaten!$A$28:$GG$1800,10+L$9,FALSE) -> 81245 | M56: =VLOOKUP(Tab2_Rohdaten!$B74,Tab2_Rohdaten!$A$28:$GG$1800,10+M$9,FALSE) -> 82621 | N56: =VLOOKUP(Tab2_Rohdaten!$B74,Tab2_Rohdaten!$A$28:$GG$1800,10+N$9,FALSE) -> 81689 | O56: =VLOOKUP(Tab2_Rohdaten!$B74,Tab2_Rohdaten!$A$28:$GG$1800,10+O$9,FALSE) -> 80142 | P56: =VLOOKUP(Tab2_Rohdaten!$B74,Tab2_Rohdaten!$A$28:$GG$1800,10+P$9,FALSE) -> 80806 | Q56: =VLOOKUP(Tab2_Rohdaten!$B74,Tab2_Rohdaten!$A$28:$GG$1800,10+Q$9,FALSE) -> 81707 | R56: =VLOOKUP(Tab2_Rohdaten!$B74,Tab2_Rohdaten!$A$28:$GG$1800,10+R$9,FALSE) -> 81204 | S56: =VLOOKUP(Tab2_Rohdaten!$B74,Tab2_Rohdaten!$A$28:$GG$1800,10+S$9,FALSE) -> 80261 | T56: =VLOOKUP(Tab2_Rohdaten!$B74,Tab2_Rohdaten!$A$28:$GG$1800,10+T$9,FALSE) -> 81934 | U56: =VLOOKUP(Tab2_Rohdaten!$B74,Tab2_Rohdaten!$A$28:$GG$1800,10+U$9,FALSE) -> 83541 | V56: =VLOOKUP(Tab2_Rohdaten!$B74,Tab2_Rohdaten!$A$28:$GG$1800,10+V$9,FALSE) -> 83301 | W56: =VLOOKUP(Tab2_Rohdaten!$B74,Tab2_Rohdaten!$A$28:$GG$1800,10+W$9,FALSE) -> 82878 | X56: =VLOOKUP(Tab2_Rohdaten!$B74,Tab2_Rohdaten!$A$28:$GG$1800,10+X$9,FALSE) -> 84095 | Y56: =VLOOKUP(Tab2_Rohdaten!$B74,Tab2_Rohdaten!$A$28:$GG$1800,10+Y$9,FALSE) -> 85501 | Z56: =VLOOKUP(Tab2_Rohdaten!$B74,Tab2_Rohdaten!$A$28:$GG$1800,10+Z$9,FALSE) -> 84814 | AA56: =VLOOKUP(Tab2_Rohdaten!$B74,Tab2_Rohdaten!$A$28:$GG$1800,10+AA$9,FALSE) -> 84549 | AB56: =VLOOKUP(Tab2_Rohdaten!$B74,Tab2_Rohdaten!$A$28:$GG$1800,10+AB$9,FALSE) -> 85364 | AC56: =VLOOKUP(Tab2_Rohdaten!$B74,Tab2_Rohdaten!$A$28:$GG$1800,10+AC$9,FALSE) -> 86432 | AD56: =VLOOKUP(Tab2_Rohdaten!$B74,Tab2_Rohdaten!$A$28:$GG$1800,10+AD$9,FALSE) -> 86072 | AE56: =VLOOKUP(Tab2_Rohdaten!$B74,Tab2_Rohdaten!$A$28:$GG$1800,10+AE$9,FALSE) -> 85230 | AF56: =VLOOKUP(Tab2_Rohdaten!$B74,Tab2_Rohdaten!$A$28:$GG$1800,10+AF$9,FALSE) -> 85589 | AG56: =VLOOKUP(Tab2_Rohdaten!$B74,Tab2_Rohdaten!$A$28:$GG$1800,10+AG$9,FALSE) -> 86821 | AH56: =VLOOKUP(Tab2_Rohdaten!$B74,Tab2_Rohdaten!$A$28:$GG$1800,10+AH$9,FALSE) -> 86491 | AI56: =VLOOKUP(Tab2_Rohdaten!$B74,Tab2_Rohdaten!$A$28:$GG$1800,10+AI$9,FALSE) -> 86407 | AJ56: =VLOOKUP(Tab2_Rohdaten!$B74,Tab2_Rohdaten!$A$28:$GG$1800,10+AJ$9,FALSE) -> 86940 | AK56: =VLOOKUP(Tab2_Rohdaten!$B74,Tab2_Rohdaten!$A$28:$GG$1800,10+AK$9,FALSE) -> 88169 | AL56: =VLOOKUP(Tab2_Rohdaten!$B74,Tab2_Rohdaten!$A$28:$GG$1800,10+AL$9,FALSE) -> 87730 | AM56: =VLOOKUP(Tab2_Rohdaten!$B74,Tab2_Rohdaten!$A$28:$GG$1800,10+AM$9,FALSE) -> 87536 | AN56: =VLOOKUP(Tab2_Rohdaten!$B74,Tab2_Rohdaten!$A$28:$GG$1800,10+AN$9,FALSE) -> 88160 | AO56: =VLOOKUP(Tab2_Rohdaten!$B74,Tab2_Rohdaten!$A$28:$GG$1800,10+AO$9,FALSE) -> 89479 | AP56: =VLOOKUP(Tab2_Rohdaten!$B74,Tab2_Rohdaten!$A$28:$GG$1800,10+AP$9,FALSE) -> 89200 | AQ56: =VLOOKUP(Tab2_Rohdaten!$B74,Tab2_Rohdaten!$A$28:$GG$1800,10+AQ$9,FALSE) -> 88754 | AR56: =VLOOKUP(Tab2_Rohdaten!$B74,Tab2_Rohdaten!$A$28:$GG$1800,10+AR$9,FALSE) -> 89483 | AS56: =VLOOKUP(Tab2_Rohdaten!$B74,Tab2_Rohdaten!$A$28:$GG$1800,10+AS$9,FALSE) -> 90950 | AT56: =VLOOKUP(Tab2_Rohdaten!$B74,Tab2_Rohdaten!$A$28:$GG$1800,10+AT$9,FALSE) -> 90647 | AU56: =VLOOKUP(Tab2_Rohdaten!$B74,Tab2_Rohdaten!$A$28:$GG$1800,10+AU$9,FALSE) -> 90421 | AV56: =VLOOKUP(Tab2_Rohdaten!$B74,Tab2_Rohdaten!$A$28:$GG$1800,10+AV$9,FALSE) -> 91039 | AW56: =VLOOKUP(Tab2_Rohdaten!$B74,Tab2_Rohdaten!$A$28:$GG$1800,10+AW$9,FALSE) -> 92479 | AX56: =VLOOKUP(Tab2_Rohdaten!$B74,Tab2_Rohdaten!$A$28:$GG$1800,10+AX$9,FALSE) -> 92231 | AY56: =VLOOKUP(Tab2_Rohdaten!$B74,Tab2_Rohdaten!$A$28:$GG$1800,10+AY$9,FALSE) -> 91930 | AZ56: =VLOOKUP(Tab2_Rohdaten!$B74,Tab2_Rohdaten!$A$28:$GG$1800,10+AZ$9,FALSE) -> 92450 | BA56: =VLOOKUP(Tab2_Rohdaten!$B74,Tab2_Rohdaten!$A$28:$GG$1800,10+BA$9,FALSE) -> 93680 | BB56: =VLOOKUP(Tab2_Rohdaten!$B74,Tab2_Rohdaten!$A$28:$GG$1800,10+BB$9,FALSE) -> 93490 | BC56: =VLOOKUP(Tab2_Rohdaten!$B74,Tab2_Rohdaten!$A$28:$GG$1800,10+BC$9,FALSE) -> 92897 | BD56: =VLOOKUP(Tab2_Rohdaten!$B74,Tab2_Rohdaten!$A$28:$GG$1800,10+BD$9,FALSE) -> 93044 | BE56: =VLOOKUP(Tab2_Rohdaten!$B74,Tab2_Rohdaten!$A$28:$GG$1800,10+BE$9,FALSE) -> 94390 | BF56: =VLOOKUP(Tab2_Rohdaten!$B74,Tab2_Rohdaten!$A$28:$GG$1800,10+BF$9,FALSE) -> 94022 | BG56: =VLOOKUP(Tab2_Rohdaten!$B74,Tab2_Rohdaten!$A$28:$GG$1800,10+BG$9,FALSE) -> 93348 | BH56: =VLOOKUP(Tab2_Rohdaten!$B74,Tab2_Rohdaten!$A$28:$GG$1800,10+BH$9,FALSE) -> 92189 | BI56: =VLOOKUP(Tab2_Rohdaten!$B74,Tab2_Rohdaten!$A$28:$GG$1800,10+BI$9,FALSE) -> 93473 | BJ56: =VLOOKUP(Tab2_Rohdaten!$B74,Tab2_Rohdaten!$A$28:$GG$1800,10+BJ$9,FALSE) -> 93566 | BK56: =VLOOKUP(Tab2_Rohdaten!$B74,Tab2_Rohdaten!$A$28:$GG$1800,10+BK$9,FALSE) -> 93096 | BL56: =VLOOKUP(Tab2_Rohdaten!$B74,Tab2_Rohdaten!$A$28:$GG$1800,10+BL$9,FALSE) -> 93372 | BM56: =VLOOKUP(Tab2_Rohdaten!$B74,Tab2_Rohdaten!$A$28:$GG$1800,10+BM$9,FALSE) -> 94613 | BN56: =VLOOKUP(Tab2_Rohdaten!$B74,Tab2_Rohdaten!$A$28:$GG$1800,10+BN$9,FALSE) -> 94396 | BO56: =VLOOKUP(Tab2_Rohdaten!$B74,Tab2_Rohdaten!$A$28:$GG$1800,10+BO$9,FALSE) -> 94092
A57: =VLOOKUP(Tab2_Rohdaten!$B75,Tab2_Rohdaten!$A$28:$GG$1800,9,FALSE) -> JC Dresden, Stadt | B57: =VLOOKUP(Tab2_Rohdaten!$B75,Tab2_Rohdaten!$A$28:$GG$1800,10,FALSE) -> 07402 | C57: =VLOOKUP(Tab2_Rohdaten!$B75,Tab2_Rohdaten!$A$28:$GG$1800,10+C$9,FALSE) -> 162888 | D57: =VLOOKUP(Tab2_Rohdaten!$B75,Tab2_Rohdaten!$A$28:$GG$1800,10+D$9,FALSE) -> 166222 | E57: =VLOOKUP(Tab2_Rohdaten!$B75,Tab2_Rohdaten!$A$28:$GG$1800,10+E$9,FALSE) -> 169487 | F57: =VLOOKUP(Tab2_Rohdaten!$B75,Tab2_Rohdaten!$A$28:$GG$1800,10+F$9,FALSE) -> 169841 | G57: =VLOOKUP(Tab2_Rohdaten!$B75,Tab2_Rohdaten!$A$28:$GG$1800,10+G$9,FALSE) -> 169455 | H57: =VLOOKUP(Tab2_Rohdaten!$B75,Tab2_Rohdaten!$A$28:$GG$1800,10+H$9,FALSE) -> 172016 | I57: =VLOOKUP(Tab2_Rohdaten!$B75,Tab2_Rohdaten!$A$28:$GG$1800,10+I$9,FALSE) -> 174918 | J57: =VLOOKUP(Tab2_Rohdaten!$B75,Tab2_Rohdaten!$A$28:$GG$1800,10+J$9,FALSE) -> 175296 | K57: =VLOOKUP(Tab2_Rohdaten!$B75,Tab2_Rohdaten!$A$28:$GG$1800,10+K$9,FALSE) -> 174681 | L57: =VLOOKUP(Tab2_Rohdaten!$B75,Tab2_Rohdaten!$A$28:$GG$1800,10+L$9,FALSE) -> 176995 | M57: =VLOOKUP(Tab2_Rohdaten!$B75,Tab2_Rohdaten!$A$28:$GG$1800,10+M$9,FALSE) -> 179915 | N57: =VLOOKUP(Tab2_Rohdaten!$B75,Tab2_Rohdaten!$A$28:$GG$1800,10+N$9,FALSE) -> 179344 | O57: =VLOOKUP(Tab2_Rohdaten!$B75,Tab2_Rohdaten!$A$28:$GG$1800,10+O$9,FALSE) -> 177171 | P57: =VLOOKUP(Tab2_Rohdaten!$B75,Tab2_Rohdaten!$A$28:$GG$1800,10+P$9,FALSE) -> 178612 | Q57: =VLOOKUP(Tab2_Rohdaten!$B75,Tab2_Rohdaten!$A$28:$GG$1800,10+Q$9,FALSE) -> 180197 | R57: =VLOOKUP(Tab2_Rohdaten!$B75,Tab2_Rohdaten!$A$28:$GG$1800,10+R$9,FALSE) -> 180245 | S57: =VLOOKUP(Tab2_Rohdaten!$B75,Tab2_Rohdaten!$A$28:$GG$1800,10+S$9,FALSE) -> 179702 | T57: =VLOOKUP(Tab2_Rohdaten!$B75,Tab2_Rohdaten!$A$28:$GG$1800,10+T$9,FALSE) -> 182473 | U57: =VLOOKUP(Tab2_Rohdaten!$B75,Tab2_Rohdaten!$A$28:$GG$1800,10+U$9,FALSE) -> 185534 | V57: =VLOOKUP(Tab2_Rohdaten!$B75,Tab2_Rohdaten!$A$28:$GG$1800,10+V$9,FALSE) -> 185285 | W57: =VLOOKUP(Tab2_Rohdaten!$B75,Tab2_Rohdaten!$A$28:$GG$1800,10+W$9,FALSE) -> 185933 | X57: =VLOOKUP(Tab2_Rohdaten!$B75,Tab2_Rohdaten!$A$28:$GG$1800,10+X$9,FALSE) -> 189424 | Y57: =VLOOKUP(Tab2_Rohdaten!$B75,Tab2_Rohdaten!$A$28:$GG$1800,10+Y$9,FALSE) -> 193502 | Z57: =VLOOKUP(Tab2_Rohdaten!$B75,Tab2_Rohdaten!$A$28:$GG$1800,10+Z$9,FALSE) -> 193453 | AA57: =VLOOKUP(Tab2_Rohdaten!$B75,Tab2_Rohdaten!$A$28:$GG$1800,10+AA$9,FALSE) -> 194183 | AB57: =VLOOKUP(Tab2_Rohdaten!$B75,Tab2_Rohdaten!$A$28:$GG$1800,10+AB$9,FALSE) -> 196507 | AC57: =VLOOKUP(Tab2_Rohdaten!$B75,Tab2_Rohdaten!$A$28:$GG$1800,10+AC$9,FALSE) -> 199309 | AD57: =VLOOKUP(Tab2_Rohdaten!$B75,Tab2_Rohdaten!$A$28:$GG$1800,10+AD$9,FALSE) -> 199214 | AE57: =VLOOKUP(Tab2_Rohdaten!$B75,Tab2_Rohdaten!$A$28:$GG$1800,10+AE$9,FALSE) -> 198453 | AF57: =VLOOKUP(Tab2_Rohdaten!$B75,Tab2_Rohdaten!$A$28:$GG$1800,10+AF$9,FALSE) -> 200622 | AG57: =VLOOKUP(Tab2_Rohdaten!$B75,Tab2_Rohdaten!$A$28:$GG$1800,10+AG$9,FALSE) -> 204109 | AH57: =VLOOKUP(Tab2_Rohdaten!$B75,Tab2_Rohdaten!$A$28:$GG$1800,10+AH$9,FALSE) -> 203674 | AI57: =VLOOKUP(Tab2_Rohdaten!$B75,Tab2_Rohdaten!$A$28:$GG$1800,10+AI$9,FALSE) -> 203698 | AJ57: =VLOOKUP(Tab2_Rohdaten!$B75,Tab2_Rohdaten!$A$28:$GG$1800,10+AJ$9,FALSE) -> 205436 | AK57: =VLOOKUP(Tab2_Rohdaten!$B75,Tab2_Rohdaten!$A$28:$GG$1800,10+AK$9,FALSE) -> 207947 | AL57: =VLOOKUP(Tab2_Rohdaten!$B75,Tab2_Rohdaten!$A$28:$GG$1800,10+AL$9,FALSE) -> 207415 | AM57: =VLOOKUP(Tab2_Rohdaten!$B75,Tab2_Rohdaten!$A$28:$GG$1800,10+AM$9,FALSE) -> 207469 | AN57: =VLOOKUP(Tab2_Rohdaten!$B75,Tab2_Rohdaten!$A$28:$GG$1800,10+AN$9,FALSE) -> 209307 | AO57: =VLOOKUP(Tab2_Rohdaten!$B75,Tab2_Rohdaten!$A$28:$GG$1800,10+AO$9,FALSE) -> 212562 | AP57: =VLOOKUP(Tab2_Rohdaten!$B75,Tab2_Rohdaten!$A$28:$GG$1800,10+AP$9,FALSE) -> 212335 | AQ57: =VLOOKUP(Tab2_Rohdaten!$B75,Tab2_Rohdaten!$A$28:$GG$1800,10+AQ$9,FALSE) -> 212514 | AR57: =VLOOKUP(Tab2_Rohdaten!$B75,Tab2_Rohdaten!$A$28:$GG$1800,10+AR$9,FALSE) -> 214308 | AS57: =VLOOKUP(Tab2_Rohdaten!$B75,Tab2_Rohdaten!$A$28:$GG$1800,10+AS$9,FALSE) -> 218002 | AT57: =VLOOKUP(Tab2_Rohdaten!$B75,Tab2_Rohdaten!$A$28:$GG$1800,10+AT$9,FALSE) -> 217759 | AU57: =VLOOKUP(Tab2_Rohdaten!$B75,Tab2_Rohdaten!$A$28:$GG$1800,10+AU$9,FALSE) -> 217981 | AV57: =VLOOKUP(Tab2_Rohdaten!$B75,Tab2_Rohdaten!$A$28:$GG$1800,10+AV$9,FALSE) -> 219926 | AW57: =VLOOKUP(Tab2_Rohdaten!$B75,Tab2_Rohdaten!$A$28:$GG$1800,10+AW$9,FALSE) -> 223833 | AX57: =VLOOKUP(Tab2_Rohdaten!$B75,Tab2_Rohdaten!$A$28:$GG$1800,10+AX$9,FALSE) -> 224001 | AY57: =VLOOKUP(Tab2_Rohdaten!$B75,Tab2_Rohdaten!$A$28:$GG$1800,10+AY$9,FALSE) -> 223971 | AZ57: =VLOOKUP(Tab2_Rohdaten!$B75,Tab2_Rohdaten!$A$28:$GG$1800,10+AZ$9,FALSE) -> 225536 | BA57: =VLOOKUP(Tab2_Rohdaten!$B75,Tab2_Rohdaten!$A$28:$GG$1800,10+BA$9,FALSE) -> 229373 | BB57: =VLOOKUP(Tab2_Rohdaten!$B75,Tab2_Rohdaten!$A$28:$GG$1800,10+BB$9,FALSE) -> 229669 | BC57: =VLOOKUP(Tab2_Rohdaten!$B75,Tab2_Rohdaten!$A$28:$GG$1800,10+BC$9,FALSE) -> 228125 | BD57: =VLOOKUP(Tab2_Rohdaten!$B75,Tab2_Rohdaten!$A$28:$GG$1800,10+BD$9,FALSE) -> 228999 | BE57: =VLOOKUP(Tab2_Rohdaten!$B75,Tab2_Rohdaten!$A$28:$GG$1800,10+BE$9,FALSE) -> 232616 | BF57: =VLOOKUP(Tab2_Rohdaten!$B75,Tab2_Rohdaten!$A$28:$GG$1800,10+BF$9,FALSE) -> 232686 | BG57: =VLOOKUP(Tab2_Rohdaten!$B75,Tab2_Rohdaten!$A$28:$GG$1800,10+BG$9,FALSE) -> 232218 | BH57: =VLOOKUP(Tab2_Rohdaten!$B75,Tab2_Rohdaten!$A$28:$GG$1800,10+BH$9,FALSE) -> 230529 | BI57: =VLOOKUP(Tab2_Rohdaten!$B75,Tab2_Rohdaten!$A$28:$GG$1800,10+BI$9,FALSE) -> 233013 | BJ57: =VLOOKUP(Tab2_Rohdaten!$B75,Tab2_Rohdaten!$A$28:$GG$1800,10+BJ$9,FALSE) -> 233329 | BK57: =VLOOKUP(Tab2_Rohdaten!$B75,Tab2_Rohdaten!$A$28:$GG$1800,10+BK$9,FALSE) -> 232292 | BL57: =VLOOKUP(Tab2_Rohdaten!$B75,Tab2_Rohdaten!$A$28:$GG$1800,10+BL$9,FALSE) -> 232983 | BM57: =VLOOKUP(Tab2_Rohdaten!$B75,Tab2_Rohdaten!$A$28:$GG$1800,10+BM$9,FALSE) -> 235806 | BN57: =VLOOKUP(Tab2_Rohdaten!$B75,Tab2_Rohdaten!$A$28:$GG$1800,10+BN$9,FALSE) -> 236428 | BO57: =VLOOKUP(Tab2_Rohdaten!$B75,Tab2_Rohdaten!$A$28:$GG$1800,10+BO$9,FALSE) -> 236230
